Workbook

Sheet 14.4-14.5
A1: Live births by mother's age at last birthday and legal marital status [demo_fagec]
A3: Last update | C3: 2014-02-10T06:40:09
A4: Extracted on | C4: 2014-07-07T16:53:28.489
A5: Source of data | C5: Eurostat
A7: AGE | C7: Total
A8: INDIC_DE | C8: Live births - total
A10: Get the data: | C10: http://goo.gl/uesWTF
A12: TIME/GEO | C12: Portugal
A13: 1960 | B13: =RIGHT(A13,2) -> 60 | C13: 213895 | D13: =IF(RIGHT(B13,1)="0",C13,NA()) -> 213895
A14: 1961 | B14: 61 | C14: 217516 | D14: =IF(RIGHT(B14,1)="0",C14,NA()) -> 
A15: 1962 | B15: 62 | C15: 220200 | H15: LIVE BIRTHS IN PORTUGAL 1960–2014
A16: 1963 | B16: 63 | C16: 212152
A17: 1964 | B17: 64 | C17: 217136
A18: 1965 | B18: 65 | C18: 210299
A19: 1966 | B19: 66 | C19: 206940
A20: 1967 | B20: 67 | C20: 202061
A21: 1968 | B21: 68 | C21: 194962
A22: 1969 | B22: 69 | C22: 189739
A23: 1970 | B23: 70 | C23: 180690 | D23: 180690
A24: 1971 | B24: 71 | C24: 181243
A25: 1972 | B25: 72 | C25: 174685
A26: 1973 | B26: 73 | C26: 172324
A27: 1974 | B27: 74 | C27: 171979
A28: 1975 | B28: 75 | C28: 179648
A29: 1976 | B29: 76 | C29: 186712
A30: 1977 | B30: 77 | C30: 181064
A31: 1978 | B31: 78 | C31: 167467
A32: 1979 | B32: 79 | C32: 160311
A33: 1980 | B33: 80 | C33: 158309 | D33: 158309
A34: 1981 | B34: 81 | C34: 152071
A35: 1982 | B35: 82 | C35: 151002
A36: 1983 | B36: 83 | C36: 144296
A37: 1984 | B37: 84 | C37: 142783
A38: 1985 | B38: 85 | C38: 130450
A39: 1986 | B39: 86 | C39: 126715 | H39: Source: Eurostat
A40: 1987 | B40: 87 | C40: 123179
A41: 1988 | B41: 88 | C41: 122093
A42: 1989 | B42: 89 | C42: 118483
A43: 1990 | B43: 90 | C43: 116321 | D43: 116321
A44: 1991 | B44: 91 | C44: 116299
A45: 1992 | B45: =RIGHT(A45,2) -> 92 | C45: 114924
A46: 1993 | B46: 93 | C46: 113960
A47: 1994 | B47: 94 | C47: 109227
A48: 1995 | B48: 95 | C48: 107097
A49: 1996 | B49: 96 | C49: 110261
A50: 1997 | B50: 97 | C50: 112933
A51: 1998 | B51: 98 | C51: 113384
A52: 1999 | B52: 99 | C52: 116002
A53: 2000 | B53: 00 | C53: 120008 | D53: 120008
A54: 2001 | B54: 01 | C54: 112774
A55: 2002 | B55: 02 | C55: 114383
A56: 2003 | B56: 03 | C56: 112515
A57: 2004 | B57: 04 | C57: 109298
A58: 2005 | B58: 05 | C58: 109399
A59: 2006 | B59: 06 | C59: 105449
A60: 2007 | B60: 07 | C60: 102492
A61: 2008 | B61: 08 | C61: 104594
A62: 2009 | B62: 09 | C62: 99491
A63: 2010 | B63: 10 | C63: 101381 | D63: 101381
A64: 2011 | B64: 11 | C64: 96856
A65: 2012 | B65: 12 | C65: 89841
A66: 2013 | B66: 13 | C66: 82787 | D66: =+C66 -> 82787
A67: 2014 | B67: 14 | C67: 82367 | D67: =+C67 -> 82367

Sheet 14.6-14.7
A1: Live births by mother's age reached during the year and legal marital status [demo_fager]
A3: Last update | B3: 2014-02-17T06:40:52 | L3: THE GAP IN LIVE BIRTHS BETWEEN PORTUGAL AND THE EUROPEAN UNION IS WIDENING
A4: Extracted on | B4: 2014-07-15T14:17:03.849 | L4: 1960=100
A5: Source of data | B5: Eurostat
A7: AGE | B7: Total
A8: INDIC_DE | B8: Live births - total
A10: TIME/GEO | B10: European Union (28 countries) | C10: Euro area (17 countries) | D10: Portugal | E10: Abs Diff. | F10: European Union (28 countries) | G10: Euro area (17 countries) | H10: Portugal | I10: Difference | J10: Year
A11: 1960 | B11: : | C11: : | D11: 213895 | E11: 71749.58861 | F11: 100 | G11: 100 | H11: =D11/D$12*100 -> 98.33529487 | I11: =(H11/G11-1)*100 -> -1.664705125 | J11: =RIGHT(A11,2) -> 60
A12: 1961 | B12: 7596375 | C12: 4936349 | D12: 217516 | E12: 75215.81308 | F12: =B12/B$12*100 -> 100 | G12: =C12/C$12*100 -> 100 | H12: 100 | I12: 0 | J12: 61
A13: 1962 | B13: 7584648 | C13: 4957652 | D13: 220200 | E13: 77035.91331 | F13: 99.84562374 | G13: 100.4315538 | H13: 101.2339322 | I13: 0.7989306355 | J13: 62
A14: 1963 | B14: 7723214 | C14: 5079437 | D14: 212152 | E14: 69357.38462 | F14: 101.6697306 | G14: 102.8986605 | H14: 97.53397451 | I14: -5.213562537 | J14: 63
A15: 1964 | B15: 7830698 | C15: 5183373 | D15: 217136 | E15: 75084.41121 | F15: 103.0846687 | G15: 105.0041843 | H15: 99.82530021 | I15: -4.932073988 | J15: 64
A16: 1965 | B16: 7665594 | C16: 5071504 | D16: 210299 | E16: 70099.66667 | F16: 100.9112109 | G16: 102.7379547 | H16: 96.68208316 | I16: -5.894483272 | J16: 65
A17: 1966 | B17: 7574219 | C17: 5020675 | D17: 206940 | E17: 69416.58228 | F17: 99.70833457 | G17: 101.7082666 | H17: 95.13782894 | I17: -6.460082209 | J17: 66
A18: 1967 | B18: 7693571 | C18: 4914363 | D18: 202061 | E18: 67779.9557 | F18: 101.279505 | G18: 99.5546101 | H18: 92.89477556 | I18: -6.689629475 | J18: 67
A19: 1968 | B19: 7572289 | C19: 4799819 | D19: 194962 | E19: 63737.57692 | F19: 99.68292771 | G19: 97.23419069 | H19: 89.6311076 | I19: -7.819351448 | J19: 68
A20: 1969 | B20: 7419374 | C20: 4730206 | D20: 189739 | E20: 62030.05769 | F20: 97.66992809 | G20: 95.82397841 | H20: 87.22990493 | I20: -8.968604337 | J20: 69
A21: 1970 | B21: 7222351 | C21: 4573255 | D21: 180690 | E21: 54627.2093 | F21: 95.0762831 | G21: 92.64448279 | H21: 83.06975119 | I21: -10.3349183 | J21: 70 | L21: Source: Eurostat
A22: 1971 | B22: 7210403 | C22: 4558018 | D22: 181243 | E22: 54372.9 | F22: 94.91899755 | G22: 92.33581337 | H22: 83.32398536 | I22: -9.759840392 | J22: 71
A23: 1972 | B23: 6991617 | C23: 4398893 | D23: 174685 | E23: 46419.79021 | F23: 92.03886064 | G23: 89.11227711 | H23: 80.30903474 | I23: -9.878821031 | J23: 72
A24: 1973 | B24: 6825452 | C24: 4253763 | D24: 172324 | E24: 41681.25632 | F24: 89.85143572 | G24: 86.17224998 | H24: 79.22359734 | I24: -8.063677848 | J24: 73
A25: 1974 | B25: 6853951 | C25: 4200419 | D25: 171979 | E25: 38217.55556 | F25: 90.2266015 | G25: 85.09161326 | H25: 79.06498832 | I25: -7.082513425 | J25: 74 | L25: DIFFERENCE BETWEEN TOTAL LIVE BIRTHS AND EXPECTED TOTAL
A26: 1975 | B26: 6673965 | C26: 4051902 | D26: 179648 | E26: 42462.25455 | F26: 87.85723454 | G26: 82.08297266 | H26: 82.59070597 | I26: 0.6185610682 | J26: 75 | L26: Expected total: If fertility rate = 2.1 live births per woman
A27: 1976 | B27: 6628074 | C27: 4027013 | D27: 186712 | E27: 47671.14894 | F27: 87.25311744 | G27: 81.57877411 | H27: 85.83828316 | I27: 5.221344764 | J27: 76
A28: 1977 | B28: 6534498 | C28: 3974866 | D28: 181064 | E28: 39712.92193 | F28: 86.02126672 | G28: 80.52238608 | H28: 83.24169257 | I28: 3.377081354 | J28: 77
A29: 1978 | B29: 6473182 | C29: 3906776 | D29: 167467 | E29: 23923.85714 | F29: 85.21409225 | G29: 79.14302656 | H29: 76.99065816 | I29: -2.719593238 | J29: 78
A30: 1979 | B30: 6477453 | C30: 3861647 | D30: 160311 | E30: 14573.72727 | F30: 85.27031643 | G30: 78.22880838 | H30: 73.70078523 | I30: -5.788178602 | J30: 79
A31: 1980 | B31: 6474003 | C31: 3885092 | D31: 158309 | E31: 10553.93333 | F31: 85.22490003 | G31: 78.70375454 | H31: 72.78039317 | I31: -7.526148409 | J31: 80
A32: 1981 | B32: 6321660 | C32: 3813900 | D32: 152071 | E32: 2141.84507 | F32: 83.21943032 | G32: 77.26155505 | H32: 69.91255816 | I32: -9.511841804 | J32: 81
A33: 1982 | B33: 6242340 | C33: 3771392 | D33: 151002 | E33: -2188.434783 | F33: 82.17524806 | G33: 76.40043279 | H33: 69.42110006 | I33: -9.135200519 | J33: 82
A34: 1983 | B34: 6076702 | C34: 3616317 | D34: 144296 | E34: -11099.69231 | F34: 79.99476066 | G34: 73.25894097 | H34: 66.33810846 | I34: -9.447082387 | J34: 83
A35: 1984 | B35: 6047951 | C35: 3572486 | D35: 142783 | E35: -15029.78947 | F35: 79.6162775 | G35: 72.37101753 | H35: 65.64252745 | I35: -9.297216359 | J35: 84
A36: 1985 | B36: 6015020 | C36: 3527494 | D36: 130450 | E36: -28820.34884 | F36: 79.1827681 | G36: 71.45957468 | H36: 59.97259972 | I36: -16.07478776 | J36: 85
A37: 1986 | B37: 5998040 | C37: 3528335 | D37: 126715 | E37: -33587.10843 | F37: 78.95924043 | G37: 71.47661156 | H37: 58.25548465 | I37: -18.4971372 | J37: 86
A38: 1987 | B38: 5968486 | C38: 3507035 | D38: 123179 | E38: -36497.48148 | F38: 78.57018644 | G38: 71.04511857 | H38: 56.62985711 | I38: -20.29029122 | J38: 87
A39: 1988 | B39: 6008463 | C39: 3549325 | D39: 122093 | E39: -37158.73913 | F39: 79.09645061 | G39: 71.90182461 | H39: 56.1305835 | I39: -21.93441014 | J39: 88
A40: 1989 | B40: 5900294 | C40: 3497605 | D40: 118483 | E40: -39997.44586 | F40: 77.6724951 | G40: 70.85408669 | H40: 54.47093547 | I40: -23.12238007 | J40: 89
A41: 1990 | B41: 5893526 | C41: 3533709 | D41: 116321 | E41: -40264.96154 | F41: 77.58339998 | G41: 71.58547744 | H41: 53.4769856 | I41: -25.29632055 | J41: 90
A42: 1991 | B42: 5742705 | C42: 3444396 | D42: 116299 | E42: -40257.34615 | F42: 75.59796614 | G42: 69.77618479 | H42: 53.4668714 | I42: -23.37375343 | J42: 91
A43: 1992 | B43: 5618148 | C43: 3405650 | D43: 114924 | E43: -41790.54545 | F43: 73.95827615 | G43: 68.9912727 | H43: =D43/D$12*100 -> 52.834734 | I43: =(H43/G43-1)*100 -> -23.41823548 | J43: =RIGHT(A43,2) -> 92 | L43: Source: Eurostat
A44: 1993 | B44: 5452768 | C44: 3316355 | D44: 113960 | E44: -43484.73684 | F44: =B44/B$12*100 -> 71.7811851 | G44: =C44/C$12*100 -> 67.18234468 | H44: 52.39154821 | I44: -22.015898 | J44: 93
A45: 1994 | B45: 5312733 | C45: 3235474 | D45: 109227 | E45: -48963.82759 | F45: 69.93774004 | G45: 65.54386653 | H45: 50.21561632 | I45: -23.38624652 | J45: 94
A46: 1995 | B46: 5180511 | C46: 3212897 | D46: 107097 | E46: -52409.17021 | F46: 68.19714667 | G46: 65.08650422 | H46: 49.23637801 | I46: -24.35240054 | J46: 95
A47: 1996 | B47: 5186641 | C47: 3250727 | D47: 110261 | E47: -50536.29167 | F47: 68.27784305 | G47: 65.85286008 | H47: 50.69098365 | I47: -23.02386929 | J47: 96
A48: 1997 | B48: 5173265 | C48: 3271692 | D48: 112933 | E48: -48399.85714 | F48: 68.10175906 | G48: 66.27756668 | H48: 51.91939903 | I48: -21.6636916 | J48: 97
A49: 1998 | B49: 5139115 | C49: 3278415 | D49: 113384 | E49: -48593.14286 | F49: 67.65220253 | G49: 66.41376045 | H49: 52.1267401 | I49: -21.51213883 | J49: 98
A50: 1999 | B50: 5118598 | C50: 3290231 | D50: 116002 | E50: -46400.8 | F50: 67.38211318 | G50: 66.65312765 | H50: 53.33032972 | I50: -19.98825621 | J50: 99
A51: 2000 | B51: 5166879 | C51: 3357073 | D51: 120008 | E51: -42583.48387 | F51: 68.01769265 | G51: 68.00720533 | H51: 55.17203332 | I51: -18.87325312 | J51: 00
A52: 2001 | B52: 5062948 | C52: 3300482 | D52: 112774 | E52: -50553.86207 | F52: 66.64952691 | G52: 66.86079124 | H52: 51.84630096 | I52: -22.4563455 | J52: 01
A53: 2002 | B53: 5033705 | C53: 3294819 | D53: 114383 | E53: -50140.49315 | F53: 66.26456698 | G53: 66.74607083 | H53: 52.58601666 | I53: -21.21481309 | J53: 02
A54: 2003 | B54: 5080465 | C54: 3311059 | D54: 112515 | E54: -51569.375 | F54: 66.88012374 | G54: 67.07505891 | H54: 51.72722926 | I54: -22.88157462 | J54: 03
A55: 2004 | B55: 5157173 | C55: 3349934 | D55: 109298 | E55: -54649 | F55: 67.88992118 | G55: 67.86258427 | H55: 50.2482576 | I55: -25.95587371 | J55: 04
A56: 2005 | B56: 5176850 | C56: 3338607 | D56: 109399 | E56: -53535.68085 | F56: 68.14895263 | G56: 67.63312318 | H56: 50.29469097 | I56: -25.63600704 | J56: 05
A57: 2006 | B57: 5264100 | C57: 3377310 | D57: 105449 | E57: -56188.15328 | F57: 69.29752678 | G57: 68.41716418 | H57: 48.4787326 | I57: -29.14244082 | J57: 06
A58: 2007 | B58: 5323425 | C58: 3393594 | D58: 102492 | E58: -56940 | F58: 70.07849139 | G58: 68.74704361 | H58: 47.11929237 | I58: -31.4599001 | J58: 07
A59: 2008 | B59: 5469434 | C59: 3468196 | D59: 104594 | E59: -53425.71223 | F59: 72.00057922 | G59: 70.2583225 | H59: 48.08565807 | I59: -31.55877289 | J59: 08
A60: 2009 | B60: 5412572 | C60: 3413240 | D60: 99491 | E60: -56427.73134 | F60: 71.25203798 | G60: 69.14503006 | H60: 45.73962375 | I60: -33.84973047 | J60: 09
A61: 2010 | B61: 5411129 | C61: 3422488 | D61: 101381 | E61: -51784.53957 | F61: 71.23304208 | G61: 69.332375 | H61: 46.60852535 | I61: -32.77523617 | J61: 10
A62: 2011 | B62: 5266163 | C62: 3345103 | D62: 96856 | E62: -53808.88889 | F62: 69.32468447 | G62: 67.76471842 | H62: 44.52821861 | I62: -34.28996733 | J62: 11
A63: 2012 | B63: 5231177 | C63: 3299660 | D63: 89841 | E63: -57554.39062 | F63: 68.86412269 | G63: 66.84413926 | H63: 41.3031685 | I63: -38.20973842 | J63: 12

Sheet 14.8
J1: Get the data (XLS): | L1: http://goo.gl/8jpfOp
A3: Red meat, poultry, and fish (boneless weight): Per capita availability
I4: Filename: | J4: MTPCC
A5: Year | B5: U.S. population, July 11 | C5: Red meat | H5: Poultry3
K6: Fish | L6: Total2
C7: Beef | D7: Veal | E7: Pork | F7: Lamb | G7: Total2 | H7: Chicken | I7: Turkey | J7: Total2 | K7: shellfish
G8: SUM(C..F) | J8: SUM(H..I) | L8: SUM(G,J,K)
B10: Millions | C10: Pounds | N10: Price
M11: x-label | N11: Increase
A12: 1909 | B12: 90.49 | C12: 51.11346005 | D12: 4.996132169 | E12: 41.15272406 | F12: 4.406542159 | G12: 101.6688584 | H12: 10.43120787 | I12: 0.79 | J12: 11.22120787 | K12: 11 | L12: 123.8900663 | N12: 0
A13: 1910 | B13: 92.407 | C13: 48.52459229 | D13: 4.944376508 | E13: 38.24584718 | F13: 4.243920915 | G13: 95.95873689 | H13: 10.97722034 | I13: 0.79 | J13: 11.76722034 | K13: 11.2 | L13: 118.9259572 | N13: 0
A14: 1911 | B14: 93.863 | C14: 47.16996047 | D14: 4.86038162 | E14: 42.40167052 | F14: 4.837049743 | G14: 99.26906236 | H14: 11.09114348 | I14: 0.869 | J14: 11.96014348 | K14: 11.3 | L14: 122.5292058 | N14: 0
A15: 1912 | B15: 95.335 | C15: 44.46863167 | D15: 4.756595164 | E15: 40.9419206 | F15: 5.031541407 | G15: 95.19868883 | H15: 10.58985682 | I15: 0.869 | J15: 11.45885682 | K15: 11.3 | L15: 117.9575457 | N15: 0
A16: 1913 | B16: 97.225 | C16: 43.63253278 | D16: 4.290717408 | E16: 41.05542813 | F16: 4.744232451 | G16: 93.72291077 | H16: 10.32771407 | I16: 0.869 | J16: 11.19671407 | K16: 11.5 | L16: 116.4196248 | N16: 0
A17: 1914 | B17: 99.111 | C17: 42.71186851 | D17: 3.953345239 | E17: 39.97681388 | F17: 4.700426794 | G17: 91.34245442 | H17: 10.26921331 | I17: 0.869 | J17: 11.13821331 | K17: 11.7 | L17: 114.1806677 | N17: 0
A18: 1915 | B18: 100.546 | C18: 38.84045114 | D18: 4.026366041 | E18: 40.85353967 | F18: 4.005092197 | G18: 87.72544905 | H18: 10.22469318 | I18: 0.948 | J18: 11.17269318 | K18: 11.2 | L18: 110.0981422 | N18: 0
A19: 1916 | B19: 101.961 | C19: 40.56518669 | D19: 4.407175293 | E19: 42.37618305 | F19: 3.839801493 | G19: 91.18834652 | H19: 9.619913496 | I19: 0.948 | J19: 10.5679135 | K19: 11 | L19: 112.75626 | N19: 0
A20: 1917 | B20: 103.414 | C20: 44.5524107 | D20: 4.934776723 | E20: 36.17597231 | F20: 2.945964763 | G20: 88.60912449 | H20: 9.365695167 | I20: 0.948 | J20: 10.31369517 | K20: 10.9 | L20: 109.8228197 | N20: 0
A21: 1918 | B21: 104.55 | C21: 47.23159254 | D21: 4.985987566 | E21: 37.49187948 | F21: 3.140526064 | G21: 92.84998565 | H21: 9.394777618 | I21: 0.948 | J21: 10.34277762 | K21: 10.9 | L21: 114.0927633 | N21: 0
A22: 1919 | B22: 105.063 | C22: 42.37760201 | D22: 5.37239561 | E22: 39.22568364 | F22: 3.745219535 | G22: 90.72090079 | H22: 10.14317124 | I22: 1.027 | J22: 11.17017124 | K22: 11.6 | L22: 113.491072 | N22: 0
A23: 1920 | B23: 106.461 | C23: 40.72737434 | D23: 5.482007496 | E23: 39.02202685 | F23: 3.572425583 | G23: 88.80383427 | H23: 9.740130189 | I23: 1.027 | J23: 10.76713019 | K23: 11.8 | L23: 111.3709645 | M23: =IF(RIGHT(A23,1)=9,A23,RIGHT(A23,2)) -> 20 | N23: 0
A24: 1921 | B24: 108.538 | C24: 38.24039507 | D24: 5.200390647 | E24: 39.76308758 | F24: 4.013304096 | G24: 87.21717739 | H24: 9.465514382 | I24: 1.027 | J24: 10.49251438 | K24: 10.5 | L24: 108.2096918 | N24: 0
A25: 1922 | B25: 110.049 | C25: 40.71429091 | D25: 5.340620996 | E25: 40.37205245 | F25: 3.378222428 | G25: 89.80518678 | H25: 10.06275386 | I25: 1.027 | J25: 11.08975386 | K25: 11.3 | L25: 112.1949406 | N25: 0 | Q25: DECLINING SINCE THE LATE 1970S, BEEF CONSUMPTION WAS RECENTLY SURPASSED BY CHICKEN MEAT
A26: 1923 | B26: 111.947 | C26: 41.05799173 | D26: 5.623330683 | E26: 45.57817539 | F26: 3.479646618 | G26: 95.73914442 | H26: 10.35650799 | I26: 1.027 | J26: 11.38350799 | K26: 10.7 | L26: 117.8226524 | N26: 0 | Q26: Meat availability per capita in the U.S.
A27: 1924 | B27: 114.109 | C27: 40.97445425 | D27: 5.864962448 | E27: 45.47331061 | F27: 3.436784127 | G27: 95.74951143 | H27: 9.698726656 | I27: 1.027 | J27: 10.72572666 | K27: 11 | L27: 117.4752381 | N27: 0
A28: 1925 | B28: 115.829 | C28: 40.9727443 | D28: 5.872493072 | E28: 40.99729774 | F28: 3.436876775 | G28: 91.27941189 | H28: 10.14523133 | I28: 1.027 | J28: 11.17223133 | K28: 11.1 | L28: 113.5516432 | N28: 0
A29: 1926 | B29: 117.397 | C29: 41.51712565 | D29: 5.595671099 | E29: 39.37754798 | F29: 3.570329736 | G29: 90.06067446 | H29: 10.06216513 | I29: 1.027 | J29: 11.08916513 | K29: 11.4 | L29: 112.5498396 | N29: 0
A30: 1927 | B30: 119.035 | C30: 37.53077666 | D30: 5.03528374 | E30: 41.56434662 | F30: 3.488032931 | G30: 87.61843995 | H30: 10.80861931 | I30: 1.106 | J30: 11.91461931 | K30: 12.2 | L30: 111.7330593 | N30: 0
A31: 1928 | B31: 120.509 | C31: 33.57266262 | D31: 4.439377972 | E31: 43.53724618 | F31: 3.614634592 | G31: 85.16392137 | H31: 10.36991428 | I31: 1.106 | J31: 11.47591428 | K31: 12.1 | L31: 108.7398356
A32: 1929 | B32: 121.767 | C32: 34.22168568 | D32: 4.309131374 | E32: 42.77986647 | F32: 3.706981366 | G32: 85.01766488 | H32: 10.13358299 | I32: 1.141852883 | J32: 11.27543587 | K32: 11.81675906 | L32: 108.1098598
A33: 1930 | B33: 123.188 | C33: 33.67591811 | D33: 4.415121603 | E33: 41.10013962 | F33: 4.401337793 | G33: 83.59251713 | H33: 11.14384518 | I33: 1.179985063 | J33: 12.32383024 | K33: 10.22696367 | L33: 106.143311 | M33: =IF(RIGHT(A33,1)=9,A33,RIGHT(A33,2)) -> 30
A34: 1931 | B34: 124.149 | C34: 33.43744211 | D34: 4.546472384 | E34: 41.92444563 | F34: 4.695873507 | G34: 84.60423362 | H34: 9.983229829 | I34: 1.119944583 | J34: 11.10317441 | K34: 8.838386133 | L34: 104.5457942
A35: 1932 | B35: 124.949 | C35: 32.14807642 | D35: 4.506398611 | E35: 43.36609337 | F35: 4.644743055 | G35: 84.66531145 | H35: 10.20397122 | I35: 1.353032037 | J35: 11.55700326 | K35: 8.442057159 | L35: 104.6643719
A36: 1933 | B36: 125.69 | C36: 35.46138118 | D36: 4.855875567 | E36: 43.4035325 | F36: 4.444601798 | G36: 88.16539104 | H36: 10.43768001 | I36: 1.521043838 | J36: 11.95872384 | K36: 8.633869043 | L36: 108.7579839
A37: 1934 | B37: 126.485 | C37: 43.93781081 | D37: 6.401312409 | E37: 39.51910503 | F37: 4.151353915 | G37: 94.00958216 | H37: 9.582543385 | I37: 1.442779776 | J37: 11.02532316 | K37: 9.188733842 | L37: 114.2236392
A38: 1935 | B38: 127.362 | C38: 36.62418932 | D38: 5.846288532 | E38: 29.67266532 | F38: 4.768565192 | G38: 76.91170836 | H38: 9.301738352 | I38: 1.377019833 | J38: 10.67875819 | K38: 10.48665536 | L38: 98.0771219
A39: 1936 | B39: 128.181 | C39: 41.61488832 | D39: 5.744806173 | E39: 33.82290667 | F39: 4.358227818 | G39: 85.54082898 | H39: 9.610503897 | I39: 1.731847934 | J39: 11.34235183 | K39: 11.60858474 | L39: 108.4917656
A40: 1937 | B40: 128.961 | C40: 37.9705725 | D40: 5.885345182 | E40: 34.20871426 | F40: 4.372686316 | G40: 82.43731826 | H40: 9.695582385 | I40: 1.801009608 | J40: 11.49659199 | K40: 11.72447484 | L40: 105.6583851
A41: 1938 | B41: 129.969 | C41: 37.41632235 | D41: 5.238864652 | E41: 35.68663297 | F41: 4.526094684 | G41: 82.86791466 | H41: 8.967800014 | I41: 1.79919827 | J41: 10.76699828 | K41: 10.84104671 | L41: 104.4759597
A42: 1939 | B42: 131.028 | C42: 37.64501481 | D42: 5.18083921 | E42: 39.70934457 | F42: 4.363968007 | G42: 86.89916659 | H42: 9.981133803 | I42: 1.923329365 | J42: 11.90446317 | K42: 10.76105871 | L42: 109.5646885
A43: 1940 | B43: 132.122 | C43: 37.84436354 | D43: 5.08609467 | E43: 45.08268116 | F43: 4.347754348 | G43: 92.36089372 | H43: 9.965789195 | I43: 2.29008038 | J43: 12.25586958 | K43: 10.98227396 | L43: 115.5990373 | M43: =IF(RIGHT(A43,1)=9,A43,RIGHT(A43,2)) -> 40 | Q43: Source: U.S. Department of Agriculture
A44: 1941 | B44: 133.402 | C44: 42.64608477 | D44: 5.294036071 | E44: 42.25214015 | F44: 4.508268242 | G44: 94.70052923 | H44: 11.01356801 | I44: 2.321404477 | J44: 13.33497249 | K44: 11.05147149 | L44: 119.0869732
A45: 1942 | B45: 134.86 | C45: 45.94525434 | D45: 5.836163429 | E45: 42.21420733 | F45: 4.874254783 | G45: 98.86987988 | H45: 12.74575115 | I45: 2.436897523 | J45: 15.18264867 | K45: 8.802417322 | L45: 122.8549459
A46: 1943 | B46: 136.739 | C46: 42.97589568 | D46: 5.710879851 | E46: 51.65199394 | F46: 4.629227945 | G46: 104.9679974 | H46: 15.95711538 | I46: 2.270529988 | J46: 18.22764537 | K46: 7.972342931 | L46: 131.1679857
A47: 1944 | B47: 138.397 | C47: 46.55829245 | D47: 8.438947376 | E47: 53.56201363 | F47: 4.635577361 | G47: 113.1948308 | H47: 15.29642984 | I47: 2.443116542 | J47: 17.73954638 | K47: 8.734526037 | L47: 139.6689032
A48: 1945 | B48: 139.928 | C48: 47.96430307 | D48: 8.057786862 | E48: 43.3750929 | F48: 4.871705449 | G48: 104.2688883 | H48: 15.07040764 | I48: 2.732548168 | J48: 17.80295581 | K48: 9.760825567 | L48: 131.8326697
A49: 1946 | B49: 141.389 | C49: 44.2475723 | D49: 6.942583935 | E49: 46.84394118 | F49: 4.435097497 | G49: 102.4691949 | H49: 13.90843701 | I49: 3.011620423 | J49: 16.92005743 | K49: 10.84242763 | L49: 130.23168 | N49: 0
A50: 1947 | B50: 144.126 | C50: 49.24911536 | D50: 7.50464871 | E50: 43.2363765 | F50: 3.579312546 | G50: 103.5694531 | H50: 12.53852879 | I50: 2.916059559 | J50: 15.45458835 | K50: 10.3173612 | L50: 129.3414027 | N50: 0
A51: 1948 | B51: 146.631 | C51: 44.17877529 | D51: 6.652345002 | E51: 41.95756695 | F51: 3.311741719 | G51: 96.10042897 | H51: 12.59488103 | I51: 2.472942284 | J51: 15.06782331 | K51: 11.19817774 | L51: 122.36643 | N51: 0
A52: 1949 | B52: 149.188 | C52: 44.73780063 | D52: 6.171005711 | E52: 41.87224174 | F52: 2.71689412 | G52: 95.49794219 | H52: 13.47478349 | I52: 2.626484704 | J52: 16.1012682 | K52: 10.94592058 | L52: 122.545131 | N52: 0
A53: 1950 | B53: 151.684 | C53: 44.62847103 | D53: 5.599799583 | E53: 42.95619841 | F53: 2.611455394 | G53: 95.79592442 | H53: 14.25864297 | I53: 3.291579863 | J53: 17.55022283 | K53: 11.89973893 | L53: 125.2458862 | M53: =IF(RIGHT(A53,1)=9,A53,RIGHT(A53,2)) -> 50 | N53: 0
A54: 1951 | B54: 154.287 | C54: 41.17378651 | D54: 4.732803153 | E54: 45.15250151 | F54: 2.230479561 | G54: 93.28957074 | H54: 14.98897509 | I54: 3.614951357 | J54: 18.60392645 | K54: 11.32305379 | L54: 123.216551 | N54: 0
A55: 1952 | B55: 156.954 | C55: 43.92455114 | D55: 5.066994151 | E55: 45.0033513 | F55: 2.704040674 | G55: 96.69893727 | H55: 15.20493903 | I55: 3.800158008 | J55: 19.00509703 | K55: 11.11153586 | L55: 126.8155702 | N55: 0
A56: 1953 | B56: 159.565 | C56: 54.54916178 | D56: 6.641149375 | E56: 39.24151286 | F56: 3.051546392 | G56: 103.4833704 | H56: 15.0590167 | I56: 3.876602012 | J56: 18.93561871 | K56: 11.33080563 | L56: 133.7497948 | N56: 0
A57: 1954 | B57: 162.391 | C57: 55.97586689 | D57: 6.943180349 | E57: 37.15586455 | F57: 2.982234237 | G57: 103.057146 | H57: 15.64778836 | I57: 4.237242212 | J57: 19.88503057 | K57: 11.13362194 | L57: 134.0757985 | N57: 0
A58: 1955 | B58: 165.275 | C58: 57.17939192 | D58: 6.536045984 | E58: 50.394252 | F58: 3.017782484 | G58: 117.1274724 | H58: 14.65463016 | I58: 4.034245954 | J58: 18.68887612 | K58: 10.41899864 | L58: 146.2353471 | N58: 0
A59: 1956 | B59: 168.221 | C59: 59.49153197 | D59: 6.608895441 | E59: 51.04009012 | F59: 2.890614133 | G59: 120.0311317 | H59: 16.75224853 | I59: 4.179620856 | J59: 20.93186939 | K59: 10.38514811 | L59: 151.3481492 | N59: 0
A60: 1957 | B60: 171.274 | C60: 58.69256279 | D60: 6.115142987 | E60: 46.42460619 | F60: 2.743043311 | G60: 113.9753553 | H60: 17.47599752 | I60: 4.700129617 | J60: 22.17612714 | K60: 10.23506195 | L60: 146.3865444 | N60: 0
A61: 1958 | B61: 174.141 | C61: 55.94185746 | D61: 4.696711286 | E61: 45.32814214 | F61: 2.731889676 | G61: 108.6986006 | H61: 19.24647269 | I61: 4.749771737 | J61: 23.99624442 | K61: 10.59486278 | L61: 143.2897078 | N61: 0
A62: 1959 | B62: 177.073 | C62: 56.60700389 | D62: 3.976777939 | E62: 51.04620128 | F62: 3.099128608 | G62: 114.7291117 | H62: 19.72738927 | I62: 5.014654973 | J62: 24.74204424 | K62: 10.92769649 | L62: 150.3988525 | N62: 0
A63: 1960 | B63: 180.671 | C63: 59.07207023 | D63: 4.23880977 | E63: 48.62775432 | F63: 3.117534081 | G63: 115.0561684 | H63: 19.14523083 | I63: 4.9016721 | J63: 24.04690293 | K63: 10.30049095 | L63: 149.4035623 | M63: =IF(RIGHT(A63,1)=9,A63,RIGHT(A63,2)) -> 60 | N63: 0
A64: 1961 | B64: 183.691 | C64: 60.98905227 | D64: 3.956562924 | E64: 46.75530102 | F64: 3.313444861 | G64: 115.0143611 | H64: 20.51728174 | I64: 5.913463371 | J64: 26.43074511 | K64: 10.74086373 | L64: 152.1859699 | N64: 0
A65: 1962 | B65: 186.538 | C65: 61.66863588 | D65: 3.811716648 | E65: 47.4320621 | F65: 3.354587269 | G65: 116.2670019 | H65: 20.53048709 | I65: 5.611457183 | J65: 26.14194427 | K65: 10.64662428 | L65: 153.0555704 | N65: 0
A66: 1963 | B66: 189.242 | C66: 65.38950127 | D66: 3.445958085 | E66: 48.53719048 | F66: 3.164096765 | G66: 120.5367466 | H66: 21.00339248 | I66: 5.468659177 | J66: 26.47205166 | K66: 10.53677302 | L66: 157.5455713 | N66: 0
A67: 1964 | B67: 191.889 | C67: 70.55333031 | D67: 3.659016411 | E67: 48.78856526 | F67: 2.736394478 | G67: 125.7373065 | H67: 21.2661695 | I67: 5.870789884 | J67: 27.13695939 | K67: 10.48522844 | L67: 163.3594943 | N67: 0
A68: 1965 | B68: 194.303 | C68: 70.44913357 | D68: 3.652336814 | E68: 43.59955842 | F68: 2.438253655 | G68: 120.1392825 | H68: 22.83954442 | I68: 5.976747657 | J68: 28.81629208 | K68: 10.86447456 | L68: 159.8200491 | N68: 0
A69: 1966 | B69: 196.56 | C69: 73.67461732 | D69: 3.23045317 | E69: 42.75094304 | F69: 2.596284687 | G69: 122.2522982 | H69: 24.47762612 | I69: 6.26984127 | J69: 30.74746739 | K69: 10.90761091 | L69: 163.9073765 | N69: 0
A70: 1967 | B70: 198.712 | C70: 75.31370191 | D70: 2.75786339 | E70: 47.02728377 | F70: 2.526216414 | G70: 127.6250655 | H70: 25.07527669 | I70: 6.842012561 | J70: 31.91728925 | K70: 10.63347961 | L70: 170.1758343 | N70: 0
A71: 1968 | B71: 200.706 | C71: 77.33475952 | D71: 2.563482108 | E71: 48.27739594 | F71: 2.436425428 | G71: 130.612063 | H71: 25.21564478 | I71: 6.376490987 | J71: 31.59213576 | K71: 11.02607794 | L71: 173.2302767 | N71: 0
A72: 1969 | B72: 202.677 | C72: 77.83773292 | D72: 2.333884432 | E72: 46.92319395 | F72: 2.259611549 | G72: 129.3544229 | H72: 26.30276123 | I72: 6.587328607 | J72: 32.89008983 | K72: 11.17541704 | L72: 173.4199297 | N72: 0
A73: 1970 | B73: 205.052 | C73: 79.61830141 | D73: 2.03835371 | E73: 48.14557905 | F73: 2.126880421 | G73: 131.9291146 | H73: 27.40622677 | I73: 6.389864522 | J73: 33.79609129 | K73: 11.74336266 | L73: 177.4685685 | M73: =IF(RIGHT(A73,1)=9,A73,RIGHT(A73,2)) -> 70 | N73: 0
A74: 1971 | B74: 207.661 | C74: 79.17550389 | D74: 1.86951717 | E74: 52.96932351 | F74: 2.082027959 | G74: 136.0963725 | H74: 27.36788679 | I74: 6.624022614 | J74: 33.9919094 | K74: 11.48988014 | L74: 181.5781621 | N74: 0
A75: 1972 | B75: 209.896 | C75: 80.452859 | D75: 1.59376658 | E75: 48.10793524 | F75: 2.174218889 | G75: 132.3287797 | H75: 28.27229909 | I75: 7.086442572 | J75: 35.35874166 | K75: 12.49190075 | L75: 180.1794221 | N75: 0
A76: 1973 | B76: 211.909 | C76: 75.94970566 | D76: 1.247881874 | E76: 43.16404041 | F76: 1.750255345 | G76: 122.1118833 | H76: 27.13162951 | I76: 6.639166576 | J76: 33.77079609 | K76: 12.74131821 | L76: 168.6239976 | N76: 0
A77: 1974 | B77: 213.854 | C77: 80.74683609 | D77: 1.640055038 | E77: 46.95941916 | F77: 1.502568818 | G77: 130.8488791 | H77: 27.03508948 | I77: 6.847950985 | J77: 33.88304047 | K77: 12.06898164 | L77: 176.8009012 | N77: 0
A78: 1975 | B78: 215.973 | C78: 83.15653187 | D78: 2.848173753 | E78: 38.44254587 | F78: 1.331108472 | G78: 125.77836 | H78: 26.30637749 | I78: 6.520392456 | J78: 32.82676995 | K78: 12.13577623 | L78: 170.7409062 | N78: 0
A79: 1976 | B79: 218.035 | C79: 88.78340645 | D79: 2.710125599 | E79: 40.67581892 | F79: 1.20025284 | G79: 133.3696038 | H79: 28.5751446 | I79: 7.015798564 | J79: 35.59094316 | K79: 12.86032059 | L79: 181.8208676 | N79: 0
A80: 1977 | B80: 220.239 | C80: 86.34938132 | D80: 2.627241969 | E80: 42.26655325 | F80: 1.106463215 | G80: 132.3496397 | H80: 29.00339299 | I80: 6.905457798 | J80: 35.90885079 | K80: 12.64081294 | L80: 180.8993035 | N80: 100
A81: 1978 | B81: 222.585 | C81: 82.18158118 | D81: 2.00487684 | E81: 42.33033402 | F81: 1.015315713 | G81: 127.5321077 | H81: 30.33733606 | I81: 6.881012332 | J81: 37.21834839 | K81: 13.37017319 | L81: 178.1206293 | N81: 100
A82: 1979 | B82: 225.055 | C82: 73.52317961 | D82: 1.387295219 | E82: 48.5598735 | F82: 0.973303788 | G82: 124.4436521 | H82: 32.87939626 | I82: 7.293540601 | J82: 40.17293686 | K82: 12.98349292 | L82: 177.6000819 | N82: 100
A83: 1980 | B83: 227.726 | C83: 72.07005737 | D83: 1.260757832 | E83: 52.09068475 | F83: 1.006495034 | G83: 126.427995 | H83: 32.71959584 | I83: 8.084818773 | J83: 40.80441461 | K83: 12.41404144 | L83: 179.646451 | M83: =IF(RIGHT(A83,1)=9,A83,RIGHT(A83,2)) -> 80 | N83: 100
A84: 1981 | B84: 229.966 | C84: 72.77606905 | D84: 1.341752977 | E84: 49.92774801 | F84: 1.036574755 | G84: 125.0821448 | H84: 33.69562458 | I84: 8.340922963 | J84: 42.03654754 | K84: 12.58012054 | L84: 179.6988129 | N84: 0
A85: 1982 | B85: 232.188 | C85: 72.5035435 | D85: 1.371508435 | E85: 44.86259995 | F85: 1.088683541 | G85: 119.8263354 | H85: 33.90140783 | I85: 8.338983022 | J85: 42.24039085 | K85: 12.39512809 | L85: 174.4618544 | N85: 0
A86: 1983 | B86: 234.307 | C86: 74.0705348 | D86: 1.358766303 | E86: 47.41887193 | F86: 1.088658384 | G86: 123.9368314 | H86: 33.9976662 | I86: 8.692400611 | J86: 42.69006681 | K86: 13.30305966 | L86: 179.9299579 | N86: 0
A87: 1984 | B87: 236.348 | C87: 73.83537442 | D87: 1.471341169 | E87: 47.23101241 | F87: 1.107197725 | G87: 123.6449257 | H87: 35.33128406 | I87: 8.704082074 | J87: 44.03536614 | K87: 14.1063178 | L87: 181.7866097 | N87: 0
A88: 1985 | B88: 238.466 | C88: 74.55950601 | D88: 1.529600562 | E88: 47.701499 | F88: 1.067154999 | G88: 124.8577606 | H88: 36.44900022 | I88: 9.138137974 | J88: 45.58713819 | K88: 15.00842887 | L88: 185.4533276 | N88: 0
A89: 1986 | B89: 240.651 | C89: 74.36272068 | D89: 1.563976017 | E89: 45.19908233 | F89: 1.028270619 | G89: 122.1540496 | H89: 36.92782804 | I89: 10.16536852 | J89: 47.09319656 | K89: 15.42067143 | L89: 184.6679176 | N89: 0
A90: 1987 | B90: 242.804 | C90: 69.54938399 | D90: 1.268383978 | E90: 45.58522662 | F90: 0.9761864116 | G90: 117.379181 | H90: 39.39079699 | I90: 11.63578273 | J90: 51.02657972 | K90: 16.09940528 | L90: 184.505166 | N90: 0
A91: 1988 | B91: 245.021 | C91: 68.56665365 | D91: 1.144714593 | E91: 48.79445308 | F91: 1.035710833 | G91: 119.5415322 | H91: 39.55902845 | I91: 12.3789838 | J91: 51.93801225 | K91: 15.14155929 | L91: 186.6211037 | N91: 0
A92: 1989 | B92: 247.342 | C92: 65.14375861 | D92: 0.9873264347 | E92: 48.40154634 | F92: 1.025512934 | G92: 115.5581443 | H92: 40.46276209 | I92: 13.09150751 | J92: 53.55426959 | K92: 15.55336336 | L92: 184.6657773 | N92: 0
A93: 1990 | B93: 250.132 | C93: 63.89513281 | D93: 0.891191211 | E93: 46.3758793 | F93: 1.042361209 | G93: 112.2045645 | H93: 42.41519878 | I93: 13.82804147 | J93: 56.24324025 | K93: 14.94410951 | L93: 183.3919143 | M93: =IF(RIGHT(A93,1)=9,A93,RIGHT(A93,2)) -> 90 | N93: 0
A94: 1991 | B94: 253.493 | C94: 62.8893677 | D94: 0.8228576923 | E94: 46.76371546 | F94: 1.030723815 | G94: 111.5066647 | H94: 44.10369064 | I94: 14.03652172 | J94: 58.14021236 | K94: 14.76963861 | L94: 184.4165156 | N94: 0
A95: 1992 | B95: 256.894 | C95: 62.41739784 | D95: 0.8319384649 | E95: 49.14125281 | F95: 0.9912493091 | G95: 113.3818384 | H95: 46.44665519 | I95: 14.00003106 | J95: 60.44668626 | K95: 14.60524574 | L95: 188.4337704 | N95: 0
A96: 1993 | B96: 260.255 | C96: 60.99737565 | D96: 0.7527617145 | E96: 48.47301685 | F96: 0.9632783232 | G96: 111.1864325 | H96: 48.13402105 | I96: 13.85514388 | J96: 61.98916493 | K96: 14.78165645 | L96: 187.9572539 | N96: 0
A97: 1994 | B97: 263.436 | C97: 62.90434868 | D97: 0.7540730956 | E97: 48.97524256 | F97: 0.8630611306 | G97: 113.4967255 | H97: 48.7442263 | I97: 13.90557858 | J97: 62.64980489 | K97: 14.95999028 | L97: 191.1065206 | N97: 0
A98: 1995 | B98: 266.557 | C98: 63.5344598 | D98: 0.8197683797 | E98: 48.36024265 | F98: 0.850981111 | G98: 113.5654519 | H98: 48.1962207 | I98: 13.89687759 | J98: 62.09309829 | K98: 14.75106638 | L98: 190.4096166 | N98: 0
A99: 1996 | B99: 269.667 | C99: 64.0180111 | D99: 0.9601842272 | E99: 45.21866969 | F99: 0.8092901987 | G99: 111.0061552 | H99: 48.76712761 | I99: 14.33716398 | J99: 63.10429159 | K99: 14.48082264 | L99: 188.5912695 | N99: 0
A100: 1997 | B100: 272.912 | C100: 62.62829557 | D100: 0.835818872 | E100: 44.73443088 | F100: 0.8001667284 | G100: 108.998712 | H100: 50.0240224 | I100: 13.61959166 | J100: 63.64361406 | K100: 14.25001466 | L100: 186.8923408 | N100: 0
A101: 1998 | B101: 276.115 | C101: 63.56002752 | D101: 0.6574253481 | E101: 48.17580718 | F101: 0.8551821044 | G101: 113.2484422 | H101: 50.42266447 | I101: 13.92224254 | J101: 64.34490701 | K101: 14.49396085 | L101: 192.08731 | N101: 0
A102: 1999 | B102: 279.295 | C102: 64.33198088 | D102: 0.5763619112 | E102: 49.33118817 | F102: 0.8420833918 | G102: 115.0816144 | H102: 53.5673759 | I102: 13.82503253 | J102: 67.39240843 | K102: 14.84809968 | L102: 197.3221225 | N102: 0
A103: 2000 | B103: 282.385 | C103: 64.54629318 | D103: 0.5457974043 | E103: 47.76700958 | F103: 0.8268392232 | G103: 113.6859394 | H103: 54.22774259 | I103: 13.65984794 | J103: 67.88759052 | K103: 15.19556634 | L103: 196.7690962 | M103: 2000 | N103: 0
A104: 2001 | B104: 285.309019 | C104: 63.10864642 | D104: 0.4897847271 | E104: 46.95040853 | F104: 0.8462570234 | G104: 111.3950967 | H104: 53.9989379 | I104: 13.81141057 | J104: 67.81034847 | K104: 14.71036568 | L104: 193.9158108 | N104: 0
A105: 2002 | B105: 288.104818 | C105: 64.51411375 | D105: 0.4850318053 | E105: 48.19517805 | F105: 0.8700193315 | G105: 114.0643429 | H105: 56.7951696 | I105: 13.96529925 | J105: 70.76046885 | K105: 15.61931533 | L105: 200.4441271 | N105: 0
A106: 2003 | B106: 290.819634 | C106: 61.94539972 | D106: 0.4803980154 | E106: 48.46555322 | F106: 0.8294136 | G106: 111.7207646 | H106: 57.54584072 | I106: 13.74870388 | J106: 71.2945446 | K106: 16.32970902 | L106: 199.3450182 | N106: 0
A107: 2004 | B107: 293.463185 | C107: 63.01699138 | D107: 0.4131523346 | E107: 47.91136919 | F107: 0.8339538779 | G107: 112.1754668 | H107: 59.31520848 | I107: 13.45456671 | J107: 72.76977519 | K107: 16.54040523 | L107: 201.4856472 | N107: 0
A108: 2005 | B108: 296.186216 | C108: 62.47323868 | D108: 0.3792884136 | E108: 46.60305554 | F108: 0.7859203199 | G108: 110.241503 | H108: 60.5198724 | I108: 13.16016678 | J108: 73.68003918 | K108: 16.15200081 | L108: 200.0735429 | N108: 0
A109: 2006 | B109: 298.995825 | C109: 62.77222403 | D109: 0.3544179923 | E109: 45.99585697 | F109: 0.7797826161 | G109: 109.9022816 | H109: 60.87504583 | I109: 13.32215472 | J109: 74.19720055 | K109: 16.51528077 | L109: 200.6147629 | N109: 0
A110: 2007 | B110: 302.003917 | C110: 62.11959245 | D110: 0.3277523715 | E110: 47.21380557 | F110: 0.8382171127 | G110: 110.4993675 | H110: 59.90637646 | I110: 13.7998214 | J110: 73.70619786 | K110: 16.26468971 | L110: 200.4702551 | N110: 0
A111: 2008 | B111: 304.797761 | C111: 59.39580956 | D111: 0.3366592972 | E111: 45.94695151 | F111: 0.739586545 | G111: 106.4190069 | H111: 58.74392857 | I111: 13.87231864 | J111: 72.61624721 | K111: 15.94827988 | L111: 194.983534 | N111: 0
A112: 2009 | B112: 307.439406 | C112: 58.10689274 | D112: 0.3277507633 | E112: 46.55804563 | F112: 0.7226144871 | G112: 105.7153036 | H112: 56.07367605 | I112: 13.33053784 | J112: 69.40421389 | K112: 15.76896099 | L112: 190.8884785 | N112: 0
A113: 2010 | B113: 309.74566 | C113: 56.72363391 | D113: 0.3310470597 | E113: 44.35361081 | F113: 0.6712898007 | G113: 102.0795816 | H113: 58.02252544 | I113: 12.92189301 | J113: 70.94441845 | K113: 15.7968315 | L113: 188.8208315 | M113: =IF(RIGHT(A113,1)=9,A113,RIGHT(A113,2)) -> 10 | N113: 0
A114: 2011 | B114: 312.004661 | C114: 54.43725298 | D114: 0.3014064748 | E114: 42.35761519 | F114: 0.6198839656 | G114: 97.71615861 | H114: 58.3759617 | I114: 12.64452045 | J114: 71.02048215 | K114: 14.92605907 | L114: 183.6626998 | N114: 0
A115: 2012 | B115: 314.250437 | C115: 54.53855025 | D115: 0.267591036 | E115: 42.56699487 | F115: 0.6260984559 | G115: 97.99923461 | H115: 56.64985983 | I115: 12.59818578 | J115: 69.2480456 | K115: 14.24341695 | L115: 181.4906972 | N115: 0
A116: 2013 | B116: 316.496215 | C116: 53.55447458 | D116: 0.2570436427 | E116: 43.44531985 | F116: 0.6716481109 | G116: 97.92848618 | H116: 57.6658331 | I116: 12.55631702 | J116: 70.22215012 | K116: 14.32876535 | L116: 182.4794017 | N116: 0
A117: 1Prior to 1930, except for the war years, 1917-19, resident population only; from 1930 and thereafter, resident population plus Armed Forces overseas. 2Computed from unrounded data. 3Includes skin, neck meat, and giblets. 4Excludes the amount of ready-to-cook chicken going to pet food as well as some water leakage that occurs when chicken is cut up before packaging.

Sheet 14.10
B2: 424 | C2: -492 | D2: -492
B3: -830 | C3: -830 | D3: -830
B4: -830 | C4: -830 | D4: -830

Sheet 14.11
A1: Get the data: | C1: http://goo.gl/PyyP3U
B5: 2008 | C5: 2009 | D5: 2010 | E5: 2011 | F5: 2012 | G5: 2013 | H5: 2014
M6: RESIDENCE PERMITS IN THE EUROPEAN UNION, PER COUNTRY
A7: EU-28 | B7: 100 | C7: 92.50916588 | D7: 97.56761331 | E7: 85.8827043 | F7: 82.716968 | G7: 92.9687127 | H7: 90.96872927 | M7: 2008=100
A8: Belgium | B8: 100 | C8: 127.5708318 | D8: 125.2245622 | E8: 120.0168828 | F8: 102.3311184 | G8: 91.90926603 | H8: 94.85292526
A9: Bulgaria | B9: 100 | C9: 111.4416476 | D9: 103.0002543 | E9: 127.8921943 | F9: 163.1833206 | G9: 163.6409865 | H9: 223.6206458
A10: Czech Republic | B10: 100 | C10: 44.88834556 | D10: 56.48410758 | E10: 34.19396903 | F10: 68.6601467 | G10: 74.23634882 | H10: 57.79625102
A11: Denmark | B11: 100 | C11: 83.42757858 | D11: 90.27641763 | E11: 78.05086084 | F11: 78.382562 | G11: 98.91328384 | H11: 113.3659769
A12: Germany | B12: 100 | C12: 106.7066822 | D12: 102.5488017 | E12: 96.55259911 | F12: 161.0566196 | G12: 174.9293458 | H12: 207.9176474
A13: Estonia | B13: 100 | C13: 97.24510814 | D13: 68.15139032 | E13: 87.7445932 | F13: 65.13903193 | G13: 64.26364573 | H13: 82.95571576
A14: Ireland | B14: 100 | C14: 88.18709811 | D14: 76.86856116 | E14: 84.94088363 | F14: 92.71243864 | G14: 113.3236535 | H14: 126.9722741
A15: Greece | B15: 100 | C15: 111.7220559 | D15: 83.20259335 | E15: 52.63170919 | F15: 40.21677266 | G15: 45.28222514 | H15: 55.55665537
A16: Spain | B16: 100 | C16: 72.73470776 | D16: 64.60519175 | E16: 70.72133698 | F16: 55.85365671 | G16: 49.08222806 | H16: 47.16364828
A17: France | B17: 100 | C17: 106.3193146 | D17: 108.2650233 | E17: 105.7534058 | F17: 105.6998882 | G17: 113.5770415 | H17: 115.6546897
A18: Italy | B18: 100 | C18: 92.11360423 | D18: 107.2264851 | E18: 60.17218379 | F18: 44.84702649 | G18: 44.33705423 | H18: 37.13655843
A19: Cyprus | B19: 100 | C19: 101.9160439 | D19: 76.08125298 | E19: 62.1919224 | F19: 46.5694069 | G19: 45.53585626 | H19: 55.02067101
A20: Latvia | B20: 100 | C20: 29.89878017 | D20: 30.2232027 | E20: 51.67402024 | F20: 72.93018427 | G20: 98.819102 | H20: 127.9133143
A21: Lithuania | B21: 100 | C21: 50.18875047 | D21: 35.12646282 | E21: 45.84748962 | F21: 69.76217441 | G21: 86.84409211 | H21: 136.8818422
A22: Luxembourg | C22: 100 | D22: 79.69013136 | E22: 90.87234759 | F22: 128.1239475 | G22: 140.417649 | H22: 144.4594139
A23: Hungary | B23: 100 | C23: 38.11823081 | D23: 38.95054154 | E23: 39.72949901 | F23: 35.43189457 | G23: 44.90476445 | H23: 56.52243504
A24: Malta | B24: 100 | C24: 73.34574028 | D24: 57.13399504 | E24: 72.04301075 | F24: 93.58974359 | G24: 140.5086849 | H24: 204.611249
A25: Netherlands | B25: 100 | C25: 90.25228075 | D25: 87.0328652 | E25: 87.99309783 | F25: 81.74279826 | G25: 103.4351084 | H25: 111.1521194
A26: Austria | B26: 100 | C26: 128.7012808 | D26: 140.4581554 | E26: 162.7048616 | F26: 173.7685351 | G26: 157.4989671 | H26: 106.4408025
A27: Poland | B27: 100 | C27: 81.73660016 | D27: 248.3714789 | E27: 264.1725352 | F27: 358.5167254 | G27: 669.7134194 | H27: 869.3295188
A28: Portugal | B28: 100 | C28: 72.70501452 | D28: 58.08679275 | E28: 55.20207173 | F28: 51.14965079 | G28: 41.73742447 | H28: 46.7142745
A29: Romania | B29: 100 | C29: 79.46677689 | D29: 52.7952878 | E29: 50.32551411 | F29: 52.31476697 | G29: 57.66249871 | H29: 53.18797148
A30: Slovenia | B30: 100 | C30: 53.94146842 | D30: 25.79839124 | E30: 33.54441212 | F30: 31.12099949 | G30: 28.31079925 | H30: 33.85589594
A31: Slovakia | B31: 100 | C31: 66.49221184 | D31: 54.49221184 | E31: 45.37071651 | F31: 52.46105919 | G31: 55.02803738 | H31: 68.66043614
A32: Finland | B32: 100 | C32: 82.44868102 | D32: 87.82517259 | E32: 92.48845609 | F32: 92.63932702 | G32: 96.56654323 | H32: 98.53243725 | M32: Source: Eurostat
A33: Sweden | B33: 100 | C33: 108.5484408 | D33: 94.24201369 | E33: 90.00522913 | F33: 107.2542308 | G33: 117.8004373 | H33: 128.2884103
A34: United Kingdom | B34: 100 | C34: 106.0258698 | D34: 115.6416128 | E34: 110.8165264 | F34: 99.80573937 | G34: 114.3844465 | H34: 89.6767061
A35: Iceland | B35: 100 | C35: 91.16135663 | D35: 103.4943474 | E35: 88.18088386 | F35: 98.663926 | G35: 102.2610483 | H35: 101.2332991
A36: Norway | B36: 100 | C36: 107.239194 | D36: 108.3441664 | E36: 108.7260318 | F36: 113.8974651 | G36: 112.4959376 | H36: 105.2242444

Sheet 14.13
A1: Get the data: | C1: http://goo.gl/Y5kf07
G2: =IF(YEAR(G4)<>YEAR(F4),RIGHT(YEAR(G4),2),"") ->  | R2: 92 | AD2: 93 | AP2: 94 | BB2: 95 | BN2: 96 | BS2: =IF(YEAR(BS4)<>YEAR(BR4),RIGHT(YEAR(BS4),2),"") ->  | BZ2: 97 | CL2: 98 | CX2: 99 | DJ2: 00 | DV2: 01 | EE2: =IF(YEAR(EE4)<>YEAR(ED4),RIGHT(YEAR(EE4),2),"") ->  | EH2: 02 | ET2: 03 | FF2: 04 | FR2: 05 | GD2: 06 | GP2: 07 | GQ2: =IF(YEAR(GQ4)<>YEAR(GP4),RIGHT(YEAR(GQ4),2),"") ->  | HB2: 08 | HN2: 09 | HZ2: 10 | IL2: 11 | IX2: 12 | JC2: =IF(YEAR(JC4)<>YEAR(JB4),RIGHT(YEAR(JC4),2),"") ->  | JJ2: 13 | JV2: 14 | KH2: 15
F3: =MONTH(F4) -> 1 | G3: =MONTH(G4) -> 2 | H3: 3 | I3: 4 | J3: 5 | K3: 6 | L3: 7 | M3: 8 | N3: 9 | O3: 10 | P3: 11 | Q3: 12 | R3: 1 | S3: 2 | T3: 3 | U3: 4 | V3: 5 | W3: 6 | X3: 7 | Y3: 8 | Z3: 9 | AA3: 10 | AB3: 11 | AC3: 12 | AD3: 1 | AE3: 2 | AF3: 3 | AG3: 4 | AH3: 5 | AI3: 6 | AJ3: 7 | AK3: 8 | AL3: 9 | AM3: 10 | AN3: 11 | AO3: 12 | AP3: 1 | AQ3: 2 | AR3: 3 | AS3: 4 | AT3: 5 | AU3: 6 | AV3: 7 | AW3: 8 | AX3: 9 | AY3: 10 | AZ3: 11 | BA3: 12 | BB3: 1 | BC3: 2 | BD3: 3 | BE3: 4 | BF3: 5 | BG3: 6 | BH3: 7 | BI3: 8 | BJ3: 9 | BK3: 10 | BL3: 11 | BM3: 12 | BN3: 1 | BO3: 2 | BP3: 3 | BQ3: 4 | BR3: 5 | BS3: =MONTH(BS4) -> 6 | BT3: 7 | BU3: 8 | BV3: 9 | BW3: 10 | BX3: 11 | BY3: 12 | BZ3: 1 | CA3: 2 | CB3: 3 | CC3: 4 | CD3: 5 | CE3: 6 | CF3: 7 | CG3: 8 | CH3: 9 | CI3: 10 | CJ3: 11 | CK3: 12 | CL3: 1 | CM3: 2 | CN3: 3 | CO3: 4 | CP3: 5 | CQ3: 6 | CR3: 7 | CS3: 8 | CT3: 9 | CU3: 10 | CV3: 11 | CW3: 12 | CX3: 1 | CY3: 2 | CZ3: 3 | DA3: 4 | DB3: 5 | DC3: 6 | DD3: 7 | DE3: 8 | DF3: 9 | DG3: 10 | DH3: 11 | DI3: 12 | DJ3: 1 | DK3: 2 | DL3: 3 | DM3: 4 | DN3: 5 | DO3: 6 | DP3: 7 | DQ3: 8 | DR3: 9 | DS3: 10 | DT3: 11 | DU3: 12 | DV3: 1 | DW3: 2 | DX3: 3 | DY3: 4 | DZ3: 5 | EA3: 6 | EB3: 7 | EC3: 8 | ED3: 9 | EE3: =MONTH(EE4) -> 10 | EF3: 11 | EG3: 12 | EH3: 1 | EI3: 2 | EJ3: 3 | EK3: 4 | EL3: 5 | EM3: 6 | EN3: 7 | EO3: 8 | EP3: 9 | EQ3: 10 | ER3: 11 | ES3: 12 | ET3: 1 | EU3: 2 | EV3: 3 | EW3: 4 | EX3: 5 | EY3: 6 | EZ3: 7 | FA3: 8 | FB3: 9 | FC3: 10 | FD3: 11 | FE3: 12 | FF3: 1 | FG3: 2 | FH3: 3 | FI3: 4 | FJ3: 5 | FK3: 6 | FL3: 7 | FM3: 8 | FN3: 9 | FO3: 10 | FP3: 11 | FQ3: 12 | FR3: 1 | FS3: 2 | FT3: 3 | FU3: 4 | FV3: 5 | FW3: 6 | FX3: 7 | FY3: 8 | FZ3: 9 | GA3: 10 | GB3: 11 | GC3: 12 | GD3: 1 | GE3: 2 | GF3: 3 | GG3: 4 | GH3: 5 | GI3: 6 | GJ3: 7 | GK3: 8 | GL3: 9 | GM3: 10 | GN3: 11 | GO3: 12 | GP3: 1 | GQ3: =MONTH(GQ4) -> 2 | GR3: 3 | GS3: 4 | GT3: 5 | GU3: 6 | GV3: 7 | GW3: 8 | GX3: 9 | GY3: 10 | GZ3: 11 | HA3: 12 | HB3: 1 | HC3: 2 | HD3: 3 | HE3: 4 | HF3: 5 | HG3: 6 | HH3: 7 | HI3: 8 | HJ3: 9 | HK3: 10 | HL3: 11 | HM3: 12 | HN3: 1 | HO3: 2 | HP3: 3 | HQ3: 4 | HR3: 5 | HS3: 6 | HT3: 7 | HU3: 8 | HV3: 9 | HW3: 10 | HX3: 11 | HY3: 12 | HZ3: 1 | IA3: 2 | IB3: 3 | IC3: 4 | ID3: 5 | IE3: 6 | IF3: 7 | IG3: 8 | IH3: 9 | II3: 10 | IJ3: 11 | IK3: 12 | IL3: 1 | IM3: 2 | IN3: 3 | IO3: 4 | IP3: 5 | IQ3: 6 | IR3: 7 | IS3: 8 | IT3: 9 | IU3: 10 | IV3: 11 | IW3: 12 | IX3: 1 | IY3: 2 | IZ3: 3 | JA3: 4 | JB3: 5 | JC3: =MONTH(JC4) -> 6 | JD3: 7 | JE3: 8 | JF3: 9 | JG3: 10 | JH3: 11 | JI3: 12 | JJ3: 1 | JK3: 2 | JL3: 3 | JM3: 4 | JN3: 5 | JO3: 6 | JP3: 7 | JQ3: 8 | JR3: 9 | JS3: 10 | JT3: 11 | JU3: 12 | JV3: 1 | JW3: 2 | JX3: 3 | JY3: 4 | JZ3: 5 | KA3: 6 | KB3: 7 | KC3: 8 | KD3: 9 | KE3: 10 | KF3: 11 | KG3: 12 | KH3: 1 | KI3: 2 | KJ3: 3 | KK3: 4 | KL3: 5 | KM3: 6 | KN3: 7 | KO3: 8 | KP3: 9
E4: Labels | F4: 1991-01-15 | G4: 1991-02-15 | H4: 1991-03-15 | I4: 1991-04-15 | J4: 1991-05-15 | K4: 1991-06-15 | L4: 1991-07-15 | M4: 1991-08-15 | N4: 1991-09-15 | O4: 1991-10-15 | P4: 1991-11-15 | Q4: 1991-12-15 | R4: 1992-01-15 | S4: 1992-02-15 | T4: 1992-03-15 | U4: 1992-04-15 | V4: 1992-05-15 | W4: 1992-06-15 | X4: 1992-07-15 | Y4: 1992-08-15 | Z4: 1992-09-15 | AA4: 1992-10-15 | AB4: 1992-11-15 | AC4: 1992-12-15 | AD4: 1993-01-15 | AE4: 1993-02-15 | AF4: 1993-03-15 | AG4: 1993-04-15 | AH4: 1993-05-15 | AI4: 1993-06-15 | AJ4: 1993-07-15 | AK4: 1993-08-15 | AL4: 1993-09-15 | AM4: 1993-10-15 | AN4: 1993-11-15 | AO4: 1993-12-15 | AP4: 1994-01-15 | AQ4: 1994-02-15 | AR4: 1994-03-15 | AS4: 1994-04-15 | AT4: 1994-05-15 | AU4: 1994-06-15 | AV4: 1994-07-15 | AW4: 1994-08-15 | AX4: 1994-09-15 | AY4: 1994-10-15 | AZ4: 1994-11-15 | BA4: 1994-12-15 | BB4: 1995-01-15 | BC4: 1995-02-15 | BD4: 1995-03-15 | BE4: 1995-04-15 | BF4: 1995-05-15 | BG4: 1995-06-15 | BH4: 1995-07-15 | BI4: 1995-08-15 | BJ4: 1995-09-15 | BK4: 1995-10-15 | BL4: 1995-11-15 | BM4: 1995-12-15 | BN4: 1996-01-15 | BO4: 1996-02-15 | BP4: 1996-03-15 | BQ4: 1996-04-15 | BR4: 1996-05-15 | BS4: 1996-06-15 | BT4: 1996-07-15 | BU4: 1996-08-15 | BV4: 1996-09-15 | BW4: 1996-10-15 | BX4: 1996-11-15 | BY4: 1996-12-15 | BZ4: 1997-01-15 | CA4: 1997-02-15 | CB4: 1997-03-15 | CC4: 1997-04-15 | CD4: 1997-05-15 | CE4: 1997-06-15 | CF4: 1997-07-15 | CG4: 1997-08-15 | CH4: 1997-09-15 | CI4: 1997-10-15 | CJ4: 1997-11-15 | CK4: 1997-12-15 | CL4: 1998-01-15 | CM4: 1998-02-15 | CN4: 1998-03-15 | CO4: 1998-04-15 | CP4: 1998-05-15 | CQ4: 1998-06-15 | CR4: 1998-07-15 | CS4: 1998-08-15 | CT4: 1998-09-15 | CU4: 1998-10-15 | CV4: 1998-11-15 | CW4: 1998-12-15 | CX4: 1999-01-15 | CY4: 1999-02-15 | CZ4: 1999-03-15 | DA4: 1999-04-15 | DB4: 1999-05-15 | DC4: 1999-06-15 | DD4: 1999-07-15 | DE4: 1999-08-15 | DF4: 1999-09-15 | DG4: 1999-10-15 | DH4: 1999-11-15 | DI4: 1999-12-15 | DJ4: 2000-01-15 | DK4: 2000-02-15 | DL4: 2000-03-15 | DM4: 2000-04-15 | DN4: 2000-05-15 | DO4: 2000-06-15 | DP4: 2000-07-15 | DQ4: 2000-08-15 | DR4: 2000-09-15 | DS4: 2000-10-15 | DT4: 2000-11-15 | DU4: 2000-12-15 | DV4: 2001-01-15 | DW4: 2001-02-15 | DX4: 2001-03-15 | DY4: 2001-04-15 | DZ4: 2001-05-15 | EA4: 2001-06-15 | EB4: 2001-07-15 | EC4: 2001-08-15 | ED4: 2001-09-15 | EE4: 2001-10-15 | EF4: 2001-11-15 | EG4: 2001-12-15 | EH4: 2002-01-15 | EI4: 2002-02-15 | EJ4: 2002-03-15 | EK4: 2002-04-15 | EL4: 2002-05-15 | EM4: 2002-06-15 | EN4: 2002-07-15 | EO4: 2002-08-15 | EP4: 2002-09-15 | EQ4: 2002-10-15 | ER4: 2002-11-15 | ES4: 2002-12-15 | ET4: 2003-01-15 | EU4: 2003-02-15 | EV4: 2003-03-15 | EW4: 2003-04-15 | EX4: 2003-05-15 | EY4: 2003-06-15 | EZ4: 2003-07-15 | FA4: 2003-08-15 | FB4: 2003-09-15 | FC4: 2003-10-15 | FD4: 2003-11-15 | FE4: 2003-12-15 | FF4: 2004-01-15 | FG4: 2004-02-15 | FH4: 2004-03-15 | FI4: 2004-04-15 | FJ4: 2004-05-15 | FK4: 2004-06-15 | FL4: 2004-07-15 | FM4: 2004-08-15 | FN4: 2004-09-15 | FO4: 2004-10-15 | FP4: 2004-11-15 | FQ4: 2004-12-15 | FR4: 2005-01-15 | FS4: 2005-02-15 | FT4: 2005-03-15 | FU4: 2005-04-15 | FV4: 2005-05-15 | FW4: 2005-06-15 | FX4: 2005-07-15 | FY4: 2005-08-15 | FZ4: 2005-09-15 | GA4: 2005-10-15 | GB4: 2005-11-15 | GC4: 2005-12-15 | GD4: 2006-01-15 | GE4: 2006-02-15 | GF4: 2006-03-15 | GG4: 2006-04-15 | GH4: 2006-05-15 | GI4: 2006-06-15 | GJ4: 2006-07-15 | GK4: 2006-08-15 | GL4: 2006-09-15 | GM4: 2006-10-15 | GN4: 2006-11-15 | GO4: 2006-12-15 | GP4: 2007-01-15 | GQ4: 2007-02-15 | GR4: 2007-03-15 | GS4: 2007-04-15 | GT4: 2007-05-15 | GU4: 2007-06-15 | GV4: 2007-07-15 | GW4: 2007-08-15 | GX4: 2007-09-15 | GY4: 2007-10-15 | GZ4: 2007-11-15 | HA4: 2007-12-15 | HB4: 2008-01-15 | HC4: 2008-02-15 | HD4: 2008-03-15 | HE4: 2008-04-15 | HF4: 2008-05-15 | HG4: 2008-06-15 | HH4: 2008-07-15 | HI4: 2008-08-15 | HJ4: 2008-09-15 | HK4: 2008-10-15 | HL4: 2008-11-15 | HM4: 2008-12-15 | HN4: 2009-01-15 | HO4: 2009-02-15 | HP4: 2009-03-15 | HQ4: 2009-04-15 | HR4: 2009-05-15 | HS4: 2009-06-15 | HT4: 2009-07-15 | HU4: 2009-08-15 | HV4: 2009-09-15 | HW4: 2009-10-15 | HX4: 2009-11-15 | HY4: 2009-12-15 | HZ4: 2010-01-15 | IA4: 2010-02-15 | IB4: 2010-03-15 | IC4: 2010-04-15 | ID4: 2010-05-15 | IE4: 2010-06-15 | IF4: 2010-07-15 | IG4: 2010-08-15 | IH4: 2010-09-15 | II4: 2010-10-15 | IJ4: 2010-11-15 | IK4: 2010-12-15 | IL4: 2011-01-15 | IM4: 2011-02-15 | IN4: 2011-03-15 | IO4: 2011-04-15 | IP4: 2011-05-15 | IQ4: 2011-06-15 | IR4: 2011-07-15 | IS4: 2011-08-15 | IT4: 2011-09-15 | IU4: 2011-10-15 | IV4: 2011-11-15 | IW4: 2011-12-15 | IX4: 2012-01-15 | IY4: 2012-02-15 | IZ4: 2012-03-15 | JA4: 2012-04-15 | JB4: 2012-05-15 | JC4: 2012-06-15 | JD4: 2012-07-15 | JE4: 2012-08-15 | JF4: 2012-09-15 | JG4: 2012-10-15 | JH4: 2012-11-15 | JI4: 2012-12-15 | JJ4: 2013-01-15 | JK4: 2013-02-15 | JL4: 2013-03-15 | JM4: 2013-04-15 | JN4: 2013-05-15 | JO4: 2013-06-15 | JP4: 2013-07-15 | JQ4: 2013-08-15 | JR4: 2013-09-15 | JS4: 2013-10-15 | JT4: 2013-11-15 | JU4: 2013-12-15 | JV4: 2014-01-15 | JW4: 2014-02-15 | JX4: 2014-03-15 | JY4: 2014-04-15 | JZ4: 2014-05-15 | KA4: 2014-06-15 | KB4: 2014-07-15 | KC4: 2014-08-15 | KD4: 2014-09-15 | KE4: 2014-10-15 | KF4: 2014-11-15 | KG4: 2014-12-15 | KH4: 2015-01-15 | KI4: 2015-02-15 | KJ4: 2015-03-15 | KK4: 2015-04-15 | KL4: 2015-05-15 | KM4: 2015-06-15 | KN4: 2015-07-15 | KO4: 2015-08-15 | KP4: 2015-09-15
E5: Austria - Sum of Male< 25 | AP5: 4.9 | AQ5: 4.8 | AR5: 4.6 | AS5: 4.6 | AT5: 4.6 | AU5: 4.5 | AV5: 4.4 | AW5: 4.4 | AX5: 4.5 | AY5: 4.4 | AZ5: 4.2 | BA5: 4.3 | BB5: 4.3 | BC5: 4.3 | BD5: 4.2 | BE5: 4.2 | BF5: 4.3 | BG5: 4.4 | BH5: 4.4 | BI5: 4.5 | BJ5: 4.6 | BK5: 4.7 | BL5: 4.9 | BM5: 5.1 | BN5: 5.1 | BO5: 5.1 | BP5: 5.3 | BQ5: 5.4 | BR5: 5.3 | BS5: 5.3 | BT5: 5.3 | BU5: 5.3 | BV5: 5.3 | BW5: 5.4 | BX5: 5.4 | BY5: 5.2 | BZ5: 5.4 | CA5: 5.5 | CB5: 5.5 | CC5: 5.6 | CD5: 5.6 | CE5: 5.6 | CF5: 5.6 | CG5: 5.6 | CH5: 5.5 | CI5: 5.5 | CJ5: 5.5 | CK5: 5.4 | CL5: 5.4 | CM5: 5.4 | CN5: 5.3 | CO5: 5.2 | CP5: 5.2 | CQ5: 5.1 | CR5: 5 | CS5: 4.8 | CT5: 4.6 | CU5: 4.5 | CV5: 4.4 | CW5: 4.3 | CX5: 4.2 | CY5: 4.1 | CZ5: 4.1 | DA5: 4.1 | DB5: 4.1 | DC5: 4.1 | DD5: 4.2 | DE5: 4.2 | DF5: 4.3 | DG5: 4.4 | DH5: 4.6 | DI5: 4.7 | DJ5: 4.9 | DK5: 5 | DL5: 4.9 | DM5: 4.8 | DN5: 4.6 | DO5: 4.6 | DP5: 4.5 | DQ5: 4.5 | DR5: 4.5 | DS5: 4.5 | DT5: 4.5 | DU5: 4.4 | DV5: 4.6 | DW5: 4.8 | DX5: 4.8 | DY5: 4.8 | DZ5: 4.9 | EA5: 5.1 | EB5: 5.2 | EC5: 5.3 | ED5: 5.4 | EE5: 5.6 | EF5: 5.8 | EG5: 6 | EH5: 6.1 | EI5: 6.1 | EJ5: 6.2 | EK5: 6.4 | EL5: 6.5 | EM5: 6.5 | EN5: 6.5 | EO5: 6.6 | EP5: 6.6 | EQ5: 6.6 | ER5: 6.5 | ES5: 6.4 | ET5: 6.4 | EU5: 6.4 | EV5: 6.5 | EW5: 6.7 | EX5: 7.1 | EY5: 7.5 | EZ5: 7.7 | FA5: 7.8 | FB5: 8.1 | FC5: 8.2 | FD5: 8.4 | FE5: 8.7 | FF5: 11.3 | FG5: 10.8 | FH5: 10.6 | FI5: 9.6 | FJ5: 8.4 | FK5: 7.2 | FL5: 7.9 | FM5: 8.4 | FN5: 8.9 | FO5: 9.4 | FP5: 9.8 | FQ5: 9.5 | FR5: 10.3 | FS5: 10.5 | FT5: 9.6 | FU5: 10.5 | FV5: 11.9 | FW5: 12.3 | FX5: 11.2 | FY5: 10.4 | FZ5: 10 | GA5: 11.1 | GB5: 10.8 | GC5: 10 | GD5: 9.4 | GE5: 9.7 | GF5: 10 | GG5: 9.3 | GH5: 8.4 | GI5: 8.1 | GJ5: 7.7 | GK5: 8.3 | GL5: 9.1 | GM5: 8.1 | GN5: 8.3 | GO5: 9.2 | GP5: 8.3 | GQ5: 7.7 | GR5: 8.7 | GS5: 9 | GT5: 8.1 | GU5: 8.1 | GV5: 9.8 | GW5: 10 | GX5: 8.9 | GY5: 8.6 | GZ5: 7.2 | HA5: 6.1 | HB5: 7.9 | HC5: 8.8 | HD5: 7.5 | HE5: 6.2 | HF5: 6.9 | HG5: 7.6 | HH5: 7.5 | HI5: 7.2 | HJ5: 7.5 | HK5: 8 | HL5: 9.2 | HM5: 10.2 | HN5: 10.1 | HO5: 9.6 | HP5: 10 | HQ5: 11.3 | HR5: 11 | HS5: 10.8 | HT5: 10.4 | HU5: 10.6 | HV5: 10.4 | HW5: 10 | HX5: 10.2 | HY5: 10.7 | HZ5: 10 | IA5: 9.8 | IB5: 10 | IC5: 9.1 | ID5: 9.2 | IE5: 9 | IF5: 8.7 | IG5: 9.5 | IH5: 9.1 | II5: 7.3 | IJ5: 7.5 | IK5: 7.8 | IL5: 7.3 | IM5: 7.7 | IN5: 8.4 | IO5: 8.7 | IP5: 8.3 | IQ5: 8 | IR5: 7.9 | IS5: 6.8 | IT5: 7.4 | IU5: 8.7 | IV5: 8.3 | IW5: 6.9 | IX5: 7.2 | IY5: 7.9 | IZ5: 8.9 | JA5: 9 | JB5: 8.8 | JC5: 8.6 | JD5: 8.7 | JE5: 9.3 | JF5: 9.3 | JG5: 9.7 | JH5: 9.5 | JI5: 10 | JJ5: 10.2 | JK5: 9.5 | JL5: 7.9 | JM5: 8.2 | JN5: 8.9 | JO5: 8.8 | JP5: 8.8 | JQ5: 9 | JR5: 9.2 | JS5: 8.8 | JT5: 8.4 | JU5: 8.7 | JV5: 9.6 | JW5: 9.3 | JX5: 9.1 | JY5: 9.5 | JZ5: 9.4 | KA5: 10.7 | KB5: 10.8 | KC5: 10.6 | KD5: 11.5 | KE5: 11.8 | KF5: 10.7 | KG5: 10.3 | KH5: 9.5 | KI5: 9.9 | KJ5: 11.6 | KK5: 11.8 | KL5: 11.2 | KM5: 10.8 | KN5: 10.5 | KO5: 10.2
E6: Austria - Sum of Male 25-74 | AP6: 2.8 | AQ6: 2.7 | AR6: 2.6 | AS6: 2.6 | AT6: 2.7 | AU6: 2.7 | AV6: 2.7 | AW6: 2.7 | AX6: 2.7 | AY6: 2.7 | AZ6: 2.7 | BA6: 2.7 | BB6: 2.7 | BC6: 2.6 | BD6: 2.6 | BE6: 2.6 | BF6: 2.7 | BG6: 2.8 | BH6: 2.8 | BI6: 2.9 | BJ6: 3 | BK6: 3.1 | BL6: 3.2 | BM6: 3.3 | BN6: 3.4 | BO6: 3.5 | BP6: 3.6 | BQ6: 3.6 | BR6: 3.5 | BS6: 3.3 | BT6: 3.3 | BU6: 3.2 | BV6: 3.2 | BW6: 3.2 | BX6: 3.2 | BY6: 3 | BZ6: 3.1 | CA6: 3.2 | CB6: 3.2 | CC6: 3.2 | CD6: 3.3 | CE6: 3.3 | CF6: 3.4 | CG6: 3.4 | CH6: 3.5 | CI6: 3.5 | CJ6: 3.6 | CK6: 3.5 | CL6: 3.5 | CM6: 3.6 | CN6: 3.7 | CO6: 3.7 | CP6: 3.7 | CQ6: 3.7 | CR6: 3.6 | CS6: 3.6 | CT6: 3.6 | CU6: 3.5 | CV6: 3.5 | CW6: 3.3 | CX6: 3.2 | CY6: 3.3 | CZ6: 3.3 | DA6: 3.2 | DB6: 3.2 | DC6: 3.2 | DD6: 3.1 | DE6: 3.1 | DF6: 3.1 | DG6: 3.1 | DH6: 3.2 | DI6: 3.1 | DJ6: 3.1 | DK6: 3.2 | DL6: 3.2 | DM6: 3 | DN6: 2.9 | DO6: 2.8 | DP6: 2.7 | DQ6: 2.6 | DR6: 2.6 | DS6: 2.5 | DT6: 2.5 | DU6: 2.5 | DV6: 2.6 | DW6: 2.7 | DX6: 2.6 | DY6: 2.6 | DZ6: 2.6 | EA6: 2.7 | EB6: 2.8 | EC6: 2.9 | ED6: 3 | EE6: 3.1 | EF6: 3.3 | EG6: 3.5 | EH6: 3.5 | EI6: 3.5 | EJ6: 3.6 | EK6: 3.6 | EL6: 3.6 | EM6: 3.7 | EN6: 3.7 | EO6: 3.7 | EP6: 3.7 | EQ6: 3.6 | ER6: 3.6 | ES6: 3.6 | ET6: 3.6 | EU6: 3.5 | EV6: 3.5 | EW6: 3.4 | EX6: 3.5 | EY6: 3.5 | EZ6: 3.5 | FA6: 3.4 | FB6: 3.4 | FC6: 3.4 | FD6: 3.3 | FE6: 3.3 | FF6: 3.6 | FG6: 3.6 | FH6: 3.7 | FI6: 3.8 | FJ6: 3.7 | FK6: 3.7 | FL6: 3.7 | FM6: 4.1 | FN6: 4.1 | FO6: 3.9 | FP6: 3.8 | FQ6: 3.7 | FR6: 3.6 | FS6: 3.7 | FT6: 4 | FU6: 4.2 | FV6: 4.1 | FW6: 4.1 | FX6: 4 | FY6: 3.8 | FZ6: 3.9 | GA6: 4.1 | GB6: 4 | GC6: 4 | GD6: 4.2 | GE6: 4.2 | GF6: 4 | GG6: 3.8 | GH6: 3.5 | GI6: 3.5 | GJ6: 3.6 | GK6: 3.3 | GL6: 3.3 | GM6: 3.2 | GN6: 3.2 | GO6: 3.1 | GP6: 3.2 | GQ6: 3.2 | GR6: 3.1 | GS6: 3.1 | GT6: 3.4 | GU6: 3.4 | GV6: 3.3 | GW6: 3.3 | GX6: 3.2 | GY6: 3.2 | GZ6: 3.3 | HA6: 3.2 | HB6: 3 | HC6: 2.9 | HD6: 2.7 | HE6: 2.6 | HF6: 2.7 | HG6: 2.6 | HH6: 2.7 | HI6: 2.9 | HJ6: 2.8 | HK6: 2.6 | HL6: 2.9 | HM6: 3.3 | HN6: 3.5 | HO6: 3.6 | HP6: 3.9 | HQ6: 4 | HR6: 3.9 | HS6: 4.1 | HT6: 4.4 | HU6: 4.4 | HV6: 4.3 | HW6: 4.3 | HX6: 4.4 | HY6: 4.3 | HZ6: 3.9 | IA6: 3.9 | IB6: 4.1 | IC6: 4 | ID6: 3.8 | IE6: 4 | IF6: 4.2 | IG6: 4.1 | IH6: 3.9 | II6: 3.8 | IJ6: 3.5 | IK6: 3.5 | IL6: 3.8 | IM6: 3.8 | IN6: 3.7 | IO6: 3.6 | IP6: 3.5 | IQ6: 3.1 | IR6: 2.9 | IS6: 3.1 | IT6: 3.4 | IU6: 3.3 | IV6: 3.3 | IW6: 3.1 | IX6: 3 | IY6: 3.1 | IZ6: 3.1 | JA6: 3.3 | JB6: 4 | JC6: 4.1 | JD6: 3.9 | JE6: 3.7 | JF6: 3.8 | JG6: 4.1 | JH6: 4.2 | JI6: 4.2 | JJ6: 4.3 | JK6: 4.5 | JL6: 4.5 | JM6: 4.4 | JN6: 4 | JO6: 4 | JP6: 4.3 | JQ6: 4.5 | JR6: 4.3 | JS6: 4.2 | JT6: 4.3 | JU6: 4.3 | JV6: 4.2 | JW6: 4.2 | JX6: 4.4 | JY6: 5 | JZ6: 5.1 | KA6: 5.3 | KB6: 5.2 | KC6: 5 | KD6: 5.2 | KE6: 5.3 | KF6: 5.2 | KG6: 5.3 | KH6: 5.3 | KI6: 5.1 | KJ6: 5.1 | KK6: 5.4 | KL6: 5.5 | KM6: 5.4 | KN6: 5.5 | KO6: 5.5
E7: Austria - Sum of Female<25 | AP7: 7.4 | AQ7: 7.3 | AR7: 7.1 | AS7: 7.2 | AT7: 7.2 | AU7: 7 | AV7: 6.9 | AW7: 6.8 | AX7: 6.8 | AY7: 6.9 | AZ7: 6.9 | BA7: 6.9 | BB7: 6.8 | BC7: 6.8 | BD7: 6.8 | BE7: 6.8 | BF7: 6.8 | BG7: 6.9 | BH7: 6.8 | BI7: 6.8 | BJ7: 6.8 | BK7: 6.9 | BL7: 6.9 | BM7: 6.9 | BN7: 7 | BO7: 7.1 | BP7: 7.1 | BQ7: 7.2 | BR7: 7.2 | BS7: 7.3 | BT7: 7.4 | BU7: 7.5 | BV7: 7.6 | BW7: 7.6 | BX7: 7.7 | BY7: 7.8 | BZ7: 7.9 | CA7: 7.8 | CB7: 7.8 | CC7: 7.8 | CD7: 7.8 | CE7: 7.9 | CF7: 8.1 | CG7: 8 | CH7: 8 | CI7: 8 | CJ7: 8 | CK7: 8 | CL7: 8.2 | CM7: 8.2 | CN7: 8.3 | CO7: 8.2 | CP7: 8.1 | CQ7: 8.2 | CR7: 8.1 | CS7: 7.9 | CT7: 7.7 | CU7: 7.7 | CV7: 7.5 | CW7: 7.3 | CX7: 7.2 | CY7: 7 | CZ7: 6.9 | DA7: 7 | DB7: 6.8 | DC7: 6.6 | DD7: 6.5 | DE7: 6.5 | DF7: 6.4 | DG7: 6.3 | DH7: 6.2 | DI7: 6.2 | DJ7: 6.1 | DK7: 6.1 | DL7: 6 | DM7: 5.8 | DN7: 5.9 | DO7: 5.9 | DP7: 5.8 | DQ7: 5.9 | DR7: 5.9 | DS7: 5.9 | DT7: 6.1 | DU7: 6.2 | DV7: 6.2 | DW7: 6.2 | DX7: 6.2 | DY7: 6.3 | DZ7: 6.4 | EA7: 6.4 | EB7: 6.5 | EC7: 6.6 | ED7: 6.7 | EE7: 6.8 | EF7: 6.8 | EG7: 6.8 | EH7: 6.9 | EI7: 7.1 | EJ7: 7.2 | EK7: 7.2 | EL7: 7.2 | EM7: 7.1 | EN7: 7.1 | EO7: 7.1 | EP7: 7.1 | EQ7: 7 | ER7: 7 | ES7: 7 | ET7: 7.1 | EU7: 7.3 | EV7: 7.4 | EW7: 7.6 | EX7: 8 | EY7: 8.7 | EZ7: 9.1 | FA7: 9.4 | FB7: 9.8 | FC7: 10.2 | FD7: 10.5 | FE7: 10.8 | FF7: 13.1 | FG7: 11.8 | FH7: 10.6 | FI7: 9.6 | FJ7: 8.9 | FK7: 8.9 | FL7: 9.2 | FM7: 9.8 | FN7: 9.9 | FO7: 9.4 | FP7: 10 | FQ7: 10.2 | FR7: 9.5 | FS7: 8.6 | FT7: 8.8 | FU7: 9.3 | FV7: 10.8 | FW7: 11.5 | FX7: 11.4 | FY7: 10 | FZ7: 9 | GA7: 9.1 | GB7: 10.1 | GC7: 10.9 | GD7: 11 | GE7: 11 | GF7: 10.7 | GG7: 9 | GH7: 7.7 | GI7: 8 | GJ7: 8.3 | GK7: 8.9 | GL7: 10.1 | GM7: 9.4 | GN7: 7.6 | GO7: 7 | GP7: 7.7 | GQ7: 8.3 | GR7: 8.9 | GS7: 10.3 | GT7: 10.6 | GU7: 10.3 | GV7: 10.2 | GW7: 9.2 | GX7: 8 | GY7: 8.2 | GZ7: 8.4 | HA7: 8.3 | HB7: 8.5 | HC7: 8 | HD7: 7.4 | HE7: 7.7 | HF7: 7.5 | HG7: 6.8 | HH7: 6.6 | HI7: 7.6 | HJ7: 8.6 | HK7: 9.4 | HL7: 10.2 | HM7: 10 | HN7: 8.3 | HO7: 8.1 | HP7: 9.2 | HQ7: 8.8 | HR7: 9.1 | HS7: 10.9 | HT7: 10.9 | HU7: 9.6 | HV7: 10 | HW7: 10.9 | HX7: 9.3 | HY7: 8 | HZ7: 8.8 | IA7: 9.5 | IB7: 8.2 | IC7: 8.1 | ID7: 8.9 | IE7: 8.4 | IF7: 8.5 | IG7: 9.5 | IH7: 9.1 | II7: 8.1 | IJ7: 8.6 | IK7: 8.7 | IL7: 9.1 | IM7: 9.6 | IN7: 9.1 | IO7: 9 | IP7: 9 | IQ7: 7.8 | IR7: 7 | IS7: 7.3 | IT7: 8.1 | IU7: 9 | IV7: 9.5 | IW7: 9.5 | IX7: 9.5 | IY7: 9.5 | IZ7: 9.9 | JA7: 9.4 | JB7: 8.6 | JC7: 8.4 | JD7: 9 | JE7: 9.1 | JF7: 8.4 | JG7: 7.4 | JH7: 7.3 | JI7: 7.8 | JJ7: 8 | JK7: 8.1 | JL7: 8.4 | JM7: 8.5 | JN7: 8.8 | JO7: 10.1 | JP7: 10 | JQ7: 9.2 | JR7: 9.9 | JS7: 10.8 | JT7: 11.1 | JU7: 11.8 | JV7: 11.5 | JW7: 10.7 | JX7: 10.3 | JY7: 11.4 | JZ7: 10.3 | KA7: 9.6 | KB7: 8.9 | KC7: 8.7 | KD7: 8.4 | KE7: 9.1 | KF7: 10 | KG7: 9.1 | KH7: 8.2 | KI7: 8.1 | KJ7: 8.4 | KK7: 9 | KL7: 10 | KM7: 10.4 | KN7: 11.3 | KO7: 11.5
E8: Austria - Sum of Female25-74 | AP8: 4.5 | AQ8: 4.6 | AR8: 4.5 | AS8: 4.5 | AT8: 4.5 | AU8: 4.5 | AV8: 4.5 | AW8: 4.5 | AX8: 4.5 | AY8: 4.6 | AZ8: 4.6 | BA8: 4.6 | BB8: 4.5 | BC8: 4.5 | BD8: 4.6 | BE8: 4.6 | BF8: 4.6 | BG8: 4.6 | BH8: 4.6 | BI8: 4.7 | BJ8: 4.7 | BK8: 4.7 | BL8: 4.7 | BM8: 4.7 | BN8: 4.7 | BO8: 4.8 | BP8: 4.9 | BQ8: 4.9 | BR8: 4.9 | BS8: 4.9 | BT8: 4.9 | BU8: 4.8 | BV8: 4.8 | BW8: 4.8 | BX8: 4.8 | BY8: 4.8 | BZ8: 4.8 | CA8: 4.8 | CB8: 4.7 | CC8: 4.8 | CD8: 4.8 | CE8: 4.8 | CF8: 4.9 | CG8: 4.9 | CH8: 4.9 | CI8: 5 | CJ8: 5 | CK8: 5 | CL8: 5.1 | CM8: 5.1 | CN8: 5.1 | CO8: 5.1 | CP8: 5.1 | CQ8: 5 | CR8: 5 | CS8: 4.8 | CT8: 4.8 | CU8: 4.7 | CV8: 4.6 | CW8: 4.6 | CX8: 4.5 | CY8: 4.4 | CZ8: 4.4 | DA8: 4.4 | DB8: 4.4 | DC8: 4.3 | DD8: 4.4 | DE8: 4.4 | DF8: 4.4 | DG8: 4.3 | DH8: 4.4 | DI8: 4.4 | DJ8: 4.4 | DK8: 4.4 | DL8: 4.3 | DM8: 4.2 | DN8: 4.1 | DO8: 4.1 | DP8: 4 | DQ8: 3.9 | DR8: 3.9 | DS8: 3.9 | DT8: 3.8 | DU8: 3.9 | DV8: 3.8 | DW8: 3.8 | DX8: 3.7 | DY8: 3.7 | DZ8: 3.7 | EA8: 3.8 | EB8: 3.8 | EC8: 3.9 | ED8: 3.9 | EE8: 3.9 | EF8: 4 | EG8: 4 | EH8: 4 | EI8: 4.1 | EJ8: 4.1 | EK8: 4.1 | EL8: 4.1 | EM8: 4 | EN8: 4 | EO8: 4.1 | EP8: 4 | EQ8: 4 | ER8: 3.9 | ES8: 3.9 | ET8: 3.9 | EU8: 3.9 | EV8: 3.9 | EW8: 3.9 | EX8: 3.9 | EY8: 4 | EZ8: 4.1 | FA8: 4.1 | FB8: 4.1 | FC8: 4.1 | FD8: 4.1 | FE8: 4.2 | FF8: 4.5 | FG8: 4.3 | FH8: 4.1 | FI8: 4.4 | FJ8: 4.9 | FK8: 5.1 | FL8: 4.7 | FM8: 4.5 | FN8: 4.8 | FO8: 4.9 | FP8: 4.7 | FQ8: 4.8 | FR8: 4.8 | FS8: 4.7 | FT8: 4.7 | FU8: 4.5 | FV8: 4.5 | FW8: 4.8 | FX8: 4.9 | FY8: 4.8 | FZ8: 4.9 | GA8: 4.9 | GB8: 4.7 | GC8: 4.5 | GD8: 4.6 | GE8: 4.8 | GF8: 4.7 | GG8: 4.7 | GH8: 4.9 | GI8: 4.8 | GJ8: 4.4 | GK8: 4.2 | GL8: 4.1 | GM8: 4.2 | GN8: 4.7 | GO8: 4.7 | GP8: 4.6 | GQ8: 4.5 | GR8: 4.5 | GS8: 4.5 | GT8: 4.4 | GU8: 4.2 | GV8: 4.4 | GW8: 4.6 | GX8: 4.3 | GY8: 4.1 | GZ8: 3.9 | HA8: 3.9 | HB8: 3.9 | HC8: 3.6 | HD8: 3.4 | HE8: 3.4 | HF8: 3.2 | HG8: 3.2 | HH8: 3.4 | HI8: 3.4 | HJ8: 3.2 | HK8: 3.2 | HL8: 3.5 | HM8: 3.6 | HN8: 3.5 | HO8: 3.6 | HP8: 3.8 | HQ8: 3.8 | HR8: 3.7 | HS8: 3.8 | HT8: 3.7 | HU8: 3.9 | HV8: 4.4 | HW8: 4.1 | HX8: 3.5 | HY8: 3.2 | HZ8: 3.2 | IA8: 3.3 | IB8: 3.6 | IC8: 3.8 | ID8: 3.7 | IE8: 3.5 | IF8: 3.5 | IG8: 3.3 | IH8: 3.2 | II8: 3.4 | IJ8: 3.5 | IK8: 3.6 | IL8: 3.7 | IM8: 3.5 | IN8: 3.3 | IO8: 3.4 | IP8: 3.6 | IQ8: 3.6 | IR8: 3.6 | IS8: 3.6 | IT8: 3.6 | IU8: 3.8 | IV8: 4 | IW8: 3.9 | IX8: 3.6 | IY8: 3.6 | IZ8: 3.7 | JA8: 3.4 | JB8: 3.5 | JC8: 3.8 | JD8: 3.9 | JE8: 3.7 | JF8: 3.7 | JG8: 3.7 | JH8: 3.6 | JI8: 3.8 | JJ8: 4.1 | JK8: 4.2 | JL8: 4.2 | JM8: 4.2 | JN8: 4 | JO8: 3.9 | JP8: 4 | JQ8: 4.3 | JR8: 4.3 | JS8: 4.3 | JT8: 4.3 | JU8: 4.3 | JV8: 4.2 | JW8: 4.1 | JX8: 4 | JY8: 4.6 | JZ8: 4.7 | KA8: 4.8 | KB8: 4.9 | KC8: 5 | KD8: 4.7 | KE8: 4.5 | KF8: 4.6 | KG8: 4.8 | KH8: 4.9 | KI8: 4.7 | KJ8: 4.7 | KK8: 5 | KL8: 5.1 | KM8: 4.8 | KN8: 4.5 | KO8: 4.4
E9: Belgium - Sum of Male< 25 | F9: 10.7 | G9: 10.7 | H9: 10.7 | I9: 11.2 | J9: 11.2 | K9: 11.2 | L9: 11.3 | M9: 11.3 | N9: 11.3 | O9: 11.7 | P9: 11.7 | Q9: 11.7 | R9: 12.1 | S9: 12.1 | T9: 12.1 | U9: 12.9 | V9: 12.9 | W9: 12.9 | X9: 13.7 | Y9: 13.7 | Z9: 13.7 | AA9: 15.1 | AB9: 15.1 | AC9: 15.1 | AD9: 17.1 | AE9: 17.1 | AF9: 17.1 | AG9: 18.9 | AH9: 18.9 | AI9: 18.9 | AJ9: 20.5 | AK9: 20.5 | AL9: 20.5 | AM9: 21.6 | AN9: 21.6 | AO9: 21.6 | AP9: 22 | AQ9: 22 | AR9: 22 | AS9: 21.5 | AT9: 21.5 | AU9: 21.5 | AV9: 21.5 | AW9: 21.5 | AX9: 21.5 | AY9: 21.3 | AZ9: 21.3 | BA9: 21.3 | BB9: 21 | BC9: 21 | BD9: 21 | BE9: 20.8 | BF9: 20.8 | BG9: 20.8 | BH9: 20.3 | BI9: 20.3 | BJ9: 20.3 | BK9: 19.9 | BL9: 19.9 | BM9: 19.9 | BN9: 19.3 | BO9: 19.3 | BP9: 19.3 | BQ9: 18.6 | BR9: 18.6 | BS9: 18.6 | BT9: 18.3 | BU9: 18.3 | BV9: 18.3 | BW9: 18.1 | BX9: 18.1 | BY9: 18.1 | BZ9: 18.2 | CA9: 18.2 | CB9: 18.2 | CC9: 18.6 | CD9: 18.6 | CE9: 18.6 | CF9: 18.5 | CG9: 18.5 | CH9: 18.5 | CI9: 18.6 | CJ9: 18.6 | CK9: 18.6 | CL9: 18.8 | CM9: 18.8 | CN9: 18.8 | CO9: 19.2 | CP9: 19.2 | CQ9: 19.2 | CR9: 20.8 | CS9: 20.8 | CT9: 20.8 | CU9: 22.1 | CV9: 22.1 | CW9: 22.1 | CX9: 22.7 | CY9: 22.7 | CZ9: 22.7 | DA9: 22.3 | DB9: 22.3 | DC9: 22.3 | DD9: 18.8 | DE9: 18.8 | DF9: 18.8 | DG9: 13.8 | DH9: 13.8 | DI9: 13.8 | DJ9: 15.2 | DK9: 15.2 | DL9: 15.2 | DM9: 14.3 | DN9: 14.3 | DO9: 14.3 | DP9: 16.1 | DQ9: 16.1 | DR9: 16.1 | DS9: 12.8 | DT9: 12.8 | DU9: 12.8 | DV9: 14.3 | DW9: 14.3 | DX9: 14.3 | DY9: 15.9 | DZ9: 15.9 | EA9: 15.9 | EB9: 17.4 | EC9: 17.4 | ED9: 17.4 | EE9: 18.1 | EF9: 18.1 | EG9: 18.1 | EH9: 16.2 | EI9: 16.2 | EJ9: 16.2 | EK9: 17.5 | EL9: 17.5 | EM9: 17.5 | EN9: 17.6 | EO9: 17.6 | EP9: 17.6 | EQ9: 18.5 | ER9: 18.5 | ES9: 18.5 | ET9: 20.4 | EU9: 20.4 | EV9: 20.4 | EW9: 21.2 | EX9: 21.2 | EY9: 21.2 | EZ9: 20.8 | FA9: 20.8 | FB9: 20.8 | FC9: 23.5 | FD9: 23.5 | FE9: 23.5 | FF9: 19.8 | FG9: 19.8 | FH9: 19.8 | FI9: 17.2 | FJ9: 17.2 | FK9: 17.2 | FL9: 21.9 | FM9: 21.9 | FN9: 21.9 | FO9: 20.4 | FP9: 20.4 | FQ9: 20.4 | FR9: 20 | FS9: 20 | FT9: 20 | FU9: 20.7 | FV9: 20.7 | FW9: 20.7 | FX9: 19.8 | FY9: 19.8 | FZ9: 19.8 | GA9: 22.2 | GB9: 22.2 | GC9: 22.2 | GD9: 21.3 | GE9: 21.3 | GF9: 21.3 | GG9: 19.8 | GH9: 19.8 | GI9: 19.8 | GJ9: 15.7 | GK9: 15.7 | GL9: 15.7 | GM9: 19.3 | GN9: 19.3 | GO9: 19.3 | GP9: 17.7 | GQ9: 17.7 | GR9: 17.7 | GS9: 18 | GT9: 18 | GU9: 18 | GV9: 17.1 | GW9: 17.1 | GX9: 17.1 | GY9: 16.8 | GZ9: 16.8 | HA9: 16.8 | HB9: 17.5 | HC9: 17.5 | HD9: 17.5 | HE9: 16.9 | HF9: 16.9 | HG9: 16.9 | HH9: 20.2 | HI9: 20.2 | HJ9: 20.2 | HK9: 16.7 | HL9: 16.7 | HM9: 16.7 | HN9: 19.4 | HO9: 19.4 | HP9: 19.4 | HQ9: 20.5 | HR9: 20.5 | HS9: 20.5 | HT9: 21.6 | HU9: 21.6 | HV9: 21.6 | HW9: 22.7 | HX9: 22.7 | HY9: 22.7 | HZ9: 22.4 | IA9: 22.4 | IB9: 22.4 | IC9: 23.2 | ID9: 23.2 | IE9: 23.2 | IF9: 21.6 | IG9: 21.6 | IH9: 21.6 | II9: 21.7 | IJ9: 21.7 | IK9: 21.7 | IL9: 19.7 | IM9: 19.7 | IN9: 19.7 | IO9: 17.6 | IP9: 17.6 | IQ9: 17.6 | IR9: 20.1 | IS9: 20.1 | IT9: 20.1 | IU9: 18.7 | IV9: 18.7 | IW9: 18.7 | IX9: 19.9 | IY9: 19.9 | IZ9: 19.9 | JA9: 19.3 | JB9: 19.3 | JC9: 19.3 | JD9: 20.7 | JE9: 20.7 | JF9: 20.7 | JG9: 24.3 | JH9: 24.3 | JI9: 24.3 | JJ9: 23.5 | JK9: 23.5 | JL9: 23.5 | JM9: 24.4 | JN9: 24.4 | JO9: 24.4 | JP9: 23.4 | JQ9: 23.4 | JR9: 23.4 | JS9: 24.9 | JT9: 24.9 | JU9: 24.9 | JV9: 24.3 | JW9: 24.3 | JX9: 24.3 | JY9: 22.9 | JZ9: 22.9 | KA9: 22.9 | KB9: 20.8 | KC9: 20.8 | KD9: 20.8 | KE9: 23.1 | KF9: 23.1 | KG9: 23.1 | KH9: 21.3 | KI9: 21.3 | KJ9: 21.3 | KK9: 23.9 | KL9: 23.9 | KM9: 23.9
E10: Belgium - Sum of Male 25-74 | F10: 3.2 | G10: 3.2 | H10: 3.2 | I10: 3.2 | J10: 3.3 | K10: 3.3 | L10: 3.4 | M10: 3.4 | N10: 3.5 | O10: 3.6 | P10: 3.7 | Q10: 3.7 | R10: 3.8 | S10: 3.8 | T10: 3.9 | U10: 4 | V10: 4.1 | W10: 4.1 | X10: 4.2 | Y10: 4.2 | Z10: 4.3 | AA10: 4.3 | AB10: 4.4 | AC10: 4.5 | AD10: 4.6 | AE10: 4.7 | AF10: 4.8 | AG10: 4.9 | AH10: 5 | AI10: 5.1 | AJ10: 5.2 | AK10: 5.4 | AL10: 5.5 | AM10: 5.6 | AN10: 5.7 | AO10: 5.8 | AP10: 5.9 | AQ10: 6 | AR10: 6.1 | AS10: 6.2 | AT10: 6.2 | AU10: 6.3 | AV10: 6.2 | AW10: 6.2 | AX10: 6.2 | AY10: 6.2 | AZ10: 6.1 | BA10: 6.1 | BB10: 6.1 | BC10: 6.1 | BD10: 6.1 | BE10: 6 | BF10: 6 | BG10: 6.1 | BH10: 6.1 | BI10: 6.2 | BJ10: 6.3 | BK10: 6.3 | BL10: 6.4 | BM10: 6.4 | BN10: 6.5 | BO10: 6.5 | BP10: 6.4 | BQ10: 6.4 | BR10: 6.4 | BS10: 6.2 | BT10: 6.2 | BU10: 6.1 | BV10: 6.1 | BW10: 6.1 | BX10: 6.1 | BY10: 6 | BZ10: 6 | CA10: 6 | CB10: 6 | CC10: 6 | CD10: 6 | CE10: 6.1 | CF10: 6.2 | CG10: 6.2 | CH10: 6.3 | CI10: 6.3 | CJ10: 6.3 | CK10: 6.3 | CL10: 6.4 | CM10: 6.4 | CN10: 6.4 | CO10: 6.5 | CP10: 6.4 | CQ10: 6.4 | CR10: 6.4 | CS10: 6.4 | CT10: 6.3 | CU10: 6.3 | CV10: 6.2 | CW10: 6.2 | CX10: 6.2 | CY10: 6.1 | CZ10: 6.1 | DA10: 6.1 | DB10: 6 | DC10: 6 | DD10: 5.9 | DE10: 5.8 | DF10: 5.7 | DG10: 5.5 | DH10: 5.4 | DI10: 5.4 | DJ10: 5.3 | DK10: 5.1 | DL10: 4.9 | DM10: 4.7 | DN10: 4.6 | DO10: 4.5 | DP10: 4.5 | DQ10: 4.6 | DR10: 4.6 | DS10: 4.6 | DT10: 4.5 | DU10: 4.4 | DV10: 4.3 | DW10: 4.3 | DX10: 4.4 | DY10: 4.8 | DZ10: 4.9 | EA10: 4.9 | EB10: 4.7 | EC10: 4.6 | ED10: 4.9 | EE10: 5.2 | EF10: 5.2 | EG10: 5.2 | EH10: 5 | EI10: 5 | EJ10: 5.1 | EK10: 5.3 | EL10: 5.4 | EM10: 5.4 | EN10: 5.2 | EO10: 5.2 | EP10: 5.5 | EQ10: 6.2 | ER10: 6.5 | ES10: 6.4 | ET10: 6.1 | EU10: 5.9 | EV10: 5.9 | EW10: 6.2 | EX10: 6.2 | EY10: 6.3 | EZ10: 6.2 | FA10: 6.1 | FB10: 6.1 | FC10: 6 | FD10: 6 | FE10: 6.1 | FF10: 6.4 | FG10: 6.4 | FH10: 6.3 | FI10: 5.9 | FJ10: 5.8 | FK10: 5.9 | FL10: 6.2 | FM10: 6.5 | FN10: 6.5 | FO10: 6.2 | FP10: 6.1 | FQ10: 6.1 | FR10: 6.2 | FS10: 6.3 | FT10: 6.3 | FU10: 6.1 | FV10: 6.3 | FW10: 6.1 | FX10: 6.2 | FY10: 6.3 | FZ10: 6.3 | GA10: 6.2 | GB10: 6.2 | GC10: 6.3 | GD10: 6.4 | GE10: 6.6 | GF10: 6.7 | GG10: 6.9 | GH10: 6.9 | GI10: 6.6 | GJ10: 6 | GK10: 5.7 | GL10: 5.7 | GM10: 5.8 | GN10: 5.9 | GO10: 5.8 | GP10: 5.8 | GQ10: 5.8 | GR10: 5.8 | GS10: 5.9 | GT10: 5.9 | GU10: 5.7 | GV10: 5.6 | GW10: 5.5 | GX10: 5.4 | GY10: 5.4 | GZ10: 5.4 | HA10: 5.4 | HB10: 5.5 | HC10: 5.5 | HD10: 5.3 | HE10: 5.2 | HF10: 5.2 | HG10: 5.4 | HH10: 5.8 | HI10: 5.9 | HJ10: 5.7 | HK10: 5.2 | HL10: 5 | HM10: 5.2 | HN10: 5.8 | HO10: 6.2 | HP10: 6.6 | HQ10: 6.6 | HR10: 6.5 | HS10: 6.5 | HT10: 6.2 | HU10: 6.2 | HV10: 6.3 | HW10: 6.6 | HX10: 6.8 | HY10: 6.9 | HZ10: 6.8 | IA10: 6.7 | IB10: 6.7 | IC10: 6.8 | ID10: 6.8 | IE10: 7 | IF10: 7.1 | IG10: 7 | IH10: 6.8 | II10: 6.6 | IJ10: 6.3 | IK10: 6.2 | IL10: 6.2 | IM10: 6.1 | IN10: 6 | IO10: 5.8 | IP10: 5.8 | IQ10: 5.9 | IR10: 6.2 | IS10: 6.3 | IT10: 6.2 | IU10: 6.1 | IV10: 6 | IW10: 5.9 | IX10: 5.9 | IY10: 5.9 | IZ10: 5.9 | JA10: 6.1 | JB10: 6.2 | JC10: 6.2 | JD10: 6.1 | JE10: 6.3 | JF10: 6.6 | JG10: 7.2 | JH10: 7.5 | JI10: 7.5 | JJ10: 7.3 | JK10: 7.1 | JL10: 7 | JM10: 7 | JN10: 7 | JO10: 7.1 | JP10: 7.3 | JQ10: 7.4 | JR10: 7.3 | JS10: 7.2 | JT10: 7.2 | JU10: 7.2 | JV10: 7.5 | JW10: 7.6 | JX10: 7.7 | JY10: 7.9 | JZ10: 8 | KA10: 7.9 | KB10: 7.9 | KC10: 7.8 | KD10: 7.7 | KE10: 7.6 | KF10: 7.6 | KG10: 7.7 | KH10: 7.9 | KI10: 8.1 | KJ10: 8.2 | KK10: 8.2 | KL10: 8.2 | KM10: 8.2 | KN10: 8.2 | KO10: 8.2
E11: Belgium - Sum of Female<25 | F11: 17.7 | G11: 17.7 | H11: 17.7 | I11: 17.3 | J11: 17.3 | K11: 17.3 | L11: 17.1 | M11: 17.1 | N11: 17.1 | O11: 16.9 | P11: 16.9 | Q11: 16.9 | R11: 16.7 | S11: 16.7 | T11: 16.7 | U11: 16.8 | V11: 16.8 | W11: 16.8 | X11: 17.5 | Y11: 17.5 | Z11: 17.5 | AA11: 18.6 | AB11: 18.6 | AC11: 18.6 | AD11: 20.1 | AE11: 20.1 | AF11: 20.1 | AG11: 21.5 | AH11: 21.5 | AI11: 21.5 | AJ11: 22.6 | AK11: 22.6 | AL11: 22.6 | AM11: 23.7 | AN11: 23.7 | AO11: 23.7 | AP11: 24.6 | AQ11: 24.6 | AR11: 24.6 | AS11: 25.1 | AT11: 25.1 | AU11: 25.1 | AV11: 25.1 | AW11: 25.1 | AX11: 25.1 | AY11: 25.3 | AZ11: 25.3 | BA11: 25.3 | BB11: 25.4 | BC11: 25.4 | BD11: 25.4 | BE11: 25.5 | BF11: 25.5 | BG11: 25.5 | BH11: 25.6 | BI11: 25.6 | BJ11: 25.6 | BK11: 26 | BL11: 26 | BM11: 26 | BN11: 26.3 | BO11: 26.3 | BP11: 26.3 | BQ11: 26.3 | BR11: 26.3 | BS11: 26.3 | BT11: 26.5 | BU11: 26.5 | BV11: 26.5 | BW11: 26.7 | BX11: 26.7 | BY11: 26.7 | BZ11: 26.8 | CA11: 26.8 | CB11: 26.8 | CC11: 26.9 | CD11: 26.9 | CE11: 26.9 | CF11: 26.2 | CG11: 26.2 | CH11: 26.2 | CI11: 25.6 | CJ11: 25.6 | CK11: 25.6 | CL11: 24.9 | CM11: 24.9 | CN11: 24.9 | CO11: 24.4 | CP11: 24.4 | CQ11: 24.4 | CR11: 24.4 | CS11: 24.4 | CT11: 24.4 | CU11: 24.3 | CV11: 24.3 | CW11: 24.3 | CX11: 23.9 | CY11: 23.9 | CZ11: 23.9 | DA11: 23.2 | DB11: 23.2 | DC11: 23.2 | DD11: 21.3 | DE11: 21.3 | DF11: 21.3 | DG11: 20.8 | DH11: 20.8 | DI11: 20.8 | DJ11: 21.4 | DK11: 21.4 | DL11: 21.4 | DM11: 19.4 | DN11: 19.4 | DO11: 19.4 | DP11: 20.9 | DQ11: 20.9 | DR11: 20.9 | DS11: 20.8 | DT11: 20.8 | DU11: 20.8 | DV11: 20.1 | DW11: 20.1 | DX11: 20.1 | DY11: 20.4 | DZ11: 20.4 | EA11: 20.4 | EB11: 19 | EC11: 19 | ED11: 19 | EE11: 21.1 | EF11: 21.1 | EG11: 21.1 | EH11: 20.7 | EI11: 20.7 | EJ11: 20.7 | EK11: 20 | EL11: 20 | EM11: 20 | EN11: 19.3 | EO11: 19.3 | EP11: 19.3 | EQ11: 19.8 | ER11: 19.8 | ES11: 19.8 | ET11: 20.5 | EU11: 20.5 | EV11: 20.5 | EW11: 21.3 | EX11: 21.3 | EY11: 21.3 | EZ11: 22.1 | FA11: 22.1 | FB11: 22.1 | FC11: 20.9 | FD11: 20.9 | FE11: 20.9 | FF11: 19.8 | FG11: 19.8 | FH11: 19.8 | FI11: 20.1 | FJ11: 20.1 | FK11: 20.1 | FL11: 21.5 | FM11: 21.5 | FN11: 21.5 | FO11: 22.3 | FP11: 22.3 | FQ11: 22.3 | FR11: 20.5 | FS11: 20.5 | FT11: 20.5 | FU11: 20.3 | FV11: 20.3 | FW11: 20.3 | FX11: 22.6 | FY11: 22.6 | FZ11: 22.6 | GA11: 20.4 | GB11: 20.4 | GC11: 20.4 | GD11: 20.4 | GE11: 20.4 | GF11: 20.4 | GG11: 21.7 | GH11: 21.7 | GI11: 21.7 | GJ11: 21.6 | GK11: 21.6 | GL11: 21.6 | GM11: 20.7 | GN11: 20.7 | GO11: 20.7 | GP11: 20.8 | GQ11: 20.8 | GR11: 20.8 | GS11: 21.1 | GT11: 21.1 | GU11: 21.1 | GV11: 20.9 | GW11: 20.9 | GX11: 20.9 | GY11: 21.3 | GZ11: 21.3 | HA11: 21.3 | HB11: 20.4 | HC11: 20.4 | HD11: 20.4 | HE11: 20.4 | HF11: 20.4 | HG11: 20.4 | HH11: 20.6 | HI11: 20.6 | HJ11: 20.6 | HK11: 21.2 | HL11: 21.2 | HM11: 21.2 | HN11: 22.3 | HO11: 22.3 | HP11: 22.3 | HQ11: 21.1 | HR11: 21.1 | HS11: 21.1 | HT11: 20.9 | HU11: 20.9 | HV11: 20.9 | HW11: 21.9 | HX11: 21.9 | HY11: 21.9 | HZ11: 21.7 | IA11: 21.7 | IB11: 21.7 | IC11: 21.9 | ID11: 21.9 | IE11: 21.9 | IF11: 20.9 | IG11: 20.9 | IH11: 20.9 | II11: 21.4 | IJ11: 21.4 | IK11: 21.4 | IL11: 20.1 | IM11: 20.1 | IN11: 20.1 | IO11: 20.5 | IP11: 20.5 | IQ11: 20.5 | IR11: 21.4 | IS11: 21.4 | IT11: 21.4 | IU11: 20.2 | IV11: 20.2 | IW11: 20.2 | IX11: 21.5 | IY11: 21.5 | IZ11: 21.5 | JA11: 22.3 | JB11: 22.3 | JC11: 22.3 | JD11: 20.1 | JE11: 20.1 | JF11: 20.1 | JG11: 20.9 | JH11: 20.9 | JI11: 20.9 | JJ11: 22.2 | JK11: 22.2 | JL11: 22.2 | JM11: 22.2 | JN11: 22.2 | JO11: 22.2 | JP11: 21.9 | JQ11: 21.9 | JR11: 21.9 | JS11: 23.1 | JT11: 23.1 | JU11: 23.1 | JV11: 23.7 | JW11: 23.7 | JX11: 23.7 | JY11: 21.6 | JZ11: 21.6 | KA11: 21.6 | KB11: 20.4 | KC11: 20.4 | KD11: 20.4 | KE11: 21.3 | KF11: 21.3 | KG11: 21.3 | KH11: 20.7 | KI11: 20.7 | KJ11: 20.7 | KK11: 20.6 | KL11: 20.6 | KM11: 20.6
E12: Belgium - Sum of Female25-74 | F12: 8.6 | G12: 8.6 | H12: 8.5 | I12: 8.5 | J12: 8.5 | K12: 8.5 | L12: 8.4 | M12: 8.4 | N12: 8.4 | O12: 8.4 | P12: 8.5 | Q12: 8.5 | R12: 8.5 | S12: 8.5 | T12: 8.5 | U12: 8.6 | V12: 8.6 | W12: 8.7 | X12: 8.7 | Y12: 8.8 | Z12: 8.9 | AA12: 8.9 | AB12: 9 | AC12: 9.1 | AD12: 9.2 | AE12: 9.3 | AF12: 9.4 | AG12: 9.5 | AH12: 9.7 | AI12: 9.8 | AJ12: 9.9 | AK12: 10.1 | AL12: 10.2 | AM12: 10.3 | AN12: 10.4 | AO12: 10.5 | AP12: 10.6 | AQ12: 10.7 | AR12: 10.8 | AS12: 10.9 | AT12: 11 | AU12: 11 | AV12: 11 | AW12: 11 | AX12: 11 | AY12: 11 | AZ12: 11 | BA12: 10.9 | BB12: 10.9 | BC12: 10.9 | BD12: 10.8 | BE12: 10.8 | BF12: 10.8 | BG12: 10.8 | BH12: 10.9 | BI12: 10.9 | BJ12: 11 | BK12: 11.1 | BL12: 11.1 | BM12: 11.2 | BN12: 11.2 | BO12: 11.2 | BP12: 11.1 | BQ12: 11.1 | BR12: 11 | BS12: 10.9 | BT12: 10.7 | BU12: 10.7 | BV12: 10.6 | BW12: 10.4 | BX12: 10.3 | BY12: 10.2 | BZ12: 10.2 | CA12: 10.1 | CB12: 10.1 | CC12: 10 | CD12: 10 | CE12: 10.1 | CF12: 10.2 | CG12: 10.3 | CH12: 10.3 | CI12: 10.3 | CJ12: 10.4 | CK12: 10.4 | CL12: 10.5 | CM12: 10.5 | CN12: 10.5 | CO12: 10.5 | CP12: 10.4 | CQ12: 10.3 | CR12: 10.2 | CS12: 10.1 | CT12: 10 | CU12: 9.8 | CV12: 9.6 | CW12: 9.5 | CX12: 9.4 | CY12: 9.3 | CZ12: 9.2 | DA12: 9.1 | DB12: 9.1 | DC12: 8.9 | DD12: 8.6 | DE12: 8.4 | DF12: 8.3 | DG12: 8.4 | DH12: 8.4 | DI12: 8.2 | DJ12: 7.8 | DK12: 7.5 | DL12: 7.3 | DM12: 7.5 | DN12: 7.4 | DO12: 7.2 | DP12: 7 | DQ12: 7 | DR12: 7.1 | DS12: 7.3 | DT12: 7.2 | DU12: 6.9 | DV12: 6.4 | DW12: 6.2 | DX12: 6.1 | DY12: 6.3 | DZ12: 6.3 | EA12: 6 | EB12: 5.4 | EC12: 5.4 | ED12: 6 | EE12: 6.8 | EF12: 7.1 | EG12: 7.4 | EH12: 7.6 | EI12: 7.6 | EJ12: 7.6 | EK12: 7.2 | EL12: 7.3 | EM12: 7.4 | EN12: 7.8 | EO12: 7.8 | EP12: 7.8 | EQ12: 7.4 | ER12: 7.3 | ES12: 7.2 | ET12: 7.5 | EU12: 7.6 | EV12: 7.5 | EW12: 7.5 | EX12: 7.3 | EY12: 7.2 | EZ12: 7.1 | FA12: 7.1 | FB12: 7.4 | FC12: 7.5 | FD12: 7.8 | FE12: 8.1 | FF12: 8.6 | FG12: 8.6 | FH12: 8.2 | FI12: 7.3 | FJ12: 7.1 | FK12: 7.5 | FL12: 8.4 | FM12: 8.9 | FN12: 8.8 | FO12: 8.2 | FP12: 7.7 | FQ12: 7.6 | FR12: 7.9 | FS12: 8.2 | FT12: 8.3 | FU12: 8.1 | FV12: 8.2 | FW12: 8.3 | FX12: 8.4 | FY12: 8.3 | FZ12: 8.4 | GA12: 8.1 | GB12: 7.9 | GC12: 7.9 | GD12: 8 | GE12: 8.1 | GF12: 8.2 | GG12: 8.3 | GH12: 8.3 | GI12: 8.1 | GJ12: 7.7 | GK12: 7.5 | GL12: 7.6 | GM12: 7.6 | GN12: 7.7 | GO12: 7.8 | GP12: 7.8 | GQ12: 7.8 | GR12: 7.8 | GS12: 7.9 | GT12: 7.7 | GU12: 7.2 | GV12: 6.6 | GW12: 6.3 | GX12: 6.3 | GY12: 6.7 | GZ12: 6.9 | HA12: 6.9 | HB12: 6.7 | HC12: 6.5 | HD12: 6.4 | HE12: 6.3 | HF12: 6.2 | HG12: 6.4 | HH12: 6.6 | HI12: 6.7 | HJ12: 6.5 | HK12: 6.4 | HL12: 6.5 | HM12: 6.6 | HN12: 6.9 | HO12: 6.9 | HP12: 6.8 | HQ12: 6.4 | HR12: 6.2 | HS12: 6.5 | HT12: 7 | HU12: 7.2 | HV12: 7 | HW12: 6.5 | HX12: 6.4 | HY12: 6.6 | HZ12: 7 | IA12: 7.2 | IB12: 7.3 | IC12: 7.4 | ID12: 7.4 | IE12: 7.5 | IF12: 7.5 | IG12: 7.5 | IH12: 7.3 | II12: 7.1 | IJ12: 6.9 | IK12: 6.5 | IL12: 5.8 | IM12: 5.5 | IN12: 5.6 | IO12: 5.9 | IP12: 6.1 | IQ12: 6.2 | IR12: 6.2 | IS12: 6.3 | IT12: 6.3 | IU12: 6.4 | IV12: 6.4 | IW12: 6.2 | IX12: 6 | IY12: 6 | IZ12: 6.2 | JA12: 6.6 | JB12: 6.8 | JC12: 6.8 | JD12: 6.6 | JE12: 6.5 | JF12: 6.3 | JG12: 6.2 | JH12: 6.3 | JI12: 6.4 | JJ12: 6.7 | JK12: 6.8 | JL12: 6.9 | JM12: 7 | JN12: 7 | JO12: 7 | JP12: 7 | JQ12: 7 | JR12: 6.9 | JS12: 7 | JT12: 7 | JU12: 6.8 | JV12: 6.5 | JW12: 6.3 | JX12: 6.3 | JY12: 6.1 | JZ12: 6.1 | KA12: 6.4 | KB12: 6.9 | KC12: 7.2 | KD12: 7.3 | KE12: 7.2 | KF12: 7.1 | KG12: 7 | KH12: 6.9 | KI12: 6.9 | KJ12: 6.9 | KK12: 6.8 | KL12: 6.8 | KM12: 6.8 | KN12: 6.8 | KO12: 6.7
E13: Bulgaria - Sum of Male< 25 | DJ13: 32.3 | DK13: 33.1 | DL13: 34.1 | DM13: 34.9 | DN13: 35.5 | DO13: 36.1 | DP13: 36.8 | DQ13: 37.2 | DR13: 37.7 | DS13: 38.3 | DT13: 38.8 | DU13: 39.6 | DV13: 40.4 | DW13: 41.2 | DX13: 41.8 | DY13: 42.4 | DZ13: 42.5 | EA13: 42.3 | EB13: 41.7 | EC13: 41 | ED13: 40.1 | EE13: 40.3 | EF13: 40.3 | EG13: 40.1 | EH13: 40 | EI13: 39.6 | EJ13: 39.2 | EK13: 39.8 | EL13: 39.1 | EM13: 38.4 | EN13: 37.9 | EO13: 37.5 | EP13: 37 | EQ13: 36.7 | ER13: 35.7 | ES13: 34.4 | ET13: 33.3 | EU13: 32.2 | EV13: 31.3 | EW13: 30.9 | EX13: 30.4 | EY13: 29.9 | EZ13: 29.6 | FA13: 29.1 | FB13: 28.6 | FC13: 27.7 | FD13: 27.4 | FE13: 27.2 | FF13: 27.2 | FG13: 26.8 | FH13: 26.2 | FI13: 25.3 | FJ13: 24.9 | FK13: 24.9 | FL13: 25.3 | FM13: 25.3 | FN13: 25 | FO13: 24.7 | FP13: 24.3 | FQ13: 23.8 | FR13: 23.2 | FS13: 23.1 | FT13: 23.1 | FU13: 23.3 | FV13: 23.1 | FW13: 22.5 | FX13: 21.7 | FY13: 21.2 | FZ13: 21.2 | GA13: 21.5 | GB13: 21.2 | GC13: 21.1 | GD13: 20.5 | GE13: 20 | GF13: 19.7 | GG13: 19.6 | GH13: 19.1 | GI13: 18.4 | GJ13: 17.8 | GK13: 17.2 | GL13: 16.5 | GM13: 15.7 | GN13: 15.4 | GO13: 15 | GP13: 14.9 | GQ13: 14.6 | GR13: 14.1 | GS13: 13.4 | GT13: 13.4 | GU13: 13.5 | GV13: 13.9 | GW13: 13.9 | GX13: 13.6 | GY13: 13.1 | GZ13: 12.8 | HA13: 12.8 | HB13: 13 | HC13: 13.1 | HD13: 12.9 | HE13: 13 | HF13: 12.9 | HG13: 12.8 | HH13: 12.6 | HI13: 12.6 | HJ13: 12.9 | HK13: 12.9 | HL13: 12.9 | HM13: 13.2 | HN13: 13.5 | HO13: 13.7 | HP13: 14.4 | HQ13: 15.1 | HR13: 15.7 | HS13: 16.4 | HT13: 17.1 | HU13: 17.6 | HV13: 17.9 | HW13: 18.5 | HX13: 19.1 | HY13: 19.8 | HZ13: 20.3 | IA13: 21.1 | IB13: 21.3 | IC13: 21.4 | ID13: 21.6 | IE13: 22 | IF13: 22.5 | IG13: 23 | IH13: 23.8 | II13: 24.7 | IJ13: 25.3 | IK13: 25.6 | IL13: 25.9 | IM13: 25.8 | IN13: 25.9 | IO13: 26.1 | IP13: 26.3 | IQ13: 26.1 | IR13: 25.9 | IS13: 26.2 | IT13: 26.4 | IU13: 26.8 | IV13: 27.5 | IW13: 28.1 | IX13: 28.6 | IY13: 29.2 | IZ13: 29.6 | JA13: 29.7 | JB13: 29.8 | JC13: 29.8 | JD13: 29.4 | JE13: 28.9 | JF13: 28.8 | JG13: 29 | JH13: 29 | JI13: 28.8 | JJ13: 28.9 | JK13: 29 | JL13: 29.2 | JM13: 29.8 | JN13: 29.8 | JO13: 30 | JP13: 30.8 | JQ13: 30.8 | JR13: 30.5 | JS13: 29.7 | JT13: 28.8 | JU13: 28 | JV13: 26.8 | JW13: 25.8 | JX13: 24.8 | JY13: 24.9 | JZ13: 24.2 | KA13: 23.4 | KB13: 23.1 | KC13: 22.8 | KD13: 23 | KE13: 23.2 | KF13: 23.4 | KG13: 22.9 | KH13: 22.4 | KI13: 21.9 | KJ13: 21.8 | KK13: 21.6 | KL13: 21.5 | KM13: 21.5 | KN13: 21.2 | KO13: 20.9
E14: Bulgaria - Sum of Male 25-74 | DJ14: 12.2 | DK14: 12.7 | DL14: 13.2 | DM14: 13.6 | DN14: 13.9 | DO14: 14.2 | DP14: 14.6 | DQ14: 15 | DR14: 15.3 | DS14: 15.6 | DT14: 15.8 | DU14: 16.1 | DV14: 16.5 | DW14: 16.9 | DX14: 17.4 | DY14: 17.9 | DZ14: 18.2 | EA14: 18.1 | EB14: 17.9 | EC14: 17.7 | ED14: 17.6 | EE14: 17.5 | EF14: 17.8 | EG14: 17.8 | EH14: 17.8 | EI14: 17.5 | EJ14: 17.1 | EK14: 16.9 | EL14: 16.7 | EM14: 16.6 | EN14: 16.8 | EO14: 16.7 | EP14: 16.5 | EQ14: 16.1 | ER14: 15.3 | ES14: 14.3 | ET14: 14.5 | EU14: 13.6 | EV14: 13.3 | EW14: 13.1 | EX14: 12.9 | EY14: 12.6 | EZ14: 12.1 | FA14: 11.7 | FB14: 11.4 | FC14: 11 | FD14: 11.1 | FE14: 11.2 | FF14: 11.6 | FG14: 11.6 | FH14: 11.5 | FI14: 11.5 | FJ14: 11.3 | FK14: 11.1 | FL14: 10.8 | FM14: 10.7 | FN14: 10.7 | FO14: 10.8 | FP14: 10.8 | FQ14: 10.6 | FR14: 10.2 | FS14: 9.8 | FT14: 9.6 | FU14: 9.3 | FV14: 9 | FW14: 8.9 | FX14: 8.7 | FY14: 8.6 | FZ14: 8.6 | GA14: 8.7 | GB14: 8.5 | GC14: 8.4 | GD14: 8.2 | GE14: 7.8 | GF14: 7.6 | GG14: 7.6 | GH14: 7.6 | GI14: 7.7 | GJ14: 7.9 | GK14: 7.9 | GL14: 7.8 | GM14: 7.5 | GN14: 7.4 | GO14: 7.1 | GP14: 6.6 | GQ14: 6.3 | GR14: 6.2 | GS14: 6.3 | GT14: 6.3 | GU14: 6.2 | GV14: 5.9 | GW14: 5.6 | GX14: 5.4 | GY14: 5.2 | GZ14: 4.9 | HA14: 4.9 | HB14: 5 | HC14: 5 | HD14: 4.9 | HE14: 4.7 | HF14: 4.7 | HG14: 4.8 | HH14: 4.8 | HI14: 4.8 | HJ14: 4.7 | HK14: 4.4 | HL14: 4.2 | HM14: 4.4 | HN14: 4.6 | HO14: 4.9 | HP14: 5.2 | HQ14: 5 | HR14: 5.2 | HS14: 5.6 | HT14: 6.1 | HU14: 6.5 | HV14: 6.8 | HW14: 6.9 | HX14: 7.3 | HY14: 7.6 | HZ14: 8.1 | IA14: 8.7 | IB14: 9.1 | IC14: 9.3 | ID14: 9.5 | IE14: 9.6 | IF14: 9.7 | IG14: 9.9 | IH14: 10.2 | II14: 10.5 | IJ14: 10.7 | IK14: 10.8 | IL14: 10.9 | IM14: 10.8 | IN14: 10.8 | IO14: 10.9 | IP14: 11 | IQ14: 10.9 | IR14: 10.8 | IS14: 10.9 | IT14: 11 | IU14: 11.2 | IV14: 11.5 | IW14: 11.7 | IX14: 11.7 | IY14: 11.8 | IZ14: 11.8 | JA14: 12 | JB14: 12.1 | JC14: 12.3 | JD14: 12.6 | JE14: 12.5 | JF14: 12.3 | JG14: 12 | JH14: 12 | JI14: 12.1 | JJ14: 12.6 | JK14: 12.8 | JL14: 12.9 | JM14: 12.9 | JN14: 12.6 | JO14: 12.5 | JP14: 12.3 | JQ14: 12.1 | JR14: 12.3 | JS14: 12.6 | JT14: 12.7 | JU14: 12.6 | JV14: 12.2 | JW14: 11.9 | JX14: 11.9 | JY14: 11.7 | JZ14: 11.6 | KA14: 11.5 | KB14: 11.6 | KC14: 11.6 | KD14: 11.5 | KE14: 11.1 | KF14: 10.7 | KG14: 10.2 | KH14: 9.9 | KI14: 9.8 | KJ14: 9.9 | KK14: 10 | KL14: 10.1 | KM14: 10.2 | KN14: 10 | KO14: 10
E15: Bulgaria - Sum of Female<25 | DJ15: 28 | DK15: 28.4 | DL15: 29 | DM15: 29.7 | DN15: 30.1 | DO15: 30.6 | DP15: 31.1 | DQ15: 31.5 | DR15: 31.8 | DS15: 32.3 | DT15: 32.9 | DU15: 33.5 | DV15: 34 | DW15: 34.5 | DX15: 34.7 | DY15: 34.6 | DZ15: 34.6 | EA15: 34.6 | EB15: 35.1 | EC15: 35.1 | ED15: 34.6 | EE15: 33.9 | EF15: 33.8 | EG15: 33.9 | EH15: 35.5 | EI15: 35.7 | EJ15: 33.9 | EK15: 32 | EL15: 30.1 | EM15: 29.4 | EN15: 31 | EO15: 31.8 | EP15: 31.7 | EQ15: 30.4 | ER15: 28.5 | ES15: 26.5 | ET15: 26.1 | EU15: 24.9 | EV15: 24.1 | EW15: 23.8 | EX15: 23.7 | EY15: 23.3 | EZ15: 22.5 | FA15: 21.9 | FB15: 21.9 | FC15: 22.5 | FD15: 22.3 | FE15: 21.8 | FF15: 21.5 | FG15: 21.3 | FH15: 21.9 | FI15: 23 | FJ15: 23.5 | FK15: 23.4 | FL15: 22.7 | FM15: 22.4 | FN15: 22.7 | FO15: 24.2 | FP15: 23.7 | FQ15: 22.7 | FR15: 21.3 | FS15: 20.4 | FT15: 20.3 | FU15: 20.6 | FV15: 20.6 | FW15: 20 | FX15: 19.2 | FY15: 18.6 | FZ15: 18.4 | GA15: 18.7 | GB15: 18.7 | GC15: 18.8 | GD15: 18.7 | GE15: 18.8 | GF15: 19.1 | GG15: 19.4 | GH15: 19.6 | GI15: 19.7 | GJ15: 19.7 | GK15: 19.4 | GL15: 18.8 | GM15: 18.4 | GN15: 18.1 | GO15: 17.4 | GP15: 16.1 | GQ15: 14.4 | GR15: 12.8 | GS15: 11.2 | GT15: 11.7 | GU15: 13.6 | GV15: 16.5 | GW15: 18.1 | GX15: 18 | GY15: 16.6 | GZ15: 15 | HA15: 14.1 | HB15: 12.9 | HC15: 12.1 | HD15: 11.8 | HE15: 12.3 | HF15: 12 | HG15: 10.8 | HH15: 8.5 | HI15: 7.6 | HJ15: 8.1 | HK15: 9.7 | HL15: 10.1 | HM15: 10.6 | HN15: 9.8 | HO15: 9.7 | HP15: 10.2 | HQ15: 11.3 | HR15: 12.4 | HS15: 13.4 | HT15: 14.4 | HU15: 15 | HV15: 15.2 | HW15: 14.4 | HX15: 14.5 | HY15: 15.9 | HZ15: 18 | IA15: 19.8 | IB15: 20.2 | IC15: 19.8 | ID15: 19.7 | IE15: 20.3 | IF15: 21.4 | IG15: 21.7 | IH15: 21.4 | II15: 20.6 | IJ15: 20.4 | IK15: 20.6 | IL15: 21.8 | IM15: 22.5 | IN15: 23.2 | IO15: 23.8 | IP15: 24.1 | IQ15: 24.3 | IR15: 23.8 | IS15: 23.4 | IT15: 23.2 | IU15: 23.7 | IV15: 24.5 | IW15: 25.5 | IX15: 27 | IY15: 27.7 | IZ15: 27.6 | JA15: 26.7 | JB15: 25.8 | JC15: 24.7 | JD15: 23 | JE15: 22.4 | JF15: 23.8 | JG15: 27 | JH15: 28.5 | JI15: 28 | JJ15: 26.9 | JK15: 26.5 | JL15: 27.2 | JM15: 28.5 | JN15: 28 | JO15: 26.7 | JP15: 25 | JQ15: 23.3 | JR15: 23 | JS15: 23.9 | JT15: 23.9 | JU15: 24.6 | JV15: 25.5 | JW15: 25.9 | JX15: 26.2 | JY15: 24.8 | JZ15: 24 | KA15: 23.2 | KB15: 22.7 | KC15: 22.3 | KD15: 23 | KE15: 22.4 | KF15: 22.2 | KG15: 21.9 | KH15: 22.2 | KI15: 22.8 | KJ15: 23.7 | KK15: 23.4 | KL15: 23.2 | KM15: 22.7 | KN15: 22 | KO15: 22
E16: Bulgaria - Sum of Female25-74 | DJ16: 12.8 | DK16: 13.1 | DL16: 13.6 | DM16: 14 | DN16: 14.2 | DO16: 14.5 | DP16: 15 | DQ16: 15.4 | DR16: 15.6 | DS16: 15.7 | DT16: 15.7 | DU16: 15.8 | DV16: 15.9 | DW16: 16 | DX16: 16.3 | DY16: 16.7 | DZ16: 16.9 | EA16: 17 | EB16: 16.9 | EC16: 16.9 | ED16: 16.8 | EE16: 16.8 | EF16: 16.9 | EG16: 16.8 | EH16: 16.7 | EI16: 16.6 | EJ16: 16.5 | EK16: 16.6 | EL16: 16.5 | EM16: 16.2 | EN16: 16 | EO16: 15.8 | EP16: 15.6 | EQ16: 15.5 | ER16: 14.8 | ES16: 14 | ET16: 13.9 | EU16: 13.1 | EV16: 12.9 | EW16: 12.7 | EX16: 12.6 | EY16: 12.6 | EZ16: 12.4 | FA16: 12.2 | FB16: 11.9 | FC16: 11.5 | FD16: 11.4 | FE16: 11.4 | FF16: 11.5 | FG16: 11.5 | FH16: 11.4 | FI16: 11.2 | FJ16: 10.9 | FK16: 10.5 | FL16: 10 | FM16: 9.7 | FN16: 9.7 | FO16: 9.9 | FP16: 9.9 | FQ16: 9.8 | FR16: 9.6 | FS16: 9.5 | FT16: 9.3 | FU16: 9.1 | FV16: 9 | FW16: 8.8 | FX16: 8.7 | FY16: 8.7 | FZ16: 8.8 | GA16: 9 | GB16: 9 | GC16: 8.9 | GD16: 8.8 | GE16: 8.6 | GF16: 8.5 | GG16: 8.5 | GH16: 8.6 | GI16: 8.7 | GJ16: 8.9 | GK16: 8.8 | GL16: 8.5 | GM16: 8.1 | GN16: 7.9 | GO16: 7.8 | GP16: 7.7 | GQ16: 7.5 | GR16: 7.2 | GS16: 6.8 | GT16: 6.6 | GU16: 6.6 | GV16: 6.7 | GW16: 6.7 | GX16: 6.6 | GY16: 6.3 | GZ16: 6 | HA16: 5.9 | HB16: 5.9 | HC16: 5.8 | HD16: 5.7 | HE16: 5.7 | HF16: 5.7 | HG16: 5.6 | HH16: 5.6 | HI16: 5.4 | HJ16: 5.2 | HK16: 4.9 | HL16: 4.8 | HM16: 5 | HN16: 5.1 | HO16: 5.4 | HP16: 5.7 | HQ16: 5.8 | HR16: 5.9 | HS16: 6.2 | HT16: 6.3 | HU16: 6.5 | HV16: 6.6 | HW16: 6.8 | HX16: 7 | HY16: 7.3 | HZ16: 7.8 | IA16: 8.2 | IB16: 8.5 | IC16: 8.7 | ID16: 8.8 | IE16: 8.6 | IF16: 8.4 | IG16: 8.5 | IH16: 8.9 | II16: 9.4 | IJ16: 9.8 | IK16: 9.8 | IL16: 9.6 | IM16: 9.4 | IN16: 9.2 | IO16: 9.2 | IP16: 9.2 | IQ16: 9.1 | IR16: 9.1 | IS16: 9.1 | IT16: 9 | IU16: 8.9 | IV16: 8.9 | IW16: 9 | IX16: 9 | IY16: 9.2 | IZ16: 9.4 | JA16: 9.6 | JB16: 9.8 | JC16: 9.9 | JD16: 10 | JE16: 9.9 | JF16: 10 | JG16: 10.1 | JH16: 10.2 | JI16: 10.3 | JJ16: 10.5 | JK16: 10.6 | JL16: 10.7 | JM16: 10.8 | JN16: 10.8 | JO16: 10.9 | JP16: 11.1 | JQ16: 11.2 | JR16: 11.3 | JS16: 11.3 | JT16: 11.2 | JU16: 11.1 | JV16: 10.8 | JW16: 10.6 | JX16: 10.5 | JY16: 9.8 | JZ16: 9.6 | KA16: 9.5 | KB16: 9.7 | KC16: 9.7 | KD16: 9.5 | KE16: 9.2 | KF16: 8.9 | KG16: 8.6 | KH16: 8.5 | KI16: 8.4 | KJ16: 8.4 | KK16: 8.4 | KL16: 8.3 | KM16: 8.2 | KN16: 8 | KO16: 7.9
E17: Croatia - Sum of Male< 25 | DJ17: 32.8 | DK17: 32.8 | DL17: 32.8 | DM17: 33.2 | DN17: 33.2 | DO17: 33.2 | DP17: 35.5 | DQ17: 35.5 | DR17: 35.5 | DS17: 38 | DT17: 38 | DU17: 38 | DV17: 38.9 | DW17: 38.9 | DX17: 38.9 | DY17: 39.8 | DZ17: 39.8 | EA17: 39.8 | EB17: 38.9 | EC17: 38.9 | ED17: 38.9 | EE17: 38.6 | EF17: 38.6 | EG17: 38.6 | EH17: 37 | EI17: 37 | EJ17: 37 | EK17: 35.3 | EL17: 35.3 | EM17: 35.3 | EN17: 34.5 | EO17: 34.5 | EP17: 34.5 | EQ17: 33.4 | ER17: 33.4 | ES17: 33.4 | ET17: 33.7 | EU17: 33.7 | EV17: 33.7 | EW17: 33.8 | EX17: 33.8 | EY17: 33.8 | EZ17: 33 | FA17: 33 | FB17: 33 | FC17: 32.8 | FD17: 32.8 | FE17: 32.8 | FF17: 31.5 | FG17: 31.5 | FH17: 31.5 | FI17: 29.5 | FJ17: 29.5 | FK17: 29.5 | FL17: 29 | FM17: 29 | FN17: 29 | FO17: 28.6 | FP17: 28.6 | FQ17: 28.6 | FR17: 29.3 | FS17: 29.3 | FT17: 29.3 | FU17: 30.2 | FV17: 30.2 | FW17: 30.2 | FX17: 29.7 | FY17: 29.7 | FZ17: 29.7 | GA17: 28.4 | GB17: 28.4 | GC17: 28.4 | GD17: 27.5 | GE17: 27.5 | GF17: 27.5 | GG17: 26.9 | GH17: 26.9 | GI17: 26.9 | GJ17: 26.1 | GK17: 26.1 | GL17: 26.1 | GM17: 25.9 | GN17: 25.9 | GO17: 25.9 | GP17: 22.6 | GQ17: 22.6 | GR17: 22.6 | GS17: 21.5 | GT17: 21.5 | GU17: 21.5 | GV17: 20.6 | GW17: 20.6 | GX17: 20.6 | GY17: 20.3 | GZ17: 20.3 | HA17: 20.3 | HB17: 20 | HC17: 20 | HD17: 20 | HE17: 18.7 | HF17: 18.7 | HG17: 18.7 | HH17: 18.7 | HI17: 18.7 | HJ17: 18.7 | HK17: 18.1 | HL17: 18.1 | HM17: 18.1 | HN17: 21.6 | HO17: 21.6 | HP17: 21.6 | HQ17: 22.6 | HR17: 22.6 | HS17: 22.6 | HT17: 24.7 | HU17: 24.7 | HV17: 24.7 | HW17: 23.4 | HX17: 23.4 | HY17: 23.4 | HZ17: 26.3 | IA17: 26.3 | IB17: 26.3 | IC17: 31.3 | ID17: 31.3 | IE17: 31.3 | IF17: 31.3 | IG17: 31.3 | IH17: 31.3 | II17: 35.4 | IJ17: 35.4 | IK17: 35.4 | IL17: 36.4 | IM17: 36.4 | IN17: 36.4 | IO17: 35.3 | IP17: 35.3 | IQ17: 35.3 | IR17: 35.2 | IS17: 35.2 | IT17: 35.2 | IU17: 35.1 | IV17: 35.1 | IW17: 35.1 | IX17: 37.9 | IY17: 37.9 | IZ17: 37.9 | JA17: 38.8 | JB17: 38.8 | JC17: 38.8 | JD17: 43.6 | JE17: 43.6 | JF17: 43.6 | JG17: 47.9 | JH17: 47.9 | JI17: 47.9 | JJ17: 49.4 | JK17: 49.4 | JL17: 49.4 | JM17: 51.5 | JN17: 51.5 | JO17: 51.5 | JP17: 50.1 | JQ17: 50.1 | JR17: 50.1 | JS17: 48.4 | JT17: 48.4 | JU17: 48.4 | JV17: 45.7 | JW17: 45.7 | JX17: 45.7 | JY17: 44.7 | JZ17: 44.7 | KA17: 44.7 | KB17: 44.5 | KC17: 44.5 | KD17: 44.5 | KE17: 44.9 | KF17: 44.9 | KG17: 44.9 | KH17: 43.9 | KI17: 43.9 | KJ17: 43.9 | KK17: 43.9 | KL17: 43.9 | KM17: 43.9
E18: Croatia - Sum of Male 25-74 | DJ18: 10.1 | DK18: 10.7 | DL18: 11.1 | DM18: 11.6 | DN18: 11.9 | DO18: 12 | DP18: 12.2 | DQ18: 12.3 | DR18: 12.3 | DS18: 12.1 | DT18: 12 | DU18: 11.9 | DV18: 11.8 | DW18: 11.5 | DX18: 11.2 | DY18: 10.7 | DZ18: 10.4 | EA18: 10.2 | EB18: 10.1 | EC18: 10.1 | ED18: 10.2 | EE18: 10.3 | EF18: 10.3 | EG18: 10.4 | EH18: 10.4 | EI18: 10.2 | EJ18: 10.1 | EK18: 10.1 | EL18: 10.2 | EM18: 10.3 | EN18: 10.5 | EO18: 10.5 | EP18: 10.4 | EQ18: 10.3 | ER18: 10.1 | ES18: 10 | ET18: 9.8 | EU18: 9.7 | EV18: 9.5 | EW18: 9.5 | EX18: 9.7 | EY18: 9.8 | EZ18: 10 | FA18: 10.1 | FB18: 10.2 | FC18: 10.3 | FD18: 10.4 | FE18: 10.3 | FF18: 10.1 | FG18: 10 | FH18: 9.9 | FI18: 10 | FJ18: 10 | FK18: 10.1 | FL18: 10.3 | FM18: 10.4 | FN18: 10.3 | FO18: 9.9 | FP18: 9.6 | FQ18: 9.4 | FR18: 9.3 | FS18: 9.3 | FT18: 9.4 | FU18: 9.7 | FV18: 9.9 | FW18: 9.9 | FX18: 9.8 | FY18: 9.6 | FZ18: 9.3 | GA18: 8.9 | GB18: 8.7 | GC18: 8.6 | GD18: 8.6 | GE18: 8.6 | GF18: 8.6 | GG18: 8.7 | GH18: 8.6 | GI18: 8.4 | GJ18: 8.2 | GK18: 7.9 | GL18: 7.7 | GM18: 7.5 | GN18: 7.4 | GO18: 7.4 | GP18: 7.6 | GQ18: 7.7 | GR18: 7.7 | GS18: 7.6 | GT18: 7.4 | GU18: 6.9 | GV18: 7.5 | GW18: 7.2 | GX18: 6.4 | GY18: 6.9 | GZ18: 7.3 | HA18: 7.4 | HB18: 7.2 | HC18: 6.9 | HD18: 6.5 | HE18: 6 | HF18: 5.7 | HG18: 5.6 | HH18: 5.5 | HI18: 5.6 | HJ18: 5.9 | HK18: 6.4 | HL18: 6.7 | HM18: 6.6 | HN18: 6.1 | HO18: 5.9 | HP18: 6 | HQ18: 6.2 | HR18: 6.6 | HS18: 6.9 | HT18: 7.2 | HU18: 7.4 | HV18: 7.4 | HW18: 7.2 | HX18: 7.2 | HY18: 7.3 | HZ18: 7.7 | IA18: 8.2 | IB18: 8.8 | IC18: 9.4 | ID18: 9.7 | IE18: 9.8 | IF18: 9.7 | IG18: 9.7 | IH18: 9.8 | II18: 9.9 | IJ18: 10.1 | IK18: 10.6 | IL18: 11.2 | IM18: 11.5 | IN18: 11.6 | IO18: 11.4 | IP18: 11.5 | IQ18: 11.6 | IR18: 11.7 | IS18: 11.7 | IT18: 11.5 | IU18: 11.5 | IV18: 11.8 | IW18: 12.3 | IX18: 13.1 | IY18: 13.6 | IZ18: 13.6 | JA18: 13.2 | JB18: 12.9 | JC18: 12.8 | JD18: 12.9 | JE18: 13.1 | JF18: 13.5 | JG18: 14.1 | JH18: 14.5 | JI18: 14.5 | JJ18: 14.1 | JK18: 13.8 | JL18: 14 | JM18: 14.5 | JN18: 14.8 | JO18: 15.1 | JP18: 15.4 | JQ18: 15.4 | JR18: 15.2 | JS18: 14.7 | JT18: 14.3 | JU18: 13.8 | JV18: 13.5 | JW18: 13.3 | JX18: 12.8 | JY18: 13 | JZ18: 12.9 | KA18: 12.8 | KB18: 12.8 | KC18: 13.1 | KD18: 13.5 | KE18: 14.1 | KF18: 14.6 | KG18: 14.7 | KH18: 14.7 | KI18: 14.5 | KJ18: 14.1 | KK18: 13.7 | KL18: 13.3 | KM18: 13 | KN18: 12.6 | KO18: 12.6
E19: Croatia - Sum of Female<25 | DJ19: 38.5 | DK19: 38.5 | DL19: 38.5 | DM19: 38.1 | DN19: 38.1 | DO19: 38.1 | DP19: 40.2 | DQ19: 40.2 | DR19: 40.2 | DS19: 41.8 | DT19: 41.8 | DU19: 41.8 | DV19: 41.1 | DW19: 41.1 | DX19: 41.1 | DY19: 43.7 | DZ19: 43.7 | EA19: 43.7 | EB19: 40.9 | EC19: 40.9 | ED19: 40.9 | EE19: 40.3 | EF19: 40.3 | EG19: 40.3 | EH19: 39.3 | EI19: 39.3 | EJ19: 39.3 | EK19: 37.3 | EL19: 37.3 | EM19: 37.3 | EN19: 35.2 | EO19: 35.2 | EP19: 35.2 | EQ19: 33.1 | ER19: 33.1 | ES19: 33.1 | ET19: 34.8 | EU19: 34.8 | EV19: 34.8 | EW19: 37 | EX19: 37 | EY19: 37 | EZ19: 36.5 | FA19: 36.5 | FB19: 36.5 | FC19: 36.7 | FD19: 36.7 | FE19: 36.7 | FF19: 36.7 | FG19: 36.7 | FH19: 36.7 | FI19: 36.8 | FJ19: 36.8 | FK19: 36.8 | FL19: 37.5 | FM19: 37.5 | FN19: 37.5 | FO19: 37.7 | FP19: 37.7 | FQ19: 37.7 | FR19: 36.2 | FS19: 36.2 | FT19: 36.2 | FU19: 35.8 | FV19: 35.8 | FW19: 35.8 | FX19: 34.9 | FY19: 34.9 | FZ19: 34.9 | GA19: 33.7 | GB19: 33.7 | GC19: 33.7 | GD19: 33.1 | GE19: 33.1 | GF19: 33.1 | GG19: 32.7 | GH19: 32.7 | GI19: 32.7 | GJ19: 31.8 | GK19: 31.8 | GL19: 31.8 | GM19: 29.5 | GN19: 29.5 | GO19: 29.5 | GP19: 29.3 | GQ19: 29.3 | GR19: 29.3 | GS19: 27.5 | GT19: 27.5 | GU19: 27.5 | GV19: 28 | GW19: 28 | GX19: 28 | GY19: 28.4 | GZ19: 28.4 | HA19: 28.4 | HB19: 28.1 | HC19: 28.1 | HD19: 28.1 | HE19: 25.9 | HF19: 25.9 | HG19: 25.9 | HH19: 26.1 | HI19: 26.1 | HJ19: 26.1 | HK19: 28.3 | HL19: 28.3 | HM19: 28.3 | HN19: 28.9 | HO19: 28.9 | HP19: 28.9 | HQ19: 27.3 | HR19: 27.3 | HS19: 27.3 | HT19: 28 | HU19: 28 | HV19: 28 | HW19: 29.4 | HX19: 29.4 | HY19: 29.4 | HZ19: 29 | IA19: 29 | IB19: 29 | IC19: 37.4 | ID19: 37.4 | IE19: 37.4 | IF19: 38.2 | IG19: 38.2 | IH19: 38.2 | II19: 37.2 | IJ19: 37.2 | IK19: 37.2 | IL19: 35.8 | IM19: 35.8 | IN19: 35.8 | IO19: 38.2 | IP19: 38.2 | IQ19: 38.2 | IR19: 38.7 | IS19: 38.7 | IT19: 38.7 | IU19: 36.7 | IV19: 36.7 | IW19: 36.7 | IX19: 40.3 | IY19: 40.3 | IZ19: 40.3 | JA19: 40.5 | JB19: 40.5 | JC19: 40.5 | JD19: 46.3 | JE19: 46.3 | JF19: 46.3 | JG19: 50.1 | JH19: 50.1 | JI19: 50.1 | JJ19: 52 | JK19: 52 | JL19: 52 | JM19: 51.9 | JN19: 51.9 | JO19: 51.9 | JP19: 48.9 | JQ19: 48.9 | JR19: 48.9 | JS19: 47.7 | JT19: 47.7 | JU19: 47.7 | JV19: 43.9 | JW19: 43.9 | JX19: 43.9 | JY19: 45.5 | JZ19: 45.5 | KA19: 45.5 | KB19: 46.9 | KC19: 46.9 | KD19: 46.9 | KE19: 45.9 | KF19: 45.9 | KG19: 45.9 | KH19: 43 | KI19: 43 | KJ19: 43 | KK19: 43 | KL19: 43 | KM19: 43
E20: Croatia - Sum of Female25-74 | DJ20: 11.6 | DK20: 12.2 | DL20: 12.6 | DM20: 13 | DN20: 13.4 | DO20: 13.6 | DP20: 14 | DQ20: 14.3 | DR20: 14.5 | DS20: 14.4 | DT20: 14.3 | DU20: 14.1 | DV20: 14 | DW20: 13.8 | DX20: 13.5 | DY20: 13.2 | DZ20: 13.1 | EA20: 13.1 | EB20: 13.3 | EC20: 13.6 | ED20: 14.1 | EE20: 14.7 | EF20: 15 | EG20: 15.2 | EH20: 15 | EI20: 14.8 | EJ20: 14.7 | EK20: 14.8 | EL20: 14.7 | EM20: 14.6 | EN20: 14.4 | EO20: 14.1 | EP20: 13.7 | EQ20: 13.4 | ER20: 13.2 | ES20: 13.1 | ET20: 13.1 | EU20: 13 | EV20: 13 | EW20: 13 | EX20: 13.2 | EY20: 13.2 | EZ20: 13 | FA20: 12.8 | FB20: 12.8 | FC20: 12.8 | FD20: 12.9 | FE20: 12.9 | FF20: 12.9 | FG20: 13 | FH20: 13 | FI20: 13 | FJ20: 13 | FK20: 13.1 | FL20: 13.1 | FM20: 13.1 | FN20: 13.2 | FO20: 13.3 | FP20: 13.2 | FQ20: 13.1 | FR20: 12.8 | FS20: 12.6 | FT20: 12.2 | FU20: 12 | FV20: 11.8 | FW20: 11.7 | FX20: 11.6 | FY20: 11.5 | FZ20: 11.6 | GA20: 11.6 | GB20: 11.7 | GC20: 11.7 | GD20: 11.8 | GE20: 11.9 | GF20: 12.1 | GG20: 12.3 | GH20: 12.2 | GI20: 11.9 | GJ20: 11.4 | GK20: 11 | GL20: 10.6 | GM20: 10.2 | GN20: 10.1 | GO20: 10.3 | GP20: 10.9 | GQ20: 11 | GR20: 10.6 | GS20: 9.8 | GT20: 9.2 | GU20: 9 | GV20: 9.1 | GW20: 9.3 | GX20: 9.6 | GY20: 9.8 | GZ20: 9.9 | HA20: 9.9 | HB20: 9.7 | HC20: 9.5 | HD20: 9.4 | HE20: 9.2 | HF20: 9 | HG20: 8.7 | HH20: 8.3 | HI20: 8.2 | HJ20: 8.5 | HK20: 9 | HL20: 9.3 | HM20: 9.5 | HN20: 9.4 | HO20: 9.3 | HP20: 9.3 | HQ20: 9.4 | HR20: 9.4 | HS20: 9.4 | HT20: 9.4 | HU20: 9.4 | HV20: 9.4 | HW20: 9.5 | HX20: 9.5 | HY20: 9.5 | HZ20: 9.7 | IA20: 10 | IB20: 10.4 | IC20: 11 | ID20: 11.5 | IE20: 11.8 | IF20: 12 | IG20: 11.9 | IH20: 11.4 | II20: 10.6 | IJ20: 10.2 | IK20: 10.2 | IL20: 10.7 | IM20: 11.1 | IN20: 11.6 | IO20: 12.1 | IP20: 12.6 | IQ20: 12.5 | IR20: 12.1 | IS20: 11.9 | IT20: 11.7 | IU20: 12.1 | IV20: 12.3 | IW20: 12.5 | IX20: 12.6 | IY20: 12.7 | IZ20: 12.9 | JA20: 13.4 | JB20: 13.5 | JC20: 13.6 | JD20: 13.8 | JE20: 14 | JF20: 14.4 | JG20: 15.4 | JH20: 15.6 | JI20: 15.1 | JJ20: 14 | JK20: 13.2 | JL20: 12.7 | JM20: 12.9 | JN20: 13.2 | JO20: 14 | JP20: 15.3 | JQ20: 15.8 | JR20: 15.6 | JS20: 15 | JT20: 14.8 | JU20: 14.9 | JV20: 15.7 | JW20: 16.4 | JX20: 16.7 | JY20: 16.3 | JZ20: 16.1 | KA20: 15.7 | KB20: 15.4 | KC20: 15.2 | KD20: 15.1 | KE20: 15.7 | KF20: 15.9 | KG20: 15.7 | KH20: 15.3 | KI20: 14.9 | KJ20: 14.6 | KK20: 14.3 | KL20: 14.1 | KM20: 14 | KN20: 13.8 | KO20: 13.7
E21: Cyprus - Sum of Male< 25 | DJ21: 6.5 | DK21: 6.5 | DL21: 6.5 | DM21: 6.8 | DN21: 6.8 | DO21: 6.8 | DP21: 6.5 | DQ21: 6.5 | DR21: 6.5 | DS21: 6.3 | DT21: 6.3 | DU21: 6.3 | DV21: 5.9 | DW21: 5.9 | DX21: 5.9 | DY21: 6 | DZ21: 6 | EA21: 6 | EB21: 6.4 | EC21: 6.4 | ED21: 6.4 | EE21: 6.8 | EF21: 6.8 | EG21: 6.8 | EH21: 7.2 | EI21: 7.2 | EJ21: 7.2 | EK21: 8 | EL21: 8 | EM21: 8 | EN21: 8.2 | EO21: 8.2 | EP21: 8.2 | EQ21: 8.3 | ER21: 8.3 | ES21: 8.3 | ET21: 8.4 | EU21: 8.4 | EV21: 8.4 | EW21: 9.2 | EX21: 9.2 | EY21: 9.2 | EZ21: 8.7 | FA21: 8.7 | FB21: 8.7 | FC21: 8.2 | FD21: 8.2 | FE21: 8.2 | FF21: 7.7 | FG21: 7.7 | FH21: 7.7 | FI21: 8.1 | FJ21: 8.1 | FK21: 8.1 | FL21: 10.3 | FM21: 10.3 | FN21: 10.3 | FO21: 9.4 | FP21: 9.4 | FQ21: 9.4 | FR21: 11.9 | FS21: 11.9 | FT21: 11.9 | FU21: 12.5 | FV21: 12.5 | FW21: 12.5 | FX21: 12.5 | FY21: 12.5 | FZ21: 12.5 | GA21: 15.3 | GB21: 15.3 | GC21: 15.3 | GD21: 11.5 | GE21: 11.5 | GF21: 11.5 | GG21: 8.5 | GH21: 8.5 | GI21: 8.5 | GJ21: 5.9 | GK21: 5.9 | GL21: 5.9 | GM21: 9.1 | GN21: 9.1 | GO21: 9.1 | GP21: 10.3 | GQ21: 10.3 | GR21: 10.3 | GS21: 12.1 | GT21: 12.1 | GU21: 12.1 | GV21: 10.9 | GW21: 10.9 | GX21: 10.9 | GY21: 10.4 | GZ21: 10.4 | HA21: 10.4 | HB21: 11.8 | HC21: 11.8 | HD21: 11.8 | HE21: 6 | HF21: 6 | HG21: 6 | HH21: 7.4 | HI21: 7.4 | HJ21: 7.4 | HK21: 8.7 | HL21: 8.7 | HM21: 8.7 | HN21: 8.4 | HO21: 8.4 | HP21: 8.4 | HQ21: 13 | HR21: 13 | HS21: 13 | HT21: 16.9 | HU21: 16.9 | HV21: 16.9 | HW21: 16.5 | HX21: 16.5 | HY21: 16.5 | HZ21: 18.9 | IA21: 18.9 | IB21: 18.9 | IC21: 17.8 | ID21: 17.8 | IE21: 17.8 | IF21: 14.1 | IG21: 14.1 | IH21: 14.1 | II21: 12.4 | IJ21: 12.4 | IK21: 12.4 | IL21: 19.8 | IM21: 19.8 | IN21: 19.8 | IO21: 21.9 | IP21: 21.9 | IQ21: 21.9 | IR21: 23.7 | IS21: 23.7 | IT21: 23.7 | IU21: 26.7 | IV21: 26.7 | IW21: 26.7 | IX21: 25.7 | IY21: 25.7 | IZ21: 25.7 | JA21: 27.9 | JB21: 27.9 | JC21: 27.9 | JD21: 27.7 | JE21: 27.7 | JF21: 27.7 | JG21: 33 | JH21: 33 | JI21: 33 | JJ21: 36.4 | JK21: 36.4 | JL21: 36.4 | JM21: 40.9 | JN21: 40.9 | JO21: 40.9 | JP21: 43 | JQ21: 43 | JR21: 43 | JS21: 43 | JT21: 43 | JU21: 43 | JV21: 37.6 | JW21: 37.6 | JX21: 37.6 | JY21: 38 | JZ21: 38 | KA21: 38 | KB21: 37.4 | KC21: 37.4 | KD21: 37.4 | KE21: 36.3 | KF21: 36.3 | KG21: 36.3 | KH21: 39.3 | KI21: 39.3 | KJ21: 39.3 | KK21: 35.8 | KL21: 35.8 | KM21: 35.8
E22: Cyprus - Sum of Male 25-74 | DJ22: 2.7 | DK22: 2.8 | DL22: 3 | DM22: 3 | DN22: 2.9 | DO22: 2.8 | DP22: 2.7 | DQ22: 2.8 | DR22: 2.8 | DS22: 2.7 | DT22: 2.6 | DU22: 2.5 | DV22: 2.4 | DW22: 2.2 | DX22: 2.2 | DY22: 2.2 | DZ22: 2.3 | EA22: 2.4 | EB22: 2.3 | EC22: 2.3 | ED22: 2.3 | EE22: 2.3 | EF22: 2.3 | EG22: 2.1 | EH22: 2.1 | EI22: 2 | EJ22: 1.9 | EK22: 2 | EL22: 2.1 | EM22: 2.2 | EN22: 2.3 | EO22: 2.5 | EP22: 2.6 | EQ22: 2.7 | ER22: 2.8 | ES22: 2.8 | ET22: 2.7 | EU22: 2.7 | EV22: 2.9 | EW22: 3.3 | EX22: 3.3 | EY22: 3.3 | EZ22: 3.4 | FA22: 3.2 | FB22: 3.2 | FC22: 3.3 | FD22: 3.3 | FE22: 3.2 | FF22: 2.9 | FG22: 2.8 | FH22: 2.9 | FI22: 3.1 | FJ22: 3.1 | FK22: 3 | FL22: 2.9 | FM22: 2.8 | FN22: 2.9 | FO22: 2.9 | FP22: 3.3 | FQ22: 3.1 | FR22: 2.8 | FS22: 2.9 | FT22: 3.1 | FU22: 3.3 | FV22: 3.7 | FW22: 3.7 | FX22: 3.3 | FY22: 3.4 | FZ22: 3.4 | GA22: 3.5 | GB22: 4.1 | GC22: 4.2 | GD22: 4.4 | GE22: 4.4 | GF22: 3.8 | GG22: 3.1 | GH22: 3 | GI22: 2.9 | GJ22: 2.8 | GK22: 2.9 | GL22: 2.9 | GM22: 3 | GN22: 3.2 | GO22: 3.3 | GP22: 3.4 | GQ22: 3.3 | GR22: 2.8 | GS22: 2.5 | GT22: 2.5 | GU22: 2.4 | GV22: 2.7 | GW22: 2.7 | GX22: 2.5 | GY22: 2.3 | GZ22: 2.3 | HA22: 2.6 | HB22: 3 | HC22: 3.1 | HD22: 3 | HE22: 2.4 | HF22: 2.2 | HG22: 2.4 | HH22: 2.8 | HI22: 2.7 | HJ22: 2.9 | HK22: 2.5 | HL22: 2.4 | HM22: 2.7 | HN22: 2.9 | HO22: 3.3 | HP22: 3.8 | HQ22: 4.2 | HR22: 4.4 | HS22: 4.5 | HT22: 4.5 | HU22: 4.5 | HV22: 5 | HW22: 5.3 | HX22: 5.6 | HY22: 5.7 | HZ22: 5.5 | IA22: 5.4 | IB22: 5.5 | IC22: 5.2 | ID22: 5.1 | IE22: 5.4 | IF22: 5.4 | IG22: 5.4 | IH22: 5.2 | II22: 4.9 | IJ22: 4.8 | IK22: 4.7 | IL22: 5.1 | IM22: 5.5 | IN22: 5.7 | IO22: 5.9 | IP22: 6.3 | IQ22: 6.4 | IR22: 6.3 | IS22: 6.5 | IT22: 7.2 | IU22: 8 | IV22: 8.6 | IW22: 9 | IX22: 9.2 | IY22: 9.6 | IZ22: 10 | JA22: 10.5 | JB22: 10.9 | JC22: 11 | JD22: 11.6 | JE22: 11.3 | JF22: 11.6 | JG22: 11.9 | JH22: 11.6 | JI22: 12 | JJ22: 12.5 | JK22: 12.9 | JL22: 13 | JM22: 14 | JN22: 14.4 | JO22: 14.7 | JP22: 14.4 | JQ22: 14.9 | JR22: 15.1 | JS22: 15.4 | JT22: 15.1 | JU22: 15 | JV22: 14.2 | JW22: 14.1 | JX22: 14.3 | JY22: 14.8 | JZ22: 15.2 | KA22: 15.3 | KB22: 15.4 | KC22: 15.5 | KD22: 15.5 | KE22: 15.6 | KF22: 15.8 | KG22: 15.4 | KH22: 14.7 | KI22: 14.6 | KJ22: 14.3 | KK22: 13.6 | KL22: 13.3 | KM22: 13.1 | KN22: 13 | KO22: 13.1
E23: Cyprus - Sum of Female<25 | DJ23: 13.8 | DK23: 13.8 | DL23: 13.8 | DM23: 13.3 | DN23: 13.3 | DO23: 13.3 | DP23: 12.6 | DQ23: 12.6 | DR23: 12.6 | DS23: 11.6 | DT23: 11.6 | DU23: 11.6 | DV23: 10.5 | DW23: 10.5 | DX23: 10.5 | DY23: 10.4 | DZ23: 10.4 | EA23: 10.4 | EB23: 9.9 | EC23: 9.9 | ED23: 9.9 | EE23: 8.7 | EF23: 8.7 | EG23: 8.7 | EH23: 8.1 | EI23: 8.1 | EJ23: 8.1 | EK23: 7.8 | EL23: 7.8 | EM23: 7.8 | EN23: 7.9 | EO23: 7.9 | EP23: 7.9 | EQ23: 8.2 | ER23: 8.2 | ES23: 8.2 | ET23: 8.5 | EU23: 8.5 | EV23: 8.5 | EW23: 8.8 | EX23: 8.8 | EY23: 8.8 | EZ23: 8.7 | FA23: 8.7 | FB23: 8.7 | FC23: 9 | FD23: 9 | FE23: 9 | FF23: 9.5 | FG23: 9.5 | FH23: 9.5 | FI23: 10.3 | FJ23: 10.3 | FK23: 10.3 | FL23: 12.1 | FM23: 12.1 | FN23: 12.1 | FO23: 13.9 | FP23: 13.9 | FQ23: 13.9 | FR23: 14.7 | FS23: 14.7 | FT23: 14.7 | FU23: 15.5 | FV23: 15.5 | FW23: 15.5 | FX23: 16.2 | FY23: 16.2 | FZ23: 16.2 | GA23: 11.9 | GB23: 11.9 | GC23: 11.9 | GD23: 11.1 | GE23: 11.1 | GF23: 11.1 | GG23: 11.5 | GH23: 11.5 | GI23: 11.5 | GJ23: 10.9 | GK23: 10.9 | GL23: 10.9 | GM23: 10.7 | GN23: 10.7 | GO23: 10.7 | GP23: 9.8 | GQ23: 9.8 | GR23: 9.8 | GS23: 8.2 | GT23: 8.2 | GU23: 8.2 | GV23: 10.1 | GW23: 10.1 | GX23: 10.1 | GY23: 9.2 | GZ23: 9.2 | HA23: 9.2 | HB23: 9.1 | HC23: 9.1 | HD23: 9.1 | HE23: 9.4 | HF23: 9.4 | HG23: 9.4 | HH23: 9.5 | HI23: 9.5 | HJ23: 9.5 | HK23: 9.9 | HL23: 9.9 | HM23: 9.9 | HN23: 10.7 | HO23: 10.7 | HP23: 10.7 | HQ23: 13.4 | HR23: 13.4 | HS23: 13.4 | HT23: 15.7 | HU23: 15.7 | HV23: 15.7 | HW23: 17 | HX23: 17 | HY23: 17 | HZ23: 19 | IA23: 19 | IB23: 19 | IC23: 19.3 | ID23: 19.3 | IE23: 19.3 | IF23: 14 | IG23: 14 | IH23: 14 | II23: 16.2 | IJ23: 16.2 | IK23: 16.2 | IL23: 18.7 | IM23: 18.7 | IN23: 18.7 | IO23: 20 | IP23: 20 | IQ23: 20 | IR23: 23 | IS23: 23 | IT23: 23 | IU23: 24.7 | IV23: 24.7 | IW23: 24.7 | IX23: 24.9 | IY23: 24.9 | IZ23: 24.9 | JA23: 24.9 | JB23: 24.9 | JC23: 24.9 | JD23: 27.6 | JE23: 27.6 | JF23: 27.6 | JG23: 30.8 | JH23: 30.8 | JI23: 30.8 | JJ23: 35.2 | JK23: 35.2 | JL23: 35.2 | JM23: 39.1 | JN23: 39.1 | JO23: 39.1 | JP23: 37.4 | JQ23: 37.4 | JR23: 37.4 | JS23: 36.8 | JT23: 36.8 | JU23: 36.8 | JV23: 37.1 | JW23: 37.1 | JX23: 37.1 | JY23: 36 | JZ23: 36 | KA23: 36 | KB23: 33 | KC23: 33 | KD23: 33 | KE23: 32.2 | KF23: 32.2 | KG23: 32.2 | KH23: 31 | KI23: 31 | KJ23: 31 | KK23: 30.1 | KL23: 30.1 | KM23: 30.1
E24: Cyprus - Sum of Female25-74 | DJ24: 6.2 | DK24: 6.3 | DL24: 6.4 | DM24: 6.3 | DN24: 6.2 | DO24: 6.1 | DP24: 6 | DQ24: 6.1 | DR24: 6 | DS24: 5.9 | DT24: 5.7 | DU24: 5.7 | DV24: 5.6 | DW24: 5.3 | DX24: 5.1 | DY24: 5 | DZ24: 5 | EA24: 5 | EB24: 4.8 | EC24: 4.6 | ED24: 4.5 | EE24: 4.4 | EF24: 4.3 | EG24: 4.2 | EH24: 4.1 | EI24: 4.1 | EJ24: 3.9 | EK24: 3.9 | EL24: 3.8 | EM24: 3.8 | EN24: 3.8 | EO24: 3.8 | EP24: 3.8 | EQ24: 3.8 | ER24: 3.8 | ES24: 3.8 | ET24: 3.9 | EU24: 3.9 | EV24: 4 | EW24: 4.1 | EX24: 4.1 | EY24: 4.1 | EZ24: 4.2 | FA24: 4.2 | FB24: 4.3 | FC24: 4.4 | FD24: 4.4 | FE24: 4.5 | FF24: 4.6 | FG24: 4.7 | FH24: 4.8 | FI24: 5.2 | FJ24: 5 | FK24: 5.2 | FL24: 5.3 | FM24: 5.5 | FN24: 5.6 | FO24: 5.7 | FP24: 5.8 | FQ24: 5.8 | FR24: 5.8 | FS24: 5.8 | FT24: 5.9 | FU24: 5.9 | FV24: 6 | FW24: 6 | FX24: 5.2 | FY24: 5.1 | FZ24: 5.1 | GA24: 5 | GB24: 5 | GC24: 5 | GD24: 5 | GE24: 5 | GF24: 5 | GG24: 4.8 | GH24: 4.8 | GI24: 4.7 | GJ24: 4.6 | GK24: 4.5 | GL24: 4.4 | GM24: 4.5 | GN24: 4.4 | GO24: 4.3 | GP24: 4.2 | GQ24: 4 | GR24: 3.9 | GS24: 3.7 | GT24: 3.7 | GU24: 3.5 | GV24: 4.3 | GW24: 4.2 | GX24: 4.1 | GY24: 3.9 | GZ24: 3.8 | HA24: 3.8 | HB24: 3.8 | HC24: 3.7 | HD24: 3.7 | HE24: 3.6 | HF24: 3.5 | HG24: 3.5 | HH24: 3.6 | HI24: 3.2 | HJ24: 3.3 | HK24: 3.4 | HL24: 3.4 | HM24: 3.8 | HN24: 3.9 | HO24: 4 | HP24: 4.1 | HQ24: 4.3 | HR24: 4.3 | HS24: 4.4 | HT24: 4.4 | HU24: 4.4 | HV24: 4.6 | HW24: 4.8 | HX24: 5 | HY24: 5.1 | HZ24: 5.1 | IA24: 5.1 | IB24: 5.3 | IC24: 4.8 | ID24: 4.9 | IE24: 5 | IF24: 5 | IG24: 5.1 | IH24: 5 | II24: 5 | IJ24: 5.1 | IK24: 5.2 | IL24: 5.5 | IM24: 5.6 | IN24: 5.6 | IO24: 5.6 | IP24: 5.6 | IQ24: 5.8 | IR24: 6.1 | IS24: 6.3 | IT24: 6.6 | IU24: 6.8 | IV24: 7 | IW24: 7.2 | IX24: 7.4 | IY24: 7.7 | IZ24: 8.2 | JA24: 8.6 | JB24: 9.1 | JC24: 9.4 | JD24: 9.8 | JE24: 9.8 | JF24: 10.2 | JG24: 10.6 | JH24: 11 | JI24: 11.5 | JJ24: 12 | JK24: 12.3 | JL24: 12.3 | JM24: 12.5 | JN24: 12.5 | JO24: 12.7 | JP24: 12.8 | JQ24: 13.1 | JR24: 13.2 | JS24: 13.1 | JT24: 13 | JU24: 12.9 | JV24: 12.6 | JW24: 12.5 | JX24: 12.6 | JY24: 12.3 | JZ24: 12.4 | KA24: 12.6 | KB24: 13 | KC24: 13.1 | KD24: 13.1 | KE24: 13.3 | KF24: 13.6 | KG24: 13.7 | KH24: 13.8 | KI24: 13.9 | KJ24: 13.9 | KK24: 13.9 | KL24: 13.9 | KM24: 13.7 | KN24: 13.6 | KO24: 13.5
E25: Czech Republic - Sum of Male< 25 | AD25: 6.8 | AE25: 7 | AF25: 6.8 | AG25: 7 | AH25: 6.8 | AI25: 7.2 | AJ25: 7.2 | AK25: 7.2 | AL25: 6.5 | AM25: 7 | AN25: 6.6 | AO25: 7.2 | AP25: 6.9 | AQ25: 7.1 | AR25: 6.9 | AS25: 7.4 | AT25: 7.6 | AU25: 7.8 | AV25: 8 | AW25: 8.2 | AX25: 8.8 | AY25: 8.8 | AZ25: 8.3 | BA25: 7.7 | BB25: 7.5 | BC25: 7.8 | BD25: 7.9 | BE25: 7.9 | BF25: 7.4 | BG25: 7.4 | BH25: 7 | BI25: 7.1 | BJ25: 6.9 | BK25: 6.8 | BL25: 6.4 | BM25: 6.2 | BN25: 6.2 | BO25: 6.2 | BP25: 6.2 | BQ25: 6.3 | BR25: 6.6 | BS25: 6.6 | BT25: 6.7 | BU25: 6.4 | BV25: 6.3 | BW25: 5.9 | BX25: 6.6 | BY25: 6.8 | BZ25: 7 | CA25: 6.5 | CB25: 6.6 | CC25: 7.1 | CD25: 7.3 | CE25: 7.7 | CF25: 7.6 | CG25: 7.7 | CH25: 7.6 | CI25: 7.8 | CJ25: 7.8 | CK25: 8.6 | CL25: 8.9 | CM25: 9.2 | CN25: 8.6 | CO25: 8.7 | CP25: 8.8 | CQ25: 10.1 | CR25: 10.7 | CS25: 11.5 | CT25: 12 | CU25: 12.1 | CV25: 13.3 | CW25: 13.6 | CX25: 15.3 | CY25: 15.6 | CZ25: 16.4 | DA25: 16 | DB25: 16.1 | DC25: 15.6 | DD25: 15.5 | DE25: 14.9 | DF25: 15.7 | DG25: 16.6 | DH25: 16.7 | DI25: 16.5 | DJ25: 16.9 | DK25: 16.6 | DL25: 17.2 | DM25: 16.4 | DN25: 17 | DO25: 16.3 | DP25: 16.1 | DQ25: 15.9 | DR25: 16.6 | DS25: 16.5 | DT25: 17.6 | DU25: 16.6 | DV25: 16.8 | DW25: 15.4 | DX25: 16.3 | DY25: 16.1 | DZ25: 15.9 | EA25: 15.3 | EB25: 16 | EC25: 16.5 | ED25: 16.2 | EE25: 15.8 | EF25: 15.8 | EG25: 15.8 | EH25: 16.2 | EI25: 16 | EJ25: 16 | EK25: 15.6 | EL25: 14.7 | EM25: 15.2 | EN25: 15.1 | EO25: 14.7 | EP25: 14.6 | EQ25: 13.7 | ER25: 13.7 | ES25: 13.6 | ET25: 13.8 | EU25: 14.2 | EV25: 15.5 | EW25: 15.3 | EX25: 16.1 | EY25: 15.8 | EZ25: 17.1 | FA25: 17.4 | FB25: 18.1 | FC25: 19 | FD25: 18.5 | FE25: 19.4 | FF25: 19.1 | FG25: 20.6 | FH25: 19.9 | FI25: 21.1 | FJ25: 21.8 | FK25: 21.3 | FL25: 20.8 | FM25: 21.3 | FN25: 21.5 | FO25: 22.1 | FP25: 21.8 | FQ25: 21.6 | FR25: 22.5 | FS25: 22.4 | FT25: 21.5 | FU25: 19.8 | FV25: 18.8 | FW25: 17.6 | FX25: 17.5 | FY25: 17.6 | FZ25: 18.1 | GA25: 18 | GB25: 18.9 | GC25: 17.9 | GD25: 18.1 | GE25: 17.7 | GF25: 18.2 | GG25: 17.3 | GH25: 16.7 | GI25: 16.6 | GJ25: 16.8 | GK25: 16.6 | GL25: 17 | GM25: 15.6 | GN25: 14.2 | GO25: 13 | GP25: 12 | GQ25: 11.6 | GR25: 11.6 | GS25: 11.2 | GT25: 11.6 | GU25: 10.7 | GV25: 9.9 | GW25: 9.7 | GX25: 10.5 | GY25: 10.5 | GZ25: 7.5 | HA25: 10.2 | HB25: 10.2 | HC25: 10.3 | HD25: 9.9 | HE25: 9.7 | HF25: 9.7 | HG25: 10.1 | HH25: 10 | HI25: 9.7 | HJ25: 9 | HK25: 9.5 | HL25: 9.7 | HM25: 10.6 | HN25: 11.3 | HO25: 12.3 | HP25: 13.5 | HQ25: 14.6 | HR25: 16.1 | HS25: 16.1 | HT25: 17.5 | HU25: 18.1 | HV25: 19.2 | HW25: 19.1 | HX25: 19.5 | HY25: 20.5 | HZ25: 20.4 | IA25: 19.8 | IB25: 19.4 | IC25: 19 | ID25: 18.8 | IE25: 18.8 | IF25: 17.9 | IG25: 17.8 | IH25: 16.9 | II25: 17.4 | IJ25: 16.5 | IK25: 17.1 | IL25: 16.4 | IM25: 17.4 | IN25: 16.6 | IO25: 17.7 | IP25: 18.1 | IQ25: 18.7 | IR25: 18.8 | IS25: 18.6 | IT25: 18.6 | IU25: 18.2 | IV25: 19.4 | IW25: 19.2 | IX25: 20.7 | IY25: 19.3 | IZ25: 19 | JA25: 19.6 | JB25: 20.7 | JC25: 20.2 | JD25: 19.5 | JE25: 19.4 | JF25: 19.2 | JG25: 19.8 | JH25: 19.3 | JI25: 19.2 | JJ25: 18.3 | JK25: 20.3 | JL25: 20.3 | JM25: 20.5 | JN25: 18.7 | JO25: 14.3 | JP25: 18.8 | JQ25: 18.7 | JR25: 18.6 | JS25: 18.3 | JT25: 19.2 | JU25: 17.8 | JV25: 16.8 | JW25: 15.6 | JX25: 15.5 | JY25: 15.2 | JZ25: 14.5 | KA25: 15.1 | KB25: 15.4 | KC25: 15 | KD25: 14.2 | KE25: 14 | KF25: 14.9 | KG25: 14.1 | KH25: 14 | KI25: 13.8 | KJ25: 13.5 | KK25: 12.1 | KL25: 11.5 | KM25: 11.4 | KN25: 11.8 | KO25: 11.2
E26: Czech Republic - Sum of Male 25-74 | AD26: 3 | AE26: 2.9 | AF26: 2.9 | AG26: 2.7 | AH26: 2.8 | AI26: 2.6 | AJ26: 2.5 | AK26: 2.5 | AL26: 2.4 | AM26: 2.5 | AN26: 2.4 | AO26: 2.5 | AP26: 2.3 | AQ26: 2.4 | AR26: 2.5 | AS26: 3 | AT26: 2.5 | AU26: 2.5 | AV26: 2.6 | AW26: 2.7 | AX26: 2.7 | AY26: 2.8 | AZ26: 2.7 | BA26: 2.8 | BB26: 2.7 | BC26: 2.7 | BD26: 2.7 | BE26: 2.7 | BF26: 2.6 | BG26: 2.7 | BH26: 2.6 | BI26: 2.5 | BJ26: 2.5 | BK26: 2.4 | BL26: 2.5 | BM26: 2.3 | BN26: 2.4 | BO26: 2.3 | BP26: 2.4 | BQ26: 2.5 | BR26: 2.6 | BS26: 2.7 | BT26: 2.7 | BU26: 2.7 | BV26: 2.8 | BW26: 2.7 | BX26: 2.8 | BY26: 2.9 | BZ26: 2.9 | CA26: 2.8 | CB26: 2.8 | CC26: 2.9 | CD26: 3.1 | CE26: 3.2 | CF26: 3.2 | CG26: 3.2 | CH26: 3.3 | CI26: 3.3 | CJ26: 3.6 | CK26: 3.6 | CL26: 3.6 | CM26: 3.6 | CN26: 3.8 | CO26: 3.8 | CP26: 3.8 | CQ26: 3.8 | CR26: 3.9 | CS26: 3.9 | CT26: 4.1 | CU26: 4.2 | CV26: 4.4 | CW26: 4.4 | CX26: 4.8 | CY26: 5 | CZ26: 5.4 | DA26: 5.6 | DB26: 5.7 | DC26: 5.7 | DD26: 5.6 | DE26: 6 | DF26: 6.2 | DG26: 6.3 | DH26: 6.1 | DI26: 6.2 | DJ26: 6.2 | DK26: 6.3 | DL26: 6.1 | DM26: 6.1 | DN26: 5.9 | DO26: 5.7 | DP26: 5.7 | DQ26: 5.7 | DR26: 5.6 | DS26: 5.4 | DT26: 5.3 | DU26: 5.3 | DV26: 5.3 | DW26: 5.4 | DX26: 5.2 | DY26: 5.4 | DZ26: 5.3 | EA26: 5.5 | EB26: 5.3 | EC26: 5.6 | ED26: 5.4 | EE26: 5.4 | EF26: 5.2 | EG26: 5.1 | EH26: 4.9 | EI26: 4.7 | EJ26: 4.6 | EK26: 4.6 | EL26: 4.7 | EM26: 4.6 | EN26: 4.6 | EO26: 4.7 | EP26: 4.7 | EQ26: 4.9 | ER26: 4.8 | ES26: 4.7 | ET26: 4.6 | EU26: 4.6 | EV26: 4.7 | EW26: 4.8 | EX26: 4.8 | EY26: 4.9 | EZ26: 5 | FA26: 4.9 | FB26: 5 | FC26: 5 | FD26: 5.1 | FE26: 5.3 | FF26: 5.5 | FG26: 5.5 | FH26: 5.4 | FI26: 5.5 | FJ26: 5.6 | FK26: 5.6 | FL26: 5.4 | FM26: 5.5 | FN26: 5.6 | FO26: 5.5 | FP26: 5.4 | FQ26: 5.2 | FR26: 5.3 | FS26: 5.3 | FT26: 5.3 | FU26: 5.2 | FV26: 5.1 | FW26: 5.2 | FX26: 5.2 | FY26: 5.1 | FZ26: 5.1 | GA26: 4.9 | GB26: 5 | GC26: 4.9 | GD26: 5.2 | GE26: 4.9 | GF26: 4.9 | GG26: 4.7 | GH26: 4.8 | GI26: 4.8 | GJ26: 4.7 | GK26: 4.8 | GL26: 4.6 | GM26: 4.6 | GN26: 4.5 | GO26: 4.4 | GP26: 4.1 | GQ26: 3.9 | GR26: 3.8 | GS26: 3.8 | GT26: 3.8 | GU26: 3.7 | GV26: 3.8 | GW26: 3.6 | GX26: 3.5 | GY26: 3.4 | GZ26: 3.3 | HA26: 3.2 | HB26: 3 | HC26: 3 | HD26: 2.8 | HE26: 3 | HF26: 2.9 | HG26: 2.9 | HH26: 2.8 | HI26: 2.7 | HJ26: 2.8 | HK26: 2.8 | HL26: 2.9 | HM26: 2.9 | HN26: 4 | HO26: 4 | HP26: 4.2 | HQ26: 4.5 | HR26: 4.6 | HS26: 5 | HT26: 5.2 | HU26: 5.4 | HV26: 5.4 | HW26: 5.3 | HX26: 5.5 | HY26: 5.6 | HZ26: 5.9 | IA26: 5.9 | IB26: 5.9 | IC26: 5.5 | ID26: 5.3 | IE26: 5.2 | IF26: 5.2 | IG26: 5.1 | IH26: 5 | II26: 5 | IJ26: 5 | IK26: 5.1 | IL26: 5.1 | IM26: 5.1 | IN26: 5.1 | IO26: 5 | IP26: 4.9 | IQ26: 4.8 | IR26: 4.6 | IS26: 4.7 | IT26: 4.6 | IU26: 4.7 | IV26: 4.4 | IW26: 4.5 | IX26: 4.6 | IY26: 4.9 | IZ26: 4.9 | JA26: 4.8 | JB26: 4.7 | JC26: 4.7 | JD26: 4.9 | JE26: 4.9 | JF26: 5 | JG26: 5.1 | JH26: 5.2 | JI26: 5.2 | JJ26: 5.2 | JK26: 5.1 | JL26: 5.2 | JM26: 5 | JN26: 5.1 | JO26: 4.8 | JP26: 5 | JQ26: 4.8 | JR26: 4.8 | JS26: 4.7 | JT26: 4.7 | JU26: 4.7 | JV26: 4.6 | JW26: 4.7 | JX26: 4.7 | JY26: 4.5 | JZ26: 4.3 | KA26: 4.2 | KB26: 4.1 | KC26: 4.1 | KD26: 4.1 | KE26: 4.2 | KF26: 4.2 | KG26: 4.3 | KH26: 4.4 | KI26: 4.3 | KJ26: 4.1 | KK26: 3.9 | KL26: 3.7 | KM26: 3.6 | KN26: 3.7 | KO26: 3.7
E27: Czech Republic - Sum of Female<25 | AD27: 11.2 | AE27: 10.6 | AF27: 10.5 | AG27: 10.5 | AH27: 11.1 | AI27: 11.3 | AJ27: 11.2 | AK27: 10.2 | AL27: 9.8 | AM27: 9.7 | AN27: 9.5 | AO27: 10.3 | AP27: 10.1 | AQ27: 11 | AR27: 10 | AS27: 10.2 | AT27: 9.9 | AU27: 11.2 | AV27: 10.8 | AW27: 10.3 | AX27: 9.1 | AY27: 8.6 | AZ27: 9 | BA27: 8.3 | BB27: 8.4 | BC27: 8.2 | BD27: 8.9 | BE27: 9.2 | BF27: 9.3 | BG27: 9.7 | BH27: 9.2 | BI27: 9.4 | BJ27: 8.4 | BK27: 8.7 | BL27: 7.4 | BM27: 7.8 | BN27: 7.8 | BO27: 8.1 | BP27: 8.8 | BQ27: 9.2 | BR27: 8.9 | BS27: 8.4 | BT27: 8.1 | BU27: 8 | BV27: 7.6 | BW27: 7.7 | BX27: 7.9 | BY27: 8.7 | BZ27: 8.8 | CA27: 8.6 | CB27: 8.2 | CC27: 8.5 | CD27: 9.1 | CE27: 10.5 | CF27: 10.6 | CG27: 10.6 | CH27: 11.2 | CI27: 11.9 | CJ27: 12.8 | CK27: 12.4 | CL27: 12.6 | CM27: 12.9 | CN27: 13.7 | CO27: 13.4 | CP27: 13.8 | CQ27: 13.9 | CR27: 14.6 | CS27: 15.2 | CT27: 16.8 | CU27: 17.3 | CV27: 17.1 | CW27: 16.9 | CX27: 17.3 | CY27: 17.3 | CZ27: 17.2 | DA27: 17.4 | DB27: 17.9 | DC27: 17.9 | DD27: 19.5 | DE27: 20.1 | DF27: 20.2 | DG27: 19.1 | DH27: 19.6 | DI27: 18.5 | DJ27: 18 | DK27: 17.5 | DL27: 18 | DM27: 17.7 | DN27: 17.9 | DO27: 16.7 | DP27: 16.8 | DQ27: 17.2 | DR27: 17.3 | DS27: 17.5 | DT27: 17.1 | DU27: 17.5 | DV27: 17.5 | DW27: 17.9 | DX27: 17.4 | DY27: 17.3 | DZ27: 17 | EA27: 16.7 | EB27: 16.8 | EC27: 17.2 | ED27: 17.8 | EE27: 17.3 | EF27: 16.8 | EG27: 17 | EH27: 16.5 | EI27: 17.2 | EJ27: 16.7 | EK27: 16.2 | EL27: 15.7 | EM27: 17.2 | EN27: 18.3 | EO27: 17.9 | EP27: 17.4 | EQ27: 17.5 | ER27: 18.5 | ES27: 18.8 | ET27: 20.1 | EU27: 19.7 | EV27: 19.5 | EW27: 18.4 | EX27: 18.5 | EY27: 18.1 | EZ27: 17.8 | FA27: 17.5 | FB27: 18.7 | FC27: 17.8 | FD27: 19.6 | FE27: 19.5 | FF27: 20.1 | FG27: 19.5 | FH27: 19.6 | FI27: 19.8 | FJ27: 18.8 | FK27: 18.8 | FL27: 19.1 | FM27: 20 | FN27: 19.4 | FO27: 20.8 | FP27: 19.7 | FQ27: 19.4 | FR27: 18.3 | FS27: 17.6 | FT27: 17.8 | FU27: 19.1 | FV27: 19.3 | FW27: 19.1 | FX27: 18.6 | FY27: 18.3 | FZ27: 19.5 | GA27: 19.1 | GB27: 20.4 | GC27: 20.3 | GD27: 21 | GE27: 21.1 | GF27: 21.1 | GG27: 20.1 | GH27: 19.9 | GI27: 18.4 | GJ27: 18.3 | GK27: 17.4 | GL27: 18.2 | GM27: 17.2 | GN27: 16.5 | GO27: 15 | GP27: 13.8 | GQ27: 12.2 | GR27: 12 | GS27: 11.4 | GT27: 11.6 | GU27: 10.8 | GV27: 11 | GW27: 9.6 | GX27: 9.5 | GY27: 9.2 | GZ27: 9.3 | HA27: 9.9 | HB27: 9.7 | HC27: 10.7 | HD27: 10.9 | HE27: 9.9 | HF27: 9 | HG27: 9.8 | HH27: 10.2 | HI27: 10 | HJ27: 9.3 | HK27: 9.8 | HL27: 9.4 | HM27: 11.5 | HN27: 12.7 | HO27: 14.4 | HP27: 15.3 | HQ27: 15.9 | HR27: 15.6 | HS27: 15.4 | HT27: 15.1 | HU27: 17.3 | HV27: 18.8 | HW27: 20.6 | HX27: 20.4 | HY27: 19.8 | HZ27: 19.6 | IA27: 19.4 | IB27: 19.2 | IC27: 19.3 | ID27: 19.2 | IE27: 18 | IF27: 18.3 | IG27: 18.4 | IH27: 18.2 | II27: 17.6 | IJ27: 17.4 | IK27: 17.2 | IL27: 17.4 | IM27: 18.8 | IN27: 18.6 | IO27: 20 | IP27: 19.8 | IQ27: 19.6 | IR27: 18 | IS27: 15.7 | IT27: 16.5 | IU27: 16.8 | IV27: 16.4 | IW27: 16.6 | IX27: 17.4 | IY27: 18.5 | IZ27: 19.8 | JA27: 19.6 | JB27: 19.5 | JC27: 18.8 | JD27: 17.7 | JE27: 19.2 | JF27: 18.9 | JG27: 19.6 | JH27: 19.5 | JI27: 19.5 | JJ27: 19.2 | JK27: 18.7 | JL27: 18.4 | JM27: 19.1 | JN27: 18.9 | JO27: 20 | JP27: 19.4 | JQ27: 20.6 | JR27: 18.7 | JS27: 19.3 | JT27: 19.2 | JU27: 19.8 | JV27: 19.5 | JW27: 17.8 | JX27: 17.2 | JY27: 17.5 | JZ27: 19.5 | KA27: 19.4 | KB27: 18.2 | KC27: 16.3 | KD27: 16 | KE27: 14.8 | KF27: 14.7 | KG27: 13.8 | KH27: 13.8 | KI27: 14.8 | KJ27: 15.2 | KK27: 15.4 | KL27: 14.8 | KM27: 14.8 | KN27: 14.9 | KO27: 14.1
E28: Czech Republic - Sum of Female25-74 | AD28: 4.7 | AE28: 4.7 | AF28: 4.7 | AG28: 4.6 | AH28: 4.6 | AI28: 4.6 | AJ28: 4.6 | AK28: 4.5 | AL28: 4.3 | AM28: 4.3 | AN28: 4.4 | AO28: 4.6 | AP28: 4.6 | AQ28: 4.5 | AR28: 4.3 | AS28: 4.3 | AT28: 4.1 | AU28: 4.1 | AV28: 4 | AW28: 4.3 | AX28: 4.5 | AY28: 4.6 | AZ28: 4 | BA28: 4.5 | BB28: 4.5 | BC28: 4.4 | BD28: 4.3 | BE28: 4.1 | BF28: 4.1 | BG28: 4.1 | BH28: 4.1 | BI28: 4.1 | BJ28: 3.9 | BK28: 3.8 | BL28: 3.8 | BM28: 3.9 | BN28: 4 | BO28: 3.9 | BP28: 3.8 | BQ28: 4 | BR28: 3.7 | BS28: 3.8 | BT28: 3.8 | BU28: 4.1 | BV28: 4.2 | BW28: 4.3 | BX28: 4.3 | BY28: 4.4 | BZ28: 4.4 | CA28: 4.6 | CB28: 4.7 | CC28: 4.9 | CD28: 5 | CE28: 5 | CF28: 5.1 | CG28: 5.4 | CH28: 5.4 | CI28: 5.6 | CJ28: 5.8 | CK28: 6.1 | CL28: 6.3 | CM28: 6.4 | CN28: 6.5 | CO28: 6.5 | CP28: 6.7 | CQ28: 7 | CR28: 7.3 | CS28: 7.5 | CT28: 7.5 | CU28: 7.9 | CV28: 7.7 | CW28: 8 | CX28: 8.4 | CY28: 8.9 | CZ28: 9.2 | DA28: 9 | DB28: 9.1 | DC28: 8.9 | DD28: 9.2 | DE28: 9.4 | DF28: 9.5 | DG28: 9.3 | DH28: 9.1 | DI28: 9.6 | DJ28: 9.9 | DK28: 10.2 | DL28: 10.1 | DM28: 9.9 | DN28: 9.6 | DO28: 9.5 | DP28: 9.5 | DQ28: 9.2 | DR28: 9.1 | DS28: 9 | DT28: 9.1 | DU28: 9 | DV28: 9.1 | DW28: 9.2 | DX28: 9.1 | DY28: 8.8 | DZ28: 8.8 | EA28: 8.7 | EB28: 9 | EC28: 8.8 | ED28: 8.7 | EE28: 8.5 | EF28: 8.5 | EG28: 8.6 | EH28: 8.5 | EI28: 8.4 | EJ28: 8.1 | EK28: 7.8 | EL28: 7.8 | EM28: 7.8 | EN28: 7.8 | EO28: 7.9 | EP28: 7.8 | EQ28: 7.9 | ER28: 8.1 | ES28: 8.2 | ET28: 8.4 | EU28: 8.3 | EV28: 8.6 | EW28: 8.6 | EX28: 8.9 | EY28: 8.8 | EZ28: 9 | FA28: 9.2 | FB28: 9.1 | FC28: 9.1 | FD28: 9 | FE28: 9.2 | FF28: 9.2 | FG28: 9.4 | FH28: 9.3 | FI28: 9 | FJ28: 8.9 | FK28: 8.7 | FL28: 8.7 | FM28: 8.7 | FN28: 9 | FO28: 9 | FP28: 8.8 | FQ28: 8.7 | FR28: 8.8 | FS28: 9 | FT28: 8.8 | FU28: 9 | FV28: 9 | FW28: 9.1 | FX28: 8.8 | FY28: 9.1 | FZ28: 8.9 | GA28: 9.1 | GB28: 8.9 | GC28: 8.9 | GD28: 8.8 | GE28: 8.6 | GF28: 8.5 | GG28: 8.1 | GH28: 7.9 | GI28: 7.9 | GJ28: 8 | GK28: 7.7 | GL28: 7.6 | GM28: 7.3 | GN28: 7.4 | GO28: 7.3 | GP28: 7.4 | GQ28: 7.3 | GR28: 6.8 | GS28: 6.6 | GT28: 6.2 | GU28: 6.2 | GV28: 6 | GW28: 6.1 | GX28: 6.1 | GY28: 6.1 | GZ28: 6 | HA28: 5.9 | HB28: 6 | HC28: 6 | HD28: 5.1 | HE28: 5 | HF28: 4.9 | HG28: 5.1 | HH28: 5.1 | HI28: 5.1 | HJ28: 5.1 | HK28: 5 | HL28: 5.2 | HM28: 5.6 | HN28: 5.9 | HO28: 6.4 | HP28: 6.5 | HQ28: 6.8 | HR28: 6.9 | HS28: 7 | HT28: 7.5 | HU28: 7.7 | HV28: 7.8 | HW28: 7.3 | HX28: 7.3 | HY28: 7.3 | HZ28: 7.9 | IA28: 8.1 | IB28: 8 | IC28: 7.7 | ID28: 7.7 | IE28: 7.7 | IF28: 7.7 | IG28: 7.6 | IH28: 7.6 | II28: 7.6 | IJ28: 7.4 | IK28: 7.4 | IL28: 7.5 | IM28: 7.6 | IN28: 7.4 | IO28: 7.3 | IP28: 7.2 | IQ28: 7.1 | IR28: 7.1 | IS28: 7 | IT28: 7.1 | IU28: 7 | IV28: 6.9 | IW28: 7.1 | IX28: 7.1 | IY28: 7.6 | IZ28: 7.3 | JA28: 7.4 | JB28: 7.1 | JC28: 7.3 | JD28: 7.5 | JE28: 7.6 | JF28: 7.5 | JG28: 7.6 | JH28: 7.7 | JI28: 7.6 | JJ28: 7.6 | JK28: 7.9 | JL28: 7.9 | JM28: 7.6 | JN28: 7.5 | JO28: 7.3 | JP28: 7.4 | JQ28: 7.6 | JR28: 7.7 | JS28: 7.4 | JT28: 7.4 | JU28: 7.2 | JV28: 7.5 | JW28: 7.3 | JX28: 7.5 | JY28: 7 | JZ28: 6.8 | KA28: 6.7 | KB28: 6.6 | KC28: 6.7 | KD28: 6.5 | KE28: 6.4 | KF28: 6.5 | KG28: 6.4 | KH28: 6.4 | KI28: 6.3 | KJ28: 6.1 | KK28: 5.7 | KL28: 5.5 | KM28: 5.5 | KN28: 5.6 | KO28: 5.5
E29: Denmark - Sum of Male< 25 | GP29: 6.6 | GQ29: 6.6 | GR29: 6.6 | GS29: 7.2 | GT29: 7.2 | GU29: 7.2 | GV29: 8.7 | GW29: 8.7 | GX29: 8.7 | GY29: 7.7 | GZ29: 7.7 | HA29: 7.7 | HB29: 5.6 | HC29: 5.6 | HD29: 5.6 | HE29: 6.1 | HF29: 6.1 | HG29: 6.1 | HH29: 8 | HI29: 8 | HJ29: 8 | HK29: 9.4 | HL29: 9.4 | HM29: 9.4 | HN29: 11.5 | HO29: 11.5 | HP29: 11.5 | HQ29: 13.6 | HR29: 13.6 | HS29: 13.6 | HT29: 12.5 | HU29: 12.5 | HV29: 12.5 | HW29: 15.2 | HX29: 15.2 | HY29: 15.2 | HZ29: 16.4 | IA29: 16.4 | IB29: 16.4 | IC29: 15.4 | ID29: 15.4 | IE29: 15.4 | IF29: 15.7 | IG29: 15.7 | IH29: 15.7 | II29: 16.6 | IJ29: 16.6 | IK29: 16.6 | IL29: 15.3 | IM29: 15.3 | IN29: 15.3 | IO29: 16.4 | IP29: 16.4 | IQ29: 16.4 | IR29: 16 | IS29: 16 | IT29: 16 | IU29: 14.8 | IV29: 14.8 | IW29: 14.8 | IX29: 15.6 | IY29: 15.6 | IZ29: 15.6 | JA29: 15 | JB29: 15 | JC29: 15 | JD29: 14.8 | JE29: 14.8 | JF29: 14.8 | JG29: 13.4 | JH29: 13.4 | JI29: 13.4 | JJ29: 13.8 | JK29: 13.8 | JL29: 13.8 | JM29: 13.5 | JN29: 13.5 | JO29: 13.5 | JP29: 15.9 | JQ29: 15.9 | JR29: 15.9 | JS29: 13.8 | JT29: 13.8 | JU29: 13.8 | JV29: 14.5 | JW29: 14.5 | JX29: 14.5 | JY29: 13.5 | JZ29: 13.5 | KA29: 13.5 | KB29: 13.2 | KC29: 13.2 | KD29: 13.2 | KE29: 12.2 | KF29: 12.2 | KG29: 12.2 | KH29: 11.3 | KI29: 11.3 | KJ29: 11.3 | KK29: 11.3 | KL29: 11.3 | KM29: 11.3
E30: Denmark - Sum of Male 25-74 | F30: 6.1 | G30: 6.2 | H30: 6.3 | I30: 6.3 | J30: 6.4 | K30: 6.5 | L30: 6.5 | M30: 6.6 | N30: 6.6 | O30: 6.7 | P30: 6.7 | Q30: 6.8 | R30: 6.8 | S30: 6.8 | T30: 6.9 | U30: 6.9 | V30: 7 | W30: 7 | X30: 7.1 | Y30: 7.3 | Z30: 7.5 | AA30: 7.7 | AB30: 7.9 | AC30: 8.1 | AD30: 8.4 | AE30: 8.5 | AF30: 8.6 | AG30: 8.8 | AH30: 8.9 | AI30: 8.9 | AJ30: 8.7 | AK30: 8.5 | AL30: 8.4 | AM30: 8.2 | AN30: 8 | AO30: 7.7 | AP30: 7.4 | AQ30: 7.2 | AR30: 7 | AS30: 6.7 | AT30: 6.6 | AU30: 6.4 | AV30: 6.3 | AW30: 6.1 | AX30: 6 | AY30: 5.9 | AZ30: 5.7 | BA30: 5.6 | BB30: 5.5 | BC30: 5.4 | BD30: 5.2 | BE30: 5.2 | BF30: 5.1 | BG30: 5.1 | BH30: 5.1 | BI30: 5 | BJ30: 5 | BK30: 4.9 | BL30: 4.9 | BM30: 4.9 | BN30: 4.8 | BO30: 4.9 | BP30: 4.9 | BQ30: 4.9 | BR30: 4.7 | BS30: 4.6 | BT30: 4.6 | BU30: 4.5 | BV30: 4.5 | BW30: 4.4 | BX30: 4.4 | BY30: 4.3 | BZ30: 4.3 | CA30: 4.2 | CB30: 4.1 | CC30: 4 | CD30: 4 | CE30: 4 | CF30: 4 | CG30: 3.9 | CH30: 3.8 | CI30: 3.8 | CJ30: 3.7 | CK30: 3.7 | CL30: 3.7 | CM30: 3.4 | CN30: 3.4 | CO30: 3.3 | CP30: 3.4 | CQ30: 3.2 | CR30: 3.3 | CS30: 3.3 | CT30: 3.3 | CU30: 3.4 | CV30: 3.4 | CW30: 3.4 | CX30: 3.5 | CY30: 3.5 | CZ30: 3.5 | DA30: 3.6 | DB30: 3.6 | DC30: 3.6 | DD30: 3.7 | DE30: 4 | DF30: 4 | DG30: 4 | DH30: 4 | DI30: 4.1 | DJ30: 4 | DK30: 3.7 | DL30: 3.6 | DM30: 3.6 | DN30: 3.6 | DO30: 3.4 | DP30: 3.2 | DQ30: 3 | DR30: 3 | DS30: 3.2 | DT30: 3.4 | DU30: 3.5 | DV30: 3.6 | DW30: 3.7 | DX30: 3.5 | DY30: 3.2 | DZ30: 3 | EA30: 3.1 | EB30: 3.4 | EC30: 3.7 | ED30: 3.8 | EE30: 3.8 | EF30: 3.8 | EG30: 3.8 | EH30: 3.7 | EI30: 3.6 | EJ30: 3.5 | EK30: 3.5 | EL30: 3.6 | EM30: 3.8 | EN30: 4.1 | EO30: 4.3 | EP30: 4.2 | EQ30: 4 | ER30: 3.7 | ES30: 3.4 | ET30: 3.4 | EU30: 3.5 | EV30: 3.7 | EW30: 4.1 | EX30: 4.5 | EY30: 4.5 | EZ30: 4.2 | FA30: 4.1 | FB30: 4.3 | FC30: 4.7 | FD30: 4.9 | FE30: 4.8 | FF30: 4.4 | FG30: 4.2 | FH30: 4.2 | FI30: 4.4 | FJ30: 4.6 | FK30: 4.8 | FL30: 5 | FM30: 4.9 | FN30: 4.7 | FO30: 4.4 | FP30: 4.2 | FQ30: 4.2 | FR30: 4.4 | FS30: 4.4 | FT30: 4.4 | FU30: 4.1 | FV30: 3.8 | FW30: 3.7 | FX30: 3.7 | FY30: 3.5 | FZ30: 3.4 | GA30: 3.3 | GB30: 3.2 | GC30: 2.9 | GD30: 2.6 | GE30: 2.6 | GF30: 2.6 | GG30: 2.7 | GH30: 2.8 | GI30: 2.8 | GJ30: 2.7 | GK30: 2.7 | GL30: 2.5 | GM30: 2.2 | GN30: 2.2 | GO30: 2.4 | GP30: 2.8 | GQ30: 2.7 | GR30: 2.5 | GS30: 2.5 | GT30: 2.5 | GU30: 2.6 | GV30: 3.1 | GW30: 2.9 | GX30: 3 | GY30: 2.8 | GZ30: 2.8 | HA30: 2.6 | HB30: 2.2 | HC30: 2.1 | HD30: 2 | HE30: 2 | HF30: 2 | HG30: 2.3 | HH30: 2.3 | HI30: 2.4 | HJ30: 2.5 | HK30: 2.8 | HL30: 3.1 | HM30: 3.6 | HN30: 4 | HO30: 4.1 | HP30: 4.7 | HQ30: 4.9 | HR30: 5.1 | HS30: 4.9 | HT30: 5 | HU30: 6.1 | HV30: 6.4 | HW30: 6.7 | HX30: 6.3 | HY30: 6.5 | HZ30: 6.9 | IA30: 7.3 | IB30: 7.5 | IC30: 7.7 | ID30: 7.7 | IE30: 7.5 | IF30: 7.2 | IG30: 6.6 | IH30: 6.6 | II30: 6.4 | IJ30: 6.4 | IK30: 6.3 | IL30: 6.4 | IM30: 6.4 | IN30: 6.2 | IO30: 6.1 | IP30: 6 | IQ30: 6 | IR30: 6 | IS30: 6 | IT30: 6.1 | IU30: 6.4 | IV30: 6.5 | IW30: 6.3 | IX30: 6.2 | IY30: 6 | IZ30: 6.3 | JA30: 6.1 | JB30: 6.4 | JC30: 6.3 | JD30: 6.4 | JE30: 6.4 | JF30: 6.4 | JG30: 6.2 | JH30: 6 | JI30: 5.9 | JJ30: 5.9 | JK30: 5.8 | JL30: 5.5 | JM30: 5.3 | JN30: 5.1 | JO30: 5.4 | JP30: 5.9 | JQ30: 5.9 | JR30: 5.4 | JS30: 5 | JT30: 5 | JU30: 5.3 | JV30: 5.2 | JW30: 5 | JX30: 4.7 | JY30: 5 | JZ30: 4.8 | KA30: 5 | KB30: 5.3 | KC30: 5.4 | KD30: 5.5 | KE30: 5.4 | KF30: 5.4 | KG30: 5.2 | KH30: 4.9 | KI30: 5.2 | KJ30: 5.6 | KK30: 5.6 | KL30: 5.3 | KM30: 4.7 | KN30: 4.9 | KO30: 5.1
E31: Denmark - Sum of Female<25 | GP31: 7.7 | GQ31: 7.7 | GR31: 7.7 | GS31: 6.9 | GT31: 6.9 | GU31: 6.9 | GV31: 7.9 | GW31: 7.9 | GX31: 7.9 | GY31: 7 | GZ31: 7 | HA31: 7 | HB31: 8.8 | HC31: 8.8 | HD31: 8.8 | HE31: 8.9 | HF31: 8.9 | HG31: 8.9 | HH31: 8.6 | HI31: 8.6 | HJ31: 8.6 | HK31: 8.3 | HL31: 8.3 | HM31: 8.3 | HN31: 8.7 | HO31: 8.7 | HP31: 8.7 | HQ31: 10.7 | HR31: 10.7 | HS31: 10.7 | HT31: 10 | HU31: 10 | HV31: 10 | HW31: 11.6 | HX31: 11.6 | HY31: 11.6 | HZ31: 11.4 | IA31: 11.4 | IB31: 11.4 | IC31: 11 | ID31: 11 | IE31: 11 | IF31: 12.4 | IG31: 12.4 | IH31: 12.4 | II31: 12 | IJ31: 12 | IK31: 12 | IL31: 11.8 | IM31: 11.8 | IN31: 11.8 | IO31: 12.1 | IP31: 12.1 | IQ31: 12.1 | IR31: 13.3 | IS31: 13.3 | IT31: 13.3 | IU31: 13.6 | IV31: 13.6 | IW31: 13.6 | IX31: 14 | IY31: 14 | IZ31: 14 | JA31: 14.7 | JB31: 14.7 | JC31: 14.7 | JD31: 11.6 | JE31: 11.6 | JF31: 11.6 | JG31: 13.4 | JH31: 13.4 | JI31: 13.4 | JJ31: 12.1 | JK31: 12.1 | JL31: 12.1 | JM31: 11.5 | JN31: 11.5 | JO31: 11.5 | JP31: 11.6 | JQ31: 11.6 | JR31: 11.6 | JS31: 12 | JT31: 12 | JU31: 12 | JV31: 12.1 | JW31: 12.1 | JX31: 12.1 | JY31: 11.6 | JZ31: 11.6 | KA31: 11.6 | KB31: 11.6 | KC31: 11.6 | KD31: 11.6 | KE31: 10.2 | KF31: 10.2 | KG31: 10.2 | KH31: 10 | KI31: 10 | KJ31: 10 | KK31: 10.2 | KL31: 10.2 | KM31: 10.2
E32: Denmark - Sum of Female25-74 | F32: 7.6 | G32: 7.7 | H32: 7.8 | I32: 7.9 | J32: 8 | K32: 8.1 | L32: 8.1 | M32: 8.2 | N32: 8.3 | O32: 8.4 | P32: 8.4 | Q32: 8.4 | R32: 8.5 | S32: 8.5 | T32: 8.5 | U32: 8.5 | V32: 8.6 | W32: 8.6 | X32: 8.7 | Y32: 8.8 | Z32: 8.9 | AA32: 9 | AB32: 9 | AC32: 9.1 | AD32: 9.3 | AE32: 9.3 | AF32: 9.3 | AG32: 9.5 | AH32: 9.5 | AI32: 9.5 | AJ32: 9.3 | AK32: 9.2 | AL32: 9.3 | AM32: 9.1 | AN32: 9 | AO32: 8.9 | AP32: 8.7 | AQ32: 8.6 | AR32: 8.5 | AS32: 8.4 | AT32: 8.3 | AU32: 8.1 | AV32: 8 | AW32: 7.9 | AX32: 7.8 | AY32: 7.7 | AZ32: 7.6 | BA32: 7.6 | BB32: 7.5 | BC32: 7.5 | BD32: 7.4 | BE32: 7.4 | BF32: 7.3 | BG32: 7.3 | BH32: 7.3 | BI32: 7.4 | BJ32: 7.2 | BK32: 7.2 | BL32: 7.2 | BM32: 7.2 | BN32: 7.1 | BO32: 7 | BP32: 7 | BQ32: 7.1 | BR32: 7 | BS32: 7 | BT32: 7.2 | BU32: 6.9 | BV32: 6.5 | BW32: 6.3 | BX32: 6.1 | BY32: 5.9 | BZ32: 5.8 | CA32: 5.7 | CB32: 5.6 | CC32: 5.5 | CD32: 5.6 | CE32: 5.5 | CF32: 5.5 | CG32: 5.6 | CH32: 5.6 | CI32: 5.7 | CJ32: 5.7 | CK32: 5.8 | CL32: 6 | CM32: 5.8 | CN32: 5.9 | CO32: 5.9 | CP32: 5.8 | CQ32: 5.7 | CR32: 5.9 | CS32: 5.7 | CT32: 5.4 | CU32: 5.3 | CV32: 5.2 | CW32: 5.1 | CX32: 5.1 | CY32: 5 | CZ32: 4.9 | DA32: 4.9 | DB32: 4.9 | DC32: 4.9 | DD32: 5 | DE32: 5.4 | DF32: 5.3 | DG32: 5.4 | DH32: 5.4 | DI32: 5.4 | DJ32: 5.2 | DK32: 4.8 | DL32: 4.5 | DM32: 4.5 | DN32: 4.7 | DO32: 4.6 | DP32: 4.6 | DQ32: 4.5 | DR32: 4.5 | DS32: 4.4 | DT32: 4.4 | DU32: 4.3 | DV32: 4.4 | DW32: 4.4 | DX32: 4.4 | DY32: 4.4 | DZ32: 4.4 | EA32: 4.4 | EB32: 4.3 | EC32: 4.3 | ED32: 4.3 | EE32: 4.4 | EF32: 4.5 | EG32: 4.4 | EH32: 4.3 | EI32: 4.2 | EJ32: 4.2 | EK32: 4.4 | EL32: 4.5 | EM32: 4.6 | EN32: 4.7 | EO32: 4.8 | EP32: 4.8 | EQ32: 4.8 | ER32: 4.8 | ES32: 4.7 | ET32: 4.9 | EU32: 5.2 | EV32: 5.3 | EW32: 5.4 | EX32: 5.6 | EY32: 5.7 | EZ32: 5.5 | FA32: 5.6 | FB32: 5.7 | FC32: 5.8 | FD32: 6 | FE32: 6.2 | FF32: 6.2 | FG32: 6.2 | FH32: 6 | FI32: 5.6 | FJ32: 5.4 | FK32: 5.4 | FL32: 5.6 | FM32: 5.7 | FN32: 5.8 | FO32: 5.8 | FP32: 5.8 | FQ32: 5.7 | FR32: 5.4 | FS32: 5.3 | FT32: 5.2 | FU32: 5.2 | FV32: 5.1 | FW32: 5 | FX32: 5 | FY32: 4.7 | FZ32: 4.4 | GA32: 3.9 | GB32: 3.7 | GC32: 3.8 | GD32: 4.1 | GE32: 4.3 | GF32: 4.3 | GG32: 4.3 | GH32: 4.2 | GI32: 4 | GJ32: 3.8 | GK32: 3.7 | GL32: 3.8 | GM32: 3.8 | GN32: 3.9 | GO32: 3.9 | GP32: 4.5 | GQ32: 4.1 | GR32: 3.7 | GS32: 3.3 | GT32: 3.5 | GU32: 3.6 | GV32: 3.5 | GW32: 3.5 | GX32: 3.6 | GY32: 3.5 | GZ32: 3.3 | HA32: 3.2 | HB32: 3.1 | HC32: 2.8 | HD32: 2.7 | HE32: 2.7 | HF32: 2.7 | HG32: 2.7 | HH32: 2.8 | HI32: 2.7 | HJ32: 2.7 | HK32: 2.7 | HL32: 2.8 | HM32: 3.1 | HN32: 3.2 | HO32: 3.6 | HP32: 3.8 | HQ32: 4 | HR32: 4.3 | HS32: 4.3 | HT32: 4.5 | HU32: 4.3 | HV32: 5 | HW32: 5.2 | HX32: 5 | HY32: 4.8 | HZ32: 4.7 | IA32: 4.8 | IB32: 5 | IC32: 5 | ID32: 5 | IE32: 5.4 | IF32: 5.5 | IG32: 5.6 | IH32: 5.7 | II32: 6.1 | IJ32: 6.2 | IK32: 6.8 | IL32: 6.6 | IM32: 6.5 | IN32: 5.9 | IO32: 6.2 | IP32: 6.2 | IQ32: 6.5 | IR32: 6.6 | IS32: 6.6 | IT32: 6.6 | IU32: 6.5 | IV32: 6.6 | IW32: 6.4 | IX32: 6.4 | IY32: 6.4 | IZ32: 6.6 | JA32: 6.8 | JB32: 6.7 | JC32: 6.6 | JD32: 6.6 | JE32: 6.6 | JF32: 6.4 | JG32: 6 | JH32: 6 | JI32: 6.3 | JJ32: 6.7 | JK32: 6.5 | JL32: 6.7 | JM32: 6.7 | JN32: 6.7 | JO32: 6 | JP32: 6.1 | JQ32: 6.1 | JR32: 6.3 | JS32: 6.6 | JT32: 6.5 | JU32: 6.6 | JV32: 6.4 | JW32: 6.7 | JX32: 6.1 | JY32: 5.7 | JZ32: 5.9 | KA32: 5.9 | KB32: 5.8 | KC32: 5.8 | KD32: 5.3 | KE32: 5.6 | KF32: 5.6 | KG32: 5.6 | KH32: 5.7 | KI32: 5.6 | KJ32: 5.6 | KK32: 5.6 | KL32: 5.8 | KM32: 5.8 | KN32: 5.9 | KO32: 5.8
E33: Estonia - Sum of Male< 25 | DK33: 25.2 | DL33: 25.3 | DM33: 27.5 | DN33: 24.1 | DO33: 22.1 | DP33: 22.8 | DQ33: 22.7 | DR33: 24.8 | DS33: 24.7 | DT33: 23.5 | DU33: 24 | DV33: 23.9 | DW33: 22.8 | DX33: 20.8 | DY33: 20.1 | DZ33: 20.5 | EA33: 20.7 | EB33: 19.4 | EC33: 20 | ED33: 18.8 | EE33: 17.4 | EF33: 16.1 | EG33: 15.5 | EH33: 14 | EI33: 14.4 | EJ33: 13.6 | EK33: 15.2 | EL33: 15.6 | EM33: 16.9 | EN33: 15.3 | EO33: 14.5 | EP33: 14.3 | EQ33: 16.2 | ER33: 17.5 | ES33: 17.3 | ET33: 17.8 | EU33: 17.5 | EV33: 20.3 | EW33: 19.2 | EX33: 19.2 | EY33: 18.4 | EZ33: 18.1 | FA33: 17.4 | FB33: 18.6 | FC33: 18.9 | FD33: 20.7 | FE33: 21.6 | FF33: 24.8 | FG33: 24.5 | FH33: 23.6 | FI33: 21.1 | FJ33: 22.7 | FK33: 21.1 | FL33: 24.1 | FM33: 23.1 | FN33: 23.2 | FO33: 21.7 | FP33: 17.9 | FQ33: 18.9 | FR33: 15.3 | FS33: 18 | FT33: 15.5 | FU33: 19.4 | FV33: 17.1 | FW33: 16.1 | FX33: 12.9 | FY33: 14.9 | FZ33: 13.8 | GA33: 13.9 | GB33: 13.9 | GC33: 13.5 | GD33: 13.8 | GE33: 11.4 | GF33: 12.4 | GG33: 11.1 | GH33: 10.6 | GI33: 11 | GJ33: 10.9 | GK33: 10.2 | GL33: 9.9 | GM33: 10.4 | GN33: 10.9 | GO33: 11.1 | GP33: 11.4 | GQ33: 12.7 | GR33: 13 | GS33: 12.5 | GT33: 12 | GU33: 11.1 | GV33: 11.4 | GW33: 10.9 | GX33: 10.9 | GY33: 10.4 | GZ33: 9.7 | HA33: 10 | HB33: 9.7 | HC33: 9.1 | HD33: 9 | HE33: 10 | HF33: 8.1 | HG33: 9.9 | HH33: 11.1 | HI33: 17.6 | HJ33: 16.8 | HK33: 16.6 | HL33: 19.8 | HM33: 24.6 | HN33: 27.8 | HO33: 26.2 | HP33: 25.6 | HQ33: 30.4 | HR33: 32 | HS33: 35.3 | HT33: 33.4 | HU33: 33.6 | HV33: 34.7 | HW33: 37.8 | HX33: 34.5 | HY33: 34.2 | HZ33: 38.6 | IA33: 42.7 | IB33: 44.4 | IC33: 39.1 | ID33: 38.1 | IE33: 36 | IF33: 34.1 | IG33: 30.7 | IH33: 29.2 | II33: 30.4 | IJ33: 29.7 | IK33: 28 | IL33: 21.9 | IM33: 20.7 | IN33: 20.6 | IO33: 21.5 | IP33: 22.5 | IQ33: 20.9 | IR33: 24.3 | IS33: 25.4 | IT33: 29.2 | IU33: 28.2 | IV33: 26.3 | IW33: 22.9 | IX33: 22.5 | IY33: 23.4 | IZ33: 25.9 | JA33: 25 | JB33: 26.7 | JC33: 27.3 | JD33: 26.1 | JE33: 22.4 | JF33: 20 | JG33: 18.7 | JH33: 18.5 | JI33: 21.6 | JJ33: 21.3 | JK33: 20.8 | JL33: 16 | JM33: 14.7 | JN33: 13 | JO33: 13.3 | JP33: 15.6 | JQ33: 15.5 | JR33: 16.9 | JS33: 16.7 | JT33: 21.3 | JU33: 18 | JV33: 16.9 | JW33: 16 | JX33: 18.6 | JY33: 23.5 | JZ33: 20.8 | KA33: 18.7 | KB33: 18.4 | KC33: 21.8 | KD33: 19.5 | KE33: 18.7 | KF33: 18 | KG33: 20.2 | KH33: 17.8 | KI33: 13 | KJ33: 13.6 | KK33: 10.6 | KL33: 9.5 | KM33: 8.4 | KN33: 11.6
E34: Estonia - Sum of Male 25-74 | DK34: 14.2 | DL34: 14.2 | DM34: 14.5 | DN34: 14.2 | DO34: 14.2 | DP34: 13.9 | DQ34: 14.5 | DR34: 13.9 | DS34: 13.8 | DT34: 14.2 | DU34: 13.9 | DV34: 14.4 | DW34: 13.4 | DX34: 13.1 | DY34: 13.4 | DZ34: 13.1 | EA34: 12.9 | EB34: 13 | EC34: 12.8 | ED34: 13.7 | EE34: 12.7 | EF34: 12.5 | EG34: 12.7 | EH34: 12.3 | EI34: 12.6 | EJ34: 12.1 | EK34: 11.6 | EL34: 11.7 | EM34: 12 | EN34: 12.2 | EO34: 11.4 | EP34: 11.5 | EQ34: 12.6 | ER34: 12.5 | ES34: 13 | ET34: 11.8 | EU34: 11.7 | EV34: 11.1 | EW34: 10.4 | EX34: 10.7 | EY34: 9.6 | EZ34: 9.5 | FA34: 9.4 | FB34: 9.4 | FC34: 9 | FD34: 8.2 | FE34: 7.9 | FF34: 8.5 | FG34: 8.6 | FH34: 9 | FI34: 9 | FJ34: 9 | FK34: 9 | FL34: 9.1 | FM34: 9.4 | FN34: 9.2 | FO34: 9.6 | FP34: 9.4 | FQ34: 9.7 | FR34: 9.6 | FS34: 9.8 | FT34: 9 | FU34: 8.6 | FV34: 8.8 | FW34: 8.4 | FX34: 7.5 | FY34: 7.2 | FZ34: 7.3 | GA34: 7.1 | GB34: 6.7 | GC34: 6.7 | GD34: 6.9 | GE34: 6.3 | GF34: 6 | GG34: 5.5 | GH34: 5.8 | GI34: 5.7 | GJ34: 5.5 | GK34: 5.3 | GL34: 5.4 | GM34: 5.7 | GN34: 5.4 | GO34: 5.1 | GP34: 5.2 | GQ34: 5.1 | GR34: 5 | GS34: 4.8 | GT34: 4.5 | GU34: 4.3 | GV34: 3.9 | GW34: 3.9 | GX34: 3.6 | GY34: 3.6 | GZ34: 3.8 | HA34: 3.4 | HB34: 3.4 | HC34: 3.4 | HD34: 3.8 | HE34: 4.2 | HF34: 3.7 | HG34: 4.2 | HH34: 4.9 | HI34: 5.9 | HJ34: 6.7 | HK34: 6.9 | HL34: 7 | HM34: 8.8 | HN34: 9.2 | HO34: 10.6 | HP34: 11.6 | HQ34: 12.7 | HR34: 14.1 | HS34: 14.6 | HT34: 16.3 | HU34: 15.9 | HV34: 16.3 | HW34: 17.4 | HX34: 18.9 | HY34: 19.6 | HZ34: 20.1 | IA34: 20.2 | IB34: 20.7 | IC34: 21.3 | ID34: 19.7 | IE34: 18.8 | IF34: 16.8 | IG34: 16 | IH34: 15 | II34: 14 | IJ34: 13.2 | IK34: 13.3 | IL34: 13.8 | IM34: 13.1 | IN34: 13.1 | IO34: 12.3 | IP34: 12.5 | IQ34: 12.4 | IR34: 11.3 | IS34: 10 | IT34: 9.7 | IU34: 10.9 | IV34: 11.1 | IW34: 10.5 | IX34: 9.9 | IY34: 10.1 | IZ34: 9.8 | JA34: 9.9 | JB34: 9.7 | JC34: 9.3 | JD34: 9.4 | JE34: 9.2 | JF34: 9.2 | JG34: 8.8 | JH34: 9 | JI34: 9.3 | JJ34: 9.3 | JK34: 8.5 | JL34: 8 | JM34: 7.7 | JN34: 7.9 | JO34: 7.9 | JP34: 7.8 | JQ34: 8.4 | JR34: 8.4 | JS34: 8.6 | JT34: 8 | JU34: 7.8 | JV34: 7.7 | JW34: 7.5 | JX34: 7.3 | JY34: 6.7 | JZ34: 6.4 | KA34: 6.7 | KB34: 7.3 | KC34: 8 | KD34: 7.6 | KE34: 6.1 | KF34: 5.6 | KG34: 5.5 | KH34: 5.7 | KI34: 5.7 | KJ34: 5.3 | KK34: 5.9 | KL34: 6 | KM34: 5.9 | KN34: 5.3
E35: Estonia - Sum of Female<25 | DK35: 23.7 | DL35: 21 | DM35: 21.1 | DN35: 22.2 | DO35: 23 | DP35: 21.8 | DQ35: 23.6 | DR35: 23 | DS35: 24.9 | DT35: 24.4 | DU35: 26.9 | DV35: 28.2 | DW35: 27.5 | DX35: 30.4 | DY35: 29.5 | DZ35: 28.8 | EA35: 26.1 | EB35: 23.9 | EC35: 21.3 | ED35: 22.2 | EE35: 22 | EF35: 25.3 | EG35: 23.6 | EH35: 27.8 | EI35: 26.6 | EJ35: 24.6 | EK35: 23.1 | EL35: 22.4 | EM35: 23.6 | EN35: 21.3 | EO35: 22.7 | EP35: 22.1 | EQ35: 22.4 | ER35: 19.2 | ES35: 20.8 | ET35: 20.3 | EU35: 23.1 | EV35: 26.9 | EW35: 27.8 | EX35: 28.3 | EY35: 35.1 | EZ35: 34.3 | FA35: 31.5 | FB35: 16.2 | FC35: 14.8 | FD35: 17.2 | FE35: 30.5 | FF35: 31.8 | FG35: 31.4 | FH35: 28.6 | FI35: 25.6 | FJ35: 23.1 | FK35: 21.1 | FL35: 20.9 | FM35: 19.1 | FN35: 19.5 | FO35: 20.9 | FP35: 20.3 | FQ35: 16.1 | FR35: 12.9 | FS35: 13.2 | FT35: 11.7 | FU35: 13.1 | FV35: 13.6 | FW35: 15 | FX35: 17.8 | FY35: 16.8 | FZ35: 17.8 | GA35: 15 | GB35: 14.2 | GC35: 14.8 | GD35: 16.4 | GE35: 16.3 | GF35: 17.4 | GG35: 15.3 | GH35: 14.7 | GI35: 14.7 | GJ35: 13.2 | GK35: 15 | GL35: 13.9 | GM35: 14.1 | GN35: 13 | GO35: 12.1 | GP35: 10.2 | GQ35: 9 | GR35: 7.8 | GS35: 8 | GT35: 7.7 | GU35: 6.4 | GV35: 6 | GW35: 5.7 | GX35: 5.7 | GY35: 6.6 | GZ35: 5.8 | HA35: 6 | HB35: 6.1 | HC35: 7 | HD35: 7.6 | HE35: 8.8 | HF35: 7 | HG35: 7.5 | HH35: 10.9 | HI35: 12.7 | HJ35: 13.5 | HK35: 13.1 | HL35: 15.9 | HM35: 20.5 | HN35: 18.1 | HO35: 17.8 | HP35: 15.5 | HQ35: 16.6 | HR35: 17.6 | HS35: 21.5 | HT35: 23.7 | HU35: 25.7 | HV35: 23 | HW35: 26.3 | HX35: 27.2 | HY35: 25.6 | HZ35: 27.3 | IA35: 32.1 | IB35: 36.6 | IC35: 37.9 | ID35: 36.7 | IE35: 32.9 | IF35: 31.7 | IG35: 28.4 | IH35: 27.4 | II35: 24.6 | IJ35: 20 | IK35: 20.5 | IL35: 20.1 | IM35: 17.9 | IN35: 18.2 | IO35: 17.5 | IP35: 20.8 | IQ35: 20.6 | IR35: 20.5 | IS35: 21.3 | IT35: 23.5 | IU35: 24 | IV35: 22.5 | IW35: 23.1 | IX35: 19.9 | IY35: 19.8 | IZ35: 18.6 | JA35: 18.4 | JB35: 19.1 | JC35: 19.6 | JD35: 18.1 | JE35: 17.9 | JF35: 18.2 | JG35: 17.3 | JH35: 17.1 | JI35: 16.3 | JJ35: 18.4 | JK35: 22.1 | JL35: 22.3 | JM35: 19.2 | JN35: 17.9 | JO35: 18.2 | JP35: 16.6 | JQ35: 16.4 | JR35: 17.6 | JS35: 19.3 | JT35: 22.5 | JU35: 18.8 | JV35: 22.4 | JW35: 16.2 | JX35: 15.2 | JY35: 11.7 | JZ35: 10.6 | KA35: 9.8 | KB35: 8.3 | KC35: 8.3 | KD35: 8.3 | KE35: 8.6 | KF35: 8.7 | KG35: 10.1 | KH35: 9.4 | KI35: 10.6 | KJ35: 9.7 | KK35: 12 | KL35: 11.6 | KM35: 11.9 | KN35: 11.4
E36: Estonia - Sum of Female25-74 | DK36: 13.3 | DL36: 11.7 | DM36: 12 | DN36: 11.2 | DO36: 11.6 | DP36: 11.5 | DQ36: 11.5 | DR36: 12.1 | DS36: 11.5 | DT36: 12 | DU36: 11.8 | DV36: 11.7 | DW36: 11.8 | DX36: 12.4 | DY36: 12.6 | DZ36: 11.7 | EA36: 10.4 | EB36: 11.2 | EC36: 10.4 | ED36: 9.8 | EE36: 8.7 | EF36: 9.5 | EG36: 8.7 | EH36: 9.1 | EI36: 9 | EJ36: 9 | EK36: 8.1 | EL36: 7.7 | EM36: 8.7 | EN36: 9.2 | EO36: 9.6 | EP36: 9.6 | EQ36: 9.4 | ER36: 8.9 | ES36: 9.1 | ET36: 9.2 | EU36: 8.7 | EV36: 8.4 | EW36: 8.5 | EX36: 8.7 | EY36: 8.6 | EZ36: 7.8 | FA36: 7.1 | FB36: 6.6 | FC36: 7.6 | FD36: 8.2 | FE36: 9 | FF36: 8.5 | FG36: 7.1 | FH36: 6.4 | FI36: 6.9 | FJ36: 7.6 | FK36: 7.4 | FL36: 7.8 | FM36: 8.8 | FN36: 8.6 | FO36: 8.4 | FP36: 7.4 | FQ36: 7.3 | FR36: 7.6 | FS36: 7.3 | FT36: 6.9 | FU36: 5.9 | FV36: 5.4 | FW36: 5.7 | FX36: 6 | FY36: 6.1 | FZ36: 6.4 | GA36: 6.5 | GB36: 6 | GC36: 5.2 | GD36: 4.2 | GE36: 4.4 | GF36: 4.8 | GG36: 5.1 | GH36: 5.6 | GI36: 5.2 | GJ36: 5.1 | GK36: 4.8 | GL36: 4.6 | GM36: 4.6 | GN36: 4 | GO36: 3.6 | GP36: 3.4 | GQ36: 3.2 | GR36: 3.7 | GS36: 3.7 | GT36: 4.1 | GU36: 3.9 | GV36: 3.3 | GW36: 3.2 | GX36: 3.1 | GY36: 3.3 | GZ36: 3.3 | HA36: 3.9 | HB36: 4.4 | HC36: 4.4 | HD36: 3.8 | HE36: 3.6 | HF36: 3.5 | HG36: 3.9 | HH36: 4.6 | HI36: 4.5 | HJ36: 5.1 | HK36: 5.3 | HL36: 6.2 | HM36: 6.4 | HN36: 7.1 | HO36: 7.2 | HP36: 8.7 | HQ36: 9.2 | HR36: 9.1 | HS36: 8.7 | HT36: 9.1 | HU36: 10.1 | HV36: 9.8 | HW36: 10.1 | HX36: 10.2 | HY36: 11.3 | HZ36: 11.4 | IA36: 12 | IB36: 11.3 | IC36: 11.7 | ID36: 12.4 | IE36: 12.3 | IF36: 12.8 | IG36: 13.3 | IH36: 13.9 | II36: 13.4 | IJ36: 12.8 | IK36: 13 | IL36: 12.7 | IM36: 12.2 | IN36: 11.9 | IO36: 12.1 | IP36: 11.5 | IQ36: 11.7 | IR36: 10.5 | IS36: 9.6 | IT36: 9.7 | IU36: 9.6 | IV36: 9.4 | IW36: 8.5 | IX36: 8.7 | IY36: 8.5 | IZ36: 8.8 | JA36: 7.8 | JB36: 7.9 | JC36: 8.4 | JD36: 8.5 | JE36: 8.5 | JF36: 7.6 | JG36: 7.8 | JH36: 7.8 | JI36: 7.4 | JJ36: 7.3 | JK36: 7.4 | JL36: 7.5 | JM36: 7.3 | JN36: 7.3 | JO36: 7 | JP36: 6.8 | JQ36: 6.6 | JR36: 6.9 | JS36: 6.9 | JT36: 6.9 | JU36: 6.9 | JV36: 6.5 | JW36: 6.5 | JX36: 6.1 | JY36: 5.8 | JZ36: 5.9 | KA36: 6.2 | KB36: 6.8 | KC36: 6.7 | KD36: 6.6 | KE36: 6.5 | KF36: 6.3 | KG36: 5.8 | KH36: 5.4 | KI36: 5.3 | KJ36: 5.8 | KK36: 6.2 | KL36: 5.9 | KM36: 5.6 | KN36: 5.1
E37: EU28 - Sum of Male< 25 | DJ37: 17.1 | DK37: 17 | DL37: 17.1 | DM37: 17.2 | DN37: 17.1 | DO37: 17 | DP37: 16.9 | DQ37: 16.9 | DR37: 16.8 | DS37: 16.7 | DT37: 16.6 | DU37: 16.6 | DV37: 16.5 | DW37: 16.6 | DX37: 16.7 | DY37: 16.8 | DZ37: 17 | EA37: 17.1 | EB37: 17.2 | EC37: 17.3 | ED37: 17.3 | EE37: 17.5 | EF37: 17.6 | EG37: 17.7 | EH37: 17.6 | EI37: 17.7 | EJ37: 17.6 | EK37: 17.8 | EL37: 17.8 | EM37: 17.8 | EN37: 18 | EO37: 18.1 | EP37: 18.2 | EQ37: 18.3 | ER37: 18.3 | ES37: 18.2 | ET37: 18.4 | EU37: 18.3 | EV37: 18.4 | EW37: 18.5 | EX37: 18.5 | EY37: 18.7 | EZ37: 18.7 | FA37: 18.6 | FB37: 18.7 | FC37: 18.7 | FD37: 18.8 | FE37: 18.8 | FF37: 18.9 | FG37: 18.9 | FH37: 18.8 | FI37: 18.7 | FJ37: 18.8 | FK37: 18.9 | FL37: 18.9 | FM37: 18.9 | FN37: 18.9 | FO37: 18.8 | FP37: 18.9 | FQ37: 18.9 | FR37: 19 | FS37: 19 | FT37: 19.2 | FU37: 19.1 | FV37: 19.1 | FW37: 18.9 | FX37: 18.7 | FY37: 18.6 | FZ37: 18.7 | GA37: 18.6 | GB37: 18.4 | GC37: 18.2 | GD37: 18.1 | GE37: 18 | GF37: 18 | GG37: 17.8 | GH37: 17.5 | GI37: 17.1 | GJ37: 16.9 | GK37: 16.9 | GL37: 16.7 | GM37: 16.7 | GN37: 16.6 | GO37: 16.4 | GP37: 16 | GQ37: 15.7 | GR37: 15.6 | GS37: 15.4 | GT37: 15.5 | GU37: 15.4 | GV37: 15.4 | GW37: 15.4 | GX37: 15.2 | GY37: 15.1 | GZ37: 14.9 | HA37: 15 | HB37: 15 | HC37: 15 | HD37: 14.9 | HE37: 14.9 | HF37: 15.1 | HG37: 15.7 | HH37: 16 | HI37: 16.1 | HJ37: 16.3 | HK37: 16.8 | HL37: 17.2 | HM37: 17.8 | HN37: 18.7 | HO37: 19.5 | HP37: 20.2 | HQ37: 20.8 | HR37: 21.1 | HS37: 21.4 | HT37: 21.8 | HU37: 22 | HV37: 22.2 | HW37: 22.3 | HX37: 22.3 | HY37: 22.3 | HZ37: 22.5 | IA37: 22.5 | IB37: 22.4 | IC37: 22.3 | ID37: 22.1 | IE37: 21.7 | IF37: 21.5 | IG37: 21.5 | IH37: 21.5 | II37: 21.5 | IJ37: 21.3 | IK37: 21.4 | IL37: 21.3 | IM37: 21.4 | IN37: 21.5 | IO37: 21.5 | IP37: 21.5 | IQ37: 21.6 | IR37: 22 | IS37: 22.1 | IT37: 22.4 | IU37: 22.6 | IV37: 22.9 | IW37: 23 | IX37: 23.1 | IY37: 23.3 | IZ37: 23.5 | JA37: 23.5 | JB37: 23.7 | JC37: 23.5 | JD37: 23.6 | JE37: 23.6 | JF37: 23.8 | JG37: 24 | JH37: 24.1 | JI37: 24.2 | JJ37: 24.3 | JK37: 24.3 | JL37: 24 | JM37: 24.2 | JN37: 24.2 | JO37: 24.2 | JP37: 24.2 | JQ37: 24.2 | JR37: 24.1 | JS37: 23.7 | JT37: 23.7 | JU37: 23.4 | JV37: 23.3 | JW37: 23.1 | JX37: 22.9 | JY37: 23.1 | JZ37: 22.9 | KA37: 22.9 | KB37: 22.6 | KC37: 22.5 | KD37: 22.4 | KE37: 22.2 | KF37: 22.1 | KG37: 21.8 | KH37: 21.7 | KI37: 21.6 | KJ37: 21.5 | KK37: 21.4 | KL37: 21.4 | KM37: 21.2 | KN37: 21 | KO37: 21
E38: EU28 - Sum of Male 25-74 | DJ38: 6.9 | DK38: 6.9 | DL38: 6.8 | DM38: 6.8 | DN38: 6.7 | DO38: 6.6 | DP38: 6.6 | DQ38: 6.6 | DR38: 6.5 | DS38: 6.5 | DT38: 6.5 | DU38: 6.5 | DV38: 6.5 | DW38: 6.5 | DX38: 6.5 | DY38: 6.5 | DZ38: 6.5 | EA38: 6.6 | EB38: 6.6 | EC38: 6.6 | ED38: 6.6 | EE38: 6.7 | EF38: 6.7 | EG38: 6.8 | EH38: 6.8 | EI38: 6.9 | EJ38: 6.9 | EK38: 7 | EL38: 7 | EM38: 7 | EN38: 7 | EO38: 7 | EP38: 7.1 | EQ38: 7.1 | ER38: 7.1 | ES38: 7.1 | ET38: 7.1 | EU38: 7.1 | EV38: 7.1 | EW38: 7.1 | EX38: 7.1 | EY38: 7.1 | EZ38: 7.1 | FA38: 7.1 | FB38: 7.1 | FC38: 7.1 | FD38: 7.2 | FE38: 7.2 | FF38: 7.3 | FG38: 7.2 | FH38: 7.3 | FI38: 7.2 | FJ38: 7.3 | FK38: 7.3 | FL38: 7.3 | FM38: 7.2 | FN38: 7.3 | FO38: 7.2 | FP38: 7.2 | FQ38: 7.2 | FR38: 7.2 | FS38: 7.2 | FT38: 7.2 | FU38: 7.2 | FV38: 7.1 | FW38: 7.1 | FX38: 7 | FY38: 7 | FZ38: 7 | GA38: 6.9 | GB38: 6.9 | GC38: 6.8 | GD38: 6.7 | GE38: 6.7 | GF38: 6.6 | GG38: 6.5 | GH38: 6.5 | GI38: 6.4 | GJ38: 6.4 | GK38: 6.3 | GL38: 6.3 | GM38: 6.2 | GN38: 6.1 | GO38: 6 | GP38: 5.8 | GQ38: 5.7 | GR38: 5.7 | GS38: 5.6 | GT38: 5.5 | GU38: 5.5 | GV38: 5.5 | GW38: 5.5 | GX38: 5.4 | GY38: 5.4 | GZ38: 5.3 | HA38: 5.3 | HB38: 5.2 | HC38: 5.2 | HD38: 5.2 | HE38: 5.3 | HF38: 5.3 | HG38: 5.4 | HH38: 5.4 | HI38: 5.5 | HJ38: 5.6 | HK38: 5.7 | HL38: 5.9 | HM38: 6.2 | HN38: 6.5 | HO38: 6.8 | HP38: 7.1 | HQ38: 7.3 | HR38: 7.4 | HS38: 7.6 | HT38: 7.8 | HU38: 7.9 | HV38: 8 | HW38: 8 | HX38: 8 | HY38: 8.1 | HZ38: 8.2 | IA38: 8.3 | IB38: 8.3 | IC38: 8.3 | ID38: 8.3 | IE38: 8.3 | IF38: 8.2 | IG38: 8.2 | IH38: 8.2 | II38: 8.2 | IJ38: 8.1 | IK38: 8.1 | IL38: 8 | IM38: 8 | IN38: 7.9 | IO38: 7.9 | IP38: 8 | IQ38: 8 | IR38: 8.1 | IS38: 8.2 | IT38: 8.3 | IU38: 8.4 | IV38: 8.4 | IW38: 8.5 | IX38: 8.5 | IY38: 8.6 | IZ38: 8.7 | JA38: 8.8 | JB38: 8.9 | JC38: 9 | JD38: 9 | JE38: 9 | JF38: 9.1 | JG38: 9.2 | JH38: 9.2 | JI38: 9.3 | JJ38: 9.4 | JK38: 9.4 | JL38: 9.4 | JM38: 9.4 | JN38: 9.4 | JO38: 9.5 | JP38: 9.4 | JQ38: 9.4 | JR38: 9.3 | JS38: 9.2 | JT38: 9.2 | JU38: 9.1 | JV38: 9.1 | JW38: 9.1 | JX38: 9 | JY38: 8.9 | JZ38: 8.8 | KA38: 8.7 | KB38: 8.7 | KC38: 8.6 | KD38: 8.6 | KE38: 8.6 | KF38: 8.6 | KG38: 8.5 | KH38: 8.5 | KI38: 8.4 | KJ38: 8.4 | KK38: 8.3 | KL38: 8.3 | KM38: 8.3 | KN38: 8.2 | KO38: 8.2
E39: EU28 - Sum of Female<25 | DJ39: 19.3 | DK39: 19.3 | DL39: 19.2 | DM39: 19.1 | DN39: 19 | DO39: 18.9 | DP39: 18.8 | DQ39: 18.8 | DR39: 18.7 | DS39: 18.5 | DT39: 18.5 | DU39: 18.4 | DV39: 18.3 | DW39: 18.4 | DX39: 18.5 | DY39: 18.4 | DZ39: 18.4 | EA39: 18.4 | EB39: 18.4 | EC39: 18.5 | ED39: 18.5 | EE39: 18.5 | EF39: 18.5 | EG39: 18.5 | EH39: 18.4 | EI39: 18.5 | EJ39: 18.5 | EK39: 18.6 | EL39: 18.4 | EM39: 18.5 | EN39: 18.7 | EO39: 18.7 | EP39: 18.6 | EQ39: 18.5 | ER39: 18.4 | ES39: 18.3 | ET39: 18.4 | EU39: 18.4 | EV39: 18.6 | EW39: 18.8 | EX39: 18.9 | EY39: 19.2 | EZ39: 18.9 | FA39: 18.8 | FB39: 18.6 | FC39: 18.5 | FD39: 18.7 | FE39: 18.9 | FF39: 19.1 | FG39: 19.1 | FH39: 19.2 | FI39: 19.4 | FJ39: 19.2 | FK39: 19.3 | FL39: 19.2 | FM39: 19.2 | FN39: 19.3 | FO39: 19.3 | FP39: 19.4 | FQ39: 19.4 | FR39: 19.2 | FS39: 19.4 | FT39: 19.2 | FU39: 19.3 | FV39: 19.3 | FW39: 19.1 | FX39: 19.3 | FY39: 18.9 | FZ39: 19 | GA39: 19 | GB39: 18.8 | GC39: 18.8 | GD39: 18.6 | GE39: 18.4 | GF39: 18.3 | GG39: 18.1 | GH39: 18.1 | GI39: 17.8 | GJ39: 17.9 | GK39: 17.9 | GL39: 17.9 | GM39: 17.5 | GN39: 17.4 | GO39: 17.2 | GP39: 17.2 | GQ39: 16.9 | GR39: 16.7 | GS39: 16.4 | GT39: 16 | GU39: 16.1 | GV39: 16 | GW39: 16 | GX39: 15.8 | GY39: 15.7 | GZ39: 15.4 | HA39: 15.4 | HB39: 15.3 | HC39: 15.2 | HD39: 15.4 | HE39: 15.5 | HF39: 15.6 | HG39: 15.9 | HH39: 15.7 | HI39: 15.6 | HJ39: 15.9 | HK39: 16.2 | HL39: 16.9 | HM39: 17 | HN39: 17.4 | HO39: 17.9 | HP39: 18.3 | HQ39: 18.4 | HR39: 18.6 | HS39: 18.6 | HT39: 19.1 | HU39: 19.4 | HV39: 19.6 | HW39: 19.5 | HX39: 19.3 | HY39: 19.3 | HZ39: 19.4 | IA39: 19.7 | IB39: 19.7 | IC39: 20.2 | ID39: 20.3 | IE39: 20.2 | IF39: 20.3 | IG39: 20.3 | IH39: 20.5 | II39: 20.6 | IJ39: 20.5 | IK39: 20.7 | IL39: 20.8 | IM39: 20.6 | IN39: 20.5 | IO39: 20.4 | IP39: 20.6 | IQ39: 20.9 | IR39: 20.9 | IS39: 21 | IT39: 21.1 | IU39: 21.2 | IV39: 21.5 | IW39: 21.4 | IX39: 21.5 | IY39: 21.8 | IZ39: 21.9 | JA39: 21.9 | JB39: 22.1 | JC39: 22 | JD39: 22.2 | JE39: 22.4 | JF39: 22.5 | JG39: 22.6 | JH39: 22.8 | JI39: 22.8 | JJ39: 22.9 | JK39: 22.8 | JL39: 22.7 | JM39: 22.8 | JN39: 22.8 | JO39: 22.8 | JP39: 22.8 | JQ39: 22.8 | JR39: 22.6 | JS39: 22.5 | JT39: 22.5 | JU39: 22.4 | JV39: 22.5 | JW39: 22.2 | JX39: 22 | JY39: 21.7 | JZ39: 21.3 | KA39: 21.1 | KB39: 21.2 | KC39: 21.1 | KD39: 21.1 | KE39: 21 | KF39: 20.7 | KG39: 20.4 | KH39: 20.2 | KI39: 20.2 | KJ39: 20.2 | KK39: 20 | KL39: 19.9 | KM39: 20 | KN39: 19.6 | KO39: 19.6
E40: EU28 - Sum of Female25-74 | DJ40: 9.1 | DK40: 9.1 | DL40: 9.1 | DM40: 9.1 | DN40: 9 | DO40: 9 | DP40: 8.9 | DQ40: 8.9 | DR40: 8.8 | DS40: 8.7 | DT40: 8.7 | DU40: 8.6 | DV40: 8.5 | DW40: 8.5 | DX40: 8.5 | DY40: 8.4 | DZ40: 8.4 | EA40: 8.4 | EB40: 8.4 | EC40: 8.4 | ED40: 8.4 | EE40: 8.4 | EF40: 8.5 | EG40: 8.5 | EH40: 8.6 | EI40: 8.6 | EJ40: 8.6 | EK40: 8.7 | EL40: 8.6 | EM40: 8.6 | EN40: 8.7 | EO40: 8.7 | EP40: 8.7 | EQ40: 8.7 | ER40: 8.7 | ES40: 8.6 | ET40: 8.7 | EU40: 8.7 | EV40: 8.7 | EW40: 8.6 | EX40: 8.7 | EY40: 8.7 | EZ40: 8.7 | FA40: 8.7 | FB40: 8.7 | FC40: 8.7 | FD40: 8.7 | FE40: 8.8 | FF40: 8.9 | FG40: 8.9 | FH40: 8.8 | FI40: 8.8 | FJ40: 8.8 | FK40: 8.7 | FL40: 8.7 | FM40: 8.7 | FN40: 8.8 | FO40: 8.7 | FP40: 8.7 | FQ40: 8.7 | FR40: 8.6 | FS40: 8.6 | FT40: 8.6 | FU40: 8.6 | FV40: 8.6 | FW40: 8.6 | FX40: 8.4 | FY40: 8.4 | FZ40: 8.4 | GA40: 8.5 | GB40: 8.4 | GC40: 8.3 | GD40: 8.3 | GE40: 8.2 | GF40: 8.1 | GG40: 8 | GH40: 7.9 | GI40: 7.8 | GJ40: 7.7 | GK40: 7.7 | GL40: 7.6 | GM40: 7.4 | GN40: 7.4 | GO40: 7.3 | GP40: 7.2 | GQ40: 7.1 | GR40: 7 | GS40: 6.9 | GT40: 6.9 | GU40: 6.8 | GV40: 6.8 | GW40: 6.7 | GX40: 6.7 | GY40: 6.7 | GZ40: 6.6 | HA40: 6.5 | HB40: 6.5 | HC40: 6.4 | HD40: 6.3 | HE40: 6.4 | HF40: 6.4 | HG40: 6.5 | HH40: 6.5 | HI40: 6.5 | HJ40: 6.5 | HK40: 6.5 | HL40: 6.7 | HM40: 6.8 | HN40: 7 | HO40: 7.2 | HP40: 7.4 | HQ40: 7.5 | HR40: 7.6 | HS40: 7.7 | HT40: 7.7 | HU40: 7.8 | HV40: 7.9 | HW40: 7.9 | HX40: 8 | HY40: 8.1 | HZ40: 8.2 | IA40: 8.2 | IB40: 8.3 | IC40: 8.3 | ID40: 8.3 | IE40: 8.3 | IF40: 8.3 | IG40: 8.3 | IH40: 8.3 | II40: 8.4 | IJ40: 8.3 | IK40: 8.3 | IL40: 8.3 | IM40: 8.2 | IN40: 8.2 | IO40: 8.2 | IP40: 8.3 | IQ40: 8.3 | IR40: 8.4 | IS40: 8.5 | IT40: 8.6 | IU40: 8.6 | IV40: 8.7 | IW40: 8.8 | IX40: 8.8 | IY40: 8.9 | IZ40: 9 | JA40: 9 | JB40: 9.1 | JC40: 9.2 | JD40: 9.2 | JE40: 9.2 | JF40: 9.3 | JG40: 9.4 | JH40: 9.5 | JI40: 9.5 | JJ40: 9.6 | JK40: 9.6 | JL40: 9.6 | JM40: 9.7 | JN40: 9.6 | JO40: 9.6 | JP40: 9.5 | JQ40: 9.6 | JR40: 9.6 | JS40: 9.5 | JT40: 9.5 | JU40: 9.4 | JV40: 9.3 | JW40: 9.3 | JX40: 9.2 | JY40: 9.2 | JZ40: 9.3 | KA40: 9.2 | KB40: 9.2 | KC40: 9.1 | KD40: 9.1 | KE40: 9.1 | KF40: 9 | KG40: 8.9 | KH40: 8.8 | KI40: 8.8 | KJ40: 8.7 | KK40: 8.7 | KL40: 8.6 | KM40: 8.6 | KN40: 8.6 | KO40: 8.6
E41: Finland - Sum of Male< 25 | F41: 13.3 | G41: 14.1 | H41: 14.9 | I41: 15.9 | J41: 17.1 | K41: 18.3 | L41: 19.4 | M41: 20.4 | N41: 21.6 | O41: 22.8 | P41: 23.8 | Q41: 24.7 | R41: 25.4 | S41: 26.1 | T41: 27 | U41: 28 | V41: 29.2 | W41: 30.4 | X41: 31.4 | Y41: 32 | Z41: 32.3 | AA41: 32.6 | AB41: 33 | AC41: 33.2 | AD41: 33.5 | AE41: 34.1 | AF41: 34.9 | AG41: 35.7 | AH41: 36.5 | AI41: 37.3 | AJ41: 37.5 | AK41: 37.4 | AL41: 37.4 | AM41: 37.4 | AN41: 37.6 | AO41: 38.1 | AP41: 38.8 | AQ41: 39.4 | AR41: 39.6 | AS41: 39.2 | AT41: 38.1 | AU41: 36.8 | AV41: 35.8 | AW41: 35.5 | AX41: 35.5 | AY41: 35.5 | AZ41: 35.1 | BA41: 34.5 | BB41: 33.8 | BC41: 33 | BD41: 32.1 | BE41: 31.4 | BF41: 30.8 | BG41: 30.3 | BH41: 30.1 | BI41: 30.1 | BJ41: 30.2 | BK41: 30.4 | BL41: 30.6 | BM41: 30.8 | BN41: 30.8 | BO41: 30.8 | BP41: 30.8 | BQ41: 30.6 | BR41: 30.2 | BS41: 29.8 | BT41: 29.6 | BU41: 29.4 | BV41: 29.2 | BW41: 28.7 | BX41: 28.4 | BY41: 28.1 | BZ41: 27.7 | CA41: 27.3 | CB41: 26.8 | CC41: 26.4 | CD41: 26.1 | CE41: 26.1 | CF41: 26.2 | CG41: 26.2 | CH41: 25.9 | CI41: 25.3 | CJ41: 24.8 | CK41: 24.5 | CL41: 24.1 | CM41: 23.7 | CN41: 23.6 | CO41: 23.8 | CP41: 24.1 | CQ41: 24.1 | CR41: 23.7 | CS41: 23.1 | CT41: 22.5 | CU41: 22 | CV41: 21.7 | CW41: 21.5 | CX41: 21.5 | CY41: 21.3 | CZ41: 21.1 | DA41: 20.9 | DB41: 20.8 | DC41: 20.6 | DD41: 20.4 | DE41: 20.4 | DF41: 20.6 | DG41: 21 | DH41: 21.5 | DI41: 21.7 | DJ41: 21.9 | DK41: 21.8 | DL41: 21.5 | DM41: 21.1 | DN41: 20.8 | DO41: 20.6 | DP41: 20.4 | DQ41: 20.4 | DR41: 20.4 | DS41: 20.3 | DT41: 20 | DU41: 19.7 | DV41: 19.5 | DW41: 19.5 | DX41: 19.5 | DY41: 19.3 | DZ41: 19.2 | EA41: 19.3 | EB41: 19.6 | EC41: 19.9 | ED41: 20.1 | EE41: 20.3 | EF41: 20.4 | EG41: 20.7 | EH41: 21 | EI41: 21.2 | EJ41: 21.4 | EK41: 21.5 | EL41: 21.5 | EM41: 21.4 | EN41: 21.2 | EO41: 20.9 | EP41: 20.8 | EQ41: 20.9 | ER41: 21.1 | ES41: 21.2 | ET41: 21.4 | EU41: 21.7 | EV41: 21.8 | EW41: 21.8 | EX41: 21.8 | EY41: 21.9 | EZ41: 21.8 | FA41: 21.7 | FB41: 21.7 | FC41: 22 | FD41: 22.3 | FE41: 22.4 | FF41: 22.4 | FG41: 22.2 | FH41: 22 | FI41: 21.9 | FJ41: 21.7 | FK41: 21.5 | FL41: 21.4 | FM41: 21.5 | FN41: 21.6 | FO41: 21.8 | FP41: 21.8 | FQ41: 21.7 | FR41: 21.4 | FS41: 21.2 | FT41: 21.1 | FU41: 21 | FV41: 21 | FW41: 21.1 | FX41: 21.1 | FY41: 21 | FZ41: 20.5 | GA41: 20.1 | GB41: 19.9 | GC41: 19.8 | GD41: 19.8 | GE41: 19.7 | GF41: 19.6 | GG41: 19.7 | GH41: 19.6 | GI41: 19.3 | GJ41: 19 | GK41: 18.8 | GL41: 18.5 | GM41: 18.2 | GN41: 17.7 | GO41: 17.5 | GP41: 17.4 | GQ41: 17.4 | GR41: 17.3 | GS41: 17.1 | GT41: 16.9 | GU41: 16.8 | GV41: 16.7 | GW41: 16.7 | GX41: 16.8 | GY41: 16.8 | GZ41: 16.6 | HA41: 16.3 | HB41: 16 | HC41: 15.9 | HD41: 15.9 | HE41: 16.3 | HF41: 16.9 | HG41: 17.5 | HH41: 18 | HI41: 18.5 | HJ41: 18.9 | HK41: 19.2 | HL41: 19.4 | HM41: 19.8 | HN41: 20.2 | HO41: 20.8 | HP41: 21.3 | HQ41: 21.6 | HR41: 22 | HS41: 22.4 | HT41: 22.7 | HU41: 22.8 | HV41: 22.9 | HW41: 23.3 | HX41: 23.7 | HY41: 24 | HZ41: 24.1 | IA41: 24.1 | IB41: 24 | IC41: 23.9 | ID41: 23.6 | IE41: 23.2 | IF41: 22.9 | IG41: 22.7 | IH41: 22.6 | II41: 22.6 | IJ41: 22.5 | IK41: 22.2 | IL41: 21.7 | IM41: 21.5 | IN41: 21.6 | IO41: 21.8 | IP41: 21.9 | IQ41: 22.1 | IR41: 22.3 | IS41: 22.3 | IT41: 22.2 | IU41: 22 | IV41: 21.7 | IW41: 21.4 | IX41: 21 | IY41: 20.5 | IZ41: 20.1 | JA41: 19.7 | JB41: 19.4 | JC41: 19.3 | JD41: 19.6 | JE41: 20 | JF41: 20.4 | JG41: 20.7 | JH41: 21 | JI41: 21.5 | JJ41: 22.2 | JK41: 22.7 | JL41: 22.9 | JM41: 23.1 | JN41: 23.3 | JO41: 23.1 | JP41: 22.9 | JQ41: 22.7 | JR41: 22.5 | JS41: 22.3 | JT41: 22.2 | JU41: 22.2 | JV41: 22.3 | JW41: 22.4 | JX41: 22.4 | JY41: 22.4 | JZ41: 22.3 | KA41: 22.4 | KB41: 22.7 | KC41: 22.8 | KD41: 22.9 | KE41: 23.1 | KF41: 23.5 | KG41: 24 | KH41: 24.5 | KI41: 25 | KJ41: 25.5 | KK41: 26.1 | KL41: 26.7 | KM41: 27.2 | KN41: 27.5 | KO41: 27.6
E42: Finland - Sum of Male 25-74 | F42: 3.7 | G42: 4 | H42: 4.4 | I42: 4.9 | J42: 5.4 | K42: 6 | L42: 6.7 | M42: 7.3 | N42: 7.8 | O42: 8.2 | P42: 8.5 | Q42: 8.9 | R42: 9.3 | S42: 9.6 | T42: 9.9 | U42: 10.1 | V42: 10.4 | W42: 10.8 | X42: 11.3 | Y42: 11.8 | Z42: 12.4 | AA42: 12.8 | AB42: 13.2 | AC42: 13.6 | AD42: 14.1 | AE42: 14.5 | AF42: 14.8 | AG42: 15 | AH42: 15.2 | AI42: 15.5 | AJ42: 15.9 | AK42: 16.3 | AL42: 16.7 | AM42: 17.1 | AN42: 17.4 | AO42: 17.7 | AP42: 17.9 | AQ42: 16.2 | AR42: 16.3 | AS42: 16.5 | AT42: 16.5 | AU42: 16.3 | AV42: 15.9 | AW42: 15.5 | AX42: 15.2 | AY42: 14.8 | AZ42: 14.4 | BA42: 14.1 | BB42: 13.9 | BC42: 13.6 | BD42: 13.3 | BE42: 13 | BF42: 12.8 | BG42: 12.8 | BH42: 12.8 | BI42: 12.9 | BJ42: 13 | BK42: 13.3 | BL42: 13.6 | BM42: 13.9 | BN42: 14 | BO42: 14.1 | BP42: 11.1 | BQ42: 11.4 | BR42: 11.8 | BS42: 12.2 | BT42: 12.5 | BU42: 12.8 | BV42: 12.9 | BW42: 12.8 | BX42: 12.8 | BY42: 11.4 | BZ42: 11.4 | CA42: 11.4 | CB42: 11.4 | CC42: 11.2 | CD42: 10.9 | CE42: 10.6 | CF42: 10.2 | CG42: 10.1 | CH42: 10 | CI42: 10 | CJ42: 10 | CK42: 9.9 | CL42: 9.9 | CM42: 9.8 | CN42: 9.7 | CO42: 9.6 | CP42: 9.4 | CQ42: 9.3 | CR42: 9.2 | CS42: 9 | CT42: 8.8 | CU42: 8.7 | CV42: 8.7 | CW42: 8.8 | CX42: 8.9 | CY42: 8.8 | CZ42: 8.6 | DA42: 8.4 | DB42: 8.2 | DC42: 8.1 | DD42: 8 | DE42: 7.9 | DF42: 7.8 | DG42: 7.9 | DH42: 7.9 | DI42: 7.8 | DJ42: 7.8 | DK42: 8 | DL42: 7.9 | DM42: 7.7 | DN42: 7.3 | DO42: 7.1 | DP42: 7 | DQ42: 7.1 | DR42: 7.1 | DS42: 7.1 | DT42: 7 | DU42: 6.9 | DV42: 6.9 | DW42: 6.9 | DX42: 7 | DY42: 7.1 | DZ42: 7.1 | EA42: 7.1 | EB42: 7.1 | EC42: 7.1 | ED42: 7.2 | EE42: 7.2 | EF42: 7.2 | EG42: 7.1 | EH42: 7.1 | EI42: 7.1 | EJ42: 7.2 | EK42: 7.4 | EL42: 7.6 | EM42: 7.6 | EN42: 7.7 | EO42: 7.7 | EP42: 7.6 | EQ42: 7.5 | ER42: 7.4 | ES42: 7.3 | ET42: 7.2 | EU42: 7.1 | EV42: 7.1 | EW42: 7.1 | EX42: 7.1 | EY42: 7 | EZ42: 6.9 | FA42: 6.9 | FB42: 7 | FC42: 7.1 | FD42: 7.2 | FE42: 7.2 | FF42: 7.2 | FG42: 7.2 | FH42: 7.2 | FI42: 7.3 | FJ42: 7.2 | FK42: 7.1 | FL42: 6.9 | FM42: 6.7 | FN42: 6.6 | FO42: 6.6 | FP42: 6.8 | FQ42: 7 | FR42: 7 | FS42: 6.9 | FT42: 6.8 | FU42: 6.6 | FV42: 6.5 | FW42: 6.4 | FX42: 6.3 | FY42: 6.2 | FZ42: 6.2 | GA42: 6.2 | GB42: 6.2 | GC42: 6.1 | GD42: 6 | GE42: 5.9 | GF42: 5.9 | GG42: 5.9 | GH42: 5.9 | GI42: 5.9 | GJ42: 5.8 | GK42: 5.7 | GL42: 5.7 | GM42: 5.6 | GN42: 5.5 | GO42: 5.4 | GP42: 5.3 | GQ42: 5.2 | GR42: 5.1 | GS42: 5.1 | GT42: 5.1 | GU42: 5.2 | GV42: 5.3 | GW42: 5.3 | GX42: 5.3 | GY42: 5.1 | GZ42: 4.9 | HA42: 4.7 | HB42: 4.5 | HC42: 4.4 | HD42: 4.3 | HE42: 4.3 | HF42: 4.4 | HG42: 4.5 | HH42: 4.6 | HI42: 4.7 | HJ42: 4.8 | HK42: 4.8 | HL42: 4.9 | HM42: 5 | HN42: 5.3 | HO42: 5.9 | HP42: 6.3 | HQ42: 6.8 | HR42: 7.1 | HS42: 7.3 | HT42: 7.3 | HU42: 7.3 | HV42: 7.3 | HW42: 7.4 | HX42: 7.6 | HY42: 7.6 | HZ42: 7.6 | IA42: 7.6 | IB42: 7.5 | IC42: 7.4 | ID42: 7.3 | IE42: 7.3 | IF42: 7.2 | IG42: 7.1 | IH42: 6.9 | II42: 6.8 | IJ42: 6.8 | IK42: 6.8 | IL42: 6.8 | IM42: 6.8 | IN42: 6.8 | IO42: 6.6 | IP42: 6.6 | IQ42: 6.6 | IR42: 6.6 | IS42: 6.6 | IT42: 6.6 | IU42: 6.6 | IV42: 6.5 | IW42: 6.5 | IX42: 6.4 | IY42: 6.4 | IZ42: 6.6 | JA42: 6.7 | JB42: 6.9 | JC42: 7 | JD42: 7 | JE42: 6.9 | JF42: 6.8 | JG42: 6.8 | JH42: 6.8 | JI42: 6.9 | JJ42: 6.9 | JK42: 7 | JL42: 7.1 | JM42: 7 | JN42: 6.9 | JO42: 6.7 | JP42: 6.7 | JQ42: 6.8 | JR42: 6.9 | JS42: 7.1 | JT42: 7.1 | JU42: 7.1 | JV42: 7.1 | JW42: 7.1 | JX42: 7.2 | JY42: 7.4 | JZ42: 7.5 | KA42: 7.5 | KB42: 7.5 | KC42: 7.6 | KD42: 7.9 | KE42: 8 | KF42: 7.8 | KG42: 7.7 | KH42: 7.6 | KI42: 7.7 | KJ42: 7.7 | KK42: 7.7 | KL42: 7.7 | KM42: 7.9 | KN42: 8 | KO42: 8.1
E43: Finland - Sum of Female<25 | F43: 10.5 | G43: 11 | H43: 11.5 | I43: 11.9 | J43: 12.5 | K43: 13.1 | L43: 13.8 | M43: 14.5 | N43: 15.1 | O43: 15.8 | P43: 16.5 | Q43: 17.2 | R43: 17.9 | S43: 18.6 | T43: 19.3 | U43: 20.3 | V43: 21.5 | W43: 22.8 | X43: 23.8 | Y43: 24.5 | Z43: 25 | AA43: 25.4 | AB43: 25.8 | AC43: 26.1 | AD43: 26.8 | AE43: 27.6 | AF43: 28.6 | AG43: 29.8 | AH43: 31 | AI43: 31.7 | AJ43: 31.7 | AK43: 31.4 | AL43: 31.2 | AM43: 31.3 | AN43: 31.6 | AO43: 31.9 | AP43: 32.1 | AQ43: 32.1 | AR43: 32 | AS43: 31.8 | AT43: 31.5 | AU43: 31.1 | AV43: 30.6 | AW43: 29.9 | AX43: 29.1 | AY43: 28.7 | AZ43: 28.7 | BA43: 28.8 | BB43: 28.9 | BC43: 28.8 | BD43: 28.6 | BE43: 28.3 | BF43: 28.2 | BG43: 28.5 | BH43: 28.9 | BI43: 28.9 | BJ43: 28.6 | BK43: 28.2 | BL43: 27.8 | BM43: 27.4 | BN43: 27 | BO43: 26.6 | BP43: 26.5 | BQ43: 26.4 | BR43: 26.4 | BS43: 26.4 | BT43: 26.3 | BU43: 26.1 | BV43: 26.2 | BW43: 26.2 | BX43: 26.1 | BY43: 25.6 | BZ43: 25 | CA43: 24.6 | CB43: 24.4 | CC43: 24.4 | CD43: 24.7 | CE43: 24.9 | CF43: 25 | CG43: 25 | CH43: 24.6 | CI43: 24.1 | CJ43: 23.9 | CK43: 24.1 | CL43: 24.4 | CM43: 24.6 | CN43: 24.6 | CO43: 24.5 | CP43: 24.2 | CQ43: 23.8 | CR43: 23.6 | CS43: 23.6 | CT43: 23.7 | CU43: 23.7 | CV43: 23.6 | CW43: 23.4 | CX43: 23.2 | CY43: 22.9 | CZ43: 22.8 | DA43: 22.6 | DB43: 22.3 | DC43: 22 | DD43: 21.8 | DE43: 21.9 | DF43: 22.1 | DG43: 22.1 | DH43: 22.1 | DI43: 22 | DJ43: 22 | DK43: 22.2 | DL43: 22.2 | DM43: 22.1 | DN43: 22 | DO43: 21.8 | DP43: 21.5 | DQ43: 21.2 | DR43: 21 | DS43: 21 | DT43: 20.9 | DU43: 20.7 | DV43: 20.5 | DW43: 20.3 | DX43: 20.2 | DY43: 20.2 | DZ43: 20.1 | EA43: 20.1 | EB43: 20 | EC43: 20 | ED43: 20.1 | EE43: 20.2 | EF43: 20.3 | EG43: 20.5 | EH43: 20.8 | EI43: 20.9 | EJ43: 20.9 | EK43: 20.8 | EL43: 20.6 | EM43: 20.5 | EN43: 20.4 | EO43: 20.4 | EP43: 20.4 | EQ43: 20.5 | ER43: 20.6 | ES43: 20.7 | ET43: 20.7 | EU43: 20.8 | EV43: 21 | EW43: 21.2 | EX43: 21.4 | EY43: 21.7 | EZ43: 21.9 | FA43: 21.8 | FB43: 21.8 | FC43: 21.8 | FD43: 21.5 | FE43: 21 | FF43: 20.6 | FG43: 20.3 | FH43: 20.2 | FI43: 20.1 | FJ43: 20 | FK43: 19.8 | FL43: 19.6 | FM43: 19.6 | FN43: 19.4 | FO43: 19.3 | FP43: 19.3 | FQ43: 19.4 | FR43: 19.6 | FS43: 19.5 | FT43: 19.4 | FU43: 19.4 | FV43: 19.2 | FW43: 19.1 | FX43: 19.1 | FY43: 19 | FZ43: 18.9 | GA43: 18.9 | GB43: 19 | GC43: 19 | GD43: 19 | GE43: 18.9 | GF43: 18.8 | GG43: 18.7 | GH43: 18.7 | GI43: 18.6 | GJ43: 18.5 | GK43: 18.4 | GL43: 18.4 | GM43: 18.3 | GN43: 18.2 | GO43: 18 | GP43: 17.9 | GQ43: 17.8 | GR43: 17.5 | GS43: 17.1 | GT43: 16.7 | GU43: 16.4 | GV43: 16.1 | GW43: 15.9 | GX43: 15.8 | GY43: 15.8 | GZ43: 15.8 | HA43: 15.9 | HB43: 15.9 | HC43: 15.8 | HD43: 15.6 | HE43: 15.6 | HF43: 15.5 | HG43: 15.5 | HH43: 15.6 | HI43: 15.8 | HJ43: 16 | HK43: 16 | HL43: 15.8 | HM43: 15.6 | HN43: 15.7 | HO43: 15.9 | HP43: 16.4 | HQ43: 17.1 | HR43: 17.8 | HS43: 18.5 | HT43: 19.2 | HU43: 19.7 | HV43: 19.9 | HW43: 20 | HX43: 20.1 | HY43: 20.1 | HZ43: 20 | IA43: 19.9 | IB43: 19.7 | IC43: 19.6 | ID43: 19.6 | IE43: 19.6 | IF43: 19.4 | IG43: 19.1 | IH43: 18.9 | II43: 18.8 | IJ43: 18.7 | IK43: 18.8 | IL43: 19 | IM43: 19.1 | IN43: 19 | IO43: 18.8 | IP43: 18.6 | IQ43: 18.3 | IR43: 18.1 | IS43: 17.9 | IT43: 17.8 | IU43: 17.8 | IV43: 17.8 | IW43: 17.8 | IX43: 17.8 | IY43: 17.8 | IZ43: 17.8 | JA43: 17.8 | JB43: 17.8 | JC43: 17.9 | JD43: 18 | JE43: 18 | JF43: 17.9 | JG43: 17.9 | JH43: 17.9 | JI43: 17.8 | JJ43: 17.5 | JK43: 17.2 | JL43: 17.2 | JM43: 17.2 | JN43: 17.2 | JO43: 17.1 | JP43: 17.2 | JQ43: 17.4 | JR43: 17.5 | JS43: 17.5 | JT43: 17.4 | JU43: 17.5 | JV43: 17.7 | JW43: 17.8 | JX43: 17.8 | JY43: 17.9 | JZ43: 17.8 | KA43: 17.9 | KB43: 18 | KC43: 18.1 | KD43: 18.5 | KE43: 18.8 | KF43: 19.1 | KG43: 19.1 | KH43: 19.2 | KI43: 19.3 | KJ43: 19.6 | KK43: 19.9 | KL43: 20 | KM43: 20.1 | KN43: 20.2 | KO43: 20.1
E44: Finland - Sum of Female25-74 | F44: 2.3 | G44: 2.5 | H44: 2.8 | I44: 3 | J44: 3.3 | K44: 3.6 | L44: 3.9 | M44: 4.2 | N44: 4.6 | O44: 4.9 | P44: 5.3 | Q44: 5.6 | R44: 5.9 | S44: 6.2 | T44: 6.5 | U44: 6.8 | V44: 7.2 | W44: 7.5 | X44: 7.9 | Y44: 8.3 | Z44: 8.7 | AA44: 9.1 | AB44: 9.5 | AC44: 10 | AD44: 10.4 | AE44: 10.9 | AF44: 11.3 | AG44: 11.7 | AH44: 12 | AI44: 12.3 | AJ44: 12.6 | AK44: 12.8 | AL44: 12.9 | AM44: 13 | AN44: 13.1 | AO44: 13.1 | AP44: 13.1 | AQ44: 13.1 | AR44: 13.1 | AS44: 13.1 | AT44: 13 | AU44: 13 | AV44: 12.9 | AW44: 12.9 | AX44: 12.9 | AY44: 13 | AZ44: 13 | BA44: 13.1 | BB44: 13.2 | BC44: 13.2 | BD44: 13.2 | BE44: 13.3 | BF44: 13.3 | BG44: 13.4 | BH44: 13.5 | BI44: 13.5 | BJ44: 13.6 | BK44: 13.6 | BL44: 13.6 | BM44: 13.6 | BN44: 13.6 | BO44: 13.6 | BP44: 13.5 | BQ44: 13.6 | BR44: 13.6 | BS44: 13.6 | BT44: 13.6 | BU44: 13.5 | BV44: 13.4 | BW44: 13.2 | BX44: 13.1 | BY44: 13 | BZ44: 12.7 | CA44: 12.5 | CB44: 12.2 | CC44: 12 | CD44: 11.8 | CE44: 11.5 | CF44: 11.3 | CG44: 11.2 | CH44: 11.1 | CI44: 11 | CJ44: 10.9 | CK44: 10.8 | CL44: 10.7 | CM44: 10.6 | CN44: 10.6 | CO44: 10.5 | CP44: 10.5 | CQ44: 10.4 | CR44: 10.3 | CS44: 10.2 | CT44: 10 | CU44: 9.9 | CV44: 9.8 | CW44: 9.6 | CX44: 9.5 | CY44: 9.3 | CZ44: 9.2 | DA44: 9.2 | DB44: 9.2 | DC44: 9.1 | DD44: 9 | DE44: 9 | DF44: 9 | DG44: 9 | DH44: 9 | DI44: 9 | DJ44: 9.1 | DK44: 9.1 | DL44: 9.1 | DM44: 9 | DN44: 8.9 | DO44: 8.9 | DP44: 8.8 | DQ44: 8.8 | DR44: 8.7 | DS44: 8.7 | DT44: 8.6 | DU44: 8.5 | DV44: 8.5 | DW44: 8.4 | DX44: 8.3 | DY44: 8.2 | DZ44: 8.1 | EA44: 8 | EB44: 8 | EC44: 8 | ED44: 7.9 | EE44: 7.9 | EF44: 7.8 | EG44: 7.8 | EH44: 7.7 | EI44: 7.6 | EJ44: 7.5 | EK44: 7.5 | EL44: 7.4 | EM44: 7.4 | EN44: 7.3 | EO44: 7.3 | EP44: 7.2 | EQ44: 7.2 | ER44: 7.1 | ES44: 7.1 | ET44: 7.1 | EU44: 7.1 | EV44: 7 | EW44: 7 | EX44: 6.9 | EY44: 7 | EZ44: 7 | FA44: 7 | FB44: 7.1 | FC44: 7.1 | FD44: 7.2 | FE44: 7.2 | FF44: 7.3 | FG44: 7.4 | FH44: 7.5 | FI44: 7.5 | FJ44: 7.5 | FK44: 7.5 | FL44: 7.5 | FM44: 7.4 | FN44: 7.4 | FO44: 7.3 | FP44: 7.3 | FQ44: 7.2 | FR44: 7.2 | FS44: 7.2 | FT44: 7.1 | FU44: 7 | FV44: 7 | FW44: 7 | FX44: 7 | FY44: 6.9 | FZ44: 6.9 | GA44: 6.9 | GB44: 6.9 | GC44: 6.9 | GD44: 6.9 | GE44: 6.8 | GF44: 6.7 | GG44: 6.7 | GH44: 6.6 | GI44: 6.6 | GJ44: 6.5 | GK44: 6.5 | GL44: 6.4 | GM44: 6.3 | GN44: 6.2 | GO44: 6.1 | GP44: 6 | GQ44: 6 | GR44: 5.9 | GS44: 5.9 | GT44: 5.8 | GU44: 5.8 | GV44: 5.8 | GW44: 5.7 | GX44: 5.7 | GY44: 5.6 | GZ44: 5.5 | HA44: 5.5 | HB44: 5.4 | HC44: 5.4 | HD44: 5.3 | HE44: 5.3 | HF44: 5.3 | HG44: 5.3 | HH44: 5.3 | HI44: 5.3 | HJ44: 5.3 | HK44: 5.3 | HL44: 5.4 | HM44: 5.5 | HN44: 5.6 | HO44: 5.7 | HP44: 5.7 | HQ44: 5.8 | HR44: 5.8 | HS44: 5.9 | HT44: 6 | HU44: 6.1 | HV44: 6.1 | HW44: 6.2 | HX44: 6.2 | HY44: 6.2 | HZ44: 6.1 | IA44: 6.1 | IB44: 6.1 | IC44: 6.1 | ID44: 6.1 | IE44: 6.1 | IF44: 6.1 | IG44: 6 | IH44: 5.9 | II44: 5.9 | IJ44: 5.9 | IK44: 5.8 | IL44: 5.8 | IM44: 5.8 | IN44: 5.7 | IO44: 5.6 | IP44: 5.6 | IQ44: 5.5 | IR44: 5.4 | IS44: 5.4 | IT44: 5.3 | IU44: 5.3 | IV44: 5.3 | IW44: 5.3 | IX44: 5.3 | IY44: 5.3 | IZ44: 5.3 | JA44: 5.4 | JB44: 5.4 | JC44: 5.5 | JD44: 5.5 | JE44: 5.6 | JF44: 5.6 | JG44: 5.6 | JH44: 5.6 | JI44: 5.6 | JJ44: 5.7 | JK44: 5.8 | JL44: 5.8 | JM44: 5.9 | JN44: 5.9 | JO44: 5.9 | JP44: 6 | JQ44: 6 | JR44: 6.1 | JS44: 6.2 | JT44: 6.3 | JU44: 6.3 | JV44: 6.3 | JW44: 6.4 | JX44: 6.4 | JY44: 6.4 | JZ44: 6.4 | KA44: 6.5 | KB44: 6.5 | KC44: 6.5 | KD44: 6.6 | KE44: 6.6 | KF44: 6.7 | KG44: 6.8 | KH44: 6.9 | KI44: 7 | KJ44: 7.1 | KK44: 7.2 | KL44: 7.2 | KM44: 7.3 | KN44: 7.3 | KO44: 7.3
E45: France - Sum of Male< 25 | F45: 17.3 | G45: 17.3 | H45: 17.3 | I45: 17.4 | J45: 17.4 | K45: 17.5 | L45: 17.6 | M45: 17.7 | N45: 17.8 | O45: 18 | P45: 18.2 | Q45: 18.4 | R45: 18.6 | S45: 18.9 | T45: 19.2 | U45: 19.6 | V45: 20 | W45: 20.4 | X45: 20.8 | Y45: 21.2 | Z45: 21.6 | AA45: 22 | AB45: 22.4 | AC45: 22.8 | AD45: 23.2 | AE45: 23.6 | AF45: 23.9 | AG45: 24.3 | AH45: 24.6 | AI45: 24.9 | AJ45: 25.3 | AK45: 25.6 | AL45: 25.9 | AM45: 26.2 | AN45: 26.4 | AO45: 26.7 | AP45: 27 | AQ45: 27.2 | AR45: 27.1 | AS45: 26.8 | AT45: 26.4 | AU45: 26.1 | AV45: 25.9 | AW45: 25.7 | AX45: 25.4 | AY45: 25.1 | AZ45: 24.8 | BA45: 24.4 | BB45: 24.1 | BC45: 23.9 | BD45: 23.9 | BE45: 24.1 | BF45: 24.2 | BG45: 24.3 | BH45: 24.4 | BI45: 24.5 | BJ45: 24.6 | BK45: 24.7 | BL45: 24.8 | BM45: 24.9 | BN45: 25.1 | BO45: 25.2 | BP45: 25.4 | BQ45: 25.6 | BR45: 25.8 | BS45: 26 | BT45: 26.2 | BU45: 26.3 | BV45: 26.5 | BW45: 26.6 | BX45: 26.8 | BY45: 27 | BZ45: 27.2 | CA45: 27.2 | CB45: 27.1 | CC45: 26.8 | CD45: 26.5 | CE45: 26.3 | CF45: 26.1 | CG45: 25.9 | CH45: 25.7 | CI45: 25.5 | CJ45: 25.2 | CK45: 24.9 | CL45: 24.6 | CM45: 24.4 | CN45: 24.4 | CO45: 24.5 | CP45: 24.7 | CQ45: 24.8 | CR45: 24.8 | CS45: 24.8 | CT45: 24.8 | CU45: 24.8 | CV45: 24.9 | CW45: 25 | CX45: 25.1 | CY45: 25.1 | CZ45: 24.7 | DA45: 24.1 | DB45: 23.5 | DC45: 23 | DD45: 22.6 | DE45: 22.2 | DF45: 21.7 | DG45: 21.3 | DH45: 20.8 | DI45: 20.4 | DJ45: 20 | DK45: 19.6 | DL45: 19.3 | DM45: 19 | DN45: 18.7 | DO45: 18.4 | DP45: 18.1 | DQ45: 17.9 | DR45: 17.7 | DS45: 17.5 | DT45: 17.2 | DU45: 17 | DV45: 16.8 | DW45: 16.7 | DX45: 16.8 | DY45: 17 | DZ45: 17.3 | EA45: 17.4 | EB45: 17.5 | EC45: 17.6 | ED45: 17.6 | EE45: 17.7 | EF45: 17.8 | EG45: 17.9 | EH45: 18 | EI45: 18.2 | EJ45: 18 | EK45: 17.8 | EL45: 17.6 | EM45: 17.5 | EN45: 17.5 | EO45: 17.5 | EP45: 17.5 | EQ45: 17.5 | ER45: 17.5 | ES45: 17.3 | ET45: 16.9 | EU45: 16.6 | EV45: 17 | EW45: 17.8 | EX45: 18.3 | EY45: 18.8 | EZ45: 19.2 | FA45: 18.5 | FB45: 19.8 | FC45: 19.9 | FD45: 19.7 | FE45: 20 | FF45: 20 | FG45: 20.1 | FH45: 20 | FI45: 19.6 | FJ45: 19.5 | FK45: 19.8 | FL45: 20.3 | FM45: 20.6 | FN45: 20.6 | FO45: 20 | FP45: 20 | FQ45: 20 | FR45: 20.2 | FS45: 20.3 | FT45: 20 | FU45: 19.4 | FV45: 19.5 | FW45: 19.8 | FX45: 20.6 | FY45: 21 | FZ45: 20.8 | GA45: 20.1 | GB45: 20 | GC45: 20.3 | GD45: 21.2 | GE45: 21.8 | GF45: 22 | GG45: 21.7 | GH45: 21.2 | GI45: 20.6 | GJ45: 19.9 | GK45: 19.9 | GL45: 20.1 | GM45: 21.6 | GN45: 21.9 | GO45: 21.4 | GP45: 20.2 | GQ45: 19.5 | GR45: 19.3 | GS45: 19.4 | GT45: 19.5 | GU45: 19.4 | GV45: 19.3 | GW45: 18.9 | GX45: 18.6 | GY45: 18.5 | GZ45: 18.1 | HA45: 17.8 | HB45: 17.3 | HC45: 17.2 | HD45: 17.7 | HE45: 18.3 | HF45: 18.7 | HG45: 19.3 | HH45: 19.7 | HI45: 19.7 | HJ45: 20 | HK45: 20.3 | HL45: 20.9 | HM45: 21.7 | HN45: 22.5 | HO45: 23.5 | HP45: 24.3 | HQ45: 25 | HR45: 25.3 | HS45: 24.9 | HT45: 24.7 | HU45: 24.9 | HV45: 25.2 | HW45: 25.7 | HX45: 25.5 | HY45: 24.9 | HZ45: 24.8 | IA45: 24.4 | IB45: 23.6 | IC45: 22.8 | ID45: 22.7 | IE45: 22.8 | IF45: 23.4 | IG45: 23.9 | IH45: 23.3 | II45: 21.6 | IJ45: 21 | IK45: 21 | IL45: 21.2 | IM45: 21.7 | IN45: 22 | IO45: 22.3 | IP45: 22.3 | IQ45: 22.3 | IR45: 21.6 | IS45: 21.2 | IT45: 21.3 | IU45: 22.1 | IV45: 22.8 | IW45: 23.2 | IX45: 23 | IY45: 23.2 | IZ45: 23.6 | JA45: 24.1 | JB45: 24.6 | JC45: 24.7 | JD45: 24.7 | JE45: 24.8 | JF45: 25.6 | JG45: 26.3 | JH45: 26.6 | JI45: 26.3 | JJ45: 26.1 | JK45: 25.6 | JL45: 25.4 | JM45: 25.1 | JN45: 24.8 | JO45: 24.7 | JP45: 24.6 | JQ45: 24 | JR45: 24.5 | JS45: 23.3 | JT45: 23.3 | JU45: 23.4 | JV45: 23.9 | JW45: 23.9 | JX45: 23.4 | JY45: 24.9 | JZ45: 25.3 | KA45: 25.4 | KB45: 25.3 | KC45: 25.2 | KD45: 25.6 | KE45: 25.8 | KF45: 26.2 | KG45: 26.4 | KH45: 26.4 | KI45: 26.2 | KJ45: 25.6 | KK45: 24.5 | KL45: 24.2 | KM45: 24.2 | KN45: 24.2 | KO45: 24.6
E46: France - Sum of Male 25-74 | F46: 5.9 | G46: 6 | H46: 6 | I46: 6.1 | J46: 6.1 | K46: 6.2 | L46: 6.3 | M46: 6.4 | N46: 6.4 | O46: 6.5 | P46: 6.6 | Q46: 6.7 | R46: 6.7 | S46: 6.8 | T46: 6.9 | U46: 7 | V46: 7 | W46: 7.1 | X46: 7.2 | Y46: 7.3 | Z46: 7.4 | AA46: 7.5 | AB46: 7.6 | AC46: 7.7 | AD46: 7.8 | AE46: 7.9 | AF46: 8 | AG46: 8.1 | AH46: 8.3 | AI46: 8.4 | AJ46: 8.5 | AK46: 8.6 | AL46: 8.7 | AM46: 8.8 | AN46: 8.9 | AO46: 9 | AP46: 9.1 | AQ46: 9.1 | AR46: 9.1 | AS46: 9 | AT46: 9 | AU46: 8.9 | AV46: 8.9 | AW46: 8.8 | AX46: 8.7 | AY46: 8.6 | AZ46: 8.6 | BA46: 8.5 | BB46: 8.4 | BC46: 8.4 | BD46: 8.4 | BE46: 8.4 | BF46: 8.4 | BG46: 8.5 | BH46: 8.5 | BI46: 8.6 | BJ46: 8.6 | BK46: 8.7 | BL46: 8.7 | BM46: 8.8 | BN46: 8.9 | BO46: 8.9 | BP46: 9 | BQ46: 9 | BR46: 9 | BS46: 9.1 | BT46: 9.1 | BU46: 9.2 | BV46: 9.2 | BW46: 9.2 | BX46: 9.2 | BY46: 9.2 | BZ46: 9.2 | CA46: 9.2 | CB46: 9.2 | CC46: 9.2 | CD46: 9.2 | CE46: 9.2 | CF46: 9.2 | CG46: 9.1 | CH46: 9.1 | CI46: 9 | CJ46: 8.9 | CK46: 8.9 | CL46: 8.9 | CM46: 8.8 | CN46: 8.8 | CO46: 8.8 | CP46: 8.9 | CQ46: 8.9 | CR46: 8.9 | CS46: 8.9 | CT46: 8.8 | CU46: 8.8 | CV46: 8.8 | CW46: 8.8 | CX46: 8.7 | CY46: 8.6 | CZ46: 8.6 | DA46: 8.5 | DB46: 8.4 | DC46: 8.3 | DD46: 8.2 | DE46: 8 | DF46: 7.9 | DG46: 7.8 | DH46: 7.7 | DI46: 7.6 | DJ46: 7.5 | DK46: 7.3 | DL46: 7.2 | DM46: 7 | DN46: 6.8 | DO46: 6.6 | DP46: 6.4 | DQ46: 6.2 | DR46: 6.1 | DS46: 6.1 | DT46: 6 | DU46: 6 | DV46: 6 | DW46: 6 | DX46: 6 | DY46: 6.1 | DZ46: 6.2 | EA46: 6.2 | EB46: 6.3 | EC46: 6.3 | ED46: 6.4 | EE46: 6.5 | EF46: 6.5 | EG46: 6.6 | EH46: 6.5 | EI46: 6.5 | EJ46: 6.5 | EK46: 6.5 | EL46: 6.5 | EM46: 6.5 | EN46: 6.5 | EO46: 6.5 | EP46: 6.5 | EQ46: 6.6 | ER46: 6.6 | ES46: 6.6 | ET46: 6.4 | EU46: 6.5 | EV46: 6.5 | EW46: 6.5 | EX46: 6.5 | EY46: 6.5 | EZ46: 6.5 | FA46: 6.5 | FB46: 6.5 | FC46: 6.6 | FD46: 6.6 | FE46: 6.6 | FF46: 6.6 | FG46: 6.6 | FH46: 6.7 | FI46: 6.7 | FJ46: 6.7 | FK46: 6.7 | FL46: 6.7 | FM46: 6.7 | FN46: 6.7 | FO46: 6.7 | FP46: 6.7 | FQ46: 6.7 | FR46: 6.7 | FS46: 6.7 | FT46: 6.7 | FU46: 6.7 | FV46: 6.7 | FW46: 6.7 | FX46: 6.7 | FY46: 6.7 | FZ46: 6.7 | GA46: 6.7 | GB46: 6.8 | GC46: 6.8 | GD46: 6.7 | GE46: 6.8 | GF46: 6.8 | GG46: 6.8 | GH46: 6.7 | GI46: 6.7 | GJ46: 6.7 | GK46: 6.6 | GL46: 6.6 | GM46: 6.6 | GN46: 6.6 | GO46: 6.5 | GP46: 6.5 | GQ46: 6.5 | GR46: 6.4 | GS46: 6.3 | GT46: 6.3 | GU46: 6.2 | GV46: 6.2 | GW46: 6.1 | GX46: 6.1 | GY46: 6 | GZ46: 5.9 | HA46: 5.8 | HB46: 5.7 | HC46: 5.6 | HD46: 5.6 | HE46: 5.5 | HF46: 5.5 | HG46: 5.5 | HH46: 5.6 | HI46: 5.6 | HJ46: 5.6 | HK46: 5.7 | HL46: 5.8 | HM46: 6 | HN46: 6.2 | HO46: 6.4 | HP46: 6.6 | HQ46: 6.7 | HR46: 6.9 | HS46: 7 | HT46: 7.1 | HU46: 7.2 | HV46: 7.4 | HW46: 7.7 | HX46: 7.7 | HY46: 7.6 | HZ46: 7.6 | IA46: 7.5 | IB46: 7.5 | IC46: 7.5 | ID46: 7.5 | IE46: 7.4 | IF46: 7.4 | IG46: 7.3 | IH46: 7.3 | II46: 7.2 | IJ46: 7.2 | IK46: 7.2 | IL46: 7.1 | IM46: 7.1 | IN46: 7.1 | IO46: 7.2 | IP46: 7.2 | IQ46: 7.3 | IR46: 7.3 | IS46: 7.4 | IT46: 7.5 | IU46: 7.6 | IV46: 7.6 | IW46: 7.7 | IX46: 7.8 | IY46: 7.8 | IZ46: 7.9 | JA46: 7.9 | JB46: 8 | JC46: 8 | JD46: 8.1 | JE46: 8.2 | JF46: 8.2 | JG46: 8.3 | JH46: 8.4 | JI46: 8.5 | JJ46: 8.5 | JK46: 8.6 | JL46: 8.6 | JM46: 8.7 | JN46: 8.7 | JO46: 8.7 | JP46: 8.8 | JQ46: 8.8 | JR46: 8.8 | JS46: 8.8 | JT46: 8.9 | JU46: 8.9 | JV46: 9 | JW46: 9 | JX46: 9.1 | JY46: 8.8 | JZ46: 8.7 | KA46: 8.7 | KB46: 8.8 | KC46: 8.9 | KD46: 8.9 | KE46: 9 | KF46: 9.2 | KG46: 9.1 | KH46: 9 | KI46: 9 | KJ46: 9.1 | KK46: 9.2 | KL46: 9.4 | KM46: 9.6 | KN46: 9.7 | KO46: 9.8
E47: France - Sum of Female<25 | F47: 22.9 | G47: 23 | H47: 23.1 | I47: 23.2 | J47: 23.4 | K47: 23.5 | L47: 23.7 | M47: 23.9 | N47: 24.1 | O47: 24.4 | P47: 24.6 | Q47: 24.8 | R47: 25 | S47: 25.3 | T47: 25.5 | U47: 25.7 | V47: 25.9 | W47: 26.1 | X47: 26.3 | Y47: 26.5 | Z47: 26.7 | AA47: 26.9 | AB47: 27.2 | AC47: 27.4 | AD47: 27.6 | AE47: 27.8 | AF47: 28.1 | AG47: 28.3 | AH47: 28.6 | AI47: 28.9 | AJ47: 29.1 | AK47: 29.4 | AL47: 29.6 | AM47: 29.8 | AN47: 30.1 | AO47: 30.3 | AP47: 30.5 | AQ47: 30.6 | AR47: 30.7 | AS47: 30.8 | AT47: 30.8 | AU47: 30.9 | AV47: 30.9 | AW47: 30.9 | AX47: 30.9 | AY47: 30.9 | AZ47: 30.8 | BA47: 30.8 | BB47: 30.8 | BC47: 30.8 | BD47: 30.8 | BE47: 30.7 | BF47: 30.7 | BG47: 30.6 | BH47: 30.6 | BI47: 30.6 | BJ47: 30.6 | BK47: 30.6 | BL47: 30.6 | BM47: 30.6 | BN47: 30.5 | BO47: 30.5 | BP47: 30.6 | BQ47: 30.7 | BR47: 30.8 | BS47: 30.9 | BT47: 31 | BU47: 31.1 | BV47: 31.2 | BW47: 31.2 | BX47: 31.3 | BY47: 31.3 | BZ47: 31.5 | CA47: 31.5 | CB47: 31.3 | CC47: 31.1 | CD47: 30.9 | CE47: 30.7 | CF47: 30.5 | CG47: 30.3 | CH47: 30.1 | CI47: 29.9 | CJ47: 29.6 | CK47: 29.3 | CL47: 29.1 | CM47: 28.9 | CN47: 28.8 | CO47: 28.9 | CP47: 28.9 | CQ47: 28.9 | CR47: 28.9 | CS47: 28.8 | CT47: 28.8 | CU47: 28.7 | CV47: 28.7 | CW47: 28.7 | CX47: 28.7 | CY47: 28.5 | CZ47: 28.2 | DA47: 27.6 | DB47: 27.1 | DC47: 26.7 | DD47: 26.3 | DE47: 26 | DF47: 25.6 | DG47: 25.1 | DH47: 24.6 | DI47: 24.1 | DJ47: 23.6 | DK47: 23.2 | DL47: 23 | DM47: 22.9 | DN47: 22.7 | DO47: 22.5 | DP47: 22.3 | DQ47: 22.1 | DR47: 21.9 | DS47: 21.7 | DT47: 21.6 | DU47: 21.4 | DV47: 21.2 | DW47: 21.1 | DX47: 21 | DY47: 21 | DZ47: 21.1 | EA47: 21.1 | EB47: 21.2 | EC47: 21.2 | ED47: 21.1 | EE47: 21 | EF47: 21.1 | EG47: 21.2 | EH47: 21.2 | EI47: 21.3 | EJ47: 21.1 | EK47: 20.7 | EL47: 20.6 | EM47: 20.5 | EN47: 20.5 | EO47: 20.5 | EP47: 20.2 | EQ47: 19.8 | ER47: 19.4 | ES47: 19.1 | ET47: 18.9 | EU47: 18.8 | EV47: 19.3 | EW47: 20.1 | EX47: 20 | EY47: 19.8 | EZ47: 18.9 | FA47: 17.8 | FB47: 18.5 | FC47: 19.7 | FD47: 20.3 | FE47: 20.8 | FF47: 20.3 | FG47: 20.4 | FH47: 20.7 | FI47: 20.9 | FJ47: 21.1 | FK47: 21.2 | FL47: 21.2 | FM47: 21.2 | FN47: 21.3 | FO47: 21.5 | FP47: 21.7 | FQ47: 21.5 | FR47: 20.6 | FS47: 20.2 | FT47: 20.4 | FU47: 20.7 | FV47: 21.1 | FW47: 21.6 | FX47: 22.4 | FY47: 23.2 | FZ47: 23.5 | GA47: 23.4 | GB47: 23.4 | GC47: 23.2 | GD47: 23.4 | GE47: 23.5 | GF47: 23.4 | GG47: 23.1 | GH47: 23.2 | GI47: 23.8 | GJ47: 24.4 | GK47: 24.9 | GL47: 24.1 | GM47: 22.2 | GN47: 21.2 | GO47: 21.3 | GP47: 22.3 | GQ47: 22.7 | GR47: 22.2 | GS47: 21.1 | GT47: 20.4 | GU47: 19.6 | GV47: 18.8 | GW47: 18.2 | GX47: 18.2 | GY47: 19.1 | GZ47: 19.2 | HA47: 18.9 | HB47: 18.3 | HC47: 17.8 | HD47: 18 | HE47: 18.5 | HF47: 18.6 | HG47: 18.8 | HH47: 18.5 | HI47: 18.3 | HJ47: 18.6 | HK47: 19.3 | HL47: 20.1 | HM47: 20.8 | HN47: 21.4 | HO47: 22.2 | HP47: 22.6 | HQ47: 22.7 | HR47: 22.6 | HS47: 22.2 | HT47: 22.3 | HU47: 22.7 | HV47: 22.7 | HW47: 22.7 | HX47: 22.3 | HY47: 21.9 | HZ47: 21.7 | IA47: 22.1 | IB47: 22.9 | IC47: 24 | ID47: 24.8 | IE47: 24.9 | IF47: 24.5 | IG47: 24.7 | IH47: 24.3 | II47: 23.6 | IJ47: 23.8 | IK47: 24.2 | IL47: 25.1 | IM47: 25.2 | IN47: 24.6 | IO47: 23.5 | IP47: 23.1 | IQ47: 22.8 | IR47: 22.8 | IS47: 22.8 | IT47: 22.4 | IU47: 22.4 | IV47: 22.6 | IW47: 22.7 | IX47: 22.7 | IY47: 22.6 | IZ47: 22.5 | JA47: 22.2 | JB47: 22.5 | JC47: 22.9 | JD47: 23.8 | JE47: 24.5 | JF47: 25 | JG47: 25.8 | JH47: 25.9 | JI47: 25.7 | JJ47: 25.6 | JK47: 25.3 | JL47: 25.3 | JM47: 25.5 | JN47: 25.5 | JO47: 25.5 | JP47: 25.6 | JQ47: 25.1 | JR47: 25.2 | JS47: 24.4 | JT47: 24.1 | JU47: 23.9 | JV47: 23.8 | JW47: 23.6 | JX47: 23.1 | JY47: 22.3 | JZ47: 22 | KA47: 22.3 | KB47: 23.2 | KC47: 23.5 | KD47: 23.5 | KE47: 23 | KF47: 22.8 | KG47: 22.8 | KH47: 23 | KI47: 23.3 | KJ47: 23.7 | KK47: 23.9 | KL47: 24.2 | KM47: 24.3 | KN47: 24.3 | KO47: 24.3
E48: France - Sum of Female25-74 | F48: 9.8 | G48: 9.8 | H48: 9.9 | I48: 10 | J48: 10.1 | K48: 10.2 | L48: 10.3 | M48: 10.4 | N48: 10.5 | O48: 10.6 | P48: 10.7 | Q48: 10.8 | R48: 10.9 | S48: 10.9 | T48: 10.9 | U48: 11 | V48: 11 | W48: 11 | X48: 11 | Y48: 11 | Z48: 11.1 | AA48: 11.1 | AB48: 11.2 | AC48: 11.2 | AD48: 11.2 | AE48: 11.2 | AF48: 11.3 | AG48: 11.4 | AH48: 11.5 | AI48: 11.6 | AJ48: 11.7 | AK48: 11.8 | AL48: 11.9 | AM48: 12 | AN48: 12.1 | AO48: 12.2 | AP48: 12.2 | AQ48: 12.2 | AR48: 12.2 | AS48: 12.2 | AT48: 12.2 | AU48: 12.2 | AV48: 12.1 | AW48: 12 | AX48: 12 | AY48: 12 | AZ48: 11.9 | BA48: 11.9 | BB48: 11.8 | BC48: 11.8 | BD48: 11.8 | BE48: 11.9 | BF48: 11.9 | BG48: 12 | BH48: 12 | BI48: 12.1 | BJ48: 12.2 | BK48: 12.3 | BL48: 12.3 | BM48: 12.4 | BN48: 12.4 | BO48: 12.4 | BP48: 12.4 | BQ48: 12.4 | BR48: 12.4 | BS48: 12.4 | BT48: 12.4 | BU48: 12.4 | BV48: 12.4 | BW48: 12.4 | BX48: 12.4 | BY48: 12.4 | BZ48: 12.4 | CA48: 12.3 | CB48: 12.3 | CC48: 12.4 | CD48: 12.4 | CE48: 12.4 | CF48: 12.4 | CG48: 12.4 | CH48: 12.4 | CI48: 12.4 | CJ48: 12.4 | CK48: 12.4 | CL48: 12.4 | CM48: 12.3 | CN48: 12.3 | CO48: 12.3 | CP48: 12.3 | CQ48: 12.3 | CR48: 12.3 | CS48: 12.3 | CT48: 12.3 | CU48: 12.3 | CV48: 12.3 | CW48: 12.2 | CX48: 12.2 | CY48: 12.2 | CZ48: 12.1 | DA48: 11.9 | DB48: 11.8 | DC48: 11.7 | DD48: 11.7 | DE48: 11.6 | DF48: 11.5 | DG48: 11.4 | DH48: 11.3 | DI48: 11.2 | DJ48: 11.1 | DK48: 11 | DL48: 10.8 | DM48: 10.7 | DN48: 10.5 | DO48: 10.4 | DP48: 10.3 | DQ48: 10.2 | DR48: 10 | DS48: 9.9 | DT48: 9.8 | DU48: 9.6 | DV48: 9.5 | DW48: 9.4 | DX48: 9.3 | DY48: 9.2 | DZ48: 9.2 | EA48: 9.1 | EB48: 9.1 | EC48: 9 | ED48: 8.9 | EE48: 8.9 | EF48: 8.8 | EG48: 8.7 | EH48: 8.6 | EI48: 8.6 | EJ48: 8.5 | EK48: 8.5 | EL48: 8.4 | EM48: 8.4 | EN48: 8.4 | EO48: 8.4 | EP48: 8.4 | EQ48: 8.3 | ER48: 8.3 | ES48: 8.2 | ET48: 8.2 | EU48: 8.2 | EV48: 8.2 | EW48: 8.3 | EX48: 8.3 | EY48: 8.3 | EZ48: 8.2 | FA48: 8 | FB48: 8.1 | FC48: 8.3 | FD48: 8.4 | FE48: 8.7 | FF48: 8.8 | FG48: 8.9 | FH48: 8.8 | FI48: 8.4 | FJ48: 8.3 | FK48: 8.2 | FL48: 8.3 | FM48: 8.3 | FN48: 8.4 | FO48: 8.3 | FP48: 8.4 | FQ48: 8.3 | FR48: 8.1 | FS48: 8.1 | FT48: 8.1 | FU48: 8.2 | FV48: 8.3 | FW48: 8.3 | FX48: 8.3 | FY48: 8.3 | FZ48: 8.4 | GA48: 8.5 | GB48: 8.6 | GC48: 8.6 | GD48: 8.5 | GE48: 8.5 | GF48: 8.3 | GG48: 8.2 | GH48: 8.1 | GI48: 8.1 | GJ48: 8.3 | GK48: 8.3 | GL48: 7.9 | GM48: 7.5 | GN48: 7.3 | GO48: 7.3 | GP48: 7.5 | GQ48: 7.6 | GR48: 7.6 | GS48: 7.5 | GT48: 7.4 | GU48: 7.3 | GV48: 7.3 | GW48: 7.3 | GX48: 7.1 | GY48: 6.9 | GZ48: 6.7 | HA48: 6.5 | HB48: 6.4 | HC48: 6.4 | HD48: 6.4 | HE48: 6.6 | HF48: 6.7 | HG48: 6.7 | HH48: 6.7 | HI48: 6.8 | HJ48: 6.8 | HK48: 6.9 | HL48: 7 | HM48: 7.1 | HN48: 7.1 | HO48: 7.3 | HP48: 7.5 | HQ48: 7.8 | HR48: 7.9 | HS48: 7.9 | HT48: 7.9 | HU48: 7.9 | HV48: 7.9 | HW48: 8 | HX48: 8.1 | HY48: 8 | HZ48: 8.1 | IA48: 8.1 | IB48: 8 | IC48: 7.8 | ID48: 7.8 | IE48: 7.7 | IF48: 7.7 | IG48: 7.9 | IH48: 8 | II48: 8.2 | IJ48: 8.4 | IK48: 8.3 | IL48: 8.2 | IM48: 8.1 | IN48: 8 | IO48: 7.9 | IP48: 7.9 | IQ48: 8 | IR48: 8.2 | IS48: 8.2 | IT48: 8.2 | IU48: 8.2 | IV48: 8.2 | IW48: 8.1 | IX48: 8.1 | IY48: 8.2 | IZ48: 8.3 | JA48: 8.5 | JB48: 8.6 | JC48: 8.6 | JD48: 8.4 | JE48: 8.3 | JF48: 8.3 | JG48: 8.4 | JH48: 8.5 | JI48: 8.5 | JJ48: 8.6 | JK48: 8.6 | JL48: 8.7 | JM48: 8.7 | JN48: 8.7 | JO48: 8.7 | JP48: 8.7 | JQ48: 8.6 | JR48: 8.8 | JS48: 8.8 | JT48: 8.8 | JU48: 8.7 | JV48: 8.6 | JW48: 8.5 | JX48: 8.5 | JY48: 8.6 | JZ48: 8.8 | KA48: 8.9 | KB48: 8.9 | KC48: 8.9 | KD48: 9 | KE48: 8.9 | KF48: 8.9 | KG48: 8.9 | KH48: 8.8 | KI48: 8.7 | KJ48: 8.5 | KK48: 8.4 | KL48: 8.4 | KM48: 8.6 | KN48: 8.9 | KO48: 9.1
E49: Germany (until 1990 former territory of the FRG) - Sum of Male< 25 | F49: 5.4 | G49: 5.4 | H49: 5.4 | I49: 5.3 | J49: 5.4 | K49: 5.4 | L49: 5.4 | M49: 5.4 | N49: 5.5 | O49: 5.5 | P49: 5.5 | Q49: 5.5 | R49: 5.6 | S49: 5.6 | T49: 5.6 | U49: 5.7 | V49: 5.8 | W49: 5.9 | X49: 6 | Y49: 6.2 | Z49: 6.4 | AA49: 6.6 | AB49: 6.8 | AC49: 7 | AD49: 7.2 | AE49: 7.4 | AF49: 7.6 | AG49: 7.8 | AH49: 7.9 | AI49: 8.1 | AJ49: 8.2 | AK49: 8.4 | AL49: 8.5 | AM49: 8.7 | AN49: 8.8 | AO49: 9 | AP49: 9.1 | AQ49: 9.3 | AR49: 9.4 | AS49: 9.5 | AT49: 9.5 | AU49: 9.5 | AV49: 9.5 | AW49: 9.4 | AX49: 9.3 | AY49: 9.3 | AZ49: 9.2 | BA49: 9.1 | BB49: 9.1 | BC49: 9 | BD49: 9 | BE49: 9 | BF49: 9 | BG49: 9.2 | BH49: 9.3 | BI49: 9.5 | BJ49: 9.6 | BK49: 9.8 | BL49: 9.9 | BM49: 10.1 | BN49: 10.2 | BO49: 10.4 | BP49: 10.5 | BQ49: 10.7 | BR49: 10.8 | BS49: 10.9 | BT49: 11.1 | BU49: 11.2 | BV49: 11.3 | BW49: 11.4 | BX49: 11.6 | BY49: 11.7 | BZ49: 11.8 | CA49: 11.9 | CB49: 12 | CC49: 12.1 | CD49: 12.1 | CE49: 12 | CF49: 11.9 | CG49: 11.8 | CH49: 11.7 | CI49: 11.6 | CJ49: 11.5 | CK49: 11.4 | CL49: 11.3 | CM49: 11.2 | CN49: 11.1 | CO49: 11.1 | CP49: 11 | CQ49: 10.9 | CR49: 10.8 | CS49: 10.7 | CT49: 10.6 | CU49: 10.6 | CV49: 10.5 | CW49: 10.4 | CX49: 10.3 | CY49: 10.3 | CZ49: 10.2 | DA49: 10.1 | DB49: 10.1 | DC49: 10.1 | DD49: 10 | DE49: 10 | DF49: 10 | DG49: 10 | DH49: 10 | DI49: 10 | DJ49: 10 | DK49: 10 | DL49: 10 | DM49: 9.9 | DN49: 9.9 | DO49: 9.8 | DP49: 9.8 | DQ49: 9.7 | DR49: 9.6 | DS49: 9.5 | DT49: 9.5 | DU49: 9.4 | DV49: 9.4 | DW49: 9.3 | DX49: 9.3 | DY49: 9.3 | DZ49: 9.3 | EA49: 9.5 | EB49: 9.6 | EC49: 9.8 | ED49: 10 | EE49: 10.2 | EF49: 10.4 | EG49: 10.6 | EH49: 10.8 | EI49: 11 | EJ49: 11.2 | EK49: 11.3 | EL49: 11.5 | EM49: 11.7 | EN49: 11.9 | EO49: 12.1 | EP49: 12.3 | EQ49: 12.5 | ER49: 12.8 | ES49: 13.1 | ET49: 13.4 | EU49: 13.7 | EV49: 13.8 | EW49: 13.9 | EX49: 14 | EY49: 14.1 | EZ49: 14.1 | FA49: 14.1 | FB49: 14 | FC49: 14 | FD49: 13.9 | FE49: 13.9 | FF49: 14 | FG49: 14.1 | FH49: 14.2 | FI49: 14.5 | FJ49: 14.8 | FK49: 15.2 | FL49: 15.5 | FM49: 15.8 | FN49: 16 | FO49: 16.3 | FP49: 16.7 | FQ49: 17.1 | FR49: 17.6 | FS49: 18 | FT49: 18.3 | FU49: 18.2 | FV49: 17.9 | FW49: 17.4 | FX49: 17 | FY49: 16.7 | FZ49: 16.4 | GA49: 16.1 | GB49: 15.8 | GC49: 15.5 | GD49: 15.3 | GE49: 15.2 | GF49: 15 | GG49: 14.9 | GH49: 14.9 | GI49: 14.8 | GJ49: 14.8 | GK49: 14.7 | GL49: 14.5 | GM49: 14.3 | GN49: 14 | GO49: 13.7 | GP49: 13.4 | GQ49: 13.1 | GR49: 12.9 | GS49: 12.7 | GT49: 12.6 | GU49: 12.6 | GV49: 12.5 | GW49: 12.4 | GX49: 12.4 | GY49: 12.3 | GZ49: 12.1 | HA49: 11.9 | HB49: 11.7 | HC49: 11.5 | HD49: 11.2 | HE49: 10.9 | HF49: 10.7 | HG49: 10.5 | HH49: 10.5 | HI49: 10.5 | HJ49: 10.6 | HK49: 10.9 | HL49: 11.2 | HM49: 11.5 | HN49: 11.9 | HO49: 12.2 | HP49: 12.5 | HQ49: 12.8 | HR49: 12.9 | HS49: 13 | HT49: 13 | HU49: 13 | HV49: 12.9 | HW49: 12.8 | HX49: 12.7 | HY49: 12.5 | HZ49: 12.3 | IA49: 12.1 | IB49: 11.8 | IC49: 11.5 | ID49: 11.3 | IE49: 11 | IF49: 10.7 | IG49: 10.5 | IH49: 10.3 | II49: 10.1 | IJ49: 9.9 | IK49: 9.8 | IL49: 9.7 | IM49: 9.6 | IN49: 9.5 | IO49: 9.4 | IP49: 9.3 | IQ49: 9.2 | IR49: 9.2 | IS49: 9.1 | IT49: 9.1 | IU49: 9 | IV49: 8.9 | IW49: 8.9 | IX49: 8.9 | IY49: 8.9 | IZ49: 8.8 | JA49: 8.8 | JB49: 8.8 | JC49: 8.8 | JD49: 8.8 | JE49: 8.8 | JF49: 8.8 | JG49: 8.7 | JH49: 8.7 | JI49: 8.6 | JJ49: 8.6 | JK49: 8.6 | JL49: 8.5 | JM49: 8.5 | JN49: 8.5 | JO49: 8.5 | JP49: 8.5 | JQ49: 8.5 | JR49: 8.5 | JS49: 8.5 | JT49: 8.6 | JU49: 8.6 | JV49: 8.6 | JW49: 8.6 | JX49: 8.6 | JY49: 8.4 | JZ49: 8.3 | KA49: 8.3 | KB49: 8.2 | KC49: 8 | KD49: 7.9 | KE49: 7.8 | KF49: 7.8 | KG49: 7.7 | KH49: 7.7 | KI49: 7.7 | KJ49: 7.7 | KK49: 7.7 | KL49: 7.7 | KM49: 7.7 | KN49: 7.7 | KO49: 7.6
E50: Germany (until 1990 former territory of the FRG) - Sum of Male 25-74 | F50: 4.2 | G50: 4.2 | H50: 4.2 | I50: 4.2 | J50: 4.2 | K50: 4.2 | L50: 4.3 | M50: 4.4 | N50: 4.4 | O50: 4.5 | P50: 4.5 | Q50: 4.6 | R50: 4.6 | S50: 4.7 | T50: 4.7 | U50: 4.8 | V50: 4.8 | W50: 4.9 | X50: 5 | Y50: 5.2 | Z50: 5.3 | AA50: 5.4 | AB50: 5.5 | AC50: 5.6 | AD50: 5.7 | AE50: 5.8 | AF50: 5.9 | AG50: 6 | AH50: 6.1 | AI50: 6.2 | AJ50: 6.3 | AK50: 6.4 | AL50: 6.5 | AM50: 6.5 | AN50: 6.6 | AO50: 6.7 | AP50: 6.8 | AQ50: 6.9 | AR50: 6.9 | AS50: 7 | AT50: 7 | AU50: 7 | AV50: 6.9 | AW50: 6.9 | AX50: 6.9 | AY50: 6.8 | AZ50: 6.8 | BA50: 6.7 | BB50: 6.7 | BC50: 6.7 | BD50: 6.6 | BE50: 6.6 | BF50: 6.7 | BG50: 6.8 | BH50: 6.8 | BI50: 6.9 | BJ50: 7 | BK50: 7.1 | BL50: 7.2 | BM50: 7.3 | BN50: 7.5 | BO50: 7.6 | BP50: 7.6 | BQ50: 7.7 | BR50: 7.8 | BS50: 7.9 | BT50: 7.9 | BU50: 8 | BV50: 8.1 | BW50: 8.2 | BX50: 8.3 | BY50: 8.3 | BZ50: 8.5 | CA50: 8.6 | CB50: 8.6 | CC50: 8.7 | CD50: 8.7 | CE50: 8.7 | CF50: 8.7 | CG50: 8.7 | CH50: 8.7 | CI50: 8.7 | CJ50: 8.7 | CK50: 8.7 | CL50: 8.8 | CM50: 8.8 | CN50: 8.8 | CO50: 8.7 | CP50: 8.7 | CQ50: 8.7 | CR50: 8.6 | CS50: 8.6 | CT50: 8.5 | CU50: 8.4 | CV50: 8.4 | CW50: 8.3 | CX50: 8.3 | CY50: 8.2 | CZ50: 8.2 | DA50: 8.1 | DB50: 8 | DC50: 8 | DD50: 7.9 | DE50: 7.9 | DF50: 7.8 | DG50: 7.8 | DH50: 7.7 | DI50: 7.7 | DJ50: 7.6 | DK50: 7.6 | DL50: 7.5 | DM50: 7.5 | DN50: 7.5 | DO50: 7.4 | DP50: 7.4 | DQ50: 7.4 | DR50: 7.4 | DS50: 7.4 | DT50: 7.4 | DU50: 7.4 | DV50: 7.4 | DW50: 7.4 | DX50: 7.4 | DY50: 7.4 | DZ50: 7.4 | EA50: 7.5 | EB50: 7.5 | EC50: 7.6 | ED50: 7.6 | EE50: 7.7 | EF50: 7.8 | EG50: 7.8 | EH50: 8 | EI50: 8.1 | EJ50: 8.1 | EK50: 8.2 | EL50: 8.3 | EM50: 8.4 | EN50: 8.5 | EO50: 8.6 | EP50: 8.7 | EQ50: 8.8 | ER50: 9 | ES50: 9.1 | ET50: 9.4 | EU50: 9.5 | EV50: 9.6 | EW50: 9.7 | EX50: 9.8 | EY50: 9.8 | EZ50: 9.7 | FA50: 9.6 | FB50: 9.6 | FC50: 9.5 | FD50: 9.5 | FE50: 9.5 | FF50: 9.6 | FG50: 9.7 | FH50: 9.7 | FI50: 9.8 | FJ50: 9.9 | FK50: 10 | FL50: 10.1 | FM50: 10.2 | FN50: 10.3 | FO50: 10.4 | FP50: 10.6 | FQ50: 10.8 | FR50: 10.9 | FS50: 11 | FT50: 11 | FU50: 10.9 | FV50: 10.8 | FW50: 10.8 | FX50: 10.8 | FY50: 10.9 | FZ50: 10.8 | GA50: 10.7 | GB50: 10.5 | GC50: 10.3 | GD50: 10.2 | GE50: 10.2 | GF50: 10.1 | GG50: 10 | GH50: 9.9 | GI50: 9.7 | GJ50: 9.6 | GK50: 9.6 | GL50: 9.5 | GM50: 9.4 | GN50: 9.2 | GO50: 9 | GP50: 8.8 | GQ50: 8.5 | GR50: 8.3 | GS50: 8.2 | GT50: 8.1 | GU50: 8.1 | GV50: 8 | GW50: 7.9 | GX50: 7.8 | GY50: 7.8 | GZ50: 7.7 | HA50: 7.5 | HB50: 7.4 | HC50: 7.3 | HD50: 7.2 | HE50: 7.1 | HF50: 7 | HG50: 6.9 | HH50: 6.7 | HI50: 6.6 | HJ50: 6.6 | HK50: 6.6 | HL50: 6.7 | HM50: 6.9 | HN50: 7.1 | HO50: 7.3 | HP50: 7.4 | HQ50: 7.5 | HR50: 7.7 | HS50: 7.8 | HT50: 7.9 | HU50: 7.9 | HV50: 7.8 | HW50: 7.7 | HX50: 7.6 | HY50: 7.5 | HZ50: 7.4 | IA50: 7.4 | IB50: 7.3 | IC50: 7.3 | ID50: 7.2 | IE50: 7.1 | IF50: 7.1 | IG50: 7 | IH50: 7 | II50: 6.9 | IJ50: 6.8 | IK50: 6.7 | IL50: 6.5 | IM50: 6.3 | IN50: 6.1 | IO50: 6 | IP50: 5.8 | IQ50: 5.8 | IR50: 5.7 | IS50: 5.7 | IT50: 5.6 | IU50: 5.6 | IV50: 5.5 | IW50: 5.5 | IX50: 5.5 | IY50: 5.4 | IZ50: 5.4 | JA50: 5.4 | JB50: 5.3 | JC50: 5.3 | JD50: 5.3 | JE50: 5.3 | JF50: 5.2 | JG50: 5.2 | JH50: 5.3 | JI50: 5.3 | JJ50: 5.3 | JK50: 5.3 | JL50: 5.3 | JM50: 5.3 | JN50: 5.3 | JO50: 5.3 | JP50: 5.3 | JQ50: 5.3 | JR50: 5.3 | JS50: 5.2 | JT50: 5.2 | JU50: 5.1 | JV50: 5.1 | JW50: 5.1 | JX50: 5.1 | JY50: 5 | JZ50: 5 | KA50: 5 | KB50: 5 | KC50: 5 | KD50: 5 | KE50: 5 | KF50: 4.9 | KG50: 4.9 | KH50: 4.8 | KI50: 4.8 | KJ50: 4.8 | KK50: 4.8 | KL50: 4.8 | KM50: 4.7 | KN50: 4.7 | KO50: 4.7
E51: Germany (until 1990 former territory of the FRG) - Sum of Female<25 | F51: 6.1 | G51: 6 | H51: 6 | I51: 6 | J51: 6 | K51: 6.1 | L51: 6.2 | M51: 6.2 | N51: 6.3 | O51: 6.4 | P51: 6.4 | Q51: 6.5 | R51: 6.5 | S51: 6.6 | T51: 6.7 | U51: 6.7 | V51: 6.8 | W51: 6.9 | X51: 7 | Y51: 7.1 | Z51: 7.2 | AA51: 7.3 | AB51: 7.4 | AC51: 7.5 | AD51: 7.6 | AE51: 7.6 | AF51: 7.7 | AG51: 7.8 | AH51: 7.9 | AI51: 8 | AJ51: 8 | AK51: 8.1 | AL51: 8.2 | AM51: 8.2 | AN51: 8.3 | AO51: 8.3 | AP51: 8.4 | AQ51: 8.5 | AR51: 8.5 | AS51: 8.5 | AT51: 8.5 | AU51: 8.5 | AV51: 8.5 | AW51: 8.5 | AX51: 8.5 | AY51: 8.5 | AZ51: 8.5 | BA51: 8.4 | BB51: 8.4 | BC51: 8.4 | BD51: 8.4 | BE51: 8.4 | BF51: 8.4 | BG51: 8.4 | BH51: 8.5 | BI51: 8.5 | BJ51: 8.5 | BK51: 8.6 | BL51: 8.6 | BM51: 8.7 | BN51: 8.7 | BO51: 8.7 | BP51: 8.8 | BQ51: 8.8 | BR51: 8.8 | BS51: 8.9 | BT51: 8.9 | BU51: 9 | BV51: 9 | BW51: 9.1 | BX51: 9.1 | BY51: 9.2 | BZ51: 9.2 | CA51: 9.2 | CB51: 9.3 | CC51: 9.3 | CD51: 9.3 | CE51: 9.2 | CF51: 9.2 | CG51: 9.1 | CH51: 9.1 | CI51: 9 | CJ51: 9 | CK51: 8.9 | CL51: 8.9 | CM51: 8.8 | CN51: 8.8 | CO51: 8.7 | CP51: 8.6 | CQ51: 8.6 | CR51: 8.5 | CS51: 8.4 | CT51: 8.4 | CU51: 8.3 | CV51: 8.2 | CW51: 8.2 | CX51: 8.1 | CY51: 8 | CZ51: 8 | DA51: 7.9 | DB51: 7.9 | DC51: 7.9 | DD51: 7.9 | DE51: 7.8 | DF51: 7.8 | DG51: 7.8 | DH51: 7.8 | DI51: 7.8 | DJ51: 7.8 | DK51: 7.8 | DL51: 7.8 | DM51: 7.8 | DN51: 7.7 | DO51: 7.6 | DP51: 7.5 | DQ51: 7.4 | DR51: 7.3 | DS51: 7.2 | DT51: 7.1 | DU51: 7 | DV51: 6.8 | DW51: 6.7 | DX51: 6.7 | DY51: 6.6 | DZ51: 6.6 | EA51: 6.7 | EB51: 6.7 | EC51: 6.8 | ED51: 6.9 | EE51: 6.9 | EF51: 7 | EG51: 7.1 | EH51: 7.2 | EI51: 7.2 | EJ51: 7.3 | EK51: 7.4 | EL51: 7.5 | EM51: 7.6 | EN51: 7.6 | EO51: 7.7 | EP51: 7.8 | EQ51: 7.8 | ER51: 7.9 | ES51: 8 | ET51: 8.1 | EU51: 8.1 | EV51: 8.2 | EW51: 8.3 | EX51: 8.5 | EY51: 8.7 | EZ51: 8.9 | FA51: 9.1 | FB51: 9.3 | FC51: 9.5 | FD51: 9.8 | FE51: 10 | FF51: 10.2 | FG51: 10.6 | FH51: 11 | FI51: 11.5 | FJ51: 11.8 | FK51: 12.1 | FL51: 12.4 | FM51: 12.6 | FN51: 12.9 | FO51: 13.1 | FP51: 13.4 | FQ51: 13.8 | FR51: 14.1 | FS51: 14.2 | FT51: 14.3 | FU51: 14.3 | FV51: 14.3 | FW51: 14.4 | FX51: 14.5 | FY51: 14.4 | FZ51: 14.3 | GA51: 14.1 | GB51: 13.8 | GC51: 13.5 | GD51: 13.2 | GE51: 13.1 | GF51: 12.9 | GG51: 12.8 | GH51: 12.7 | GI51: 12.6 | GJ51: 12.5 | GK51: 12.5 | GL51: 12.4 | GM51: 12.3 | GN51: 12.2 | GO51: 12 | GP51: 11.8 | GQ51: 11.6 | GR51: 11.4 | GS51: 11.2 | GT51: 11.1 | GU51: 11 | GV51: 10.9 | GW51: 10.8 | GX51: 10.8 | GY51: 10.7 | GZ51: 10.7 | HA51: 10.6 | HB51: 10.6 | HC51: 10.5 | HD51: 10.4 | HE51: 10.3 | HF51: 10.1 | HG51: 10 | HH51: 9.9 | HI51: 9.7 | HJ51: 9.6 | HK51: 9.5 | HL51: 9.5 | HM51: 9.5 | HN51: 9.6 | HO51: 9.7 | HP51: 9.8 | HQ51: 9.9 | HR51: 10 | HS51: 10 | HT51: 10 | HU51: 10 | HV51: 10 | HW51: 9.9 | HX51: 9.9 | HY51: 9.7 | HZ51: 9.6 | IA51: 9.4 | IB51: 9.3 | IC51: 9.1 | ID51: 8.9 | IE51: 8.8 | IF51: 8.6 | IG51: 8.5 | IH51: 8.4 | II51: 8.4 | IJ51: 8.4 | IK51: 8.4 | IL51: 8.3 | IM51: 8.3 | IN51: 8.2 | IO51: 8.1 | IP51: 8 | IQ51: 7.9 | IR51: 7.8 | IS51: 7.7 | IT51: 7.6 | IU51: 7.5 | IV51: 7.5 | IW51: 7.4 | IX51: 7.3 | IY51: 7.3 | IZ51: 7.3 | JA51: 7.3 | JB51: 7.3 | JC51: 7.3 | JD51: 7.3 | JE51: 7.2 | JF51: 7.2 | JG51: 7.1 | JH51: 7.1 | JI51: 7 | JJ51: 7 | JK51: 6.9 | JL51: 6.9 | JM51: 6.9 | JN51: 6.9 | JO51: 6.9 | JP51: 6.9 | JQ51: 7 | JR51: 7.1 | JS51: 7.1 | JT51: 7.1 | JU51: 7.2 | JV51: 7.2 | JW51: 7.2 | JX51: 7.2 | JY51: 7.3 | JZ51: 7.3 | KA51: 7.2 | KB51: 7.2 | KC51: 7.1 | KD51: 7 | KE51: 6.9 | KF51: 6.8 | KG51: 6.8 | KH51: 6.7 | KI51: 6.6 | KJ51: 6.5 | KK51: 6.4 | KL51: 6.4 | KM51: 6.3 | KN51: 6.3 | KO51: 6.3
E52: Germany (until 1990 former territory of the FRG) - Sum of Female25-74 | F52: 6.7 | G52: 6.7 | H52: 6.7 | I52: 6.7 | J52: 6.8 | K52: 6.9 | L52: 7.1 | M52: 7.3 | N52: 7.4 | O52: 7.6 | P52: 7.7 | Q52: 7.9 | R52: 8 | S52: 8.2 | T52: 8.3 | U52: 8.5 | V52: 8.6 | W52: 8.7 | X52: 8.9 | Y52: 9 | Z52: 9.1 | AA52: 9.1 | AB52: 9.2 | AC52: 9.3 | AD52: 9.4 | AE52: 9.4 | AF52: 9.5 | AG52: 9.6 | AH52: 9.7 | AI52: 9.8 | AJ52: 9.9 | AK52: 10 | AL52: 10.1 | AM52: 10.2 | AN52: 10.2 | AO52: 10.3 | AP52: 10.4 | AQ52: 10.5 | AR52: 10.5 | AS52: 10.6 | AT52: 10.5 | AU52: 10.5 | AV52: 10.5 | AW52: 10.4 | AX52: 10.3 | AY52: 10.3 | AZ52: 10.2 | BA52: 10.1 | BB52: 10.1 | BC52: 10 | BD52: 9.9 | BE52: 9.9 | BF52: 9.9 | BG52: 9.8 | BH52: 9.8 | BI52: 9.8 | BJ52: 9.8 | BK52: 9.8 | BL52: 9.8 | BM52: 9.8 | BN52: 9.8 | BO52: 9.8 | BP52: 9.8 | BQ52: 9.8 | BR52: 9.8 | BS52: 9.9 | BT52: 10 | BU52: 10.1 | BV52: 10.2 | BW52: 10.3 | BX52: 10.4 | BY52: 10.4 | BZ52: 10.5 | CA52: 10.6 | CB52: 10.7 | CC52: 10.7 | CD52: 10.8 | CE52: 10.8 | CF52: 10.8 | CG52: 10.8 | CH52: 10.8 | CI52: 10.8 | CJ52: 10.8 | CK52: 10.7 | CL52: 10.7 | CM52: 10.7 | CN52: 10.7 | CO52: 10.6 | CP52: 10.6 | CQ52: 10.5 | CR52: 10.4 | CS52: 10.3 | CT52: 10.2 | CU52: 10.1 | CV52: 10 | CW52: 9.9 | CX52: 9.8 | CY52: 9.7 | CZ52: 9.6 | DA52: 9.5 | DB52: 9.4 | DC52: 9.3 | DD52: 9.2 | DE52: 9.2 | DF52: 9.1 | DG52: 9 | DH52: 8.9 | DI52: 8.9 | DJ52: 8.8 | DK52: 8.7 | DL52: 8.7 | DM52: 8.6 | DN52: 8.6 | DO52: 8.5 | DP52: 8.4 | DQ52: 8.4 | DR52: 8.3 | DS52: 8.3 | DT52: 8.2 | DU52: 8.2 | DV52: 8.1 | DW52: 8.1 | DX52: 8.1 | DY52: 8 | DZ52: 8 | EA52: 8 | EB52: 8.1 | EC52: 8.1 | ED52: 8.1 | EE52: 8.2 | EF52: 8.2 | EG52: 8.2 | EH52: 8.3 | EI52: 8.3 | EJ52: 8.3 | EK52: 8.4 | EL52: 8.5 | EM52: 8.5 | EN52: 8.6 | EO52: 8.7 | EP52: 8.8 | EQ52: 8.9 | ER52: 9 | ES52: 9.1 | ET52: 9.2 | EU52: 9.3 | EV52: 9.4 | EW52: 9.5 | EX52: 9.6 | EY52: 9.6 | EZ52: 9.6 | FA52: 9.6 | FB52: 9.6 | FC52: 9.6 | FD52: 9.6 | FE52: 9.6 | FF52: 9.6 | FG52: 9.6 | FH52: 9.7 | FI52: 9.8 | FJ52: 9.9 | FK52: 9.9 | FL52: 10 | FM52: 10.1 | FN52: 10.1 | FO52: 10.2 | FP52: 10.3 | FQ52: 10.4 | FR52: 10.5 | FS52: 10.5 | FT52: 10.5 | FU52: 10.7 | FV52: 10.7 | FW52: 10.6 | FX52: 10.6 | FY52: 10.6 | FZ52: 10.6 | GA52: 10.5 | GB52: 10.4 | GC52: 10.3 | GD52: 10.2 | GE52: 10.1 | GF52: 10 | GG52: 9.9 | GH52: 9.8 | GI52: 9.7 | GJ52: 9.6 | GK52: 9.6 | GL52: 9.5 | GM52: 9.4 | GN52: 9.3 | GO52: 9.2 | GP52: 9.1 | GQ52: 9 | GR52: 8.8 | GS52: 8.7 | GT52: 8.6 | GU52: 8.5 | GV52: 8.4 | GW52: 8.4 | GX52: 8.4 | GY52: 8.3 | GZ52: 8.2 | HA52: 8 | HB52: 7.9 | HC52: 7.8 | HD52: 7.7 | HE52: 7.7 | HF52: 7.6 | HG52: 7.5 | HH52: 7.3 | HI52: 7.1 | HJ52: 7 | HK52: 6.9 | HL52: 6.8 | HM52: 6.9 | HN52: 6.9 | HO52: 7 | HP52: 7 | HQ52: 7.1 | HR52: 7.1 | HS52: 7.1 | HT52: 7.1 | HU52: 7 | HV52: 6.9 | HW52: 6.8 | HX52: 6.7 | HY52: 6.7 | HZ52: 6.7 | IA52: 6.6 | IB52: 6.6 | IC52: 6.4 | ID52: 6.3 | IE52: 6.2 | IF52: 6.1 | IG52: 6.1 | IH52: 6.1 | II52: 6.1 | IJ52: 6 | IK52: 5.9 | IL52: 5.8 | IM52: 5.7 | IN52: 5.5 | IO52: 5.5 | IP52: 5.4 | IQ52: 5.4 | IR52: 5.4 | IS52: 5.3 | IT52: 5.3 | IU52: 5.2 | IV52: 5.1 | IW52: 5 | IX52: 5 | IY52: 4.9 | IZ52: 4.9 | JA52: 5 | JB52: 5 | JC52: 5 | JD52: 4.9 | JE52: 4.9 | JF52: 4.9 | JG52: 4.9 | JH52: 4.9 | JI52: 4.9 | JJ52: 4.9 | JK52: 4.9 | JL52: 4.8 | JM52: 4.8 | JN52: 4.7 | JO52: 4.7 | JP52: 4.7 | JQ52: 4.6 | JR52: 4.6 | JS52: 4.6 | JT52: 4.6 | JU52: 4.6 | JV52: 4.6 | JW52: 4.6 | JX52: 4.5 | JY52: 4.4 | JZ52: 4.3 | KA52: 4.3 | KB52: 4.3 | KC52: 4.3 | KD52: 4.3 | KE52: 4.3 | KF52: 4.3 | KG52: 4.3 | KH52: 4.2 | KI52: 4.2 | KJ52: 4.2 | KK52: 4.1 | KL52: 4.1 | KM52: 4 | KN52: 3.9 | KO52: 3.8
E53: Greece - Sum of Male< 25 | CO53: 21 | CP53: 21.4 | CQ53: 21.9 | CR53: 20.7 | CS53: 21.6 | CT53: 22.3 | CU53: 21 | CV53: 22 | CW53: 22.6 | CX53: 22.5 | CY53: 22.5 | CZ53: 22.6 | DA53: 22.6 | DB53: 22.7 | DC53: 23 | DD53: 22.7 | DE53: 22.9 | DF53: 23 | DG53: 22.8 | DH53: 23 | DI53: 23 | DJ53: 22.3 | DK53: 22.1 | DL53: 22 | DM53: 22 | DN53: 21.9 | DO53: 21.8 | DP53: 21.2 | DQ53: 21.2 | DR53: 21.2 | DS53: 20.5 | DT53: 20.5 | DU53: 20.4 | DV53: 21.7 | DW53: 21.3 | DX53: 21 | DY53: 21.4 | DZ53: 21.2 | EA53: 21.1 | EB53: 21.4 | EC53: 21.3 | ED53: 21.2 | EE53: 22 | EF53: 21.9 | EG53: 21.7 | EH53: 21.2 | EI53: 21 | EJ53: 20.8 | EK53: 20 | EL53: 19.9 | EM53: 19.8 | EN53: 19.6 | EO53: 19.5 | EP53: 19.4 | EQ53: 19.3 | ER53: 19.2 | ES53: 19.2 | ET53: 19.3 | EU53: 19.1 | EV53: 18.9 | EW53: 19 | EX53: 18.9 | EY53: 18.8 | EZ53: 18.9 | FA53: 19 | FB53: 19 | FC53: 18.8 | FD53: 18.8 | FE53: 18.8 | FF53: 19.9 | FG53: 20.1 | FH53: 20.4 | FI53: 19.8 | FJ53: 19 | FK53: 18.4 | FL53: 17.8 | FM53: 18.2 | FN53: 18.3 | FO53: 18.6 | FP53: 18.4 | FQ53: 18.3 | FR53: 19.1 | FS53: 17.9 | FT53: 18.3 | FU53: 17.4 | FV53: 18.4 | FW53: 18.3 | FX53: 19.2 | FY53: 19 | FZ53: 19.8 | GA53: 19.2 | GB53: 18.8 | GC53: 18.5 | GD53: 17.7 | GE53: 18.3 | GF53: 17.7 | GG53: 18.2 | GH53: 17.2 | GI53: 17.6 | GJ53: 16.9 | GK53: 17.1 | GL53: 16.8 | GM53: 16.8 | GN53: 17.5 | GO53: 19.9 | GP53: 17.7 | GQ53: 17.2 | GR53: 17.6 | GS53: 13.8 | GT53: 14.8 | GU53: 13.6 | GV53: 13.8 | GW53: 14.4 | GX53: 14.9 | GY53: 15.2 | GZ53: 15 | HA53: 15.9 | HB53: 15.5 | HC53: 15.8 | HD53: 20.3 | HE53: 15.9 | HF53: 15.5 | HG53: 16 | HH53: 16.8 | HI53: 16.3 | HJ53: 17.1 | HK53: 16.9 | HL53: 17.7 | HM53: 18.6 | HN53: 19 | HO53: 19.5 | HP53: 18.5 | HQ53: 18.9 | HR53: 18.8 | HS53: 18.6 | HT53: 18.4 | HU53: 19.4 | HV53: 20.1 | HW53: 20.8 | HX53: 21.5 | HY53: 21.9 | HZ53: 22.5 | IA53: 23.4 | IB53: 24 | IC53: 24.3 | ID53: 25.9 | IE53: 26.3 | IF53: 27.1 | IG53: 26.5 | IH53: 27.7 | II53: 30 | IJ53: 31.3 | IK53: 32.6 | IL53: 32 | IM53: 34.1 | IN53: 35.8 | IO53: 37.8 | IP53: 36.2 | IQ53: 37.2 | IR53: 38.1 | IS53: 41.3 | IT53: 42.5 | IU53: 43.5 | IV53: 42.6 | IW53: 44.4 | IX53: 45.3 | IY53: 46.2 | IZ53: 46 | JA53: 46 | JB53: 47.6 | JC53: 49.7 | JD53: 50.9 | JE53: 49.5 | JF53: 49.3 | JG53: 49.9 | JH53: 53.3 | JI53: 53.2 | JJ53: 54.6 | JK53: 53.3 | JL53: 54.3 | JM53: 54.2 | JN53: 55.1 | JO53: 54.4 | JP53: 54 | JQ53: 53.4 | JR53: 53.3 | JS53: 53.2 | JT53: 52.6 | JU53: 52.5 | JV53: 52.2 | JW53: 52.6 | JX53: 52.5 | JY53: 50.6 | JZ53: 50.3 | KA53: 44 | KB53: 43.8 | KC53: 44.3 | KD53: 44.7 | KE53: 46.3 | KF53: 45.7 | KG53: 46.7 | KH53: 46.6 | KI53: 47.4 | KJ53: 46.5 | KK53: 47.1 | KL53: 47 | KM53: 43.6 | KN53: 43.9
E54: Greece - Sum of Male 25-74 | CO54: 5.3 | CP54: 5.3 | CQ54: 5.2 | CR54: 5.1 | CS54: 5.2 | CT54: 5.2 | CU54: 5.2 | CV54: 5.5 | CW54: 5.6 | CX54: 5.6 | CY54: 5.7 | CZ54: 5.7 | DA54: 5.9 | DB54: 5.9 | DC54: 5.9 | DD54: 6.1 | DE54: 6.1 | DF54: 6.2 | DG54: 6.3 | DH54: 6.4 | DI54: 6.5 | DJ54: 5.6 | DK54: 5.7 | DL54: 5.7 | DM54: 5.8 | DN54: 5.8 | DO54: 5.8 | DP54: 5.6 | DQ54: 5.7 | DR54: 5.7 | DS54: 5.3 | DT54: 5.4 | DU54: 5.4 | DV54: 5.3 | DW54: 5.3 | DX54: 5.3 | DY54: 5.5 | DZ54: 5.5 | EA54: 5.5 | EB54: 5.5 | EC54: 5.5 | ED54: 5.5 | EE54: 5.8 | EF54: 5.8 | EG54: 5.8 | EH54: 5.6 | EI54: 5.7 | EJ54: 5.7 | EK54: 5.3 | EL54: 5.3 | EM54: 5.3 | EN54: 5.4 | EO54: 5.4 | EP54: 5.3 | EQ54: 5.3 | ER54: 5.3 | ES54: 5.3 | ET54: 5 | EU54: 5 | EV54: 5 | EW54: 5 | EX54: 5 | EY54: 5 | EZ54: 4.9 | FA54: 4.9 | FB54: 4.9 | FC54: 5 | FD54: 5 | FE54: 5 | FF54: 5.7 | FG54: 5.5 | FH54: 5.5 | FI54: 5.3 | FJ54: 5.3 | FK54: 5.3 | FL54: 5.3 | FM54: 5.3 | FN54: 5.2 | FO54: 5.2 | FP54: 5.3 | FQ54: 5.2 | FR54: 5.1 | FS54: 5.1 | FT54: 5.1 | FU54: 5.1 | FV54: 5 | FW54: 5 | FX54: 5.1 | FY54: 5.1 | FZ54: 5.2 | GA54: 5.1 | GB54: 5 | GC54: 5.1 | GD54: 5.1 | GE54: 5 | GF54: 4.7 | GG54: 4.7 | GH54: 4.7 | GI54: 4.7 | GJ54: 4.5 | GK54: 4.4 | GL54: 4.4 | GM54: 4.4 | GN54: 4.5 | GO54: 4.4 | GP54: 4.4 | GQ54: 4.5 | GR54: 4.6 | GS54: 4.6 | GT54: 4.5 | GU54: 4.3 | GV54: 4.4 | GW54: 4.4 | GX54: 4.4 | GY54: 4.4 | GZ54: 4.3 | HA54: 4.4 | HB54: 4.3 | HC54: 4.4 | HD54: 4.3 | HE54: 4.2 | HF54: 4 | HG54: 4.1 | HH54: 4 | HI54: 4.1 | HJ54: 4.1 | HK54: 4 | HL54: 4.1 | HM54: 5.3 | HN54: 5.5 | HO54: 5.6 | HP54: 5.7 | HQ54: 5.7 | HR54: 5.7 | HS54: 5.9 | HT54: 6 | HU54: 6.2 | HV54: 6.3 | HW54: 6.5 | HX54: 6.8 | HY54: 6.9 | HZ54: 7.3 | IA54: 7.5 | IB54: 7.9 | IC54: 8.2 | ID54: 8.5 | IE54: 8.7 | IF54: 8.8 | IG54: 9.1 | IH54: 9.4 | II54: 9.9 | IJ54: 10.1 | IK54: 10.7 | IL54: 11 | IM54: 11.4 | IN54: 12 | IO54: 12.1 | IP54: 12.7 | IQ54: 12.9 | IR54: 13.5 | IS54: 14 | IT54: 14.6 | IU54: 15.4 | IV54: 16.4 | IW54: 16.9 | IX54: 17.1 | IY54: 17.5 | IZ54: 17.9 | JA54: 18.9 | JB54: 19.3 | JC54: 20.1 | JD54: 20.3 | JE54: 20.9 | JF54: 21.2 | JG54: 21.6 | JH54: 21.5 | JI54: 21.7 | JJ54: 21.9 | JK54: 22.1 | JL54: 22.2 | JM54: 22.3 | JN54: 22.7 | JO54: 22.7 | JP54: 22.9 | JQ54: 22.6 | JR54: 22.8 | JS54: 22.7 | JT54: 23 | JU54: 22.7 | JV54: 22.5 | JW54: 22.7 | JX54: 22.7 | JY54: 22.6 | JZ54: 22.2 | KA54: 22.1 | KB54: 21.9 | KC54: 22.1 | KD54: 21.8 | KE54: 21.8 | KF54: 21.6 | KG54: 21.6 | KH54: 21.3 | KI54: 21.1 | KJ54: 21.6 | KK54: 20.7 | KL54: 20.7 | KM54: 20.3 | KN54: 20.1
E55: Greece - Sum of Female<25 | CO55: 40.6 | CP55: 39.9 | CQ55: 40 | CR55: 41.9 | CS55: 41.6 | CT55: 41.2 | CU55: 41 | CV55: 41.7 | CW55: 40.3 | CX55: 40 | CY55: 40.2 | CZ55: 40 | DA55: 42.3 | DB55: 41.9 | DC55: 41.7 | DD55: 41.5 | DE55: 41.2 | DF55: 41 | DG55: 42.6 | DH55: 42.5 | DI55: 41.8 | DJ55: 38.9 | DK55: 39.1 | DL55: 39.1 | DM55: 38.9 | DN55: 38.7 | DO55: 38.5 | DP55: 38.9 | DQ55: 38.7 | DR55: 38.5 | DS55: 36.1 | DT55: 36.4 | DU55: 36.4 | DV55: 35.7 | DW55: 35.8 | DX55: 35.7 | DY55: 36.6 | DZ55: 36.4 | EA55: 36.4 | EB55: 35.4 | EC55: 35.4 | ED55: 35.3 | EE55: 35.7 | EF55: 35.6 | EG55: 35.6 | EH55: 36 | EI55: 36 | EJ55: 36 | EK55: 35.2 | EL55: 35.1 | EM55: 35.1 | EN55: 35.2 | EO55: 35.1 | EP55: 35.1 | EQ55: 34.4 | ER55: 34.5 | ES55: 34.5 | ET55: 34.4 | EU55: 34.5 | EV55: 34.6 | EW55: 36.1 | EX55: 35.9 | EY55: 35.8 | EZ55: 38.9 | FA55: 38.2 | FB55: 37.7 | FC55: 37.9 | FD55: 37.7 | FE55: 37.4 | FF55: 37.9 | FG55: 37.2 | FH55: 36.3 | FI55: 35 | FJ55: 34.6 | FK55: 35 | FL55: 34.7 | FM55: 33.5 | FN55: 34.2 | FO55: 34.6 | FP55: 35.3 | FQ55: 35.5 | FR55: 34.3 | FS55: 33.9 | FT55: 32.9 | FU55: 33.7 | FV55: 33.4 | FW55: 34.6 | FX55: 33.6 | FY55: 34.2 | FZ55: 34.4 | GA55: 35.4 | GB55: 36 | GC55: 35 | GD55: 34.3 | GE55: 34.1 | GF55: 33.9 | GG55: 33.8 | GH55: 33.4 | GI55: 32.8 | GJ55: 33.3 | GK55: 33 | GL55: 34.2 | GM55: 35 | GN55: 36.4 | GO55: 35.2 | GP55: 34.3 | GQ55: 33.6 | GR55: 33.5 | GS55: 32.6 | GT55: 31.6 | GU55: 31.5 | GV55: 31.7 | GW55: 31.9 | GX55: 31.6 | GY55: 30.9 | GZ55: 29.5 | HA55: 28.9 | HB55: 29 | HC55: 30.2 | HD55: 29.5 | HE55: 28.2 | HF55: 27.1 | HG55: 27.7 | HH55: 27.6 | HI55: 27.8 | HJ55: 27.8 | HK55: 27.4 | HL55: 29.1 | HM55: 30.1 | HN55: 32 | HO55: 31.7 | HP55: 32.3 | HQ55: 32.4 | HR55: 32.4 | HS55: 31.6 | HT55: 31.8 | HU55: 32.5 | HV55: 34.3 | HW55: 35.4 | HX55: 36.1 | HY55: 37.1 | HZ55: 37.9 | IA55: 38.3 | IB55: 38.1 | IC55: 38.6 | ID55: 39.5 | IE55: 38.7 | IF55: 39.9 | IG55: 39.9 | IH55: 41.7 | II55: 41.9 | IJ55: 43 | IK55: 43.9 | IL55: 44.9 | IM55: 47.1 | IN55: 48.2 | IO55: 50 | IP55: 50.5 | IQ55: 51.2 | IR55: 51.4 | IS55: 51.7 | IT55: 52.2 | IU55: 52.9 | IV55: 58.7 | IW55: 59.6 | IX55: 60.4 | IY55: 60.6 | IZ55: 60.2 | JA55: 61.1 | JB55: 61 | JC55: 61.8 | JD55: 62.8 | JE55: 65.1 | JF55: 66.9 | JG55: 66.2 | JH55: 65.3 | JI55: 64.7 | JJ55: 65 | JK55: 70.1 | JL55: 64.1 | JM55: 64.6 | JN55: 65.2 | JO55: 64.5 | JP55: 63.5 | JQ55: 64.7 | JR55: 62 | JS55: 62.8 | JT55: 62.4 | JU55: 60.9 | JV55: 61.1 | JW55: 60.6 | JX55: 61.7 | JY55: 61.2 | JZ55: 56.3 | KA55: 55.9 | KB55: 56.3 | KC55: 56.1 | KD55: 56.8 | KE55: 57 | KF55: 57.1 | KG55: 56.1 | KH55: 54.7 | KI55: 58.9 | KJ55: 58.6 | KK55: 56.9 | KL55: 54.7 | KM55: 53.5 | KN55: 54.3
E56: Greece - Sum of Female25-74 | CO56: 12.6 | CP56: 12.7 | CQ56: 12.6 | CR56: 12.8 | CS56: 13 | CT56: 12.8 | CU56: 13 | CV56: 13.2 | CW56: 13.2 | CX56: 13.3 | CY56: 13.4 | CZ56: 13.4 | DA56: 14.3 | DB56: 14.3 | DC56: 14.2 | DD56: 14.2 | DE56: 14.2 | DF56: 14.2 | DG56: 14.3 | DH56: 14.3 | DI56: 14.4 | DJ56: 14.1 | DK56: 14.2 | DL56: 14.1 | DM56: 14 | DN56: 13.9 | DO56: 13.8 | DP56: 13.7 | DQ56: 13.6 | DR56: 13.6 | DS56: 12.8 | DT56: 12.9 | DU56: 12.9 | DV56: 13 | DW56: 12.9 | DX56: 12.9 | DY56: 13.2 | DZ56: 13.1 | EA56: 13.1 | EB56: 13.2 | EC56: 13.1 | ED56: 13 | EE56: 13.4 | EF56: 13.4 | EG56: 13.3 | EH56: 13.2 | EI56: 13.2 | EJ56: 13.1 | EK56: 13.1 | EL56: 13 | EM56: 12.9 | EN56: 13 | EO56: 12.9 | EP56: 12.9 | EQ56: 12.6 | ER56: 12.6 | ES56: 12.6 | ET56: 12.5 | EU56: 12.4 | EV56: 12.4 | EW56: 12.3 | EX56: 12.3 | EY56: 12.3 | EZ56: 12.3 | FA56: 12.3 | FB56: 12.4 | FC56: 12.6 | FD56: 12.6 | FE56: 12.7 | FF56: 14.1 | FG56: 13.9 | FH56: 13.8 | FI56: 13.8 | FJ56: 13.8 | FK56: 13.7 | FL56: 13.8 | FM56: 13.8 | FN56: 14 | FO56: 13.7 | FP56: 13.6 | FQ56: 13.7 | FR56: 13.9 | FS56: 13.5 | FT56: 13.7 | FU56: 13.5 | FV56: 13.6 | FW56: 13.8 | FX56: 13.5 | FY56: 13.1 | FZ56: 13.1 | GA56: 13.2 | GB56: 12.9 | GC56: 12.6 | GD56: 12.2 | GE56: 12.3 | GF56: 12.2 | GG56: 12.1 | GH56: 11.8 | GI56: 11.3 | GJ56: 11.4 | GK56: 11.6 | GL56: 11.3 | GM56: 10.9 | GN56: 11.7 | GO56: 11.8 | GP56: 11.8 | GQ56: 11.9 | GR56: 11.6 | GS56: 11.4 | GT56: 11.2 | GU56: 11.1 | GV56: 10.8 | GW56: 10.7 | GX56: 10.7 | GY56: 10.8 | GZ56: 10.7 | HA56: 10.6 | HB56: 10.5 | HC56: 10.5 | HD56: 10.6 | HE56: 10.6 | HF56: 9.4 | HG56: 9.7 | HH56: 9.7 | HI56: 9.9 | HJ56: 9.8 | HK56: 10 | HL56: 10.3 | HM56: 10.5 | HN56: 10.9 | HO56: 11.1 | HP56: 11.1 | HQ56: 11.2 | HR56: 11.3 | HS56: 11.3 | HT56: 11.6 | HU56: 11.5 | HV56: 11.9 | HW56: 12 | HX56: 12.1 | HY56: 12.6 | HZ56: 13 | IA56: 13.4 | IB56: 13.5 | IC56: 13.5 | ID56: 13.8 | IE56: 14.3 | IF56: 14.3 | IG56: 14.5 | IH56: 15 | II56: 15.8 | IJ56: 16 | IK56: 16.3 | IL56: 16.5 | IM56: 16.9 | IN56: 17.4 | IO56: 17.8 | IP56: 18.2 | IQ56: 18.4 | IR56: 19 | IS56: 19.8 | IT56: 20 | IU56: 20.9 | IV56: 21.8 | IW56: 22.7 | IX56: 23.3 | IY56: 23.4 | IZ56: 23.8 | JA56: 24.1 | JB56: 25.2 | JC56: 26 | JD56: 26.2 | JE56: 26.3 | JF56: 27.1 | JG56: 26.8 | JH56: 27.6 | JI56: 27.2 | JJ56: 27.8 | JK56: 27.9 | JL56: 28.4 | JM56: 29.1 | JN56: 29.2 | JO56: 29.2 | JP56: 29.4 | JQ56: 29.8 | JR56: 29.9 | JS56: 29.5 | JT56: 29.1 | JU56: 28.9 | JV56: 28.7 | JW56: 28.7 | JX56: 28.5 | JY56: 28.7 | JZ56: 29 | KA56: 28.7 | KB56: 28.2 | KC56: 27.7 | KD56: 27.8 | KE56: 27.6 | KF56: 27.6 | KG56: 27.7 | KH56: 28 | KI56: 27.9 | KJ56: 27.7 | KK56: 27.4 | KL56: 26.3 | KM56: 27.7 | KN56: 27.8
E57: Hungary - Sum of Male< 25 | BN57: 21.8 | BO57: 21.5 | BP57: 21.3 | BQ57: 21.2 | BR57: 21.2 | BS57: 21.5 | BT57: 21.3 | BU57: 21.1 | BV57: 20.9 | BW57: 20.4 | BX57: 20.2 | BY57: 20.1 | BZ57: 19.7 | CA57: 19.7 | CB57: 19.5 | CC57: 19.3 | CD57: 19.2 | CE57: 19.1 | CF57: 19 | CG57: 18.9 | CH57: 18.8 | CI57: 18.6 | CJ57: 18.5 | CK57: 18.3 | CL57: 18.2 | CM57: 17.9 | CN57: 17.7 | CO57: 17.4 | CP57: 17.2 | CQ57: 17.1 | CR57: 16.9 | CS57: 16.6 | CT57: 16.2 | CU57: 15.8 | CV57: 15.4 | CW57: 15 | CX57: 14.4 | CY57: 14.2 | CZ57: 14 | DA57: 13.8 | DB57: 13.7 | DC57: 13.6 | DD57: 13.4 | DE57: 13.4 | DF57: 13.4 | DG57: 13.4 | DH57: 13.4 | DI57: 13.4 | DJ57: 13.6 | DK57: 13.7 | DL57: 13.6 | DM57: 13.5 | DN57: 13.3 | DO57: 13 | DP57: 12.8 | DQ57: 12.6 | DR57: 12.5 | DS57: 12.3 | DT57: 12.1 | DU57: 12 | DV57: 11.8 | DW57: 11.7 | DX57: 11.7 | DY57: 11.6 | DZ57: 11.7 | EA57: 11.7 | EB57: 11.7 | EC57: 11.6 | ED57: 11.6 | EE57: 11.7 | EF57: 11.7 | EG57: 11.9 | EH57: 12.1 | EI57: 12.2 | EJ57: 12.3 | EK57: 12.3 | EL57: 12.3 | EM57: 12.5 | EN57: 12.6 | EO57: 12.9 | EP57: 13 | EQ57: 13.4 | ER57: 13.9 | ES57: 13.7 | ET57: 13.6 | EU57: 13.5 | EV57: 13.5 | EW57: 13.5 | EX57: 13.6 | EY57: 13.5 | EZ57: 13.4 | FA57: 13.4 | FB57: 13.5 | FC57: 13.5 | FD57: 13.5 | FE57: 13.6 | FF57: 13.8 | FG57: 14.8 | FH57: 15 | FI57: 15.4 | FJ57: 15.3 | FK57: 15.5 | FL57: 16.5 | FM57: 17 | FN57: 17 | FO57: 18.4 | FP57: 18 | FQ57: 18.7 | FR57: 18.9 | FS57: 19.2 | FT57: 20 | FU57: 20.7 | FV57: 21.1 | FW57: 20.8 | FX57: 19.7 | FY57: 19 | FZ57: 19 | GA57: 18.9 | GB57: 19.3 | GC57: 18.8 | GD57: 18.8 | GE57: 18.5 | GF57: 18.9 | GG57: 18.2 | GH57: 17.4 | GI57: 17.8 | GJ57: 18.3 | GK57: 19.2 | GL57: 19.3 | GM57: 19.7 | GN57: 19 | GO57: 17.8 | GP57: 17.3 | GQ57: 17.5 | GR57: 17.8 | GS57: 17.1 | GT57: 16.6 | GU57: 16.5 | GV57: 16.8 | GW57: 16.8 | GX57: 17.3 | GY57: 18.2 | GZ57: 19.7 | HA57: 19.9 | HB57: 19.8 | HC57: 19.2 | HD57: 18.6 | HE57: 18.2 | HF57: 18.1 | HG57: 18.7 | HH57: 18.8 | HI57: 19.2 | HJ57: 19.6 | HK57: 19.4 | HL57: 20 | HM57: 21.3 | HN57: 22.9 | HO57: 24.5 | HP57: 25.7 | HQ57: 27.4 | HR57: 27.8 | HS57: 28.4 | HT57: 29 | HU57: 29.7 | HV57: 29.6 | HW57: 29.9 | HX57: 30.6 | HY57: 30 | HZ57: 28.7 | IA57: 29.2 | IB57: 29.5 | IC57: 29.9 | ID57: 29.8 | IE57: 28.1 | IF57: 28.3 | IG57: 26.8 | IH57: 27.1 | II57: 26.1 | IJ57: 26 | IK57: 26.6 | IL57: 27.5 | IM57: 27.6 | IN57: 28.5 | IO57: 27.4 | IP57: 26.5 | IQ57: 25.9 | IR57: 26.9 | IS57: 27.5 | IT57: 27.1 | IU57: 26.6 | IV57: 27.1 | IW57: 27.4 | IX57: 28.2 | IY57: 27.9 | IZ57: 27.8 | JA57: 29.1 | JB57: 30.5 | JC57: 30.6 | JD57: 30 | JE57: 29.4 | JF57: 29.7 | JG57: 29.2 | JH57: 27.7 | JI57: 27.3 | JJ57: 27.6 | JK57: 28.8 | JL57: 26.9 | JM57: 26.5 | JN57: 26.3 | JO57: 27.7 | JP57: 26.6 | JQ57: 26.4 | JR57: 25.5 | JS57: 24.9 | JT57: 23.8 | JU57: 23.1 | JV57: 21.5 | JW57: 19 | JX57: 18.9 | JY57: 19.2 | JZ57: 20.6 | KA57: 21.8 | KB57: 21.5 | KC57: 20.4 | KD57: 19.1 | KE57: 19.7 | KF57: 20.1 | KG57: 20.1 | KH57: 20 | KI57: 20 | KJ57: 20 | KK57: 19.6 | KL57: 19.8 | KM57: 19.2 | KN57: 18.8
E58: Hungary - Sum of Male 25-74 | BN58: 9.4 | BO58: 9.2 | BP58: 9.1 | BQ58: 9.1 | BR58: 9.1 | BS58: 9 | BT58: 9 | BU58: 8.9 | BV58: 8.9 | BW58: 8.8 | BX58: 8.7 | BY58: 8.7 | BZ58: 8.5 | CA58: 8.5 | CB58: 8.5 | CC58: 8.4 | CD58: 8.4 | CE58: 8.3 | CF58: 8.3 | CG58: 8.3 | CH58: 8.3 | CI58: 8.3 | CJ58: 8.3 | CK58: 8.3 | CL58: 8.3 | CM58: 8.3 | CN58: 8.3 | CO58: 8.2 | CP58: 8.1 | CQ58: 8 | CR58: 7.9 | CS58: 7.8 | CT58: 7.7 | CU58: 7.5 | CV58: 7.4 | CW58: 7.1 | CX58: 6.6 | CY58: 6.5 | CZ58: 6.4 | DA58: 6.4 | DB58: 6.3 | DC58: 6.3 | DD58: 6.2 | DE58: 6.1 | DF58: 6.1 | DG58: 6.1 | DH58: 6 | DI58: 6 | DJ58: 6 | DK58: 6 | DL58: 5.9 | DM58: 5.9 | DN58: 5.8 | DO58: 5.8 | DP58: 5.7 | DQ58: 5.7 | DR58: 5.6 | DS58: 5.6 | DT58: 5.6 | DU58: 5.5 | DV58: 5.4 | DW58: 5.4 | DX58: 5.4 | DY58: 5.4 | DZ58: 5.4 | EA58: 5.3 | EB58: 5.3 | EC58: 5.3 | ED58: 5.2 | EE58: 5.2 | EF58: 5.2 | EG58: 5.2 | EH58: 5.2 | EI58: 5.1 | EJ58: 5.1 | EK58: 5.1 | EL58: 5.1 | EM58: 5.1 | EN58: 5.1 | EO58: 5.1 | EP58: 5.2 | EQ58: 5.2 | ER58: 5.1 | ES58: 5.1 | ET58: 5.2 | EU58: 5.2 | EV58: 5.2 | EW58: 5.2 | EX58: 5.2 | EY58: 5.1 | EZ58: 5.1 | FA58: 5.1 | FB58: 5 | FC58: 5 | FD58: 5 | FE58: 4.9 | FF58: 5 | FG58: 5 | FH58: 5 | FI58: 4.9 | FJ58: 5 | FK58: 5.1 | FL58: 5 | FM58: 5.1 | FN58: 5.1 | FO58: 5.1 | FP58: 5.1 | FQ58: 5.2 | FR58: 5.1 | FS58: 5.3 | FT58: 5.4 | FU58: 5.6 | FV58: 5.7 | FW58: 5.7 | FX58: 6 | FY58: 6.1 | FZ58: 6.1 | GA58: 6.1 | GB58: 6.2 | GC58: 6.3 | GD58: 6.3 | GE58: 6.1 | GF58: 6.1 | GG58: 6 | GH58: 6 | GI58: 6.1 | GJ58: 6.2 | GK58: 6.1 | GL58: 6.1 | GM58: 6.2 | GN58: 6.2 | GO58: 6.1 | GP58: 5.9 | GQ58: 6 | GR58: 6.2 | GS58: 6.2 | GT58: 6.1 | GU58: 6.1 | GV58: 6.2 | GW58: 6.1 | GX58: 6.4 | GY58: 6.4 | GZ58: 6.6 | HA58: 6.6 | HB58: 6.3 | HC58: 6.1 | HD58: 6.1 | HE58: 6.3 | HF58: 6.6 | HG58: 6.5 | HH58: 6.6 | HI58: 6.7 | HJ58: 6.7 | HK58: 6.9 | HL58: 7.2 | HM58: 7.4 | HN58: 7.8 | HO58: 8.1 | HP58: 8.4 | HQ58: 8.6 | HR58: 8.6 | HS58: 8.8 | HT58: 9 | HU58: 9.4 | HV58: 9.4 | HW58: 9.5 | HX58: 9.3 | HY58: 9.4 | HZ58: 10 | IA58: 10.3 | IB58: 10.6 | IC58: 10.3 | ID58: 10.4 | IE58: 10.5 | IF58: 10.4 | IG58: 10.2 | IH58: 10.2 | II58: 10.1 | IJ58: 10.1 | IK58: 10.1 | IL58: 10.1 | IM58: 10 | IN58: 9.9 | IO58: 9.8 | IP58: 9.7 | IQ58: 9.9 | IR58: 9.9 | IS58: 9.7 | IT58: 9.7 | IU58: 9.6 | IV58: 9.5 | IW58: 9.6 | IX58: 10 | IY58: 10.1 | IZ58: 10 | JA58: 10 | JB58: 10.1 | JC58: 9.9 | JD58: 9.6 | JE58: 9.6 | JF58: 9.5 | JG58: 9.6 | JH58: 9.7 | JI58: 10 | JJ58: 10.2 | JK58: 10.3 | JL58: 9.6 | JM58: 9.2 | JN58: 8.9 | JO58: 8.9 | JP58: 8.8 | JQ58: 8.7 | JR58: 8.8 | JS58: 8.2 | JT58: 7.9 | JU58: 7.2 | JV58: 6.8 | JW58: 6.7 | JX58: 6.7 | JY58: 6.8 | JZ58: 7 | KA58: 6.9 | KB58: 6.5 | KC58: 6.3 | KD58: 6 | KE58: 6.2 | KF58: 6.2 | KG58: 6.1 | KH58: 6.3 | KI58: 6.2 | KJ58: 6.2 | KK58: 6 | KL58: 5.6 | KM58: 5.5 | KN58: 5.4
E59: Hungary - Sum of Female<25 | BN59: 18.4 | BO59: 18.2 | BP59: 18.1 | BQ59: 17.9 | BR59: 18 | BS59: 18.2 | BT59: 18 | BU59: 17.5 | BV59: 17.2 | BW59: 16.8 | BX59: 16.4 | BY59: 16.2 | BZ59: 15.7 | CA59: 15.5 | CB59: 15.3 | CC59: 15 | CD59: 14.8 | CE59: 14.8 | CF59: 14.6 | CG59: 14.4 | CH59: 14.2 | CI59: 14.1 | CJ59: 14 | CK59: 13.9 | CL59: 13.8 | CM59: 13.6 | CN59: 13.4 | CO59: 13.2 | CP59: 13.1 | CQ59: 13.2 | CR59: 13.1 | CS59: 12.9 | CT59: 12.7 | CU59: 12.4 | CV59: 12.3 | CW59: 12.1 | CX59: 11.5 | CY59: 11.4 | CZ59: 11.3 | DA59: 11.3 | DB59: 11.2 | DC59: 11 | DD59: 11 | DE59: 11.1 | DF59: 11.1 | DG59: 11.4 | DH59: 11.2 | DI59: 11 | DJ59: 10.8 | DK59: 10.8 | DL59: 10.8 | DM59: 10.8 | DN59: 10.7 | DO59: 10.6 | DP59: 10.4 | DQ59: 10.3 | DR59: 10.2 | DS59: 10.1 | DT59: 10 | DU59: 10.1 | DV59: 10.1 | DW59: 10.1 | DX59: 10.1 | DY59: 10.1 | DZ59: 10.1 | EA59: 10.1 | EB59: 10.1 | EC59: 10 | ED59: 10.1 | EE59: 10.2 | EF59: 10.3 | EG59: 10.3 | EH59: 10.4 | EI59: 10.6 | EJ59: 10.6 | EK59: 10.6 | EL59: 10.7 | EM59: 10.8 | EN59: 11 | EO59: 11.1 | EP59: 11.1 | EQ59: 11.4 | ER59: 12 | ES59: 11.9 | ET59: 12 | EU59: 12 | EV59: 12.1 | EW59: 12.3 | EX59: 12.6 | EY59: 12.7 | EZ59: 12.8 | FA59: 13 | FB59: 13 | FC59: 13 | FD59: 13.2 | FE59: 13.3 | FF59: 12.7 | FG59: 12.9 | FH59: 13.4 | FI59: 13.6 | FJ59: 14.2 | FK59: 14.9 | FL59: 15.1 | FM59: 15.1 | FN59: 15.2 | FO59: 15.6 | FP59: 16.1 | FQ59: 16.8 | FR59: 17.2 | FS59: 17.2 | FT59: 18 | FU59: 18.3 | FV59: 18.2 | FW59: 18.3 | FX59: 19 | FY59: 20.2 | FZ59: 20.3 | GA59: 20.1 | GB59: 19.5 | GC59: 19 | GD59: 19.4 | GE59: 19.2 | GF59: 18.8 | GG59: 19 | GH59: 19.4 | GI59: 20 | GJ59: 19.8 | GK59: 19.5 | GL59: 19.7 | GM59: 19.7 | GN59: 20.1 | GO59: 19.2 | GP59: 18.9 | GQ59: 18.6 | GR59: 19.2 | GS59: 18.6 | GT59: 18.1 | GU59: 18.5 | GV59: 19.3 | GW59: 19.2 | GX59: 19 | GY59: 19.3 | GZ59: 19.4 | HA59: 20.6 | HB59: 20.2 | HC59: 20.3 | HD59: 20 | HE59: 20.7 | HF59: 21.4 | HG59: 21.1 | HH59: 20.8 | HI59: 21.5 | HJ59: 20.9 | HK59: 21.8 | HL59: 20.6 | HM59: 21.8 | HN59: 22.6 | HO59: 24.1 | HP59: 23.7 | HQ59: 23.2 | HR59: 23 | HS59: 23.3 | HT59: 23.4 | HU59: 24 | HV59: 24.4 | HW59: 24.5 | HX59: 25 | HY59: 24.6 | HZ59: 24.9 | IA59: 24.1 | IB59: 25.1 | IC59: 24 | ID59: 24.8 | IE59: 25.1 | IF59: 25.8 | IG59: 25.4 | IH59: 25.1 | II59: 25.3 | IJ59: 24.6 | IK59: 23.9 | IL59: 24.1 | IM59: 24.5 | IN59: 23.4 | IO59: 24.3 | IP59: 23.7 | IQ59: 24.9 | IR59: 24.5 | IS59: 24.8 | IT59: 25.5 | IU59: 25.3 | IV59: 26.1 | IW59: 26.2 | IX59: 26.8 | IY59: 26.1 | IZ59: 27.3 | JA59: 26.4 | JB59: 27.2 | JC59: 26.8 | JD59: 27.8 | JE59: 28.4 | JF59: 28.9 | JG59: 29.1 | JH59: 28.2 | JI59: 29.1 | JJ59: 29.2 | JK59: 30.3 | JL59: 28.8 | JM59: 29.3 | JN59: 29.3 | JO59: 28.7 | JP59: 28.6 | JQ59: 27.6 | JR59: 27.8 | JS59: 25.7 | JT59: 26.1 | JU59: 25.2 | JV59: 24.2 | JW59: 23 | JX59: 21.9 | JY59: 23 | JZ59: 22.6 | KA59: 22.3 | KB59: 21.5 | KC59: 21.3 | KD59: 19.6 | KE59: 18.7 | KF59: 16.5 | KG59: 17.3 | KH59: 17.3 | KI59: 18.1 | KJ59: 18.3 | KK59: 17.4 | KL59: 17.1 | KM59: 16.2 | KN59: 16.4
E60: Hungary - Sum of Female25-74 | BN60: 7.9 | BO60: 7.8 | BP60: 7.7 | BQ60: 7.7 | BR60: 7.6 | BS60: 7.6 | BT60: 7.5 | BU60: 7.4 | BV60: 7.3 | BW60: 7.2 | BX60: 7.1 | BY60: 7.1 | BZ60: 6.9 | CA60: 6.8 | CB60: 6.8 | CC60: 6.8 | CD60: 6.8 | CE60: 6.9 | CF60: 6.9 | CG60: 6.9 | CH60: 6.9 | CI60: 7 | CJ60: 7.1 | CK60: 7.1 | CL60: 7.1 | CM60: 7.2 | CN60: 7.2 | CO60: 7.2 | CP60: 7.2 | CQ60: 7.2 | CR60: 7 | CS60: 6.9 | CT60: 6.8 | CU60: 6.7 | CV60: 6.5 | CW60: 6.2 | CX60: 5.7 | CY60: 5.7 | CZ60: 5.6 | DA60: 5.5 | DB60: 5.4 | DC60: 5.4 | DD60: 5.3 | DE60: 5.3 | DF60: 5.3 | DG60: 5.2 | DH60: 5.2 | DI60: 5.2 | DJ60: 5.2 | DK60: 5.2 | DL60: 5.1 | DM60: 5.1 | DN60: 5 | DO60: 4.9 | DP60: 4.8 | DQ60: 4.8 | DR60: 4.7 | DS60: 4.6 | DT60: 4.6 | DU60: 4.5 | DV60: 4.4 | DW60: 4.3 | DX60: 4.3 | DY60: 4.2 | DZ60: 4.2 | EA60: 4.3 | EB60: 4.3 | EC60: 4.2 | ED60: 4.2 | EE60: 4.2 | EF60: 4.2 | EG60: 4.2 | EH60: 4.3 | EI60: 4.3 | EJ60: 4.4 | EK60: 4.4 | EL60: 4.4 | EM60: 4.4 | EN60: 4.5 | EO60: 4.5 | EP60: 4.5 | EQ60: 4.5 | ER60: 4.5 | ES60: 4.5 | ET60: 4.5 | EU60: 4.6 | EV60: 4.6 | EW60: 4.6 | EX60: 4.7 | EY60: 4.7 | EZ60: 4.7 | FA60: 4.7 | FB60: 4.7 | FC60: 4.8 | FD60: 4.8 | FE60: 4.9 | FF60: 5 | FG60: 4.9 | FH60: 5 | FI60: 5 | FJ60: 5.2 | FK60: 5.2 | FL60: 5.3 | FM60: 5.5 | FN60: 5.6 | FO60: 5.7 | FP60: 5.7 | FQ60: 5.8 | FR60: 6 | FS60: 6.1 | FT60: 6.3 | FU60: 6.5 | FV60: 6.6 | FW60: 6.6 | FX60: 6.6 | FY60: 6.5 | FZ60: 6.5 | GA60: 6.5 | GB60: 6.6 | GC60: 6.6 | GD60: 6.6 | GE60: 6.7 | GF60: 6.7 | GG60: 6.7 | GH60: 6.9 | GI60: 7 | GJ60: 7 | GK60: 7 | GL60: 6.9 | GM60: 7 | GN60: 6.9 | GO60: 6.7 | GP60: 6.5 | GQ60: 6.5 | GR60: 6.5 | GS60: 6.6 | GT60: 6.6 | GU60: 6.7 | GV60: 6.8 | GW60: 6.9 | GX60: 6.9 | GY60: 7.1 | GZ60: 7.3 | HA60: 7.5 | HB60: 7.4 | HC60: 7.2 | HD60: 7.2 | HE60: 7.2 | HF60: 7.1 | HG60: 7.1 | HH60: 6.9 | HI60: 7 | HJ60: 7.1 | HK60: 7.1 | HL60: 7.2 | HM60: 7.1 | HN60: 7.6 | HO60: 8 | HP60: 8.3 | HQ60: 8.4 | HR60: 8.4 | HS60: 8.5 | HT60: 8.8 | HU60: 9.1 | HV60: 9.2 | HW60: 9.3 | HX60: 9.2 | HY60: 9.4 | HZ60: 9.5 | IA60: 9.7 | IB60: 9.6 | IC60: 9.8 | ID60: 9.6 | IE60: 9.7 | IF60: 9.8 | IG60: 9.7 | IH60: 9.6 | II60: 9.5 | IJ60: 9.6 | IK60: 9.7 | IL60: 9.8 | IM60: 9.8 | IN60: 9.9 | IO60: 9.8 | IP60: 10.1 | IQ60: 10.1 | IR60: 10 | IS60: 9.9 | IT60: 10 | IU60: 9.9 | IV60: 9.8 | IW60: 9.9 | IX60: 10 | IY60: 10 | IZ60: 10 | JA60: 9.7 | JB60: 9.2 | JC60: 9 | JD60: 9.1 | JE60: 8.9 | JF60: 9.1 | JG60: 9.3 | JH60: 9.3 | JI60: 9.3 | JJ60: 9.4 | JK60: 9.2 | JL60: 9.1 | JM60: 9.1 | JN60: 9.3 | JO60: 9.1 | JP60: 8.9 | JQ60: 8.8 | JR60: 8.6 | JS60: 8.4 | JT60: 8.3 | JU60: 8 | JV60: 7.5 | JW60: 7.2 | JX60: 7.1 | JY60: 7.2 | JZ60: 7.3 | KA60: 7.2 | KB60: 7 | KC60: 6.7 | KD60: 6.6 | KE60: 6.6 | KF60: 6.6 | KG60: 6.7 | KH60: 6.8 | KI60: 6.8 | KJ60: 6.5 | KK60: 6.4 | KL60: 6.5 | KM60: 6.5 | KN60: 6.5
E61: Iceland - Sum of Male< 25 | ET61: 9.9 | EU61: 16.2 | EV61: 4.2 | EW61: 2.7 | EX61: 6.8 | EY61: 12.1 | EZ61: 11.9 | FA61: 10.3 | FB61: 10 | FC61: 10.7 | FD61: 9.7 | FE61: 8.4 | FF61: 7.6 | FG61: 3.9 | FH61: 15.1 | FI61: 7.4 | FJ61: 14.4 | FK61: 11.8 | FL61: 8.8 | FM61: 10.8 | FN61: 9.9 | FO61: 7.6 | FP61: 6.2 | FQ61: 8.5 | FR61: 15.8 | FS61: 10.3 | FT61: 10.1 | FU61: 6.9 | FV61: 0.2 | FW61: 3.1 | FX61: 8.5 | FY61: 6.7 | FZ61: 7.4 | GA61: 12.4 | GB61: 13.4 | GC61: 5.4 | GD61: 7.3 | GE61: 7.8 | GF61: 7.2 | GG61: 8.1 | GH61: 10.1 | GI61: 8 | GJ61: 12 | GK61: 8.4 | GL61: 10.8 | GM61: 8.7 | GN61: 9 | GO61: 9.1 | GP61: 5.4 | GQ61: 5.3 | GR61: 8 | GS61: 6 | GT61: 11.1 | GU61: 5.9 | GV61: 12 | GW61: 10.3 | GX61: 6.5 | GY61: 10.2 | GZ61: 8.5 | HA61: 6.5 | HB61: 8 | HC61: 5.7 | HD61: 3.9 | HE61: 8.4 | HF61: 4.4 | HG61: 9.1 | HH61: 10.5 | HI61: 4.9 | HJ61: 12.2 | HK61: 10 | HL61: 16.8 | HM61: 14.7 | HN61: 12.7 | HO61: 21.7 | HP61: 10.4 | HQ61: 20.6 | HR61: 26 | HS61: 26.1 | HT61: 14.5 | HU61: 22.7 | HV61: 22.8 | HW61: 19.4 | HX61: 20.8 | HY61: 21.1 | HZ61: 21.5 | IA61: 20.6 | IB61: 17.9 | IC61: 16.9 | ID61: 28 | IE61: 19.7 | IF61: 19.8 | IG61: 16.4 | IH61: 13.9 | II61: 11.7 | IJ61: 13.8 | IK61: 20.3 | IL61: 13.9 | IM61: 19.6 | IN61: 23.5 | IO61: 26.2 | IP61: 16.3 | IQ61: 14.2 | IR61: 13.1 | IS61: 18.2 | IT61: 17.3 | IU61: 23 | IV61: 18.6 | IW61: 18 | IX61: 18.4 | IY61: 16.3 | IZ61: 18.2 | JA61: 15.3 | JB61: 9.4 | JC61: 11.7 | JD61: 12.9 | JE61: 17.4 | JF61: 13.4 | JG61: 11.8 | JH61: 11.9 | JI61: 19.9 | JJ61: 11 | JK61: 12.2 | JL61: 15.8 | JM61: 17.3 | JN61: 17.8 | JO61: 14.6 | JP61: 12.4 | JQ61: 14.2 | JR61: 14.8 | JS61: 14.4 | JT61: 9.7 | JU61: 8.9 | JV61: 17.5 | JW61: 10.5 | JX61: 15.5 | JY61: 12.4 | JZ61: 12.3 | KA61: 12.4 | KB61: 12.6 | KC61: 12.6 | KD61: 12.4 | KE61: 12.2 | KF61: 12 | KG61: 11.6 | KH61: 11.1 | KI61: 10.7 | KJ61: 10.5 | KK61: 10.4 | KL61: 10.4 | KM61: 10.6 | KN61: 10.8 | KO61: 10.8
E62: Iceland - Sum of Male 25-74 | ET62: 3.4 | EU62: 2.6 | EV62: 2.7 | EW62: 1.9 | EX62: 2.3 | EY62: 1.7 | EZ62: 3.2 | FA62: 2.8 | FB62: 2.2 | FC62: 1.2 | FD62: 1.9 | FE62: 3 | FF62: 1.6 | FG62: 1.8 | FH62: 2.7 | FI62: 1.6 | FJ62: 3.8 | FK62: 2.3 | FL62: 1.8 | FM62: 2.4 | FN62: 1.3 | FO62: 1.7 | FP62: 1.4 | FQ62: 1.5 | FR62: 1.8 | FS62: 0.9 | FT62: 1.5 | FU62: 1.1 | FV62: 1.4 | FW62: 1.5 | FX62: 0.8 | FY62: 2 | FZ62: 0.6 | GA62: 1.6 | GB62: 3 | GC62: 1.3 | GD62: 1.3 | GE62: 0.9 | GF62: 1.1 | GG62: 1.7 | GH62: 1.6 | GI62: 1.9 | GJ62: 2.2 | GK62: 1 | GL62: 2.7 | GM62: 2.1 | GN62: 1.4 | GO62: 1.2 | GP62: 0.8 | GQ62: 0.9 | GR62: 1.4 | GS62: 1.7 | GT62: 1.3 | GU62: 1.1 | GV62: 0.7 | GW62: 1.5 | GX62: 1.3 | GY62: 1.1 | GZ62: 0.7 | HA62: 1.5 | HB62: 2.2 | HC62: 1.8 | HD62: 0.8 | HE62: 1.3 | HF62: 1.4 | HG62: 0.9 | HH62: 3.4 | HI62: 2 | HJ62: 2.5 | HK62: 2.2 | HL62: 5.3 | HM62: 4.1 | HN62: 4.4 | HO62: 9 | HP62: 7.7 | HQ62: 6.4 | HR62: 6.1 | HS62: 7.8 | HT62: 4.7 | HU62: 6.8 | HV62: 6.7 | HW62: 5.5 | HX62: 6.5 | HY62: 7 | HZ62: 6.1 | IA62: 7.3 | IB62: 5.5 | IC62: 5.5 | ID62: 5.8 | IE62: 6 | IF62: 4.8 | IG62: 4.6 | IH62: 9.5 | II62: 7.9 | IJ62: 7.8 | IK62: 7.9 | IL62: 6.9 | IM62: 8.5 | IN62: 5.8 | IO62: 8.5 | IP62: 5.1 | IQ62: 5 | IR62: 6.5 | IS62: 4.7 | IT62: 4.9 | IU62: 5.1 | IV62: 3.4 | IW62: 4.2 | IX62: 3.5 | IY62: 6.2 | IZ62: 5.6 | JA62: 4.9 | JB62: 4.4 | JC62: 4.9 | JD62: 7 | JE62: 3.9 | JF62: 3.9 | JG62: 5.2 | JH62: 3.9 | JI62: 3.1 | JJ62: 4.3 | JK62: 3.1 | JL62: 4.4 | JM62: 3.7 | JN62: 3.1 | JO62: 6.6 | JP62: 4.4 | JQ62: 3.9 | JR62: 4.8 | JS62: 4.6 | JT62: 3.6 | JU62: 3.3 | JV62: 4.7 | JW62: 3.6 | JX62: 3.8 | JY62: 3.7 | JZ62: 3.6 | KA62: 3.4 | KB62: 3.3 | KC62: 3.2 | KD62: 3.1 | KE62: 3 | KF62: 3 | KG62: 2.9 | KH62: 2.9 | KI62: 2.9 | KJ62: 2.9 | KK62: 2.8 | KL62: 2.8 | KM62: 2.7 | KN62: 2.7 | KO62: 2.7
E63: Iceland - Sum of Female<25 | ET63: 8.6 | EU63: 4.9 | EV63: 4.3 | EW63: 11.2 | EX63: 7.9 | EY63: 7.4 | EZ63: 6.5 | FA63: 2.7 | FB63: 5.2 | FC63: 5.5 | FD63: 8.8 | FE63: 9.4 | FF63: 8.9 | FG63: 9.2 | FH63: 2.7 | FI63: 4.7 | FJ63: 5.6 | FK63: 4.3 | FL63: 5.6 | FM63: 7.9 | FN63: 9.9 | FO63: 8.9 | FP63: 10.5 | FQ63: 6 | FR63: 6.4 | FS63: 1.4 | FT63: 7.8 | FU63: 3.7 | FV63: 5.5 | FW63: 7.7 | FX63: 4.7 | FY63: 8.6 | FZ63: 4.3 | GA63: 7.4 | GB63: 7.2 | GC63: 6.1 | GD63: 6.3 | GE63: 7.1 | GF63: 10 | GG63: 6.8 | GH63: 8.5 | GI63: 10 | GJ63: 9.1 | GK63: 7.1 | GL63: 4.9 | GM63: 7.7 | GN63: 4.2 | GO63: 7.7 | GP63: 7.3 | GQ63: 6 | GR63: 7.9 | GS63: 5.1 | GT63: 5.2 | GU63: 5.4 | GV63: 7.1 | GW63: 9.5 | GX63: 6.6 | GY63: 4.2 | GZ63: 3 | HA63: 9.1 | HB63: 5.1 | HC63: 10 | HD63: 7.6 | HE63: 4.6 | HF63: 6 | HG63: 10.1 | HH63: 8 | HI63: 7.3 | HJ63: 6.4 | HK63: 9.1 | HL63: 10.4 | HM63: 8.8 | HN63: 6.6 | HO63: 9.6 | HP63: 11.9 | HQ63: 11.1 | HR63: 12.2 | HS63: 11.6 | HT63: 18.3 | HU63: 9.3 | HV63: 17 | HW63: 10.6 | HX63: 20.3 | HY63: 10.8 | HZ63: 10 | IA63: 10 | IB63: 12.3 | IC63: 14.7 | ID63: 13.2 | IE63: 10.9 | IF63: 21.7 | IG63: 16.2 | IH63: 9.3 | II63: 14.6 | IJ63: 24.2 | IK63: 15.6 | IL63: 7.1 | IM63: 21.1 | IN63: 7.4 | IO63: 6.5 | IP63: 12.9 | IQ63: 10 | IR63: 10.7 | IS63: 11.2 | IT63: 12.1 | IU63: 9.5 | IV63: 5 | IW63: 10.8 | IX63: 14.6 | IY63: 16.2 | IZ63: 18.8 | JA63: 17.4 | JB63: 14 | JC63: 10.9 | JD63: 3.7 | JE63: 13.3 | JF63: 8.3 | JG63: 11.1 | JH63: 11.2 | JI63: 3.6 | JJ63: 9.2 | JK63: 3 | JL63: 10.4 | JM63: 12.2 | JN63: 5.6 | JO63: 9.3 | JP63: 6.9 | JQ63: 5 | JR63: 14.9 | JS63: 6.5 | JT63: 4.1 | JU63: 7.9 | JV63: 10.2 | JW63: 5.1 | JX63: 6.3 | JY63: 7.2 | JZ63: 7.2 | KA63: 7.2 | KB63: 7.1 | KC63: 7.1 | KD63: 7.1 | KE63: 7 | KF63: 7 | KG63: 7 | KH63: 7.1 | KI63: 7.2 | KJ63: 7.2 | KK63: 7.1 | KL63: 7 | KM63: 6.9 | KN63: 6.8 | KO63: 6.7
E64: Iceland - Sum of Female25-74 | ET64: 3.2 | EU64: 2.5 | EV64: 2.2 | EW64: 1.4 | EX64: 3.3 | EY64: 2.6 | EZ64: 1.6 | FA64: 3.4 | FB64: 1.4 | FC64: 2.6 | FD64: 1.4 | FE64: 1.7 | FF64: 1.6 | FG64: 1.8 | FH64: 2.3 | FI64: 1.6 | FJ64: 2 | FK64: 1.6 | FL64: 3.2 | FM64: 3.1 | FN64: 2.2 | FO64: 2.3 | FP64: 1.9 | FQ64: 1.9 | FR64: 1.2 | FS64: 3.3 | FT64: 1.2 | FU64: 1.7 | FV64: 1.9 | FW64: 2.6 | FX64: 2.3 | FY64: 1.8 | FZ64: 1.6 | GA64: 2.8 | GB64: 0.8 | GC64: 0.6 | GD64: 0.6 | GE64: 2.3 | GF64: 1.7 | GG64: 2.4 | GH64: 1.9 | GI64: 2.5 | GJ64: 1.5 | GK64: 3.6 | GL64: 2.4 | GM64: 1.6 | GN64: 1.8 | GO64: 1.9 | GP64: 1 | GQ64: 0.3 | GR64: 1.3 | GS64: 2.2 | GT64: 1.6 | GU64: 1.4 | GV64: 2.2 | GW64: 2.4 | GX64: 1.1 | GY64: 1.8 | GZ64: 0.4 | HA64: 1.3 | HB64: 1.7 | HC64: 0.5 | HD64: 1.2 | HE64: 1.2 | HF64: 1.6 | HG64: 1.3 | HH64: 1.7 | HI64: 2.3 | HJ64: 1.3 | HK64: 0.8 | HL64: 1.7 | HM64: 2.7 | HN64: 3 | HO64: 4.4 | HP64: 4.6 | HQ64: 5.3 | HR64: 5.2 | HS64: 4.8 | HT64: 4.2 | HU64: 3.6 | HV64: 4.8 | HW64: 4.3 | HX64: 3.2 | HY64: 4.3 | HZ64: 3.9 | IA64: 5.7 | IB64: 4.8 | IC64: 5.8 | ID64: 6.6 | IE64: 4.3 | IF64: 4.9 | IG64: 5.1 | IH64: 7.2 | II64: 4 | IJ64: 4.2 | IK64: 4.7 | IL64: 5.5 | IM64: 2.6 | IN64: 4.9 | IO64: 6.3 | IP64: 7.4 | IQ64: 2.9 | IR64: 5.6 | IS64: 5.8 | IT64: 5.8 | IU64: 7 | IV64: 4.4 | IW64: 4.2 | IX64: 5.2 | IY64: 4.7 | IZ64: 3.6 | JA64: 4.3 | JB64: 4 | JC64: 4.9 | JD64: 3.2 | JE64: 5.1 | JF64: 5.3 | JG64: 2.4 | JH64: 2.4 | JI64: 5.2 | JJ64: 4.3 | JK64: 5.2 | JL64: 5.5 | JM64: 4 | JN64: 4.9 | JO64: 5.9 | JP64: 3.4 | JQ64: 4 | JR64: 3.6 | JS64: 4.3 | JT64: 4.4 | JU64: 4 | JV64: 4.2 | JW64: 3.8 | JX64: 5.4 | JY64: 4.5 | JZ64: 4.5 | KA64: 4.4 | KB64: 4.4 | KC64: 4.4 | KD64: 4.4 | KE64: 4.3 | KF64: 4.3 | KG64: 4.3 | KH64: 4.4 | KI64: 4.4 | KJ64: 4.3 | KK64: 4.3 | KL64: 4.3 | KM64: 4.3 | KN64: 4.3 | KO64: 4.3
E65: Ireland - Sum of Male< 25 | F65: 21.8 | G65: 22.1 | H65: 22.5 | I65: 22.9 | J65: 23.3 | K65: 23.8 | L65: 24.5 | M65: 24.7 | N65: 24.6 | O65: 24.4 | P65: 24.4 | Q65: 24.4 | R65: 24.5 | S65: 24.6 | T65: 24.7 | U65: 24.8 | V65: 24.9 | W65: 25.2 | X65: 26.2 | Y65: 26.8 | Z65: 26.9 | AA65: 26.6 | AB65: 26.7 | AC65: 27.1 | AD65: 27.3 | AE65: 28.3 | AF65: 28.2 | AG65: 27.4 | AH65: 27.4 | AI65: 27.1 | AJ65: 26.9 | AK65: 26.7 | AL65: 26.6 | AM65: 26.7 | AN65: 26.7 | AO65: 26.6 | AP65: 26.4 | AQ65: 26.2 | AR65: 26.1 | AS65: 25.8 | AT65: 25.4 | AU65: 24.9 | AV65: 24.5 | AW65: 24.1 | AX65: 23.8 | AY65: 23.5 | AZ65: 23.7 | BA65: 23.2 | BB65: 22.2 | BC65: 21.7 | BD65: 21.3 | BE65: 21.1 | BF65: 20.9 | BG65: 20.6 | BH65: 20.4 | BI65: 20.2 | BJ65: 20.3 | BK65: 20.3 | BL65: 20.2 | BM65: 20.1 | BN65: 19.9 | BO65: 19.8 | BP65: 19.6 | BQ65: 19.4 | BR65: 19.2 | BS65: 19.1 | BT65: 19 | BU65: 18.9 | BV65: 18.7 | BW65: 18.4 | BX65: 18.1 | BY65: 17.8 | BZ65: 17.6 | CA65: 17.4 | CB65: 17.2 | CC65: 16.9 | CD65: 16.6 | CE65: 16.3 | CF65: 16 | CG65: 15.6 | CH65: 15.1 | CI65: 14.7 | CJ65: 14.3 | CK65: 13.9 | CL65: 13.5 | CM65: 13.1 | CN65: 12.7 | CO65: 12.2 | CP65: 11.9 | CQ65: 11.7 | CR65: 11.4 | CS65: 11.1 | CT65: 10.8 | CU65: 10.6 | CV65: 10.3 | CW65: 10.1 | CX65: 9.8 | CY65: 9.5 | CZ65: 9.2 | DA65: 9 | DB65: 8.9 | DC65: 8.6 | DD65: 8.3 | DE65: 8 | DF65: 7.9 | DG65: 7.8 | DH65: 7.5 | DI65: 7.3 | DJ65: 7 | DK65: 6.8 | DL65: 6.7 | DM65: 6.8 | DN65: 6.7 | DO65: 6.7 | DP65: 6.7 | DQ65: 6.6 | DR65: 6.3 | DS65: 6.1 | DT65: 6 | DU65: 6.2 | DV65: 6.4 | DW65: 6.6 | DX65: 6.7 | DY65: 6.8 | DZ65: 7 | EA65: 7.3 | EB65: 7.8 | EC65: 8.1 | ED65: 8.2 | EE65: 8.4 | EF65: 8.6 | EG65: 8.6 | EH65: 8.6 | EI65: 8.9 | EJ65: 9.1 | EK65: 9.3 | EL65: 9.3 | EM65: 9 | EN65: 8.6 | EO65: 8.5 | EP65: 8.8 | EQ65: 9.6 | ER65: 10 | ES65: 10.1 | ET65: 9.8 | EU65: 9.5 | EV65: 9.3 | EW65: 9.3 | EX65: 9.4 | EY65: 9.5 | EZ65: 9.6 | FA65: 9.6 | FB65: 9.5 | FC65: 9.2 | FD65: 9.1 | FE65: 9.2 | FF65: 9.5 | FG65: 9.5 | FH65: 9.3 | FI65: 8.8 | FJ65: 8.7 | FK65: 9 | FL65: 8.7 | FM65: 8.8 | FN65: 9.1 | FO65: 9.4 | FP65: 9.4 | FQ65: 9.2 | FR65: 8.6 | FS65: 8.4 | FT65: 8.8 | FU65: 9.4 | FV65: 9.7 | FW65: 9.8 | FX65: 9.6 | FY65: 9.5 | FZ65: 9.3 | GA65: 9.2 | GB65: 9.2 | GC65: 9.2 | GD65: 9.4 | GE65: 9.5 | GF65: 9.2 | GG65: 8.9 | GH65: 8.8 | GI65: 9 | GJ65: 9.5 | GK65: 9.6 | GL65: 9.2 | GM65: 8.4 | GN65: 8 | GO65: 8.2 | GP65: 9.1 | GQ65: 9.6 | GR65: 9.9 | GS65: 10 | GT65: 9.9 | GU65: 10 | GV65: 9.9 | GW65: 10 | GX65: 9.9 | GY65: 10 | GZ65: 10.4 | HA65: 10.7 | HB65: 11.4 | HC65: 12.2 | HD65: 12.8 | HE65: 13.2 | HF65: 13.8 | HG65: 14.7 | HH65: 15.9 | HI65: 17.2 | HJ65: 18.4 | HK65: 20 | HL65: 21.6 | HM65: 22.9 | HN65: 24.1 | HO65: 25.6 | HP65: 27.3 | HQ65: 29.1 | HR65: 30.5 | HS65: 31.2 | HT65: 31.5 | HU65: 32.1 | HV65: 33.2 | HW65: 34 | HX65: 34.6 | HY65: 34.9 | HZ65: 34 | IA65: 33.3 | IB65: 33.2 | IC65: 32.9 | ID65: 33 | IE65: 32.9 | IF65: 32.8 | IG65: 33.1 | IH65: 34 | II65: 34.9 | IJ65: 35.5 | IK65: 35.8 | IL65: 34.8 | IM65: 34.3 | IN65: 34.3 | IO65: 34.2 | IP65: 34.3 | IQ65: 34.4 | IR65: 34.6 | IS65: 36.9 | IT65: 35 | IU65: 35.6 | IV65: 36.1 | IW65: 36.3 | IX65: 37 | IY65: 37.4 | IZ65: 37.5 | JA65: 37.5 | JB65: 37.2 | JC65: 37.2 | JD65: 36.7 | JE65: 36.5 | JF65: 36 | JG65: 35.7 | JH65: 34.8 | JI65: 33.6 | JJ65: 32.1 | JK65: 31.1 | JL65: 30.7 | JM65: 31.1 | JN65: 31.2 | JO65: 30.8 | JP65: 30.4 | JQ65: 29.7 | JR65: 28.9 | JS65: 27.8 | JT65: 27.2 | JU65: 27.3 | JV65: 28.3 | JW65: 28.5 | JX65: 28 | JY65: 27.3 | JZ65: 26.8 | KA65: 26.2 | KB65: 26.1 | KC65: 26 | KD65: 25.8 | KE65: 25.6 | KF65: 25.4 | KG65: 25.4 | KH65: 25.5 | KI65: 25.1 | KJ65: 24.2 | KK65: 23.4 | KL65: 22.8 | KM65: 22.8 | KN65: 22.7 | KO65: 22.7 | KP65: 22.6
E66: Ireland - Sum of Male 25-74 | F66: 11.3 | G66: 11.5 | H66: 11.7 | I66: 11.9 | J66: 11.9 | K66: 12 | L66: 12.1 | M66: 12.2 | N66: 12.3 | O66: 12.3 | P66: 12.5 | Q66: 12.5 | R66: 12.6 | S66: 12.7 | T66: 12.8 | U66: 12.9 | V66: 12.8 | W66: 12.6 | X66: 12.6 | Y66: 12.7 | Z66: 12.7 | AA66: 12.8 | AB66: 12.9 | AC66: 12.9 | AD66: 12.9 | AE66: 12.8 | AF66: 12.8 | AG66: 12.9 | AH66: 13 | AI66: 13.1 | AJ66: 13 | AK66: 13 | AL66: 12.9 | AM66: 12.8 | AN66: 12.7 | AO66: 12.8 | AP66: 12.7 | AQ66: 12.6 | AR66: 12.5 | AS66: 12.4 | AT66: 12.3 | AU66: 12.2 | AV66: 12 | AW66: 11.9 | AX66: 11.7 | AY66: 11.5 | AZ66: 11.1 | BA66: 10.9 | BB66: 10.8 | BC66: 10.7 | BD66: 10.5 | BE66: 10.4 | BF66: 10.3 | BG66: 10.3 | BH66: 10.3 | BI66: 10.3 | BJ66: 10.3 | BK66: 10.3 | BL66: 10.4 | BM66: 10.3 | BN66: 10.3 | BO66: 10.3 | BP66: 10.3 | BQ66: 10.2 | BR66: 10.2 | BS66: 10.2 | BT66: 10.1 | BU66: 10.1 | BV66: 10 | BW66: 9.8 | BX66: 9.6 | BY66: 9.5 | BZ66: 9.3 | CA66: 9.1 | CB66: 9 | CC66: 8.9 | CD66: 8.8 | CE66: 8.7 | CF66: 8.5 | CG66: 8.4 | CH66: 8.3 | CI66: 8.2 | CJ66: 8 | CK66: 7.9 | CL66: 7.7 | CM66: 7.6 | CN66: 7.4 | CO66: 7.2 | CP66: 7.1 | CQ66: 6.9 | CR66: 6.8 | CS66: 6.6 | CT66: 6.5 | CU66: 6.4 | CV66: 6.2 | CW66: 6 | CX66: 5.9 | CY66: 5.7 | CZ66: 5.5 | DA66: 5.4 | DB66: 5.3 | DC66: 5.2 | DD66: 5.1 | DE66: 4.9 | DF66: 4.7 | DG66: 4.6 | DH66: 4.5 | DI66: 4.4 | DJ66: 4.3 | DK66: 4.1 | DL66: 4 | DM66: 4 | DN66: 3.9 | DO66: 3.8 | DP66: 3.7 | DQ66: 3.7 | DR66: 3.5 | DS66: 3.4 | DT66: 3.3 | DU66: 3.3 | DV66: 3.3 | DW66: 3.2 | DX66: 3.1 | DY66: 3.1 | DZ66: 3.1 | EA66: 3.1 | EB66: 3.3 | EC66: 3.4 | ED66: 3.5 | EE66: 3.6 | EF66: 3.7 | EG66: 3.6 | EH66: 3.7 | EI66: 3.7 | EJ66: 3.7 | EK66: 3.7 | EL66: 3.7 | EM66: 3.7 | EN66: 3.6 | EO66: 3.7 | EP66: 3.9 | EQ66: 4.2 | ER66: 4.3 | ES66: 4.3 | ET66: 4.2 | EU66: 4 | EV66: 3.9 | EW66: 3.9 | EX66: 3.9 | EY66: 4 | EZ66: 4.2 | FA66: 4.2 | FB66: 4.1 | FC66: 4 | FD66: 3.9 | FE66: 4 | FF66: 4.3 | FG66: 4.4 | FH66: 4.4 | FI66: 4.3 | FJ66: 4.1 | FK66: 4 | FL66: 3.8 | FM66: 3.8 | FN66: 3.8 | FO66: 3.9 | FP66: 3.9 | FQ66: 3.8 | FR66: 3.7 | FS66: 3.6 | FT66: 3.7 | FU66: 4 | FV66: 4.1 | FW66: 4.1 | FX66: 3.9 | FY66: 3.8 | FZ66: 3.6 | GA66: 3.5 | GB66: 3.5 | GC66: 3.6 | GD66: 3.7 | GE66: 3.8 | GF66: 3.7 | GG66: 3.7 | GH66: 3.8 | GI66: 3.9 | GJ66: 4 | GK66: 4.1 | GL66: 4 | GM66: 3.9 | GN66: 3.9 | GO66: 3.9 | GP66: 3.9 | GQ66: 4 | GR66: 4 | GS66: 3.9 | GT66: 3.8 | GU66: 3.9 | GV66: 3.9 | GW66: 4 | GX66: 4.1 | GY66: 4.3 | GZ66: 4.6 | HA66: 4.6 | HB66: 4.7 | HC66: 4.8 | HD66: 4.9 | HE66: 5 | HF66: 5.2 | HG66: 5.6 | HH66: 6.2 | HI66: 6.6 | HJ66: 6.9 | HK66: 7.3 | HL66: 7.9 | HM66: 8.5 | HN66: 9.9 | HO66: 11.1 | HP66: 11.9 | HQ66: 12.5 | HR66: 12.9 | HS66: 13.1 | HT66: 13.2 | HU66: 13.4 | HV66: 13.7 | HW66: 13.7 | HX66: 13.8 | HY66: 13.8 | HZ66: 14.1 | IA66: 14.2 | IB66: 14.4 | IC66: 14.6 | ID66: 14.8 | IE66: 14.9 | IF66: 14.9 | IG66: 15.1 | IH66: 15.5 | II66: 15.9 | IJ66: 15.9 | IK66: 16 | IL66: 15.6 | IM66: 15.5 | IN66: 15.5 | IO66: 15.5 | IP66: 15.7 | IQ66: 15.9 | IR66: 16 | IS66: 16 | IT66: 16 | IU66: 16.1 | IV66: 16.1 | IW66: 15.9 | IX66: 15.9 | IY66: 16 | IZ66: 15.9 | JA66: 15.8 | JB66: 15.9 | JC66: 15.9 | JD66: 15.9 | JE66: 15.8 | JF66: 15.7 | JG66: 15.6 | JH66: 15.2 | JI66: 14.8 | JJ66: 14.3 | JK66: 14.1 | JL66: 14.1 | JM66: 14.1 | JN66: 14.3 | JO66: 14.1 | JP66: 13.7 | JQ66: 13.3 | JR66: 13 | JS66: 12.6 | JT66: 12.3 | JU66: 12.1 | JV66: 12.2 | JW66: 12.3 | JX66: 12.3 | JY66: 12.2 | JZ66: 12.1 | KA66: 11.8 | KB66: 11.5 | KC66: 11.2 | KD66: 11 | KE66: 10.8 | KF66: 10.6 | KG66: 10.5 | KH66: 10.4 | KI66: 10.2 | KJ66: 10 | KK66: 9.8 | KL66: 9.6 | KM66: 9.6 | KN66: 9.5 | KO66: 9.5 | KP66: 9.4
E67: Ireland - Sum of Female<25 | F67: 19 | G67: 19.4 | H67: 19.8 | I67: 20.2 | J67: 20.4 | K67: 20.8 | L67: 21.1 | M67: 21.4 | N67: 21.5 | O67: 21.5 | P67: 21.5 | Q67: 21.6 | R67: 21.8 | S67: 21.8 | T67: 21.9 | U67: 22 | V67: 22 | W67: 22.4 | X67: 23.2 | Y67: 23.6 | Z67: 23.8 | AA67: 23.4 | AB67: 23.4 | AC67: 23.6 | AD67: 23.8 | AE67: 23.9 | AF67: 23.9 | AG67: 23.8 | AH67: 23.6 | AI67: 23.4 | AJ67: 23 | AK67: 22.7 | AL67: 22.5 | AM67: 22.5 | AN67: 22.5 | AO67: 22.4 | AP67: 22.2 | AQ67: 21.7 | AR67: 21.4 | AS67: 21.2 | AT67: 21 | AU67: 20.8 | AV67: 20.5 | AW67: 20.2 | AX67: 20.1 | AY67: 20 | AZ67: 20 | BA67: 19.6 | BB67: 18.9 | BC67: 18.6 | BD67: 18.3 | BE67: 18.1 | BF67: 18 | BG67: 17.8 | BH67: 17.6 | BI67: 17.5 | BJ67: 17.5 | BK67: 17.6 | BL67: 17.6 | BM67: 17.6 | BN67: 17.6 | BO67: 17.7 | BP67: 17.6 | BQ67: 17.5 | BR67: 17.5 | BS67: 17.5 | BT67: 17.4 | BU67: 17.3 | BV67: 17.1 | BW67: 16.8 | BX67: 16.5 | BY67: 16.3 | BZ67: 16.1 | CA67: 15.9 | CB67: 15.7 | CC67: 15.4 | CD67: 15.1 | CE67: 14.9 | CF67: 14.6 | CG67: 14.3 | CH67: 13.9 | CI67: 13.6 | CJ67: 13.2 | CK67: 12.9 | CL67: 12.5 | CM67: 12.2 | CN67: 11.9 | CO67: 11.6 | CP67: 11.4 | CQ67: 11.1 | CR67: 10.9 | CS67: 10.6 | CT67: 10.3 | CU67: 10.1 | CV67: 9.9 | CW67: 9.8 | CX67: 9.6 | CY67: 9.3 | CZ67: 9.1 | DA67: 8.9 | DB67: 8.8 | DC67: 8.6 | DD67: 8.4 | DE67: 8.2 | DF67: 8.1 | DG67: 7.8 | DH67: 7.6 | DI67: 7.6 | DJ67: 7.6 | DK67: 7.6 | DL67: 7.4 | DM67: 7.3 | DN67: 6.9 | DO67: 6.7 | DP67: 6.5 | DQ67: 6.5 | DR67: 6.4 | DS67: 6.4 | DT67: 6.3 | DU67: 6.3 | DV67: 6.1 | DW67: 6.1 | DX67: 6.2 | DY67: 6.4 | DZ67: 6.5 | EA67: 6.8 | EB67: 7.1 | EC67: 7.2 | ED67: 7.1 | EE67: 7 | EF67: 7 | EG67: 6.9 | EH67: 7.1 | EI67: 7.3 | EJ67: 7.5 | EK67: 7.5 | EL67: 7.4 | EM67: 7.2 | EN67: 7 | EO67: 7.1 | EP67: 7.5 | EQ67: 8.3 | ER67: 8.8 | ES67: 8.8 | ET67: 8.1 | EU67: 7.6 | EV67: 7.3 | EW67: 7.4 | EX67: 7.4 | EY67: 7.8 | EZ67: 8.2 | FA67: 8.3 | FB67: 8.2 | FC67: 7.7 | FD67: 7.7 | FE67: 8 | FF67: 8.7 | FG67: 8.9 | FH67: 8.6 | FI67: 8 | FJ67: 7.9 | FK67: 7.9 | FL67: 8.7 | FM67: 8.8 | FN67: 8.7 | FO67: 8 | FP67: 7.7 | FQ67: 7.6 | FR67: 7.8 | FS67: 7.8 | FT67: 7.8 | FU67: 7.6 | FV67: 7.7 | FW67: 7.9 | FX67: 8.3 | FY67: 8.5 | FZ67: 8.1 | GA67: 7.7 | GB67: 7.7 | GC67: 7.5 | GD67: 8 | GE67: 8.5 | GF67: 8.8 | GG67: 9.1 | GH67: 8.9 | GI67: 8.9 | GJ67: 8.3 | GK67: 8 | GL67: 7.8 | GM67: 7.7 | GN67: 7.6 | GO67: 7.6 | GP67: 7.5 | GQ67: 7.7 | GR67: 8.1 | GS67: 8.6 | GT67: 8.6 | GU67: 8.5 | GV67: 7.7 | GW67: 7.4 | GX67: 7.4 | GY67: 7.9 | GZ67: 8.2 | HA67: 8.2 | HB67: 8 | HC67: 7.9 | HD67: 7.9 | HE67: 8 | HF67: 8.6 | HG67: 9.5 | HH67: 11.2 | HI67: 12.2 | HJ67: 12.6 | HK67: 12.1 | HL67: 12.1 | HM67: 12.3 | HN67: 13.4 | HO67: 14.4 | HP67: 15.4 | HQ67: 16.5 | HR67: 17.4 | HS67: 17.5 | HT67: 17.5 | HU67: 17.5 | HV67: 18.2 | HW67: 18.4 | HX67: 18.8 | HY67: 19.2 | HZ67: 19.4 | IA67: 19.4 | IB67: 19.7 | IC67: 20 | ID67: 20.4 | IE67: 19.9 | IF67: 19.7 | IG67: 20.3 | IH67: 22.1 | II67: 24.2 | IJ67: 25.1 | IK67: 25.1 | IL67: 23.7 | IM67: 22.6 | IN67: 22.1 | IO67: 22 | IP67: 22 | IQ67: 21.8 | IR67: 21.8 | IS67: 22.4 | IT67: 22.5 | IU67: 23.7 | IV67: 24.5 | IW67: 24.6 | IX67: 24.4 | IY67: 24.5 | IZ67: 24.4 | JA67: 24.3 | JB67: 24.5 | JC67: 24.7 | JD67: 24.6 | JE67: 24.4 | JF67: 23.8 | JG67: 23.2 | JH67: 22.8 | JI67: 23.1 | JJ67: 23.6 | JK67: 24.2 | JL67: 24.4 | JM67: 24.4 | JN67: 24.5 | JO67: 23.7 | JP67: 22.7 | JQ67: 22.3 | JR67: 22.5 | JS67: 23.2 | JT67: 23.5 | JU67: 23.8 | JV67: 23.8 | JW67: 23.7 | JX67: 23.4 | JY67: 23.4 | JZ67: 22.8 | KA67: 21.8 | KB67: 20.6 | KC67: 19.7 | KD67: 18.9 | KE67: 17.7 | KF67: 17.2 | KG67: 17.6 | KH67: 18.6 | KI67: 18.8 | KJ67: 18.1 | KK67: 17.3 | KL67: 17.4 | KM67: 18.1 | KN67: 18.4 | KO67: 18.5 | KP67: 18.2
E68: Ireland - Sum of Female25-74 | F68: 13.4 | G68: 13.6 | H68: 13.8 | I68: 14 | J68: 14 | K68: 14 | L68: 14 | M68: 13.9 | N68: 13.9 | O68: 13.9 | P68: 13.9 | Q68: 13.8 | R68: 13.8 | S68: 13.7 | T68: 13.7 | U68: 13.6 | V68: 13.5 | W68: 13.4 | X68: 13.4 | Y68: 13.5 | Z68: 13.6 | AA68: 13.6 | AB68: 13.7 | AC68: 13.7 | AD68: 13.7 | AE68: 13.8 | AF68: 13.8 | AG68: 13.7 | AH68: 13.7 | AI68: 13.6 | AJ68: 13.5 | AK68: 13.5 | AL68: 13.5 | AM68: 13.5 | AN68: 13.5 | AO68: 13.4 | AP68: 13.3 | AQ68: 13.3 | AR68: 13.2 | AS68: 13.1 | AT68: 13 | AU68: 12.9 | AV68: 12.8 | AW68: 12.6 | AX68: 12.3 | AY68: 12 | AZ68: 11.7 | BA68: 11.6 | BB68: 11.4 | BC68: 11.2 | BD68: 11 | BE68: 10.9 | BF68: 10.8 | BG68: 10.7 | BH68: 10.7 | BI68: 10.7 | BJ68: 10.7 | BK68: 10.7 | BL68: 10.8 | BM68: 10.8 | BN68: 10.8 | BO68: 10.7 | BP68: 10.6 | BQ68: 10.6 | BR68: 10.5 | BS68: 10.5 | BT68: 10.4 | BU68: 10.3 | BV68: 10.2 | BW68: 10 | BX68: 9.8 | BY68: 9.6 | BZ68: 9.5 | CA68: 9.3 | CB68: 9.2 | CC68: 9.1 | CD68: 8.9 | CE68: 8.7 | CF68: 8.5 | CG68: 8.3 | CH68: 8.1 | CI68: 7.8 | CJ68: 7.6 | CK68: 7.4 | CL68: 7.1 | CM68: 6.9 | CN68: 6.7 | CO68: 6.5 | CP68: 6.4 | CQ68: 6.3 | CR68: 6.2 | CS68: 6 | CT68: 5.9 | CU68: 5.8 | CV68: 5.7 | CW68: 5.6 | CX68: 5.4 | CY68: 5.2 | CZ68: 5.1 | DA68: 5 | DB68: 4.9 | DC68: 4.7 | DD68: 4.5 | DE68: 4.4 | DF68: 4.4 | DG68: 4.5 | DH68: 4.3 | DI68: 4.2 | DJ68: 3.9 | DK68: 3.8 | DL68: 3.7 | DM68: 3.8 | DN68: 3.7 | DO68: 3.5 | DP68: 3.3 | DQ68: 3.2 | DR68: 3 | DS68: 2.8 | DT68: 2.7 | DU68: 2.9 | DV68: 3.1 | DW68: 3.1 | DX68: 3 | DY68: 2.9 | DZ68: 2.8 | EA68: 2.9 | EB68: 3.1 | EC68: 3.2 | ED68: 3.2 | EE68: 2.9 | EF68: 2.9 | EG68: 2.8 | EH68: 2.9 | EI68: 3 | EJ68: 3.2 | EK68: 3.1 | EL68: 3.1 | EM68: 3.1 | EN68: 3 | EO68: 3 | EP68: 3.2 | EQ68: 3.5 | ER68: 3.7 | ES68: 3.7 | ET68: 3.4 | EU68: 3.2 | EV68: 3.1 | EW68: 3.2 | EX68: 3.1 | EY68: 3.2 | EZ68: 3.4 | FA68: 3.4 | FB68: 3.3 | FC68: 3.1 | FD68: 3.1 | FE68: 3.2 | FF68: 3.5 | FG68: 3.6 | FH68: 3.4 | FI68: 3.1 | FJ68: 2.8 | FK68: 2.6 | FL68: 2.6 | FM68: 2.6 | FN68: 2.7 | FO68: 3 | FP68: 3.1 | FQ68: 3.2 | FR68: 3 | FS68: 3 | FT68: 3.2 | FU68: 3.3 | FV68: 3.4 | FW68: 3.4 | FX68: 3.3 | FY68: 3.3 | FZ68: 3.1 | GA68: 3.2 | GB68: 3.3 | GC68: 3.4 | GD68: 3.4 | GE68: 3.5 | GF68: 3.4 | GG68: 3.4 | GH68: 3.3 | GI68: 3.5 | GJ68: 3.7 | GK68: 3.7 | GL68: 3.4 | GM68: 3.3 | GN68: 3.2 | GO68: 3.3 | GP68: 3.4 | GQ68: 3.5 | GR68: 3.5 | GS68: 3.5 | GT68: 3.5 | GU68: 3.6 | GV68: 3.6 | GW68: 3.4 | GX68: 3.3 | GY68: 3.4 | GZ68: 3.4 | HA68: 3.3 | HB68: 3.1 | HC68: 3.1 | HD68: 3.3 | HE68: 3.2 | HF68: 3.5 | HG68: 3.7 | HH68: 4 | HI68: 4.2 | HJ68: 4.3 | HK68: 4.5 | HL68: 4.6 | HM68: 4.8 | HN68: 5.3 | HO68: 5.7 | HP68: 6 | HQ68: 6.1 | HR68: 6.3 | HS68: 6.5 | HT68: 6.9 | HU68: 7.2 | HV68: 7.5 | HW68: 7.4 | HX68: 7.3 | HY68: 7.1 | HZ68: 7 | IA68: 7 | IB68: 7.4 | IC68: 8 | ID68: 8.4 | IE68: 8.3 | IF68: 8.1 | IG68: 8.2 | IH68: 8.5 | II68: 8.9 | IJ68: 8.9 | IK68: 8.8 | IL68: 8.6 | IM68: 8.6 | IN68: 8.6 | IO68: 8.8 | IP68: 8.9 | IQ68: 9.1 | IR68: 9.6 | IS68: 9.5 | IT68: 9.9 | IU68: 9.6 | IV68: 9.6 | IW68: 9.4 | IX68: 9.6 | IY68: 9.6 | IZ68: 9.5 | JA68: 9.2 | JB68: 9.1 | JC68: 9.1 | JD68: 9.2 | JE68: 9.3 | JF68: 9.5 | JG68: 9.4 | JH68: 9.4 | JI68: 9.3 | JJ68: 9.3 | JK68: 9.4 | JL68: 9.7 | JM68: 9.7 | JN68: 9.9 | JO68: 9.6 | JP68: 9 | JQ68: 8.7 | JR68: 8.8 | JS68: 8.9 | JT68: 8.9 | JU68: 8.7 | JV68: 8.6 | JW68: 8.5 | JX68: 8.3 | JY68: 8.2 | JZ68: 8.1 | KA68: 8.1 | KB68: 8.2 | KC68: 8.3 | KD68: 8.1 | KE68: 7.9 | KF68: 7.6 | KG68: 7.4 | KH68: 7.2 | KI68: 7.1 | KJ68: 7.1 | KK68: 7.2 | KL68: 7.2 | KM68: 7.1 | KN68: 7.1 | KO68: 7.1 | KP68: 7.1
E69: Italy - Sum of Male< 25 | FF69: 20.3 | FG69: 20.3 | FH69: 20.3 | FI69: 21.3 | FJ69: 21.3 | FK69: 21.3 | FL69: 20.4 | FM69: 20.4 | FN69: 20.4 | FO69: 21.2 | FP69: 21.2 | FQ69: 21.2 | FR69: 22 | FS69: 22 | FT69: 22 | FU69: 21.3 | FV69: 21.3 | FW69: 21.3 | FX69: 21.3 | FY69: 21.3 | FZ69: 21.3 | GA69: 20.6 | GB69: 20.6 | GC69: 20.6 | GD69: 20.2 | GE69: 20.2 | GF69: 20.2 | GG69: 18.8 | GH69: 18.8 | GI69: 18.8 | GJ69: 18.6 | GK69: 18.6 | GL69: 18.6 | GM69: 18.5 | GN69: 18.5 | GO69: 18.5 | GP69: 17.6 | GQ69: 17.6 | GR69: 17.6 | GS69: 17.8 | GT69: 17.8 | GU69: 17.8 | GV69: 18.1 | GW69: 18.1 | GX69: 18.1 | GY69: 18.8 | GZ69: 18.8 | HA69: 18.8 | HB69: 18.3 | HC69: 18.3 | HD69: 18.3 | HE69: 18.6 | HF69: 18.6 | HG69: 18.6 | HH69: 20.3 | HI69: 20.3 | HJ69: 20.3 | HK69: 20.3 | HL69: 20.3 | HM69: 20.3 | HN69: 21.1 | HO69: 21.1 | HP69: 21.1 | HQ69: 22.3 | HR69: 22.3 | HS69: 22.3 | HT69: 24.4 | HU69: 24.4 | HV69: 24.4 | HW69: 25.1 | HX69: 25.1 | HY69: 25.1 | HZ69: 26.2 | IA69: 26.2 | IB69: 26.2 | IC69: 27.9 | ID69: 27.9 | IE69: 27.9 | IF69: 25.9 | IG69: 25.9 | IH69: 25.9 | II69: 26.6 | IJ69: 26.6 | IK69: 26.6 | IL69: 25.8 | IM69: 25.8 | IN69: 25.8 | IO69: 24.5 | IP69: 24.5 | IQ69: 24.5 | IR69: 27.5 | IS69: 27.5 | IT69: 27.5 | IU69: 30 | IV69: 30 | IW69: 30 | IX69: 32.4 | IY69: 32.4 | IZ69: 32.4 | JA69: 34 | JB69: 34 | JC69: 34 | JD69: 33.7 | JE69: 33.7 | JF69: 33.7 | JG69: 35.8 | JH69: 35.8 | JI69: 35.8 | JJ69: 38.1 | JK69: 38.1 | JL69: 38.1 | JM69: 38.3 | JN69: 38.3 | JO69: 38.3 | JP69: 39.6 | JQ69: 39.6 | JR69: 39.6 | JS69: 40 | JT69: 40 | JU69: 40 | JV69: 40.9 | JW69: 40.9 | JX69: 40.9 | JY69: 42 | JZ69: 42 | KA69: 42 | KB69: 41.1 | KC69: 41.1 | KD69: 41.1 | KE69: 40 | KF69: 40 | KG69: 40 | KH69: 39.3 | KI69: 39.3 | KJ69: 39.3
E70: Italy - Sum of Male 25-74 | FF70: 5 | FG70: 5 | FH70: 5 | FI70: 5.1 | FJ70: 5.1 | FK70: 5.1 | FL70: 4.9 | FM70: 4.9 | FN70: 4.9 | FO70: 5 | FP70: 5 | FQ70: 5 | FR70: 5 | FS70: 5 | FT70: 5 | FU70: 4.8 | FV70: 4.8 | FW70: 4.8 | FX70: 4.7 | FY70: 4.7 | FZ70: 4.7 | GA70: 4.7 | GB70: 4.7 | GC70: 4.7 | GD70: 4.4 | GE70: 4.4 | GF70: 4.4 | GG70: 4.3 | GH70: 4.3 | GI70: 4.3 | GJ70: 4.2 | GK70: 4.2 | GL70: 4.2 | GM70: 4.2 | GN70: 4.2 | GO70: 4.2 | GP70: 3.8 | GQ70: 3.8 | GR70: 3.8 | GS70: 3.7 | GT70: 3.7 | GU70: 3.7 | GV70: 3.9 | GW70: 3.9 | GX70: 3.9 | GY70: 3.8 | GZ70: 3.8 | HA70: 3.8 | HB70: 4.1 | HC70: 4.1 | HD70: 4.1 | HE70: 4.5 | HF70: 4.5 | HG70: 4.5 | HH70: 4.4 | HI70: 4.4 | HJ70: 4.4 | HK70: 4.7 | HL70: 4.7 | HM70: 4.7 | HN70: 5.1 | HO70: 5.1 | HP70: 5.1 | HQ70: 5.3 | HR70: 5.3 | HS70: 5.3 | HT70: 5.8 | HU70: 5.8 | HV70: 5.8 | HW70: 5.8 | HX70: 5.8 | HY70: 5.8 | HZ70: 6 | IA70: 6 | IB70: 6 | IC70: 6.2 | ID70: 6.2 | IE70: 6.2 | IF70: 6.2 | IG70: 6.2 | IH70: 6.2 | II70: 6.1 | IJ70: 6.1 | IK70: 6.1 | IL70: 5.8 | IM70: 5.8 | IN70: 5.8 | IO70: 5.8 | IP70: 5.8 | IQ70: 5.8 | IR70: 6.3 | IS70: 6.3 | IT70: 6.3 | IU70: 6.9 | IV70: 6.9 | IW70: 6.9 | IX70: 7.4 | IY70: 7.4 | IZ70: 7.4 | JA70: 8.1 | JB70: 8.1 | JC70: 8.1 | JD70: 8.2 | JE70: 8.2 | JF70: 8.2 | JG70: 8.7 | JH70: 8.7 | JI70: 8.7 | JJ70: 9.2 | JK70: 9.2 | JL70: 9.2 | JM70: 9.7 | JN70: 9.7 | JO70: 9.7 | JP70: 9.8 | JQ70: 9.8 | JR70: 9.8 | JS70: 9.9 | JT70: 9.9 | JU70: 9.9 | JV70: 9.9 | JW70: 9.9 | JX70: 9.9 | JY70: 9.5 | JZ70: 9.5 | KA70: 9.5 | KB70: 9.8 | KC70: 9.8 | KD70: 9.8 | KE70: 9.8 | KF70: 9.8 | KG70: 9.8 | KH70: 10 | KI70: 10 | KJ70: 10
E71: Italy - Sum of Female<25 | FF71: 26.7 | FG71: 26.7 | FH71: 26.7 | FI71: 27.2 | FJ71: 27.2 | FK71: 27.2 | FL71: 26.5 | FM71: 26.5 | FN71: 26.5 | FO71: 27.2 | FP71: 27.2 | FQ71: 27.2 | FR71: 27.3 | FS71: 27.3 | FT71: 27.3 | FU71: 27 | FV71: 27 | FW71: 27 | FX71: 28.3 | FY71: 28.3 | FZ71: 28.3 | GA71: 27.3 | GB71: 27.3 | GC71: 27.3 | GD71: 26.8 | GE71: 26.8 | GF71: 26.8 | GG71: 25.8 | GH71: 25.8 | GI71: 25.8 | GJ71: 23.9 | GK71: 23.9 | GL71: 23.9 | GM71: 23.4 | GN71: 23.4 | GO71: 23.4 | GP71: 22.9 | GQ71: 22.9 | GR71: 22.9 | GS71: 22.5 | GT71: 22.5 | GU71: 22.5 | GV71: 23.7 | GW71: 23.7 | GX71: 23.7 | GY71: 24.4 | GZ71: 24.4 | HA71: 24.4 | HB71: 24.2 | HC71: 24.2 | HD71: 24.2 | HE71: 25.1 | HF71: 25.1 | HG71: 25.1 | HH71: 25 | HI71: 25 | HJ71: 25 | HK71: 26.1 | HL71: 26.1 | HM71: 26.1 | HN71: 27.8 | HO71: 27.8 | HP71: 27.8 | HQ71: 28.2 | HR71: 28.2 | HS71: 28.2 | HT71: 28.8 | HU71: 28.8 | HV71: 28.8 | HW71: 28.9 | HX71: 28.9 | HY71: 28.9 | HZ71: 28.7 | IA71: 28.7 | IB71: 28.7 | IC71: 28.9 | ID71: 28.9 | IE71: 28.9 | IF71: 29.7 | IG71: 29.7 | IH71: 29.7 | II71: 30.5 | IJ71: 30.5 | IK71: 30.5 | IL71: 30.9 | IM71: 30.9 | IN71: 30.9 | IO71: 32.2 | IP71: 32.2 | IQ71: 32.2 | IR71: 32.6 | IS71: 32.6 | IT71: 32.6 | IU71: 33.5 | IV71: 33.5 | IW71: 33.5 | IX71: 35.8 | IY71: 35.8 | IZ71: 35.8 | JA71: 36.6 | JB71: 36.6 | JC71: 36.6 | JD71: 37.6 | JE71: 37.6 | JF71: 37.6 | JG71: 39 | JH71: 39 | JI71: 39 | JJ71: 39.5 | JK71: 39.5 | JL71: 39.5 | JM71: 40.3 | JN71: 40.3 | JO71: 40.3 | JP71: 41.7 | JQ71: 41.7 | JR71: 41.7 | JS71: 43.8 | JT71: 43.8 | JU71: 43.8 | JV71: 45 | JW71: 45 | JX71: 45 | JY71: 43.5 | JZ71: 43.5 | KA71: 43.5 | KB71: 45 | KC71: 45 | KD71: 45 | KE71: 44.9 | KF71: 44.9 | KG71: 44.9 | KH71: 45.6 | KI71: 45.6 | KJ71: 45.6
E72: Italy - Sum of Female25-74 | FF72: 9.1 | FG72: 9.1 | FH72: 9.1 | FI72: 8.5 | FJ72: 8.5 | FK72: 8.5 | FL72: 8.6 | FM72: 8.6 | FN72: 8.6 | FO72: 8.5 | FP72: 8.5 | FQ72: 8.5 | FR72: 8.4 | FS72: 8.4 | FT72: 8.4 | FU72: 8.4 | FV72: 8.4 | FW72: 8.4 | FX72: 8.2 | FY72: 8.2 | FZ72: 8.2 | GA72: 8.4 | GB72: 8.4 | GC72: 8.4 | GD72: 8 | GE72: 8 | GF72: 8 | GG72: 7.4 | GH72: 7.4 | GI72: 7.4 | GJ72: 7.2 | GK72: 7.2 | GL72: 7.2 | GM72: 7 | GN72: 7 | GO72: 7 | GP72: 6.4 | GQ72: 6.4 | GR72: 6.4 | GS72: 6.6 | GT72: 6.6 | GU72: 6.6 | GV72: 6.7 | GW72: 6.7 | GX72: 6.7 | GY72: 6.9 | GZ72: 6.9 | HA72: 6.9 | HB72: 7 | HC72: 7 | HD72: 7 | HE72: 7.5 | HF72: 7.5 | HG72: 7.5 | HH72: 7.4 | HI72: 7.4 | HJ72: 7.4 | HK72: 7 | HL72: 7 | HM72: 7 | HN72: 7.4 | HO72: 7.4 | HP72: 7.4 | HQ72: 7.6 | HR72: 7.6 | HS72: 7.6 | HT72: 8 | HU72: 8 | HV72: 8 | HW72: 8.3 | HX72: 8.3 | HY72: 8.3 | HZ72: 8.6 | IA72: 8.6 | IB72: 8.6 | IC72: 8.3 | ID72: 8.3 | IE72: 8.3 | IF72: 8 | IG72: 8 | IH72: 8 | II72: 8 | IJ72: 8 | IK72: 8 | IL72: 7.5 | IM72: 7.5 | IN72: 7.5 | IO72: 7.7 | IP72: 7.7 | IQ72: 7.7 | IR72: 8.3 | IS72: 8.3 | IT72: 8.3 | IU72: 8.7 | IV72: 8.7 | IW72: 8.7 | IX72: 9.4 | IY72: 9.4 | IZ72: 9.4 | JA72: 9.9 | JB72: 9.9 | JC72: 9.9 | JD72: 10.2 | JE72: 10.2 | JF72: 10.2 | JG72: 10.6 | JH72: 10.6 | JI72: 10.6 | JJ72: 11.2 | JK72: 11.2 | JL72: 11.2 | JM72: 11.2 | JN72: 11.2 | JO72: 11.2 | JP72: 11.1 | JQ72: 11.1 | JR72: 11.1 | JS72: 11.4 | JT72: 11.4 | JU72: 11.4 | JV72: 11.5 | JW72: 11.5 | JX72: 11.5 | JY72: 11.6 | JZ72: 11.6 | KA72: 11.6 | KB72: 11.9 | KC72: 11.9 | KD72: 11.9 | KE72: 12.2 | KF72: 12.2 | KG72: 12.2 | KH72: 11 | KI72: 11 | KJ72: 11
E73: Latvia - Sum of Male< 25 | CO73: 27 | CP73: 27 | CQ73: 27 | CR73: 25.6 | CS73: 25.6 | CT73: 25.6 | CU73: 22 | CV73: 22 | CW73: 22 | CX73: 23.9 | CY73: 23.9 | CZ73: 23.9 | DA73: 25.7 | DB73: 25.7 | DC73: 25.7 | DD73: 25.2 | DE73: 25.2 | DF73: 25.2 | DG73: 24.2 | DH73: 24.2 | DI73: 24.2 | DJ73: 22.5 | DK73: 22.5 | DL73: 22.5 | DM73: 20.6 | DN73: 20.6 | DO73: 20.6 | DP73: 22.3 | DQ73: 22.3 | DR73: 22.3 | DS73: 20.9 | DT73: 20.9 | DU73: 20.9 | DV73: 21.6 | DW73: 21.6 | DX73: 21.6 | DY73: 23.3 | DZ73: 23.3 | EA73: 23.3 | EB73: 21.8 | EC73: 21.8 | ED73: 21.8 | EE73: 22.6 | EF73: 22.6 | EG73: 22.6 | EH73: 14.3 | EI73: 14.3 | EJ73: 14.3 | EK73: 22.3 | EL73: 22.3 | EM73: 22.3 | EN73: 15.4 | EO73: 15.4 | EP73: 15.4 | EQ73: 19.5 | ER73: 19.5 | ES73: 19.5 | ET73: 17.7 | EU73: 17.7 | EV73: 17.7 | EW73: 13.9 | EX73: 13.9 | EY73: 13.9 | EZ73: 22.2 | FA73: 22.2 | FB73: 22.2 | FC73: 16.7 | FD73: 16.7 | FE73: 16.7 | FF73: 18.9 | FG73: 18.9 | FH73: 18.9 | FI73: 13.5 | FJ73: 13.5 | FK73: 13.5 | FL73: 16.9 | FM73: 16.9 | FN73: 16.9 | FO73: 16.5 | FP73: 16.5 | FQ73: 16.5 | FR73: 15 | FS73: 15 | FT73: 15 | FU73: 16.2 | FV73: 16.2 | FW73: 16.2 | FX73: 9.9 | FY73: 9.9 | FZ73: 9.9 | GA73: 10.5 | GB73: 10.5 | GC73: 10.5 | GD73: 11.9 | GE73: 11.9 | GF73: 11.9 | GG73: 17.2 | GH73: 17.2 | GI73: 17.2 | GJ73: 8.3 | GK73: 8.3 | GL73: 8.3 | GM73: 11 | GN73: 11 | GO73: 11 | GP73: 11.6 | GQ73: 11.6 | GR73: 11.6 | GS73: 10.7 | GT73: 10.7 | GU73: 10.7 | GV73: 13 | GW73: 13 | GX73: 13 | GY73: 8.6 | GZ73: 8.6 | HA73: 8.6 | HB73: 11.3 | HC73: 11.3 | HD73: 11.3 | HE73: 9.3 | HF73: 9.3 | HG73: 9.3 | HH73: 12.6 | HI73: 12.6 | HJ73: 12.6 | HK73: 23.2 | HL73: 23.2 | HM73: 23.2 | HN73: 31.2 | HO73: 31.2 | HP73: 31.2 | HQ73: 32.7 | HR73: 32.7 | HS73: 32.7 | HT73: 39.3 | HU73: 39.3 | HV73: 39.3 | HW73: 42.8 | HX73: 42.8 | HY73: 42.8 | HZ73: 44.2 | IA73: 44.2 | IB73: 44.2 | IC73: 38.4 | ID73: 38.4 | IE73: 38.4 | IF73: 34.8 | IG73: 34.8 | IH73: 34.8 | II73: 30.7 | IJ73: 30.7 | IK73: 30.7 | IL73: 30.7 | IM73: 30.7 | IN73: 30.7 | IO73: 31.7 | IP73: 31.7 | IQ73: 31.7 | IR73: 32 | IS73: 32 | IT73: 32 | IU73: 30.5 | IV73: 30.5 | IW73: 30.5 | IX73: 28.6 | IY73: 28.6 | IZ73: 28.6 | JA73: 29.2 | JB73: 29.2 | JC73: 29.2 | JD73: 29.7 | JE73: 29.7 | JF73: 29.7 | JG73: 23.2 | JH73: 23.2 | JI73: 23.2 | JJ73: 21.4 | JK73: 21.4 | JL73: 21.4 | JM73: 19 | JN73: 19 | JO73: 19 | JP73: 22.5 | JQ73: 22.5 | JR73: 22.5 | JS73: 24.2 | JT73: 24.2 | JU73: 24.2 | JV73: 19.9 | JW73: 19.9 | JX73: 19.9 | JY73: 20.1 | JZ73: 20.5 | KA73: 21 | KB73: 20.4 | KC73: 19.5 | KD73: 18.7 | KE73: 18.4 | KF73: 17.8 | KG73: 16.2 | KH73: 13.9 | KI73: 13 | KJ73: 14.3 | KK73: 16.4 | KL73: 18 | KM73: 17.8 | KN73: 15.4 | KO73: 13.5
E74: Latvia - Sum of Male 25-74 | CO74: 12.9 | CP74: 12.9 | CQ74: 12.9 | CR74: 12.4 | CS74: 12.4 | CT74: 12.4 | CU74: 12.3 | CV74: 12.3 | CW74: 12.3 | CX74: 12.5 | CY74: 12.5 | CZ74: 12.5 | DA74: 12.5 | DB74: 12.5 | DC74: 12.5 | DD74: 13 | DE74: 13 | DF74: 13 | DG74: 13.7 | DH74: 13.7 | DI74: 13.7 | DJ74: 14.1 | DK74: 14.1 | DL74: 14.1 | DM74: 14.3 | DN74: 14.3 | DO74: 14.3 | DP74: 14.3 | DQ74: 14.3 | DR74: 14.3 | DS74: 14.4 | DT74: 14.4 | DU74: 14.4 | DV74: 14 | DW74: 14 | DX74: 14 | DY74: 13.3 | DZ74: 13.3 | EA74: 13.3 | EB74: 13 | EC74: 13 | ED74: 13 | EE74: 13.3 | EF74: 13.3 | EG74: 13.3 | EH74: 13.4 | EI74: 13.4 | EJ74: 13.4 | EK74: 12.9 | EL74: 12.9 | EM74: 12.9 | EN74: 11.5 | EO74: 11.5 | EP74: 11.5 | EQ74: 12 | ER74: 12 | ES74: 12 | ET74: 10.9 | EU74: 10.9 | EV74: 10.9 | EW74: 11.2 | EX74: 11.2 | EY74: 11.2 | EZ74: 10.9 | FA74: 10.9 | FB74: 10.9 | FC74: 10 | FD74: 10 | FE74: 10 | FF74: 10.7 | FG74: 10.7 | FH74: 10.7 | FI74: 10.5 | FJ74: 10.5 | FK74: 10.5 | FL74: 10.6 | FM74: 10.6 | FN74: 10.6 | FO74: 10.6 | FP74: 10.6 | FQ74: 10.6 | FR74: 10.1 | FS74: 10.1 | FT74: 10.1 | FU74: 9.9 | FV74: 9.9 | FW74: 9.9 | FX74: 9.6 | FY74: 9.6 | FZ74: 9.6 | GA74: 8.8 | GB74: 8.8 | GC74: 8.8 | GD74: 7.5 | GE74: 7.5 | GF74: 7.5 | GG74: 6.6 | GH74: 6.6 | GI74: 6.6 | GJ74: 6.4 | GK74: 6.4 | GL74: 6.4 | GM74: 6.1 | GN74: 6.1 | GO74: 6.1 | GP74: 6.4 | GQ74: 6.4 | GR74: 6.4 | GS74: 5.7 | GT74: 5.7 | GU74: 5.7 | GV74: 5.2 | GW74: 5.2 | GX74: 5.2 | GY74: 5.4 | GZ74: 5.4 | HA74: 5.4 | HB74: 5.9 | HC74: 5.9 | HD74: 5.9 | HE74: 6.3 | HF74: 6.3 | HG74: 6.3 | HH74: 7.8 | HI74: 7.8 | HJ74: 7.8 | HK74: 10.3 | HL74: 10.3 | HM74: 10.3 | HN74: 14 | HO74: 14 | HP74: 14 | HQ74: 17.8 | HR74: 17.8 | HS74: 17.8 | HT74: 20 | HU74: 20 | HV74: 20 | HW74: 21.4 | HX74: 21.4 | HY74: 21.4 | HZ74: 22.6 | IA74: 22.6 | IB74: 22.6 | IC74: 21.3 | ID74: 21.3 | IE74: 21.3 | IF74: 19.9 | IG74: 19.9 | IH74: 19.9 | II74: 18.8 | IJ74: 18.8 | IK74: 18.8 | IL74: 18.1 | IM74: 18.1 | IN74: 18.1 | IO74: 17.8 | IP74: 17.8 | IQ74: 17.8 | IR74: 16.2 | IS74: 16.2 | IT74: 16.2 | IU74: 15.8 | IV74: 15.8 | IW74: 15.8 | IX74: 15.6 | IY74: 15.6 | IZ74: 15.6 | JA74: 15.2 | JB74: 15.2 | JC74: 15.2 | JD74: 13.4 | JE74: 13.4 | JF74: 13.4 | JG74: 14.2 | JH74: 14.2 | JI74: 14.2 | JJ74: 12.8 | JK74: 12.8 | JL74: 12.8 | JM74: 11.6 | JN74: 11.6 | JO74: 11.6 | JP74: 11.2 | JQ74: 11.2 | JR74: 11.2 | JS74: 11 | JT74: 11 | JU74: 11 | JV74: 11.8 | JW74: 11.8 | JX74: 11.8 | JY74: 11.6 | JZ74: 11 | KA74: 10.7 | KB74: 10.7 | KC74: 10.6 | KD74: 10.4 | KE74: 10.3 | KF74: 10.1 | KG74: 9.8 | KH74: 9.7 | KI74: 9.9 | KJ74: 10.3 | KK74: 10.2 | KL74: 10.5 | KM74: 10.9 | KN74: 11 | KO74: 11
E75: Latvia - Sum of Female<25 | CO75: 27.4 | CP75: 27.4 | CQ75: 27.4 | CR75: 25.3 | CS75: 25.3 | CT75: 25.3 | CU75: 26.5 | CV75: 26.5 | CW75: 26.5 | CX75: 23.6 | CY75: 23.6 | CZ75: 23.6 | DA75: 20.5 | DB75: 20.5 | DC75: 20.5 | DD75: 22.7 | DE75: 22.7 | DF75: 22.7 | DG75: 23.8 | DH75: 23.8 | DI75: 23.8 | DJ75: 23 | DK75: 23 | DL75: 23 | DM75: 22.7 | DN75: 22.7 | DO75: 22.7 | DP75: 23.6 | DQ75: 23.6 | DR75: 23.6 | DS75: 24.4 | DT75: 24.4 | DU75: 24.4 | DV75: 24.8 | DW75: 24.8 | DX75: 24.8 | DY75: 22.4 | DZ75: 22.4 | EA75: 22.4 | EB75: 23.9 | EC75: 23.9 | ED75: 23.9 | EE75: 24.3 | EF75: 24.3 | EG75: 24.3 | EH75: 23.6 | EI75: 23.6 | EJ75: 23.6 | EK75: 23.3 | EL75: 23.3 | EM75: 23.3 | EN75: 24.2 | EO75: 24.2 | EP75: 24.2 | EQ75: 24.3 | ER75: 24.3 | ES75: 24.3 | ET75: 23.5 | EU75: 23.5 | EV75: 23.5 | EW75: 23.9 | EX75: 23.9 | EY75: 23.9 | EZ75: 22.5 | FA75: 22.5 | FB75: 22.5 | FC75: 22.7 | FD75: 22.7 | FE75: 22.7 | FF75: 22 | FG75: 22 | FH75: 22 | FI75: 25.3 | FJ75: 25.3 | FK75: 25.3 | FL75: 23 | FM75: 23 | FN75: 23 | FO75: 21.4 | FP75: 21.4 | FQ75: 21.4 | FR75: 21.4 | FS75: 21.4 | FT75: 21.4 | FU75: 18.6 | FV75: 18.6 | FW75: 18.6 | FX75: 18.3 | FY75: 18.3 | FZ75: 18.3 | GA75: 18.5 | GB75: 18.5 | GC75: 18.5 | GD75: 17.4 | GE75: 17.4 | GF75: 17.4 | GG75: 15.9 | GH75: 15.9 | GI75: 15.9 | GJ75: 14.6 | GK75: 14.6 | GL75: 14.6 | GM75: 14.6 | GN75: 14.6 | GO75: 14.6 | GP75: 13.7 | GQ75: 13.7 | GR75: 13.7 | GS75: 12.3 | GT75: 12.3 | GU75: 12.3 | GV75: 13.5 | GW75: 13.5 | GX75: 13.5 | GY75: 12.5 | GZ75: 12.5 | HA75: 12.5 | HB75: 12.7 | HC75: 12.7 | HD75: 12.7 | HE75: 14.4 | HF75: 14.4 | HG75: 14.4 | HH75: 16.2 | HI75: 16.2 | HJ75: 16.2 | HK75: 21.4 | HL75: 21.4 | HM75: 21.4 | HN75: 22.8 | HO75: 22.8 | HP75: 22.8 | HQ75: 26.2 | HR75: 26.2 | HS75: 26.2 | HT75: 27.2 | HU75: 27.2 | HV75: 27.2 | HW75: 29.8 | HX75: 29.8 | HY75: 29.8 | HZ75: 31 | IA75: 31 | IB75: 31 | IC75: 31.4 | ID75: 31.4 | IE75: 31.4 | IF75: 30.6 | IG75: 30.6 | IH75: 30.6 | II75: 34 | IJ75: 34 | IK75: 34 | IL75: 34.4 | IM75: 34.4 | IN75: 34.4 | IO75: 33.7 | IP75: 33.7 | IQ75: 33.7 | IR75: 31.8 | IS75: 31.8 | IT75: 31.8 | IU75: 28.7 | IV75: 28.7 | IW75: 28.7 | IX75: 29.9 | IY75: 29.9 | IZ75: 29.9 | JA75: 29.7 | JB75: 29.7 | JC75: 29.7 | JD75: 31.5 | JE75: 31.5 | JF75: 31.5 | JG75: 24.8 | JH75: 24.8 | JI75: 24.8 | JJ75: 27.1 | JK75: 27.1 | JL75: 27.1 | JM75: 25.5 | JN75: 25.5 | JO75: 25.5 | JP75: 25.3 | JQ75: 25.3 | JR75: 25.3 | JS75: 22.4 | JT75: 22.4 | JU75: 22.4 | JV75: 22.6 | JW75: 22.6 | JX75: 22.6 | JY75: 20.9 | JZ75: 21.8 | KA75: 21.2 | KB75: 19.9 | KC75: 19.5 | KD75: 19.4 | KE75: 20.7 | KF75: 20.6 | KG75: 19.9 | KH75: 19.3 | KI75: 18.8 | KJ75: 17.9 | KK75: 11.6 | KL75: 11.2 | KM75: 11.9 | KN75: 14.8 | KO75: 14.7
E76: Latvia - Sum of Female25-74 | CO76: 11.7 | CP76: 11.7 | CQ76: 11.7 | CR76: 11.9 | CS76: 11.9 | CT76: 11.9 | CU76: 12 | CV76: 12 | CW76: 12 | CX76: 12.5 | CY76: 12.5 | CZ76: 12.5 | DA76: 12.5 | DB76: 12.5 | DC76: 12.5 | DD76: 12.2 | DE76: 12.2 | DF76: 12.2 | DG76: 12 | DH76: 12 | DI76: 12 | DJ76: 12.4 | DK76: 12.4 | DL76: 12.4 | DM76: 12.3 | DN76: 12.3 | DO76: 12.3 | DP76: 12 | DQ76: 12 | DR76: 12 | DS76: 12 | DT76: 12 | DU76: 12 | DV76: 11.6 | DW76: 11.6 | DX76: 11.6 | DY76: 10.4 | DZ76: 10.4 | EA76: 10.4 | EB76: 10.4 | EC76: 10.4 | ED76: 10.4 | EE76: 11.4 | EF76: 11.4 | EG76: 11.4 | EH76: 11 | EI76: 11 | EJ76: 11 | EK76: 10.7 | EL76: 10.7 | EM76: 10.7 | EN76: 10 | EO76: 10 | EP76: 10 | EQ76: 9.8 | ER76: 9.8 | ES76: 9.8 | ET76: 10.2 | EU76: 10.2 | EV76: 10.2 | EW76: 10.4 | EX76: 10.4 | EY76: 10.4 | EZ76: 10.5 | FA76: 10.5 | FB76: 10.5 | FC76: 10.7 | FD76: 10.7 | FE76: 10.7 | FF76: 10.6 | FG76: 10.6 | FH76: 10.6 | FI76: 10.7 | FJ76: 10.7 | FK76: 10.7 | FL76: 10.3 | FM76: 10.3 | FN76: 10.3 | FO76: 10.5 | FP76: 10.5 | FQ76: 10.5 | FR76: 10.5 | FS76: 10.5 | FT76: 10.5 | FU76: 9.2 | FV76: 9.2 | FW76: 9.2 | FX76: 8.9 | FY76: 8.9 | FZ76: 8.9 | GA76: 7.4 | GB76: 7.4 | GC76: 7.4 | GD76: 6.9 | GE76: 6.9 | GF76: 6.9 | GG76: 5.5 | GH76: 5.5 | GI76: 5.5 | GJ76: 5.1 | GK76: 5.1 | GL76: 5.1 | GM76: 5.2 | GN76: 5.2 | GO76: 5.2 | GP76: 5 | GQ76: 5 | GR76: 5 | GS76: 5.1 | GT76: 5.1 | GU76: 5.1 | GV76: 5 | GW76: 5 | GX76: 5 | GY76: 4.9 | GZ76: 4.9 | HA76: 4.9 | HB76: 5.3 | HC76: 5.3 | HD76: 5.3 | HE76: 5.7 | HF76: 5.7 | HG76: 5.7 | HH76: 6.7 | HI76: 6.7 | HJ76: 6.7 | HK76: 8 | HL76: 8 | HM76: 8 | HN76: 9.6 | HO76: 9.6 | HP76: 9.6 | HQ76: 11.8 | HR76: 11.8 | HS76: 11.8 | HT76: 13.7 | HU76: 13.7 | HV76: 13.7 | HW76: 14.1 | HX76: 14.1 | HY76: 14.1 | HZ76: 14.1 | IA76: 14.1 | IB76: 14.1 | IC76: 14.8 | ID76: 14.8 | IE76: 14.8 | IF76: 14.2 | IG76: 14.2 | IH76: 14.2 | II76: 13.8 | IJ76: 13.8 | IK76: 13.8 | IL76: 13.2 | IM76: 13.2 | IN76: 13.2 | IO76: 12.2 | IP76: 12.2 | IQ76: 12.2 | IR76: 12.1 | IS76: 12.1 | IT76: 12.1 | IU76: 12.2 | IV76: 12.2 | IW76: 12.2 | IX76: 12.9 | IY76: 12.9 | IZ76: 12.9 | JA76: 12.9 | JB76: 12.9 | JC76: 12.9 | JD76: 11.9 | JE76: 11.9 | JF76: 11.9 | JG76: 11.4 | JH76: 11.4 | JI76: 11.4 | JJ76: 10.4 | JK76: 10.4 | JL76: 10.4 | JM76: 10 | JN76: 10 | JO76: 10 | JP76: 9.8 | JQ76: 9.8 | JR76: 9.8 | JS76: 9.6 | JT76: 9.6 | JU76: 9.6 | JV76: 9.1 | JW76: 9.1 | JX76: 9.1 | JY76: 8.4 | JZ76: 8.2 | KA76: 8.5 | KB76: 9.2 | KC76: 9.5 | KD76: 9.6 | KE76: 9.4 | KF76: 9.2 | KG76: 9 | KH76: 8.7 | KI76: 8.5 | KJ76: 8.3 | KK76: 7.9 | KL76: 7.9 | KM76: 8.3 | KN76: 8.3 | KO76: 8.2
E77: Lithuania - Sum of Male< 25 | CL77: 25.8 | CM77: 25.7 | CN77: 25.7 | CO77: 26.2 | CP77: 25.4 | CQ77: 25.8 | CR77: 24.8 | CS77: 24.5 | CT77: 24.5 | CU77: 25.2 | CV77: 25.7 | CW77: 26.2 | CX77: 26.8 | CY77: 27.4 | CZ77: 28 | DA77: 28.5 | DB77: 29.1 | DC77: 29.5 | DD77: 30.3 | DE77: 30.8 | DF77: 31.3 | DG77: 31.1 | DH77: 31 | DI77: 30.8 | DJ77: 30.7 | DK77: 30.5 | DL77: 30.2 | DM77: 29.4 | DN77: 29.8 | DO77: 30.7 | DP77: 32.8 | DQ77: 33.8 | DR77: 34 | DS77: 33.4 | DT77: 33.7 | DU77: 34.5 | DV77: 34.9 | DW77: 36.1 | DX77: 37.4 | DY77: 38.8 | DZ77: 38.8 | EA77: 37.7 | EB77: 35.1 | EC77: 34.1 | ED77: 34.7 | EE77: 36.7 | EF77: 36.2 | EG77: 33.3 | EH77: 27.4 | EI77: 23.8 | EJ77: 21.9 | EK77: 21.7 | EL77: 21.8 | EM77: 22.5 | EN77: 23.5 | EO77: 23.9 | EP77: 23.6 | EQ77: 22.5 | ER77: 22 | ES77: 21.9 | ET77: 22.2 | EU77: 22.5 | EV77: 22.7 | EW77: 23 | EX77: 23.1 | EY77: 23.1 | EZ77: 22.9 | FA77: 22.7 | FB77: 22.4 | FC77: 21.9 | FD77: 21.7 | FE77: 21.5 | FF77: 21.5 | FG77: 21.7 | FH77: 21.8 | FI77: 22.3 | FJ77: 22.3 | FK77: 22.2 | FL77: 21.5 | FM77: 21.2 | FN77: 21.2 | FO77: 21.3 | FP77: 21 | FQ77: 20.4 | FR77: 19.3 | FS77: 18.5 | FT77: 18 | FU77: 17.7 | FV77: 17 | FW77: 16 | FX77: 14.3 | FY77: 13.6 | FZ77: 13.7 | GA77: 14.6 | GB77: 14.8 | GC77: 14 | GD77: 12.5 | GE77: 11.3 | GF77: 10.5 | GG77: 10.2 | GH77: 10.2 | GI77: 10.6 | GJ77: 11.3 | GK77: 11.1 | GL77: 10.1 | GM77: 8.1 | GN77: 6.9 | GO77: 6.8 | GP77: 7.3 | GQ77: 7.8 | GR77: 7.8 | GS77: 7.2 | GT77: 6.7 | GU77: 6.2 | GV77: 6.3 | GW77: 6 | GX77: 6.4 | GY77: 7.1 | GZ77: 7.6 | HA77: 7.7 | HB77: 7.5 | HC77: 7.6 | HD77: 7.9 | HE77: 8.5 | HF77: 9.6 | HG77: 11 | HH77: 12.8 | HI77: 14.5 | HJ77: 16.2 | HK77: 17.9 | HL77: 19.9 | HM77: 22.1 | HN77: 24.6 | HO77: 27.3 | HP77: 30.1 | HQ77: 32.8 | HR77: 35 | HS77: 36.6 | HT77: 37.6 | HU77: 38.5 | HV77: 39.3 | HW77: 40 | HX77: 40.6 | HY77: 41.2 | HZ77: 41.9 | IA77: 41.7 | IB77: 40.8 | IC77: 39.4 | ID77: 38.6 | IE77: 38.7 | IF77: 39.7 | IG77: 39.5 | IH77: 38.7 | II77: 37.2 | IJ77: 36.1 | IK77: 35.6 | IL77: 35.4 | IM77: 35.5 | IN77: 36.1 | IO77: 36.9 | IP77: 36.9 | IQ77: 35.9 | IR77: 34 | IS77: 33.3 | IT77: 31.6 | IU77: 33.7 | IV77: 34.2 | IW77: 34.4 | IX77: 34.3 | IY77: 33.7 | IZ77: 32.6 | JA77: 30.8 | JB77: 29.9 | JC77: 29.5 | JD77: 29.9 | JE77: 29.5 | JF77: 28.7 | JG77: 27.3 | JH77: 26.2 | JI77: 25 | JJ77: 24.4 | JK77: 23.7 | JL77: 23.3 | JM77: 23.3 | JN77: 23.2 | JO77: 23 | JP77: 22.7 | JQ77: 22.6 | JR77: 22.5 | JS77: 22.6 | JT77: 22.4 | JU77: 22.2 | JV77: 21.3 | JW77: 21.1 | JX77: 21.3 | JY77: 20.9 | JZ77: 20.8 | KA77: 20.7 | KB77: 19.7 | KC77: 19.5 | KD77: 19.1 | KE77: 19.3 | KF77: 19.3 | KG77: 19.3 | KH77: 19 | KI77: 18.9 | KJ77: 18.6 | KK77: 18.5 | KL77: 18.3 | KM77: 18.3 | KN77: 18.8 | KO77: 18.2
E78: Lithuania - Sum of Male 25-74 | CL78: 13.7 | CM78: 13.8 | CN78: 13.7 | CO78: 13.6 | CP78: 13.3 | CQ78: 13 | CR78: 12.5 | CS78: 12.2 | CT78: 12.2 | CU78: 12.4 | CV78: 12.5 | CW78: 12.7 | CX78: 12.8 | CY78: 12.8 | CZ78: 12.9 | DA78: 12.8 | DB78: 12.9 | DC78: 13.4 | DD78: 14.3 | DE78: 14.8 | DF78: 15.3 | DG78: 15.6 | DH78: 15.8 | DI78: 15.8 | DJ78: 15.7 | DK78: 15.8 | DL78: 16.1 | DM78: 16.8 | DN78: 17.2 | DO78: 17.4 | DP78: 17.5 | DQ78: 17.5 | DR78: 17.4 | DS78: 17.1 | DT78: 17.2 | DU78: 17.4 | DV78: 18.5 | DW78: 18.5 | DX78: 18.5 | DY78: 18.6 | DZ78: 18.3 | EA78: 17.8 | EB78: 17 | EC78: 16.7 | ED78: 16.7 | EE78: 18 | EF78: 18.3 | EG78: 18.3 | EH78: 18.2 | EI78: 17.4 | EJ78: 15.9 | EK78: 13.8 | EL78: 12.4 | EM78: 11.7 | EN78: 11.8 | EO78: 12 | EP78: 12.2 | EQ78: 12.5 | ER78: 12.6 | ES78: 12.5 | ET78: 12.3 | EU78: 12.1 | EV78: 12 | EW78: 11.9 | EX78: 11.8 | EY78: 11.6 | EZ78: 11.5 | FA78: 11.3 | FB78: 11.2 | FC78: 11 | FD78: 10.8 | FE78: 10.5 | FF78: 10.3 | FG78: 10 | FH78: 9.7 | FI78: 9.3 | FJ78: 9.1 | FK78: 9.1 | FL78: 9.4 | FM78: 9.4 | FN78: 9.3 | FO78: 9 | FP78: 8.7 | FQ78: 8.5 | FR78: 8.2 | FS78: 8 | FT78: 8 | FU78: 8.1 | FV78: 8 | FW78: 7.6 | FX78: 7.1 | FY78: 6.7 | FZ78: 6.5 | GA78: 6.5 | GB78: 6.5 | GC78: 6.5 | GD78: 6.5 | GE78: 6.3 | GF78: 6 | GG78: 5.6 | GH78: 5.4 | GI78: 5.4 | GJ78: 5.6 | GK78: 5.6 | GL78: 5.5 | GM78: 5.1 | GN78: 4.8 | GO78: 4.5 | GP78: 3.5 | GQ78: 3.5 | GR78: 3.6 | GS78: 4 | GT78: 4.1 | GU78: 4.2 | GV78: 4.1 | GW78: 4 | GX78: 3.9 | GY78: 3.9 | GZ78: 3.8 | HA78: 3.8 | HB78: 3.8 | HC78: 3.8 | HD78: 3.7 | HE78: 3.7 | HF78: 3.9 | HG78: 4.2 | HH78: 4.7 | HI78: 5.2 | HJ78: 5.9 | HK78: 6.7 | HL78: 7.6 | HM78: 8.7 | HN78: 9.9 | HO78: 11.1 | HP78: 12.2 | HQ78: 13.3 | HR78: 14.3 | HS78: 15.2 | HT78: 16 | HU78: 16.7 | HV78: 17.3 | HW78: 17.7 | HX78: 18.2 | HY78: 18.6 | HZ78: 18.6 | IA78: 19.4 | IB78: 19.8 | IC78: 20.2 | ID78: 20.2 | IE78: 20 | IF78: 19.6 | IG78: 19.3 | IH78: 18.9 | II78: 18.8 | IJ78: 18.5 | IK78: 18.2 | IL78: 17.7 | IM78: 17.4 | IN78: 17.1 | IO78: 16.9 | IP78: 16.7 | IQ78: 16.6 | IR78: 16.7 | IS78: 16.3 | IT78: 15.7 | IU78: 14.7 | IV78: 14.1 | IW78: 13.7 | IX78: 13.7 | IY78: 13.8 | IZ78: 14 | JA78: 14.1 | JB78: 14.3 | JC78: 14.2 | JD78: 13.9 | JE78: 13.7 | JF78: 13.5 | JG78: 13.2 | JH78: 13.2 | JI78: 13.2 | JJ78: 13.5 | JK78: 13.6 | JL78: 13.4 | JM78: 13 | JN78: 12.5 | JO78: 11.9 | JP78: 11.4 | JQ78: 11 | JR78: 10.8 | JS78: 10.8 | JT78: 11 | JU78: 11.3 | JV78: 11.7 | JW78: 12 | JX78: 12 | JY78: 11.6 | JZ78: 11.5 | KA78: 11.4 | KB78: 11.3 | KC78: 11.1 | KD78: 10.9 | KE78: 10.8 | KF78: 10.6 | KG78: 10.5 | KH78: 9.6 | KI78: 9.3 | KJ78: 8.9 | KK78: 9.9 | KL78: 9.9 | KM78: 10 | KN78: 10 | KO78: 10.2
E79: Lithuania - Sum of Female<25 | CL79: 23 | CM79: 19 | CN79: 19.1 | CO79: 19.1 | CP79: 19.4 | CQ79: 19.1 | CR79: 18.9 | CS79: 18.8 | CT79: 19.1 | CU79: 19.5 | CV79: 20.1 | CW79: 20.6 | CX79: 21.4 | CY79: 21.9 | CZ79: 22.3 | DA79: 22.3 | DB79: 22.5 | DC79: 23.3 | DD79: 24.4 | DE79: 25.3 | DF79: 26.1 | DG79: 26.6 | DH79: 26.9 | DI79: 27.2 | DJ79: 26.9 | DK79: 27.3 | DL79: 27.5 | DM79: 28.2 | DN79: 28.5 | DO79: 28.6 | DP79: 28.3 | DQ79: 27.9 | DR79: 27.4 | DS79: 26.8 | DT79: 26.1 | DU79: 25.5 | DV79: 24.4 | DW79: 23.9 | DX79: 23.7 | DY79: 23.8 | DZ79: 24 | EA79: 24.2 | EB79: 24.4 | EC79: 24.4 | ED79: 24.3 | EE79: 23.9 | EF79: 24 | EG79: 24.5 | EH79: 24.9 | EI79: 25.3 | EJ79: 25 | EK79: 24 | EL79: 23.2 | EM79: 22.8 | EN79: 22.5 | EO79: 22.4 | EP79: 22.3 | EQ79: 21.8 | ER79: 21 | ES79: 19.2 | ET79: 16.4 | EU79: 18.1 | EV79: 23.9 | EW79: 32.3 | EX79: 35.9 | EY79: 35.8 | EZ79: 31.6 | FA79: 28.7 | FB79: 27.3 | FC79: 27.7 | FD79: 27.7 | FE79: 27.1 | FF79: 25.9 | FG79: 24.5 | FH79: 22.8 | FI79: 20.9 | FJ79: 20.1 | FK79: 20.6 | FL79: 22.4 | FM79: 23.2 | FN79: 22.9 | FO79: 21.7 | FP79: 20.7 | FQ79: 19.8 | FR79: 19.1 | FS79: 18.7 | FT79: 18.6 | FU79: 18.7 | FV79: 18.1 | FW79: 16.9 | FX79: 15 | FY79: 13.5 | FZ79: 12.5 | GA79: 11.9 | GB79: 11.5 | GC79: 11.1 | GD79: 10.7 | GE79: 10.6 | GF79: 10.5 | GG79: 10.7 | GH79: 10.5 | GI79: 10.2 | GJ79: 9.5 | GK79: 9.2 | GL79: 9.1 | GM79: 9.3 | GN79: 9.6 | GO79: 10.2 | GP79: 11.1 | GQ79: 11.4 | GR79: 11 | GS79: 10 | GT79: 9.6 | GU79: 9.7 | GV79: 10.3 | GW79: 10.6 | GX79: 10.6 | GY79: 10.3 | GZ79: 10.2 | HA79: 10.4 | HB79: 10.8 | HC79: 11.1 | HD79: 11.4 | HE79: 11.7 | HF79: 12.2 | HG79: 12.9 | HH79: 13.7 | HI79: 14.6 | HJ79: 15.5 | HK79: 16.6 | HL79: 17.3 | HM79: 17.8 | HN79: 17.9 | HO79: 18.6 | HP79: 19.5 | HQ79: 21.2 | HR79: 22.3 | HS79: 23.2 | HT79: 23.4 | HU79: 23.8 | HV79: 24 | HW79: 24 | HX79: 24.7 | HY79: 26 | HZ79: 28 | IA79: 29.3 | IB79: 30.3 | IC79: 31 | ID79: 31.5 | IE79: 31.6 | IF79: 31.4 | IG79: 31.7 | IH79: 32.5 | II79: 33.8 | IJ79: 34.3 | IK79: 33.9 | IL79: 32.3 | IM79: 31.5 | IN79: 31.1 | IO79: 31.2 | IP79: 31 | IQ79: 30.5 | IR79: 29.7 | IS79: 28.8 | IT79: 27.8 | IU79: 26.6 | IV79: 25.8 | IW79: 25.4 | IX79: 25.3 | IY79: 24.8 | IZ79: 23.8 | JA79: 22.2 | JB79: 21.3 | JC79: 21.1 | JD79: 21.6 | JE79: 22.1 | JF79: 22.4 | JG79: 22.9 | JH79: 22.8 | JI79: 22.1 | JJ79: 20.8 | JK79: 20.2 | JL79: 20.3 | JM79: 21.1 | JN79: 21.5 | JO79: 21.4 | JP79: 21 | JQ79: 20.4 | JR79: 19.9 | JS79: 19.2 | JT79: 19.1 | JU79: 19.4 | JV79: 20.3 | JW79: 20.8 | JX79: 20.7 | JY79: 19.4 | JZ79: 19.1 | KA79: 18.7 | KB79: 17.9 | KC79: 17.6 | KD79: 17.1 | KE79: 17.7 | KF79: 17.3 | KG79: 17.1 | KH79: 15.5 | KI79: 14.8 | KJ79: 14.4 | KK79: 17.8 | KL79: 18.4 | KM79: 19.1 | KN79: 20.2 | KO79: 19.8
E80: Lithuania - Sum of Female25-74 | CL80: 11.4 | CM80: 11.5 | CN80: 11.4 | CO80: 11.3 | CP80: 11.1 | CQ80: 10.7 | CR80: 10 | CS80: 9.8 | CT80: 9.9 | CU80: 10.4 | CV80: 10.7 | CW80: 10.8 | CX80: 10.9 | CY80: 10.9 | CZ80: 11 | DA80: 11 | DB80: 11.2 | DC80: 11.4 | DD80: 11.8 | DE80: 12.1 | DF80: 12.3 | DG80: 12.5 | DH80: 12.5 | DI80: 12.4 | DJ80: 12 | DK80: 11.9 | DL80: 12 | DM80: 12.5 | DN80: 12.8 | DO80: 13 | DP80: 13.2 | DQ80: 13.2 | DR80: 13.1 | DS80: 12.6 | DT80: 12.7 | DU80: 13 | DV80: 13.9 | DW80: 14.2 | DX80: 14 | DY80: 13.6 | DZ80: 13.5 | EA80: 13.6 | EB80: 13.8 | EC80: 13.9 | ED80: 13.9 | EE80: 14.2 | EF80: 13.9 | EG80: 13.5 | EH80: 13 | EI80: 12.7 | EJ80: 12.5 | EK80: 12.5 | EL80: 12.4 | EM80: 12.1 | EN80: 11.8 | EO80: 11.6 | EP80: 11.5 | EQ80: 11.4 | ER80: 11.3 | ES80: 11.1 | ET80: 11 | EU80: 10.9 | EV80: 11 | EW80: 10.8 | EX80: 10.8 | EY80: 10.8 | EZ80: 10.9 | FA80: 10.8 | FB80: 10.6 | FC80: 10.5 | FD80: 10.4 | FE80: 10.4 | FF80: 10.6 | FG80: 10.7 | FH80: 10.8 | FI80: 10.8 | FJ80: 10.8 | FK80: 10.6 | FL80: 10.3 | FM80: 10.2 | FN80: 10.3 | FO80: 10.6 | FP80: 10.5 | FQ80: 10.4 | FR80: 9.8 | FS80: 9.4 | FT80: 9.1 | FU80: 8.9 | FV80: 8.7 | FW80: 8.3 | FX80: 8 | FY80: 7.6 | FZ80: 7.2 | GA80: 6.8 | GB80: 6.5 | GC80: 6.2 | GD80: 6 | GE80: 5.8 | GF80: 5.6 | GG80: 5.5 | GH80: 5.4 | GI80: 5.3 | GJ80: 5.3 | GK80: 5.2 | GL80: 5 | GM80: 4.7 | GN80: 4.6 | GO80: 4.8 | GP80: 4.3 | GQ80: 4.5 | GR80: 4.4 | GS80: 4.1 | GT80: 3.9 | GU80: 3.7 | GV80: 3.8 | GW80: 3.7 | GX80: 3.7 | GY80: 3.4 | GZ80: 3.4 | HA80: 3.5 | HB80: 3.6 | HC80: 3.6 | HD80: 3.5 | HE80: 3.2 | HF80: 3.3 | HG80: 4 | HH80: 5 | HI80: 5.8 | HJ80: 6.3 | HK80: 6.6 | HL80: 6.9 | HM80: 7.1 | HN80: 7.3 | HO80: 7.7 | HP80: 8.2 | HQ80: 8.8 | HR80: 9.3 | HS80: 9.5 | HT80: 9.6 | HU80: 9.9 | HV80: 10.4 | HW80: 10.9 | HX80: 11.3 | HY80: 11.4 | HZ80: 11.3 | IA80: 12.1 | IB80: 12.4 | IC80: 12.9 | ID80: 13.3 | IE80: 13.6 | IF80: 13.8 | IG80: 13.9 | IH80: 13.9 | II80: 13.7 | IJ80: 13.5 | IK80: 13.5 | IL80: 13.5 | IM80: 13.2 | IN80: 12.7 | IO80: 12 | IP80: 11.7 | IQ80: 11.5 | IR80: 11.6 | IS80: 11.5 | IT80: 11.2 | IU80: 10.8 | IV80: 10.5 | IW80: 10.5 | IX80: 10.7 | IY80: 10.9 | IZ80: 11 | JA80: 11 | JB80: 11 | JC80: 10.8 | JD80: 10.5 | JE80: 10.4 | JF80: 10.5 | JG80: 10.8 | JH80: 10.9 | JI80: 10.6 | JJ80: 10.3 | JK80: 9.9 | JL80: 9.8 | JM80: 9.8 | JN80: 9.7 | JO80: 9.7 | JP80: 9.8 | JQ80: 9.8 | JR80: 9.6 | JS80: 9.6 | JT80: 9.5 | JU80: 9.5 | JV80: 9.6 | JW80: 9.6 | JX80: 9.5 | JY80: 8.9 | JZ80: 8.7 | KA80: 8.6 | KB80: 8.4 | KC80: 8.3 | KD80: 8.2 | KE80: 8.1 | KF80: 8 | KG80: 7.9 | KH80: 7.8 | KI80: 7.8 | KJ80: 7.8 | KK80: 7.6 | KL80: 7.5 | KM80: 7.4 | KN80: 7.4 | KO80: 7.4
E81: Luxembourg - Sum of Male< 25 | F81: 3 | G81: 2.9 | H81: 2.6 | I81: 2.6 | J81: 2.9 | K81: 2.9 | L81: 2.9 | M81: 3.1 | N81: 3.3 | O81: 3.4 | P81: 3.7 | Q81: 3.7 | R81: 3.8 | S81: 4.2 | T81: 4.2 | U81: 4.3 | V81: 4.1 | W81: 3.7 | X81: 3.7 | Y81: 3.7 | Z81: 4 | AA81: 4.1 | AB81: 4 | AC81: 4 | AD81: 3.8 | AE81: 3.6 | AF81: 4.1 | AG81: 4.6 | AH81: 4.7 | AI81: 5.3 | AJ81: 5.2 | AK81: 4.7 | AL81: 5 | AM81: 5.4 | AN81: 5.8 | AO81: 6.1 | AP81: 6.5 | AQ81: 7 | AR81: 7.4 | AS81: 7.8 | AT81: 7.8 | AU81: 7.4 | AV81: 7.1 | AW81: 7.2 | AX81: 7.2 | AY81: 6.9 | AZ81: 6.6 | BA81: 6.3 | BB81: 6.2 | BC81: 6.3 | BD81: 6.2 | BE81: 6.1 | BF81: 6.1 | BG81: 6.4 | BH81: 6.3 | BI81: 6.3 | BJ81: 6.8 | BK81: 7.2 | BL81: 7.5 | BM81: 7.7 | BN81: 8 | BO81: 8.5 | BP81: 8.8 | BQ81: 9.1 | BR81: 9 | BS81: 8.7 | BT81: 8.3 | BU81: 7.7 | BV81: 7.3 | BW81: 7.1 | BX81: 7 | BY81: 6.8 | BZ81: 6.5 | CA81: 6.2 | CB81: 5.8 | CC81: 5.6 | CD81: 5.9 | CE81: 6.1 | CF81: 6.4 | CG81: 6.8 | CH81: 6.9 | CI81: 7.1 | CJ81: 7.2 | CK81: 7.5 | CL81: 7 | CM81: 6.7 | CN81: 7 | CO81: 6.5 | CP81: 6.2 | CQ81: 6.4 | CR81: 6.4 | CS81: 6.5 | CT81: 6.4 | CU81: 6.5 | CV81: 6.4 | CW81: 5.9 | CX81: 5.8 | CY81: 6.1 | CZ81: 6.1 | DA81: 6.1 | DB81: 6.2 | DC81: 6.4 | DD81: 6.5 | DE81: 6.5 | DF81: 6.3 | DG81: 6.1 | DH81: 5.9 | DI81: 5.9 | DJ81: 5.9 | DK81: 5.9 | DL81: 5.9 | DM81: 5.8 | DN81: 6 | DO81: 5.9 | DP81: 5.6 | DQ81: 6.2 | DR81: 6.2 | DS81: 5.8 | DT81: 6.1 | DU81: 6.5 | DV81: 6.5 | DW81: 6.4 | DX81: 6.2 | DY81: 7.1 | DZ81: 7.1 | EA81: 7.2 | EB81: 7.3 | EC81: 6.9 | ED81: 6.6 | EE81: 5.7 | EF81: 5.7 | EG81: 5.3 | EH81: 5.6 | EI81: 5.2 | EJ81: 5.4 | EK81: 5.4 | EL81: 5.8 | EM81: 6 | EN81: 6.2 | EO81: 5.9 | EP81: 5.9 | EQ81: 6.6 | ER81: 6.4 | ES81: 6.7 | ET81: 8 | EU81: 8.2 | EV81: 8 | EW81: 8.9 | EX81: 9.7 | EY81: 9.6 | EZ81: 10.2 | FA81: 9.8 | FB81: 10.7 | FC81: 11.7 | FD81: 11.9 | FE81: 10.9 | FF81: 11.5 | FG81: 11.2 | FH81: 12.6 | FI81: 12.6 | FJ81: 12.1 | FK81: 12.5 | FL81: 12.4 | FM81: 12.2 | FN81: 12.5 | FO81: 11.1 | FP81: 11.1 | FQ81: 10.9 | FR81: 10.9 | FS81: 11.3 | FT81: 11.3 | FU81: 12.2 | FV81: 12.1 | FW81: 12.4 | FX81: 12.5 | FY81: 12.7 | FZ81: 13.3 | GA81: 14.1 | GB81: 14.8 | GC81: 15.2 | GD81: 14.9 | GE81: 15.4 | GF81: 15.9 | GG81: 15.6 | GH81: 15.6 | GI81: 15.1 | GJ81: 15.6 | GK81: 16.5 | GL81: 16.7 | GM81: 16.1 | GN81: 15.9 | GO81: 16 | GP81: 15.6 | GQ81: 15.2 | GR81: 15.2 | GS81: 14.2 | GT81: 13.6 | GU81: 13.9 | GV81: 13.8 | GW81: 13.7 | GX81: 13.1 | GY81: 13.2 | GZ81: 13.1 | HA81: 12.3 | HB81: 11.8 | HC81: 13 | HD81: 11.8 | HE81: 12.7 | HF81: 13.2 | HG81: 14 | HH81: 13.4 | HI81: 13.8 | HJ81: 14.4 | HK81: 15.6 | HL81: 15.4 | HM81: 15.4 | HN81: 15.8 | HO81: 15.4 | HP81: 15.8 | HQ81: 15.5 | HR81: 16.3 | HS81: 16.1 | HT81: 15.4 | HU81: 15.3 | HV81: 14.9 | HW81: 15.4 | HX81: 15 | HY81: 15.3 | HZ81: 16.9 | IA81: 17.8 | IB81: 17.2 | IC81: 17.8 | ID81: 16.6 | IE81: 16.8 | IF81: 16.4 | IG81: 16 | IH81: 14.9 | II81: 14.1 | IJ81: 14.2 | IK81: 14.1 | IL81: 12.4 | IM81: 11.8 | IN81: 12.3 | IO81: 12.7 | IP81: 13 | IQ81: 13.9 | IR81: 16.3 | IS81: 17.4 | IT81: 17.7 | IU81: 18.8 | IV81: 19.2 | IW81: 20.2 | IX81: 19.8 | IY81: 19.7 | IZ81: 20 | JA81: 18.9 | JB81: 19.1 | JC81: 18.5 | JD81: 19 | JE81: 18.5 | JF81: 18.6 | JG81: 19 | JH81: 19.2 | JI81: 19.6 | JJ81: 19.7 | JK81: 20 | JL81: 20.4 | JM81: 19.3 | JN81: 18.7 | JO81: 19.3 | JP81: 17.6 | JQ81: 17.8 | JR81: 18.4 | JS81: 17.5 | JT81: 17.8 | JU81: 18.1 | JV81: 16.8 | JW81: 16.5 | JX81: 16.3 | JY81: 23.4 | JZ81: 24.5 | KA81: 23.9 | KB81: 24.9 | KC81: 25 | KD81: 25.3 | KE81: 24.5 | KF81: 25 | KG81: 25.2 | KH81: 23.1 | KI81: 22.9 | KJ81: 21.8 | KK81: 21.3 | KL81: 21 | KM81: 20.9 | KN81: 21.2 | KO81: 21.4
E82: Luxembourg - Sum of Male 25-74 | F82: 0.9 | G82: 0.9 | H82: 0.8 | I82: 0.9 | J82: 0.9 | K82: 1 | L82: 1 | M82: 1.1 | N82: 1.1 | O82: 1.1 | P82: 1.1 | Q82: 1.1 | R82: 1.1 | S82: 1.1 | T82: 1.2 | U82: 1.2 | V82: 1.3 | W82: 1.3 | X82: 1.4 | Y82: 1.5 | Z82: 1.5 | AA82: 1.5 | AB82: 1.6 | AC82: 1.6 | AD82: 1.6 | AE82: 1.6 | AF82: 1.6 | AG82: 1.6 | AH82: 1.6 | AI82: 1.7 | AJ82: 1.9 | AK82: 2.1 | AL82: 2.1 | AM82: 2.2 | AN82: 2.2 | AO82: 2.2 | AP82: 2.2 | AQ82: 2.3 | AR82: 2.3 | AS82: 2.3 | AT82: 2.3 | AU82: 2.2 | AV82: 2.1 | AW82: 2.1 | AX82: 2 | AY82: 1.9 | AZ82: 1.8 | BA82: 1.7 | BB82: 1.7 | BC82: 1.6 | BD82: 1.6 | BE82: 1.5 | BF82: 1.5 | BG82: 1.5 | BH82: 1.5 | BI82: 1.5 | BJ82: 1.5 | BK82: 1.5 | BL82: 1.5 | BM82: 1.5 | BN82: 1.5 | BO82: 1.5 | BP82: 1.6 | BQ82: 1.6 | BR82: 1.6 | BS82: 1.6 | BT82: 1.5 | BU82: 1.5 | BV82: 1.5 | BW82: 1.5 | BX82: 1.5 | BY82: 1.5 | BZ82: 1.5 | CA82: 1.5 | CB82: 1.5 | CC82: 1.5 | CD82: 1.5 | CE82: 1.5 | CF82: 1.5 | CG82: 1.5 | CH82: 1.5 | CI82: 1.5 | CJ82: 1.5 | CK82: 1.6 | CL82: 1.6 | CM82: 1.5 | CN82: 1.5 | CO82: 1.5 | CP82: 1.5 | CQ82: 1.5 | CR82: 1.5 | CS82: 1.4 | CT82: 1.4 | CU82: 1.4 | CV82: 1.4 | CW82: 1.4 | CX82: 1.4 | CY82: 1.4 | CZ82: 1.4 | DA82: 1.4 | DB82: 1.4 | DC82: 1.4 | DD82: 1.4 | DE82: 1.4 | DF82: 1.4 | DG82: 1.5 | DH82: 1.5 | DI82: 1.5 | DJ82: 1.5 | DK82: 1.5 | DL82: 1.5 | DM82: 1.5 | DN82: 1.5 | DO82: 1.4 | DP82: 1.4 | DQ82: 1.4 | DR82: 1.4 | DS82: 1.3 | DT82: 1.3 | DU82: 1.2 | DV82: 1.2 | DW82: 1.1 | DX82: 1.1 | DY82: 1.1 | DZ82: 1.1 | EA82: 1.1 | EB82: 1.1 | EC82: 1.1 | ED82: 1.1 | EE82: 1.2 | EF82: 1.2 | EG82: 1.3 | EH82: 1.3 | EI82: 1.3 | EJ82: 1.3 | EK82: 1.4 | EL82: 1.5 | EM82: 1.5 | EN82: 1.6 | EO82: 1.7 | EP82: 1.7 | EQ82: 1.9 | ER82: 1.9 | ES82: 2 | ET82: 2.1 | EU82: 2.2 | EV82: 2.3 | EW82: 2.3 | EX82: 2.4 | EY82: 2.5 | EZ82: 2.6 | FA82: 2.6 | FB82: 2.7 | FC82: 2.7 | FD82: 2.8 | FE82: 2.8 | FF82: 2.9 | FG82: 3 | FH82: 3 | FI82: 3.1 | FJ82: 3 | FK82: 3.1 | FL82: 3.1 | FM82: 3.1 | FN82: 3 | FO82: 3 | FP82: 3 | FQ82: 3.1 | FR82: 3 | FS82: 3 | FT82: 3 | FU82: 3 | FV82: 3 | FW82: 2.9 | FX82: 2.9 | FY82: 2.9 | FZ82: 2.8 | GA82: 2.8 | GB82: 2.7 | GC82: 2.7 | GD82: 2.6 | GE82: 2.6 | GF82: 2.7 | GG82: 2.6 | GH82: 2.5 | GI82: 2.5 | GJ82: 2.5 | GK82: 2.5 | GL82: 2.6 | GM82: 2.6 | GN82: 2.7 | GO82: 2.7 | GP82: 2.7 | GQ82: 2.7 | GR82: 2.7 | GS82: 2.7 | GT82: 2.7 | GU82: 2.7 | GV82: 2.6 | GW82: 2.6 | GX82: 2.6 | GY82: 2.5 | GZ82: 2.5 | HA82: 2.5 | HB82: 2.6 | HC82: 2.8 | HD82: 2.9 | HE82: 3.1 | HF82: 3.4 | HG82: 3.4 | HH82: 3.5 | HI82: 3.7 | HJ82: 3.8 | HK82: 3.8 | HL82: 3.9 | HM82: 4 | HN82: 4.1 | HO82: 4.1 | HP82: 4 | HQ82: 3.8 | HR82: 3.7 | HS82: 3.7 | HT82: 3.5 | HU82: 3.4 | HV82: 3.5 | HW82: 3.5 | HX82: 3.5 | HY82: 3.3 | HZ82: 3.3 | IA82: 3.2 | IB82: 3.1 | IC82: 3 | ID82: 2.9 | IE82: 3 | IF82: 2.9 | IG82: 2.9 | IH82: 2.9 | II82: 3 | IJ82: 2.9 | IK82: 3 | IL82: 2.9 | IM82: 2.9 | IN82: 2.9 | IO82: 3 | IP82: 3.1 | IQ82: 3.2 | IR82: 3.3 | IS82: 3.4 | IT82: 3.4 | IU82: 3.4 | IV82: 3.3 | IW82: 3.4 | IX82: 3.5 | IY82: 3.5 | IZ82: 3.5 | JA82: 3.5 | JB82: 3.5 | JC82: 3.5 | JD82: 3.5 | JE82: 3.5 | JF82: 3.6 | JG82: 3.6 | JH82: 3.7 | JI82: 3.9 | JJ82: 4 | JK82: 4.1 | JL82: 4.2 | JM82: 4.3 | JN82: 4.4 | JO82: 4.6 | JP82: 4.8 | JQ82: 4.9 | JR82: 4.9 | JS82: 4.9 | JT82: 5 | JU82: 5.1 | JV82: 5 | JW82: 5 | JX82: 5 | JY82: 4.8 | JZ82: 4.8 | KA82: 4.6 | KB82: 4.5 | KC82: 4.4 | KD82: 4.3 | KE82: 4.2 | KF82: 4.1 | KG82: 4.1 | KH82: 4 | KI82: 4 | KJ82: 4 | KK82: 4 | KL82: 4 | KM82: 4 | KN82: 4 | KO82: 4
E83: Luxembourg - Sum of Female<25 | F83: 3.6 | G83: 3.3 | H83: 3 | I83: 2.9 | J83: 3 | K83: 3 | L83: 3 | M83: 3 | N83: 3.1 | O83: 3 | P83: 3.1 | Q83: 3.2 | R83: 3.2 | S83: 3.4 | T83: 3.5 | U83: 3.6 | V83: 3.4 | W83: 3.3 | X83: 3.4 | Y83: 3.7 | Z83: 4 | AA83: 4.1 | AB83: 4.1 | AC83: 4.2 | AD83: 4.5 | AE83: 4.8 | AF83: 4.5 | AG83: 4.4 | AH83: 4.9 | AI83: 5.4 | AJ83: 5.8 | AK83: 6 | AL83: 6.4 | AM83: 6.6 | AN83: 6.7 | AO83: 6.7 | AP83: 6.8 | AQ83: 7.2 | AR83: 7.5 | AS83: 7.7 | AT83: 7.4 | AU83: 7.1 | AV83: 6.7 | AW83: 6.7 | AX83: 7.1 | AY83: 7.1 | AZ83: 7.2 | BA83: 7.4 | BB83: 7.5 | BC83: 7.6 | BD83: 7.9 | BE83: 8 | BF83: 8 | BG83: 8.2 | BH83: 7.9 | BI83: 7.7 | BJ83: 7.8 | BK83: 7.8 | BL83: 7.9 | BM83: 8 | BN83: 8.1 | BO83: 8.4 | BP83: 8.4 | BQ83: 8.4 | BR83: 8.4 | BS83: 8.5 | BT83: 8.4 | BU83: 8.1 | BV83: 8 | BW83: 8.4 | BX83: 8.9 | BY83: 9.4 | BZ83: 9.6 | CA83: 9.5 | CB83: 9.5 | CC83: 9.8 | CD83: 10.1 | CE83: 10.3 | CF83: 10.1 | CG83: 9.8 | CH83: 9.7 | CI83: 9.3 | CJ83: 8.7 | CK83: 8.7 | CL83: 8.1 | CM83: 7.3 | CN83: 7.1 | CO83: 7.5 | CP83: 7.6 | CQ83: 6.9 | CR83: 7.1 | CS83: 7.2 | CT83: 7.2 | CU83: 7.2 | CV83: 7.2 | CW83: 7.2 | CX83: 7.5 | CY83: 7.9 | CZ83: 8 | DA83: 7.9 | DB83: 7.7 | DC83: 7.7 | DD83: 8 | DE83: 8.3 | DF83: 8.3 | DG83: 7.9 | DH83: 7.6 | DI83: 7.8 | DJ83: 8.1 | DK83: 8 | DL83: 7.8 | DM83: 7.4 | DN83: 7.3 | DO83: 7.1 | DP83: 7.2 | DQ83: 7.1 | DR83: 7.2 | DS83: 6.4 | DT83: 6.4 | DU83: 6.1 | DV83: 5.9 | DW83: 6 | DX83: 5.9 | DY83: 5.5 | DZ83: 5.2 | EA83: 5.5 | EB83: 5.6 | EC83: 5.8 | ED83: 5.6 | EE83: 6 | EF83: 5.8 | EG83: 6.1 | EH83: 6.8 | EI83: 6.8 | EJ83: 7 | EK83: 7.4 | EL83: 8.3 | EM83: 8.5 | EN83: 9.2 | EO83: 9.1 | EP83: 9 | EQ83: 9.5 | ER83: 9.9 | ES83: 10.1 | ET83: 10.4 | EU83: 10.2 | EV83: 10.5 | EW83: 11.1 | EX83: 11.3 | EY83: 11.9 | EZ83: 12.8 | FA83: 13.3 | FB83: 13.8 | FC83: 15.1 | FD83: 14.9 | FE83: 15.5 | FF83: 17.5 | FG83: 17.9 | FH83: 19.3 | FI83: 21.1 | FJ83: 21.5 | FK83: 20.7 | FL83: 22 | FM83: 22.3 | FN83: 22.3 | FO83: 22.1 | FP83: 22.3 | FQ83: 21.4 | FR83: 20 | FS83: 19.9 | FT83: 18.9 | FU83: 18.3 | FV83: 17.7 | FW83: 17.1 | FX83: 16 | FY83: 15.5 | FZ83: 16 | GA83: 15.7 | GB83: 15.7 | GC83: 16.1 | GD83: 13.4 | GE83: 14 | GF83: 14.6 | GG83: 14.4 | GH83: 14.2 | GI83: 14.7 | GJ83: 14.8 | GK83: 15.4 | GL83: 15.8 | GM83: 16 | GN83: 16.2 | GO83: 16.2 | GP83: 16.2 | GQ83: 16.5 | GR83: 16.5 | GS83: 17.7 | GT83: 17.5 | GU83: 17.3 | GV83: 17.8 | GW83: 18.7 | GX83: 18.6 | GY83: 18.3 | GZ83: 18.8 | HA83: 18.5 | HB83: 18.7 | HC83: 19 | HD83: 19.2 | HE83: 21 | HF83: 22.3 | HG83: 22.5 | HH83: 22.6 | HI83: 23 | HJ83: 22.9 | HK83: 22.2 | HL83: 22.1 | HM83: 21.9 | HN83: 21.6 | HO83: 21.5 | HP83: 21.4 | HQ83: 20.7 | HR83: 19.3 | HS83: 19 | HT83: 18.2 | HU83: 17.2 | HV83: 16.6 | HW83: 17.4 | HX83: 16.8 | HY83: 16.1 | HZ83: 15.1 | IA83: 15.2 | IB83: 14.2 | IC83: 13.5 | ID83: 11.6 | IE83: 12 | IF83: 12 | IG83: 12.4 | IH83: 13.2 | II83: 14.3 | IJ83: 16 | IK83: 16.3 | IL83: 16.4 | IM83: 16.6 | IN83: 17 | IO83: 17.8 | IP83: 18.6 | IQ83: 18.7 | IR83: 19.5 | IS83: 19.3 | IT83: 18.4 | IU83: 16.4 | IV83: 15.8 | IW83: 16.7 | IX83: 16 | IY83: 16 | IZ83: 17 | JA83: 17.2 | JB83: 18.2 | JC83: 18.4 | JD83: 17.6 | JE83: 17.7 | JF83: 17.9 | JG83: 17.7 | JH83: 17.4 | JI83: 17 | JJ83: 16.6 | JK83: 16.8 | JL83: 16.1 | JM83: 14.9 | JN83: 13.8 | JO83: 13.1 | JP83: 12.1 | JQ83: 11.5 | JR83: 11.5 | JS83: 11.3 | JT83: 10.8 | JU83: 11 | JV83: 11.1 | JW83: 10.9 | JX83: 10.9 | JY83: 16.7 | JZ83: 17.6 | KA83: 18.6 | KB83: 18.8 | KC83: 18.8 | KD83: 19.4 | KE83: 17.6 | KF83: 18 | KG83: 17.4 | KH83: 14.9 | KI83: 15.1 | KJ83: 15.2 | KK83: 15.3 | KL83: 15.2 | KM83: 14.7 | KN83: 15 | KO83: 15.1
E84: Luxembourg - Sum of Female25-74 | F84: 2 | G84: 1.9 | H84: 1.8 | I84: 1.9 | J84: 2.1 | K84: 2.1 | L84: 2.2 | M84: 2.2 | N84: 2.2 | O84: 2.2 | P84: 2.2 | Q84: 2.2 | R84: 2.3 | S84: 2.4 | T84: 2.5 | U84: 2.6 | V84: 2.6 | W84: 2.6 | X84: 2.6 | Y84: 2.6 | Z84: 2.7 | AA84: 2.6 | AB84: 2.5 | AC84: 2.5 | AD84: 2.4 | AE84: 2.3 | AF84: 2.7 | AG84: 3 | AH84: 2.9 | AI84: 2.9 | AJ84: 2.9 | AK84: 2.9 | AL84: 3 | AM84: 3 | AN84: 3 | AO84: 3.1 | AP84: 3.2 | AQ84: 3.3 | AR84: 3.4 | AS84: 3.5 | AT84: 3.5 | AU84: 3.4 | AV84: 3.5 | AW84: 3.3 | AX84: 3.5 | AY84: 3.7 | AZ84: 3.6 | BA84: 3.6 | BB84: 3.6 | BC84: 3.6 | BD84: 3.6 | BE84: 3.6 | BF84: 3.6 | BG84: 3.6 | BH84: 3.6 | BI84: 3.6 | BJ84: 3.7 | BK84: 3.8 | BL84: 3.8 | BM84: 3.8 | BN84: 3.8 | BO84: 3.7 | BP84: 3.8 | BQ84: 3.8 | BR84: 3.7 | BS84: 3.6 | BT84: 3.5 | BU84: 3.4 | BV84: 3.4 | BW84: 3.3 | BX84: 3.2 | BY84: 3.2 | BZ84: 3 | CA84: 2.9 | CB84: 2.8 | CC84: 2.8 | CD84: 2.8 | CE84: 2.9 | CF84: 3 | CG84: 3.1 | CH84: 3.3 | CI84: 3.4 | CJ84: 3.5 | CK84: 3.6 | CL84: 3.6 | CM84: 3.7 | CN84: 3.8 | CO84: 3.7 | CP84: 3.8 | CQ84: 3.7 | CR84: 3.6 | CS84: 3.5 | CT84: 3.4 | CU84: 3.4 | CV84: 3.2 | CW84: 2.9 | CX84: 2.9 | CY84: 2.9 | CZ84: 2.8 | DA84: 2.8 | DB84: 2.8 | DC84: 2.7 | DD84: 2.8 | DE84: 2.8 | DF84: 2.8 | DG84: 2.8 | DH84: 2.7 | DI84: 2.7 | DJ84: 2.6 | DK84: 2.6 | DL84: 2.6 | DM84: 2.6 | DN84: 2.6 | DO84: 2.7 | DP84: 2.6 | DQ84: 2.6 | DR84: 2.5 | DS84: 2.2 | DT84: 2.1 | DU84: 2 | DV84: 1.8 | DW84: 1.8 | DX84: 1.9 | DY84: 1.9 | DZ84: 1.9 | EA84: 2 | EB84: 2 | EC84: 2.1 | ED84: 2 | EE84: 2.1 | EF84: 2.2 | EG84: 2.2 | EH84: 2.2 | EI84: 2.3 | EJ84: 2.4 | EK84: 2.7 | EL84: 2.9 | EM84: 2.9 | EN84: 3.1 | EO84: 3.2 | EP84: 3.2 | EQ84: 3.3 | ER84: 3.3 | ES84: 3.3 | ET84: 3.4 | EU84: 3.5 | EV84: 3.6 | EW84: 3.8 | EX84: 4 | EY84: 4 | EZ84: 4.2 | FA84: 4.3 | FB84: 4.5 | FC84: 4.7 | FD84: 4.8 | FE84: 4.9 | FF84: 5.2 | FG84: 5.3 | FH84: 5.4 | FI84: 5.6 | FJ84: 5.5 | FK84: 5.6 | FL84: 5.7 | FM84: 5.7 | FN84: 5.8 | FO84: 5.6 | FP84: 5.7 | FQ84: 5.5 | FR84: 5.3 | FS84: 5.3 | FT84: 5.1 | FU84: 5.1 | FV84: 5.1 | FW84: 5 | FX84: 5 | FY84: 5 | FZ84: 5.2 | GA84: 5.2 | GB84: 5.2 | GC84: 5.3 | GD84: 5.2 | GE84: 5.2 | GF84: 5.3 | GG84: 5.3 | GH84: 5.3 | GI84: 5.2 | GJ84: 5.1 | GK84: 5.1 | GL84: 5.3 | GM84: 5.2 | GN84: 5.1 | GO84: 5 | GP84: 4.8 | GQ84: 4.6 | GR84: 4.5 | GS84: 4.2 | GT84: 4 | GU84: 4 | GV84: 3.9 | GW84: 4 | GX84: 4.1 | GY84: 4.3 | GZ84: 4.5 | HA84: 4.5 | HB84: 4.6 | HC84: 4.7 | HD84: 4.5 | HE84: 4.6 | HF84: 4.5 | HG84: 4.4 | HH84: 4.5 | HI84: 4.5 | HJ84: 4.6 | HK84: 4.4 | HL84: 4.4 | HM84: 4.5 | HN84: 4.6 | HO84: 4.6 | HP84: 4.7 | HQ84: 4.7 | HR84: 4.8 | HS84: 4.9 | HT84: 5 | HU84: 5 | HV84: 4.9 | HW84: 4.8 | HX84: 4.6 | HY84: 4.6 | HZ84: 4.4 | IA84: 4.5 | IB84: 4.6 | IC84: 4.6 | ID84: 4.7 | IE84: 4.8 | IF84: 4.8 | IG84: 4.9 | IH84: 5.1 | II84: 5.2 | IJ84: 5.6 | IK84: 5.5 | IL84: 5.5 | IM84: 5.6 | IN84: 5.5 | IO84: 5.4 | IP84: 5.3 | IQ84: 5.2 | IR84: 5.2 | IS84: 5.2 | IT84: 5 | IU84: 4.8 | IV84: 4.7 | IW84: 4.9 | IX84: 4.8 | IY84: 4.8 | IZ84: 4.9 | JA84: 4.9 | JB84: 5 | JC84: 5 | JD84: 4.9 | JE84: 4.9 | JF84: 5 | JG84: 5 | JH84: 5.1 | JI84: 5.2 | JJ84: 5.3 | JK84: 5.4 | JL84: 5.5 | JM84: 5.7 | JN84: 5.8 | JO84: 5.9 | JP84: 5.9 | JQ84: 5.8 | JR84: 5.9 | JS84: 6 | JT84: 6.1 | JU84: 6.2 | JV84: 6.3 | JW84: 6.2 | JX84: 6.3 | JY84: 5.3 | JZ84: 5.3 | KA84: 5.4 | KB84: 5.4 | KC84: 5.5 | KD84: 5.8 | KE84: 5.9 | KF84: 6.1 | KG84: 6.1 | KH84: 6.1 | KI84: 6.2 | KJ84: 6.1 | KK84: 6.1 | KL84: 6.1 | KM84: 6.1 | KN84: 6.1 | KO84: 6
E85: Malta - Sum of Male< 25 | DJ85: 14.3 | DK85: 14.4 | DL85: 14.3 | DM85: 14.3 | DN85: 14.1 | DO85: 14 | DP85: 14.2 | DQ85: 14.6 | DR85: 15.1 | DS85: 15.8 | DT85: 16.4 | DU85: 17.3 | DV85: 18.1 | DW85: 18.7 | DX85: 19.6 | DY85: 20.4 | DZ85: 21.1 | EA85: 21.7 | EB85: 21.5 | EC85: 21.2 | ED85: 20.9 | EE85: 20.9 | EF85: 21.2 | EG85: 21 | EH85: 20.4 | EI85: 20 | EJ85: 19.3 | EK85: 18.6 | EL85: 17.9 | EM85: 17.2 | EN85: 16.3 | EO85: 16.1 | EP85: 16.2 | EQ85: 16.3 | ER85: 16.3 | ES85: 16 | ET85: 16.1 | EU85: 15.8 | EV85: 15.7 | EW85: 15.4 | EX85: 15.4 | EY85: 15.8 | EZ85: 17.1 | FA85: 17.8 | FB85: 18 | FC85: 17.8 | FD85: 17.3 | FE85: 16.5 | FF85: 16.1 | FG85: 16.1 | FH85: 15.9 | FI85: 16.6 | FJ85: 16.7 | FK85: 16.2 | FL85: 15.7 | FM85: 15 | FN85: 15.1 | FO85: 14.8 | FP85: 15 | FQ85: 15.4 | FR85: 15.9 | FS85: 16.2 | FT85: 16.6 | FU85: 16.5 | FV85: 16.4 | FW85: 16.4 | FX85: 16.4 | FY85: 16.4 | FZ85: 16.2 | GA85: 16.4 | GB85: 16.3 | GC85: 16.1 | GD85: 15.8 | GE85: 15.6 | GF85: 15.7 | GG85: 15.9 | GH85: 16.2 | GI85: 16.6 | GJ85: 16.8 | GK85: 17 | GL85: 17 | GM85: 16.8 | GN85: 16.5 | GO85: 16.2 | GP85: 16.1 | GQ85: 15.8 | GR85: 15.5 | GS85: 14.9 | GT85: 14.8 | GU85: 14.5 | GV85: 14.9 | GW85: 14.8 | GX85: 14.6 | GY85: 14.2 | GZ85: 14.1 | HA85: 13.8 | HB85: 14.2 | HC85: 14.3 | HD85: 14.2 | HE85: 14.2 | HF85: 14.2 | HG85: 14.1 | HH85: 14.3 | HI85: 14 | HJ85: 13.6 | HK85: 13.6 | HL85: 13.6 | HM85: 13.5 | HN85: 14.4 | HO85: 14.5 | HP85: 15.3 | HQ85: 15.8 | HR85: 16 | HS85: 16 | HT85: 15.3 | HU85: 15.1 | HV85: 15.2 | HW85: 15.1 | HX85: 15.5 | HY85: 15.6 | HZ85: 15.1 | IA85: 14.9 | IB85: 14.3 | IC85: 13.9 | ID85: 13.6 | IE85: 13.6 | IF85: 14.5 | IG85: 14.8 | IH85: 15.1 | II85: 15.5 | IJ85: 14.9 | IK85: 14.6 | IL85: 14.2 | IM85: 14.2 | IN85: 13.9 | IO85: 13.7 | IP85: 13.7 | IQ85: 13.6 | IR85: 14 | IS85: 14 | IT85: 14 | IU85: 14 | IV85: 14.2 | IW85: 14.1 | IX85: 13.9 | IY85: 13.8 | IZ85: 14.1 | JA85: 14.3 | JB85: 14.5 | JC85: 14.4 | JD85: 13.8 | JE85: 13.8 | JF85: 14.1 | JG85: 15.3 | JH85: 15.9 | JI85: 15.2 | JJ85: 14.9 | JK85: 14.7 | JL85: 14.7 | JM85: 15.1 | JN85: 15 | JO85: 14.9 | JP85: 14.5 | JQ85: 14.4 | JR85: 14.3 | JS85: 14.1 | JT85: 13.9 | JU85: 14.6 | JV85: 15.5 | JW85: 15.6 | JX85: 15.8 | JY85: 13.7 | JZ85: 13.3 | KA85: 12.9 | KB85: 13.8 | KC85: 13.7 | KD85: 13.7 | KE85: 13.5 | KF85: 13.8 | KG85: 12.9 | KH85: 12.7 | KI85: 12.4 | KJ85: 12.8 | KK85: 13.6 | KL85: 14.5 | KM85: 15 | KN85: 15.2 | KO85: 15.3
E86: Malta - Sum of Male 25-74 | DJ86: 5.1 | DK86: 5.1 | DL86: 5 | DM86: 4.9 | DN86: 4.8 | DO86: 4.7 | DP86: 4.6 | DQ86: 4.5 | DR86: 4.4 | DS86: 4.3 | DT86: 4.2 | DU86: 4.1 | DV86: 4 | DW86: 4 | DX86: 3.9 | DY86: 3.8 | DZ86: 3.8 | EA86: 3.7 | EB86: 3.7 | EC86: 3.7 | ED86: 3.7 | EE86: 3.7 | EF86: 3.8 | EG86: 3.8 | EH86: 4 | EI86: 4.1 | EJ86: 4.1 | EK86: 4.1 | EL86: 4.1 | EM86: 4.2 | EN86: 4.3 | EO86: 4.4 | EP86: 4.5 | EQ86: 4.4 | ER86: 4.4 | ES86: 4.5 | ET86: 4.6 | EU86: 4.7 | EV86: 4.7 | EW86: 4.5 | EX86: 4.4 | EY86: 4.6 | EZ86: 5 | FA86: 5.2 | FB86: 5.4 | FC86: 5.7 | FD86: 5.8 | FE86: 5.8 | FF86: 5.3 | FG86: 5 | FH86: 4.7 | FI86: 4.7 | FJ86: 4.6 | FK86: 4.5 | FL86: 4.4 | FM86: 4.1 | FN86: 4.1 | FO86: 4.1 | FP86: 4.1 | FQ86: 4.2 | FR86: 4.3 | FS86: 4.5 | FT86: 5 | FU86: 5.4 | FV86: 5.4 | FW86: 5.1 | FX86: 4.6 | FY86: 4.3 | FZ86: 4 | GA86: 3.8 | GB86: 3.8 | GC86: 4 | GD86: 4.2 | GE86: 4.2 | GF86: 4.4 | GG86: 4.4 | GH86: 4.4 | GI86: 4.7 | GJ86: 4.9 | GK86: 4.8 | GL86: 4.4 | GM86: 3.7 | GN86: 3.5 | GO86: 3.8 | GP86: 4.6 | GQ86: 4.9 | GR86: 4.8 | GS86: 4.2 | GT86: 3.9 | GU86: 3.8 | GV86: 3.7 | GW86: 3.9 | GX86: 4 | GY86: 4.2 | GZ86: 4.2 | HA86: 3.9 | HB86: 3.6 | HC86: 3.6 | HD86: 3.8 | HE86: 4.3 | HF86: 4.7 | HG86: 4.8 | HH86: 4.6 | HI86: 4.6 | HJ86: 4.5 | HK86: 4.5 | HL86: 4.4 | HM86: 4.2 | HN86: 4.3 | HO86: 4.4 | HP86: 4.4 | HQ86: 4.9 | HR86: 5.2 | HS86: 5.5 | HT86: 5.7 | HU86: 5.5 | HV86: 5.2 | HW86: 4.6 | HX86: 4.6 | HY86: 4.9 | HZ86: 5.6 | IA86: 5.9 | IB86: 5.6 | IC86: 5.1 | ID86: 4.7 | IE86: 4.9 | IF86: 5.5 | IG86: 5.7 | IH86: 5.9 | II86: 6 | IJ86: 5.8 | IK86: 5.5 | IL86: 4.9 | IM86: 4.7 | IN86: 4.8 | IO86: 5.4 | IP86: 5.4 | IQ86: 4.9 | IR86: 4.3 | IS86: 3.9 | IT86: 4.1 | IU86: 4.6 | IV86: 4.9 | IW86: 4.9 | IX86: 4.5 | IY86: 4.6 | IZ86: 4.7 | JA86: 4.8 | JB86: 4.8 | JC86: 4.7 | JD86: 4.2 | JE86: 4.1 | JF86: 4.1 | JG86: 4.5 | JH86: 4.7 | JI86: 4.7 | JJ86: 4.7 | JK86: 4.7 | JL86: 4.8 | JM86: 4.7 | JN86: 4.9 | JO86: 5 | JP86: 5 | JQ86: 5.2 | JR86: 5.5 | JS86: 5.8 | JT86: 5.7 | JU86: 5.6 | JV86: 5.2 | JW86: 4.9 | JX86: 4.8 | JY86: 5.1 | JZ86: 5.2 | KA86: 5.1 | KB86: 5 | KC86: 4.9 | KD86: 4.9 | KE86: 5.1 | KF86: 5.2 | KG86: 5.2 | KH86: 5.3 | KI86: 5.2 | KJ86: 5 | KK86: 4.6 | KL86: 4.3 | KM86: 4.2 | KN86: 4 | KO86: 3.9
E87: Malta - Sum of Female<25 | DJ87: 12.5 | DK87: 12.5 | DL87: 12.4 | DM87: 12.2 | DN87: 12.2 | DO87: 12.2 | DP87: 12 | DQ87: 12.1 | DR87: 12.2 | DS87: 12.1 | DT87: 12.2 | DU87: 13 | DV87: 14 | DW87: 14.7 | DX87: 15.6 | DY87: 16.4 | DZ87: 16.8 | EA87: 17 | EB87: 17.3 | EC87: 17.6 | ED87: 17.6 | EE87: 17.7 | EF87: 18.4 | EG87: 18.6 | EH87: 18.2 | EI87: 17.8 | EJ87: 17.2 | EK87: 16.8 | EL87: 16.2 | EM87: 15.8 | EN87: 15.7 | EO87: 16 | EP87: 16.3 | EQ87: 16.9 | ER87: 17.4 | ES87: 17.4 | ET87: 17.2 | EU87: 17.2 | EV87: 17.2 | EW87: 17.7 | EX87: 18.2 | EY87: 18 | EZ87: 18.4 | FA87: 18.1 | FB87: 17.8 | FC87: 17.4 | FD87: 17.2 | FE87: 16.6 | FF87: 17.1 | FG87: 17.2 | FH87: 17.2 | FI87: 17.2 | FJ87: 17.1 | FK87: 17.2 | FL87: 17.2 | FM87: 17.1 | FN87: 17.1 | FO87: 17 | FP87: 16.5 | FQ87: 16.5 | FR87: 16 | FS87: 15.9 | FT87: 16 | FU87: 16.2 | FV87: 16.3 | FW87: 16.3 | FX87: 16.6 | FY87: 16.3 | FZ87: 16.2 | GA87: 16 | GB87: 16.1 | GC87: 16.1 | GD87: 16.3 | GE87: 16.5 | GF87: 16.5 | GG87: 16.6 | GH87: 13.5 | GI87: 13.3 | GJ87: 13.5 | GK87: 13.5 | GL87: 13.4 | GM87: 12.7 | GN87: 12.6 | GO87: 12.7 | GP87: 13.2 | GQ87: 13.2 | GR87: 13 | GS87: 12.3 | GT87: 11.7 | GU87: 11.3 | GV87: 11 | GW87: 10.8 | GX87: 10.8 | GY87: 10.9 | GZ87: 10.9 | HA87: 10.8 | HB87: 10.5 | HC87: 10.5 | HD87: 10.2 | HE87: 10.2 | HF87: 10.3 | HG87: 10.2 | HH87: 9.9 | HI87: 10.3 | HJ87: 10.1 | HK87: 10.6 | HL87: 11.3 | HM87: 10.7 | HN87: 11.2 | HO87: 10.9 | HP87: 11.2 | HQ87: 11.3 | HR87: 11.5 | HS87: 12.3 | HT87: 13 | HU87: 13.4 | HV87: 13.6 | HW87: 13.4 | HX87: 13.2 | HY87: 13.3 | HZ87: 12.5 | IA87: 12.6 | IB87: 12.5 | IC87: 13.2 | ID87: 13.1 | IE87: 12.5 | IF87: 12.5 | IG87: 12.2 | IH87: 12.4 | II87: 12.9 | IJ87: 12.9 | IK87: 12.9 | IL87: 12.9 | IM87: 13.1 | IN87: 12.8 | IO87: 13 | IP87: 12.7 | IQ87: 13.2 | IR87: 12.8 | IS87: 12.6 | IT87: 12.8 | IU87: 12.6 | IV87: 12.7 | IW87: 12.8 | IX87: 13.3 | IY87: 13.2 | IZ87: 14.1 | JA87: 14.2 | JB87: 14.9 | JC87: 14.1 | JD87: 13.8 | JE87: 13.5 | JF87: 12.8 | JG87: 12.6 | JH87: 12.5 | JI87: 12 | JJ87: 11.8 | JK87: 11.6 | JL87: 11.3 | JM87: 11.4 | JN87: 11 | JO87: 10.9 | JP87: 11 | JQ87: 10.9 | JR87: 11.1 | JS87: 11 | JT87: 10.7 | JU87: 10.9 | JV87: 11.1 | JW87: 11.1 | JX87: 11 | JY87: 10.3 | JZ87: 10.2 | KA87: 10 | KB87: 10.3 | KC87: 10 | KD87: 9.6 | KE87: 9.1 | KF87: 9.2 | KG87: 9 | KH87: 9.4 | KI87: 9.5 | KJ87: 9.5 | KK87: 9.6 | KL87: 9.9 | KM87: 10.1 | KN87: 10.5 | KO87: 10.7
E88: Malta - Sum of Female25-74 | DJ88: 4.7 | DK88: 4.9 | DL88: 4.9 | DM88: 4.8 | DN88: 4.7 | DO88: 4.6 | DP88: 4.7 | DQ88: 4.8 | DR88: 4.7 | DS88: 4.8 | DT88: 4.8 | DU88: 4.7 | DV88: 4.6 | DW88: 4.5 | DX88: 4.5 | DY88: 4.6 | DZ88: 4.7 | EA88: 4.6 | EB88: 4.9 | EC88: 5.2 | ED88: 5.2 | EE88: 5 | EF88: 5 | EG88: 5.2 | EH88: 5.4 | EI88: 5.4 | EJ88: 5.4 | EK88: 5.4 | EL88: 5.4 | EM88: 5.4 | EN88: 5.4 | EO88: 5.4 | EP88: 5.3 | EQ88: 5.3 | ER88: 5.3 | ES88: 5.2 | ET88: 5.2 | EU88: 5.2 | EV88: 5.2 | EW88: 5.3 | EX88: 5.4 | EY88: 5.3 | EZ88: 5.4 | FA88: 5.3 | FB88: 4.8 | FC88: 4.6 | FD88: 4.4 | FE88: 4.2 | FF88: 4.4 | FG88: 4.4 | FH88: 4.5 | FI88: 4.6 | FJ88: 4.8 | FK88: 5.2 | FL88: 5.5 | FM88: 5.7 | FN88: 5.8 | FO88: 5.8 | FP88: 5.8 | FQ88: 5.7 | FR88: 5.3 | FS88: 5.2 | FT88: 5.2 | FU88: 5.3 | FV88: 5.3 | FW88: 5.2 | FX88: 5.2 | FY88: 5.3 | FZ88: 5.5 | GA88: 5.9 | GB88: 6.1 | GC88: 6.5 | GD88: 6.5 | GE88: 6.5 | GF88: 6.5 | GG88: 6.3 | GH88: 6.2 | GI88: 5.9 | GJ88: 5.6 | GK88: 5.5 | GL88: 5.6 | GM88: 5.9 | GN88: 6.3 | GO88: 6.3 | GP88: 6.3 | GQ88: 6.2 | GR88: 6.3 | GS88: 6.2 | GT88: 6.3 | GU88: 6.3 | GV88: 6.6 | GW88: 6.8 | GX88: 6.9 | GY88: 6.6 | GZ88: 6.5 | HA88: 6.3 | HB88: 6.5 | HC88: 6.4 | HD88: 6.1 | HE88: 5.8 | HF88: 5.5 | HG88: 5.4 | HH88: 5.3 | HI88: 5.4 | HJ88: 5.4 | HK88: 5.7 | HL88: 5.9 | HM88: 6 | HN88: 6.3 | HO88: 6.3 | HP88: 6.2 | HQ88: 6 | HR88: 6 | HS88: 5.9 | HT88: 5.9 | HU88: 5.9 | HV88: 6.1 | HW88: 6.1 | HX88: 6.3 | HY88: 6.3 | HZ88: 6 | IA88: 6 | IB88: 5.9 | IC88: 6 | ID88: 5.9 | IE88: 6 | IF88: 6.1 | IG88: 6 | IH88: 5.9 | II88: 5.7 | IJ88: 5.5 | IK88: 5.4 | IL88: 5.4 | IM88: 5.5 | IN88: 5.4 | IO88: 5.5 | IP88: 5.6 | IQ88: 5.6 | IR88: 5.6 | IS88: 5.6 | IT88: 5.7 | IU88: 5.8 | IV88: 5.9 | IW88: 5.9 | IX88: 5.8 | IY88: 5.6 | IZ88: 5.5 | JA88: 5.4 | JB88: 5.3 | JC88: 5.5 | JD88: 5.7 | JE88: 5.9 | JF88: 5.8 | JG88: 5.6 | JH88: 5.6 | JI88: 5.4 | JJ88: 5.5 | JK88: 5.5 | JL88: 5.5 | JM88: 5.5 | JN88: 5.5 | JO88: 5.4 | JP88: 5.2 | JQ88: 5 | JR88: 5 | JS88: 5 | JT88: 4.8 | JU88: 4.8 | JV88: 4.6 | JW88: 4.5 | JX88: 4.4 | JY88: 4.3 | JZ88: 4.3 | KA88: 4.2 | KB88: 4.3 | KC88: 4.4 | KD88: 4.6 | KE88: 5 | KF88: 5.1 | KG88: 5 | KH88: 5 | KI88: 4.8 | KJ88: 4.6 | KK88: 4.4 | KL88: 4.2 | KM88: 4.1 | KN88: 3.9 | KO88: 3.9
E89: Netherlands - Sum of Male< 25 | F89: 7 | G89: 7.1 | H89: 7.1 | I89: 7.1 | J89: 7.1 | K89: 7.1 | L89: 7.1 | M89: 7 | N89: 7 | O89: 6.9 | P89: 6.8 | Q89: 6.7 | R89: 6.5 | S89: 6.5 | T89: 6.4 | U89: 6.4 | V89: 6.4 | W89: 6.4 | X89: 6.4 | Y89: 6.5 | Z89: 6.6 | AA89: 6.7 | AB89: 6.8 | AC89: 7 | AD89: 7.2 | AE89: 7.4 | AF89: 7.6 | AG89: 7.7 | AH89: 7.9 | AI89: 8 | AJ89: 8.1 | AK89: 8.1 | AL89: 8.2 | AM89: 8.3 | AN89: 8.3 | AO89: 8.2 | AP89: 8.2 | AQ89: 8.2 | AR89: 8.3 | AS89: 8.4 | AT89: 8.5 | AU89: 8.7 | AV89: 8.9 | AW89: 9.1 | AX89: 9.4 | AY89: 9.7 | AZ89: 10.1 | BA89: 10.5 | BB89: 10.9 | BC89: 11.3 | BD89: 11.6 | BE89: 11.8 | BF89: 12 | BG89: 12.2 | BH89: 12.3 | BI89: 12.3 | BJ89: 12.4 | BK89: 12.4 | BL89: 12.3 | BM89: 12.2 | BN89: 12 | BO89: 11.9 | BP89: 11.7 | BQ89: 11.5 | BR89: 11.4 | BS89: 11.2 | BT89: 11 | BU89: 10.8 | BV89: 10.6 | BW89: 10.4 | BX89: 10.2 | BY89: 10 | BZ89: 9.7 | CA89: 9.5 | CB89: 9.4 | CC89: 9.2 | CD89: 9 | CE89: 8.9 | CF89: 8.7 | CG89: 8.6 | CH89: 8.5 | CI89: 8.4 | CJ89: 8.3 | CK89: 8.3 | CL89: 8.2 | CM89: 8.2 | CN89: 8.1 | CO89: 8 | CP89: 7.9 | CQ89: 7.8 | CR89: 7.7 | CS89: 7.6 | CT89: 7.5 | CU89: 7.4 | CV89: 7.2 | CW89: 7.1 | CX89: 6.9 | CY89: 6.8 | CZ89: 6.7 | DA89: 6.6 | DB89: 6.4 | DC89: 6.3 | DD89: 6.2 | DE89: 6.1 | DF89: 6 | DG89: 5.9 | DH89: 5.8 | DI89: 5.7 | DJ89: 5.6 | DK89: 5.6 | DL89: 5.5 | DM89: 5.4 | DN89: 5.3 | DO89: 5.2 | DP89: 5.2 | DQ89: 5.1 | DR89: 5 | DS89: 5 | DT89: 4.9 | DU89: 4.8 | DV89: 4.7 | DW89: 4.7 | DX89: 4.7 | DY89: 4.7 | DZ89: 4.7 | EA89: 4.6 | EB89: 4.7 | EC89: 4.7 | ED89: 4.8 | EE89: 4.8 | EF89: 4.9 | EG89: 5 | EH89: 5 | EI89: 5.2 | EJ89: 5.2 | EK89: 5.4 | EL89: 5.5 | EM89: 5.6 | EN89: 5.7 | EO89: 5.9 | EP89: 6.1 | EQ89: 6.3 | ER89: 6.4 | ES89: 6.6 | ET89: 7 | EU89: 7.1 | EV89: 7.2 | EW89: 7.3 | EX89: 8 | EY89: 8 | EZ89: 8.1 | FA89: 7.9 | FB89: 7.8 | FC89: 7.8 | FD89: 7.9 | FE89: 8.3 | FF89: 8.4 | FG89: 8.6 | FH89: 8.8 | FI89: 9.3 | FJ89: 9.6 | FK89: 9.4 | FL89: 9.4 | FM89: 9.1 | FN89: 9.1 | FO89: 9.3 | FP89: 9.1 | FQ89: 9.5 | FR89: 9.4 | FS89: 10 | FT89: 9.9 | FU89: 9.8 | FV89: 10.2 | FW89: 9.8 | FX89: 9.6 | FY89: 9.6 | FZ89: 9.4 | GA89: 9.3 | GB89: 8.6 | GC89: 8.5 | GD89: 8.3 | GE89: 7.9 | GF89: 7.1 | GG89: 6.8 | GH89: 6.7 | GI89: 6.3 | GJ89: 6.2 | GK89: 6.1 | GL89: 6.1 | GM89: 6.1 | GN89: 6.3 | GO89: 6.3 | GP89: 6.3 | GQ89: 6.3 | GR89: 6.1 | GS89: 6.1 | GT89: 6.4 | GU89: 6.3 | GV89: 6.6 | GW89: 6.5 | GX89: 6.3 | GY89: 6.3 | GZ89: 6.3 | HA89: 6.3 | HB89: 6.3 | HC89: 6.1 | HD89: 6.3 | HE89: 6.6 | HF89: 6.6 | HG89: 6.2 | HH89: 5.9 | HI89: 5.9 | HJ89: 6.3 | HK89: 6.2 | HL89: 6.3 | HM89: 6.4 | HN89: 6.7 | HO89: 7 | HP89: 7.5 | HQ89: 7.7 | HR89: 8 | HS89: 8.1 | HT89: 8.5 | HU89: 8.6 | HV89: 8.7 | HW89: 8.6 | HX89: 8.9 | HY89: 9.1 | HZ89: 9.4 | IA89: 8.9 | IB89: 9.1 | IC89: 9.2 | ID89: 9.3 | IE89: 9 | IF89: 9 | IG89: 9.2 | IH89: 8.6 | II89: 8.3 | IJ89: 8.1 | IK89: 7.9 | IL89: 7.6 | IM89: 7.7 | IN89: 7 | IO89: 7 | IP89: 7 | IQ89: 6.9 | IR89: 7.2 | IS89: 7.1 | IT89: 7.7 | IU89: 7.8 | IV89: 8.2 | IW89: 8.2 | IX89: 8.7 | IY89: 9.1 | IZ89: 8.8 | JA89: 8.9 | JB89: 8.4 | JC89: 8.5 | JD89: 8.2 | JE89: 8.5 | JF89: 9.1 | JG89: 9.3 | JH89: 9.4 | JI89: 9.9 | JJ89: 10.5 | JK89: 10.4 | JL89: 10.5 | JM89: 10.7 | JN89: 10.8 | JO89: 11.3 | JP89: 11.3 | JQ89: 10.7 | JR89: 11.2 | JS89: 11 | JT89: 10.9 | JU89: 10.5 | JV89: 10.1 | JW89: 10.8 | JX89: 10.2 | JY89: 12.6 | JZ89: 12.7 | KA89: 12.7 | KB89: 12.8 | KC89: 11.8 | KD89: 11.6 | KE89: 11.8 | KF89: 11.8 | KG89: 11.2 | KH89: 11.5 | KI89: 11 | KJ89: 10.9 | KK89: 10.8 | KL89: 11.1 | KM89: 11.5 | KN89: 11.5 | KO89: 11.2
E90: Netherlands - Sum of Male 25-74 | F90: 3.2 | G90: 3.2 | H90: 3.2 | I90: 3.2 | J90: 3.2 | K90: 3.2 | L90: 3.2 | M90: 3.3 | N90: 3.3 | O90: 3.3 | P90: 3.3 | Q90: 3.3 | R90: 3.3 | S90: 3.3 | T90: 3.3 | U90: 3.4 | V90: 3.4 | W90: 3.4 | X90: 3.5 | Y90: 3.5 | Z90: 3.6 | AA90: 3.6 | AB90: 3.7 | AC90: 3.7 | AD90: 3.8 | AE90: 3.9 | AF90: 3.9 | AG90: 4 | AH90: 4.1 | AI90: 4.2 | AJ90: 4.3 | AK90: 4.3 | AL90: 4.4 | AM90: 4.5 | AN90: 4.6 | AO90: 4.7 | AP90: 4.7 | AQ90: 4.8 | AR90: 4.9 | AS90: 4.9 | AT90: 5 | AU90: 5 | AV90: 5 | AW90: 5.1 | AX90: 5.1 | AY90: 5.1 | AZ90: 5.1 | BA90: 5 | BB90: 5 | BC90: 5 | BD90: 5 | BE90: 4.9 | BF90: 4.9 | BG90: 4.8 | BH90: 4.7 | BI90: 4.7 | BJ90: 4.6 | BK90: 4.6 | BL90: 4.5 | BM90: 4.4 | BN90: 4.4 | BO90: 4.3 | BP90: 4.3 | BQ90: 4.2 | BR90: 4.2 | BS90: 4.1 | BT90: 4.1 | BU90: 4 | BV90: 4 | BW90: 4 | BX90: 3.9 | BY90: 3.9 | BZ90: 3.9 | CA90: 3.9 | CB90: 3.8 | CC90: 3.8 | CD90: 3.7 | CE90: 3.7 | CF90: 3.6 | CG90: 3.5 | CH90: 3.5 | CI90: 3.4 | CJ90: 3.3 | CK90: 3.2 | CL90: 3.1 | CM90: 3.1 | CN90: 3 | CO90: 2.9 | CP90: 2.8 | CQ90: 2.7 | CR90: 2.7 | CS90: 2.6 | CT90: 2.6 | CU90: 2.5 | CV90: 2.4 | CW90: 2.4 | CX90: 2.4 | CY90: 2.3 | CZ90: 2.3 | DA90: 2.3 | DB90: 2.3 | DC90: 2.2 | DD90: 2.2 | DE90: 2.2 | DF90: 2.2 | DG90: 2.2 | DH90: 2.2 | DI90: 2.1 | DJ90: 2.1 | DK90: 2.1 | DL90: 2.1 | DM90: 2 | DN90: 2 | DO90: 1.9 | DP90: 1.9 | DQ90: 1.9 | DR90: 1.8 | DS90: 1.8 | DT90: 1.7 | DU90: 1.7 | DV90: 1.6 | DW90: 1.6 | DX90: 1.6 | DY90: 1.5 | DZ90: 1.5 | EA90: 1.5 | EB90: 1.5 | EC90: 1.5 | ED90: 1.6 | EE90: 1.6 | EF90: 1.6 | EG90: 1.7 | EH90: 1.8 | EI90: 1.8 | EJ90: 1.9 | EK90: 2 | EL90: 2 | EM90: 2.1 | EN90: 2.2 | EO90: 2.3 | EP90: 2.4 | EQ90: 2.5 | ER90: 2.6 | ES90: 2.7 | ET90: 2.7 | EU90: 2.8 | EV90: 3.1 | EW90: 3.2 | EX90: 3.2 | EY90: 3.2 | EZ90: 3.4 | FA90: 3.6 | FB90: 3.7 | FC90: 3.9 | FD90: 4 | FE90: 4.1 | FF90: 4.3 | FG90: 4.2 | FH90: 4.3 | FI90: 4.4 | FJ90: 4.3 | FK90: 4.2 | FL90: 4.1 | FM90: 4.1 | FN90: 4.1 | FO90: 4.2 | FP90: 4.2 | FQ90: 4.3 | FR90: 4.3 | FS90: 4.4 | FT90: 4.3 | FU90: 4.3 | FV90: 4.2 | FW90: 4.2 | FX90: 4.1 | FY90: 3.9 | FZ90: 3.9 | GA90: 4 | GB90: 4 | GC90: 4 | GD90: 3.8 | GE90: 3.7 | GF90: 3.7 | GG90: 3.5 | GH90: 3.5 | GI90: 3.3 | GJ90: 3.3 | GK90: 3.2 | GL90: 3.2 | GM90: 3.2 | GN90: 3.1 | GO90: 3 | GP90: 2.8 | GQ90: 2.8 | GR90: 2.7 | GS90: 2.6 | GT90: 2.6 | GU90: 2.5 | GV90: 2.5 | GW90: 2.4 | GX90: 2.4 | GY90: 2.4 | GZ90: 2.4 | HA90: 2.4 | HB90: 2.4 | HC90: 2.1 | HD90: 2.1 | HE90: 2.2 | HF90: 2.2 | HG90: 2.2 | HH90: 2.1 | HI90: 2.1 | HJ90: 2.2 | HK90: 2.2 | HL90: 2.1 | HM90: 2.2 | HN90: 2.3 | HO90: 2.4 | HP90: 2.4 | HQ90: 2.7 | HR90: 2.7 | HS90: 2.8 | HT90: 3 | HU90: 3.1 | HV90: 3.2 | HW90: 3.2 | HX90: 3.3 | HY90: 3.5 | HZ90: 3.7 | IA90: 3.7 | IB90: 3.7 | IC90: 3.6 | ID90: 3.7 | IE90: 3.7 | IF90: 3.7 | IG90: 3.7 | IH90: 3.5 | II90: 3.5 | IJ90: 3.6 | IK90: 3.6 | IL90: 3.7 | IM90: 3.7 | IN90: 3.8 | IO90: 3.9 | IP90: 4 | IQ90: 3.8 | IR90: 3.9 | IS90: 3.9 | IT90: 3.9 | IU90: 4.2 | IV90: 4.3 | IW90: 4.3 | IX90: 4.3 | IY90: 4.2 | IZ90: 4.3 | JA90: 4.6 | JB90: 4.6 | JC90: 4.6 | JD90: 4.9 | JE90: 4.8 | JF90: 4.8 | JG90: 4.9 | JH90: 5.2 | JI90: 5.4 | JJ90: 5.7 | JK90: 5.9 | JL90: 6.1 | JM90: 6.2 | JN90: 6.5 | JO90: 6.7 | JP90: 6.7 | JQ90: 6.8 | JR90: 6.7 | JS90: 6.7 | JT90: 6.7 | JU90: 6.8 | JV90: 6.9 | JW90: 7 | JX90: 6.9 | JY90: 6.5 | JZ90: 6.3 | KA90: 6.2 | KB90: 6.1 | KC90: 6 | KD90: 6 | KE90: 5.9 | KF90: 6 | KG90: 6.2 | KH90: 6.2 | KI90: 6.1 | KJ90: 6 | KK90: 5.9 | KL90: 5.8 | KM90: 5.7 | KN90: 5.6 | KO90: 5.6
E91: Netherlands - Sum of Female<25 | F91: 6.3 | G91: 6.3 | H91: 6.2 | I91: 6.2 | J91: 6.1 | K91: 6 | L91: 6 | M91: 5.9 | N91: 5.8 | O91: 5.8 | P91: 5.7 | Q91: 5.7 | R91: 5.6 | S91: 5.6 | T91: 5.6 | U91: 5.6 | V91: 5.7 | W91: 5.7 | X91: 5.8 | Y91: 6 | Z91: 6.1 | AA91: 6.3 | AB91: 6.5 | AC91: 6.8 | AD91: 7.1 | AE91: 7.4 | AF91: 7.6 | AG91: 7.7 | AH91: 7.8 | AI91: 7.8 | AJ91: 7.8 | AK91: 7.8 | AL91: 7.7 | AM91: 7.5 | AN91: 7.3 | AO91: 7 | AP91: 6.6 | AQ91: 6.4 | AR91: 6.3 | AS91: 6.4 | AT91: 6.5 | AU91: 6.7 | AV91: 7.1 | AW91: 7.4 | AX91: 7.9 | AY91: 8.6 | AZ91: 9.3 | BA91: 10.1 | BB91: 11.1 | BC91: 11.9 | BD91: 12.6 | BE91: 13.2 | BF91: 13.6 | BG91: 14 | BH91: 14.3 | BI91: 14.5 | BJ91: 14.6 | BK91: 14.7 | BL91: 14.6 | BM91: 14.4 | BN91: 14.1 | BO91: 13.9 | BP91: 13.7 | BQ91: 13.5 | BR91: 13.2 | BS91: 12.9 | BT91: 12.7 | BU91: 12.3 | BV91: 12.1 | BW91: 11.8 | BX91: 11.5 | BY91: 11.2 | BZ91: 10.8 | CA91: 10.6 | CB91: 10.4 | CC91: 10.1 | CD91: 9.9 | CE91: 9.7 | CF91: 9.5 | CG91: 9.3 | CH91: 9.2 | CI91: 9.1 | CJ91: 9 | CK91: 8.9 | CL91: 8.8 | CM91: 8.8 | CN91: 8.8 | CO91: 8.7 | CP91: 8.6 | CQ91: 8.6 | CR91: 8.5 | CS91: 8.4 | CT91: 8.3 | CU91: 8.3 | CV91: 8.2 | CW91: 8.1 | CX91: 8 | CY91: 8 | CZ91: 7.9 | DA91: 7.9 | DB91: 7.8 | DC91: 7.8 | DD91: 7.7 | DE91: 7.6 | DF91: 7.6 | DG91: 7.6 | DH91: 7.6 | DI91: 7.5 | DJ91: 7.5 | DK91: 7.5 | DL91: 7.4 | DM91: 7.4 | DN91: 7.2 | DO91: 7.1 | DP91: 7 | DQ91: 6.8 | DR91: 6.7 | DS91: 6.6 | DT91: 6.4 | DU91: 6.2 | DV91: 5.9 | DW91: 5.8 | DX91: 5.6 | DY91: 5.5 | DZ91: 5.3 | EA91: 5.2 | EB91: 5.1 | EC91: 5 | ED91: 4.9 | EE91: 4.9 | EF91: 4.8 | EG91: 4.8 | EH91: 4.7 | EI91: 4.8 | EJ91: 4.9 | EK91: 4.9 | EL91: 4.9 | EM91: 5 | EN91: 5.1 | EO91: 5.2 | EP91: 5.3 | EQ91: 5.5 | ER91: 5.6 | ES91: 5.8 | ET91: 6.1 | EU91: 6.1 | EV91: 6.1 | EW91: 6.5 | EX91: 6.8 | EY91: 7.1 | EZ91: 7.1 | FA91: 7.4 | FB91: 7.6 | FC91: 7.2 | FD91: 7.5 | FE91: 7.7 | FF91: 7.7 | FG91: 8.1 | FH91: 8.6 | FI91: 9 | FJ91: 8.8 | FK91: 9 | FL91: 9.1 | FM91: 9 | FN91: 9 | FO91: 9.6 | FP91: 9.3 | FQ91: 9.3 | FR91: 9.2 | FS91: 9.5 | FT91: 9.4 | FU91: 9.7 | FV91: 9.6 | FW91: 9.4 | FX91: 9.3 | FY91: 9.4 | FZ91: 9.5 | GA91: 9.2 | GB91: 9.5 | GC91: 9.3 | GD91: 9.1 | GE91: 9.5 | GF91: 9 | GG91: 8.4 | GH91: 8.1 | GI91: 7.9 | GJ91: 7.9 | GK91: 8.1 | GL91: 8.1 | GM91: 8 | GN91: 8 | GO91: 8.1 | GP91: 8.2 | GQ91: 8.6 | GR91: 8.2 | GS91: 7.7 | GT91: 7.8 | GU91: 8.1 | GV91: 8.5 | GW91: 8.2 | GX91: 7.5 | GY91: 7.2 | GZ91: 7 | HA91: 6.6 | HB91: 6.4 | HC91: 6.2 | HD91: 6 | HE91: 6.4 | HF91: 6.5 | HG91: 6.7 | HH91: 6.5 | HI91: 6.4 | HJ91: 6.4 | HK91: 6.1 | HL91: 6.2 | HM91: 6.3 | HN91: 6.1 | HO91: 6.3 | HP91: 6.3 | HQ91: 6.7 | HR91: 6.9 | HS91: 7 | HT91: 7.3 | HU91: 7.4 | HV91: 7.9 | HW91: 8.2 | HX91: 8.5 | HY91: 8.5 | HZ91: 8.8 | IA91: 8.7 | IB91: 8.6 | IC91: 8.9 | ID91: 8.6 | IE91: 8.7 | IF91: 8.5 | IG91: 8.4 | IH91: 8.6 | II91: 8.7 | IJ91: 8.7 | IK91: 8.5 | IL91: 7.9 | IM91: 7.2 | IN91: 6.9 | IO91: 6.9 | IP91: 6.8 | IQ91: 7.2 | IR91: 7.7 | IS91: 7.7 | IT91: 8.3 | IU91: 8.6 | IV91: 8.9 | IW91: 9.1 | IX91: 9.2 | IY91: 9.7 | IZ91: 9.8 | JA91: 10.1 | JB91: 10 | JC91: 10.2 | JD91: 10.3 | JE91: 10.2 | JF91: 10.4 | JG91: 10.3 | JH91: 10 | JI91: 10.2 | JJ91: 10.1 | JK91: 10.4 | JL91: 10.4 | JM91: 10.4 | JN91: 10.5 | JO91: 10.8 | JP91: 11.8 | JQ91: 12.1 | JR91: 12.2 | JS91: 12.1 | JT91: 12 | JU91: 12 | JV91: 12.1 | JW91: 12.3 | JX91: 12.4 | JY91: 13.9 | JZ91: 13.3 | KA91: 12.8 | KB91: 12.7 | KC91: 12.9 | KD91: 12.4 | KE91: 12.1 | KF91: 12 | KG91: 12.5 | KH91: 11.9 | KI91: 11.1 | KJ91: 10.8 | KK91: 11.1 | KL91: 11 | KM91: 10.8 | KN91: 11.2 | KO91: 11.3
